Workbook

Sheet fatores_correção
B2: Fatores de atualização monetária dos salários-de-contribuição no mês de setembro de 2004 para a apuração do salário-de-benefício no RGPS
B5: Mês | C5: FATOR SIMPLIFICADO (FEVEREIRO/2004) | D5: FATOR SIMPLIFICADO (MARÇO/2004) | E5: FATOR SIMPLIFICADO (ABRIL/2004) | F5: FATOR SIMPLIFICADO (MAIO/2004) | G5: FATOR SIMPLIFICADO (JUNHO/2004) | H5: FATOR SIMPLIFICADO (JULHO/2004) | I5: FATOR SIMPLIFICADO (AGOSTO/2004) | J5: FATOR SIMPLIFICADO (SETEMBRO/2004) | K5: FATOR SIMPLIFICADO (OUTUBRO/2004) | L5: FATOR SIMPLIFICADO (NOVEMBRO/2004) | M5: FATOR SIMPLIFICADO (DEZEMBRO/2004) | N5: FATOR SIMPLIFICADO (JANEIRO/2005) | O5: FATOR SIMPLIFICADO (FEVEREIRO/2005) | P5: FATOR SIMPLIFICADO (MARÇO/2005) | Q5: FATOR SIMPLIFICADO (ABRIL/2005) | R5: FATOR SIMPLIFICADO (MAIO/2005) | S5: FATOR SIMPLIFICADO (JUNHO/2005) | T5: FATOR SIMPLIFICADO (JULHO/2005) | U5: FATOR SIMPLIFICADO (AGOSTO/2005) | V5: FATOR SIMPLIFICADO (SETEMBRO/2005) | W5: FATOR SIMPLIFICADO (OUTUBRO/2005) | X5: FATOR SIMPLIFICADO (NOVEMBRO/2005) | Y5: FATOR SIMPLIFICADO (DEZEMBRO/2005) | Z5: FATOR SIMPLIFICADO (JANEIRO/2006) | AA5: FATOR SIMPLIFICADO (FEVEREIRO/2006) | AB5: FATOR SIMPLIFICADO (MARÇO/2006) | AC5: FATOR SIMPLIFICADO (ABRIL/2006) | AD5: FATOR SIMPLIFICADO (MAIO/2006) | AE5: FATOR SIMPLIFICADO (JUNHO/2006) | AF5: FATOR SIMPLIFICADO (JULHO/2006) | AG5: FATOR SIMPLIFICADO (AGOSTO/2006) | AH5: FATOR SIMPLIFICADO (SETEMBRO/2006) | AI5: FATOR SIMPLIFICADO (OUTUBRO/2006) | AJ5: FATOR SIMPLIFICADO (NOVEMBRO/2006) | AK5: FATOR SIMPLIFICADO (DEZEMBRO/2006) | AL5: FATOR SIMPLIFICADO (JANEIRO/2007) | AM5: FATOR SIMPLIFICADO (FEVEREIRO/2007) | AN5: FATOR SIMPLIFICADO (MARÇO/2007) | AO5: FATOR SIMPLIFICADO (ABRIL/2007) | AP5: FATOR SIMPLIFICADO (MAIO/2007) | AQ5: FATOR SIMPLIFICADO (JUNHO/2007) | AR5: FATOR SIMPLIFICADO (JULHO/2007) | AS5: FATOR SIMPLIFICADO (AGOSTO/2007) | AT5: FATOR SIMPLIFICADO (SETEMBRO/2007) | AU5: FATOR SIMPLIFICADO (OUTUBRO/2007) | AV5: FATOR SIMPLIFICADO (NOVEMBRO/2007) | AW5: FATOR SIMPLIFICADO (DEZEMBRO/2007) | AX5: FATOR SIMPLIFICADO (JANEIRO/2008) | AY5: FATOR SIMPLIFICADO (FEVEREIRO/2008) | AZ5: FATOR SIMPLIFICADO (MARÇO/2008) | BA5: FATOR SIMPLIFICADO (ABRIL/2008) | BB5: FATOR SIMPLIFICADO (MAIO/2008) | BC5: FATOR SIMPLIFICADO (JUNHO/2008) | BD5: FATOR SIMPLIFICADO (JULHO/2008) | BE5: FATOR SIMPLIFICADO (AGOSTO/2008) | BF5: FATOR SIMPLIFICADO (SETEMBRO/2008) | BG5: FATOR SIMPLIFICADO (OUTUBRO/2008) | BH5: FATOR SIMPLIFICADO (NOVEMBRO/2008) | BI5: FATOR SIMPLIFICADO (DEZEMBRO/2008) | BJ5: FATOR SIMPLIFICADO (JANEIRO/2009) | BK5: FATOR SIMPLIFICADO (FEVEREIRO/2009) | BL5: FATOR SIMPLIFICADO (MARÇO/2009) | BM5: FATOR SIMPLIFICADO (ABRIL/2009) | BN5: FATOR SIMPLIFICADO (MAIO/2009) | BO5: FATOR SIMPLIFICADO (JUNHO/2009) | BP5: FATOR SIMPLIFICADO (JULHO/2009) | BQ5: FATOR SIMPLIFICADO (AGOSTO/2009) | BR5: FATOR SIMPLIFICADO (SETEMBRO/2009) | BS5: FATOR SIMPLIFICADO (OUTUBRO/2009) | BT5: FATOR SIMPLIFICADO (NOVEMBRO/2009) | BU5: FATOR SIMPLIFICADO (DEZEMBRO/2009) | BV5: FATOR SIMPLIFICADO (JANEIRO/2010) | BW5: FATOR SIMPLIFICADO (FEVEREIRO/2010) | BX5: FATOR SIMPLIFICADO (MARÇO/2010) | BY5: FATOR SIMPLIFICADO (ABRIL/2010) | BZ5: FATOR SIMPLIFICADO (MAIO/2010) | CA5: FATOR SIMPLIFICADO (JUNHO/2010) | CB5: FATOR SIMPLIFICADO (JULHO/2010) | CC5: FATOR SIMPLIFICADO (AGOSTO/2010) | CD5: FATOR SIMPLIFICADO (SETEMBRO/2010) | CE5: FATOR SIMPLIFICADO (OUTUBRO/2010) | CF5: FATOR SIMPLIFICADO (NOVEMBRO/2010) | CG5: FATOR SIMPLIFICADO (DEZEMBRO/2010) | CH5: FATOR SIMPLIFICADO (JANEIRO/2011) | CI5: FATOR SIMPLIFICADO (FEVEREIRO/2011) | CJ5: FATOR SIMPLIFICADO (MARÇO/2011) | CK5: FATOR SIMPLIFICADO (ABRIL/2011) | CL5: FATOR SIMPLIFICADO (MAIO/2011) | CM5: FATOR SIMPLIFICADO (JUNHO/2011) | CN5: FATOR SIMPLIFICADO (JULHO/2011) | CO5: FATOR SIMPLIFICADO (AGOSTO/2011) | CP5: FATOR SIMPLIFICADO (SETEMBRO/2011) | CQ5: FATOR SIMPLIFICADO (OUTUBRO/2011) | CR5: FATOR SIMPLIFICADO (NOVEMBRO/2011) | CS5: FATOR SIMPLIFICADO (DEZEMBRO/2011) | CT5: FATOR SIMPLIFICADO (JANEIRO/2012) | CU5: FATOR SIMPLIFICADO (FEVEREIRO/2012) | CV5: FATOR SIMPLIFICADO (MARÇO/2012) | CW5: FATOR SIMPLIFICADO (ABRIL/2012) | CX5: FATOR SIMPLIFICADO (MAIO/2012) | CY5: FATOR SIMPLIFICADO (JUNHO/2012) | CZ5: FATOR SIMPLIFICADO (JULHO/2012) | DA5: FATOR SIMPLIFICADO (AGOSTO/2012) | DB5: FATOR SIMPLIFICADO (SETEMBRO/2012) | DC5: FATOR SIMPLIFICADO (OUTUBRO/2012) | DD5: FATOR SIMPLIFICADO (NOVEMBRO/2012) | DE5: FATOR SIMPLIFICADO (DEZEMBRO/2012) | DF5: FATOR SIMPLIFICADO (JANEIRO/2013) | DG5: FATOR SIMPLIFICADO (FEVEREIRO/2013) | DH5: FATOR SIMPLIFICADO (MARÇO/2013) | DI5: FATOR SIMPLIFICADO (ABRIL/2013) | DJ5: FATOR SIMPLIFICADO (MAIO/2013) | DK5: FATOR SIMPLIFICADO (JUNHO/2013) | DL5: FATOR SIMPLIFICADO (JULHO/2013) | DM5: FATOR SIMPLIFICADO (AGOSTO/2013) | DN5: FATOR SIMPLIFICADO (SETEMBRO/2013) | DO5: FATOR SIMPLIFICADO (OUTUBRO/2013) | DP5: FATOR SIMPLIFICADO (NOVEMBRO/2013) | DQ5: FATOR SIMPLIFICADO (DEZEMBRO/2013) | DR5: FATOR SIMPLIFICADO (JANEIRO/2014) | DS5: FATOR SIMPLIFICADO (FEVEREIRO/2014) | DT5: FATOR SIMPLIFICADO (MARÇO/2014) | DU5: FATOR SIMPLIFICADO (ABRIL/2014) | DV5: FATOR SIMPLIFICADO (MAIO/2014) | DW5: FATOR SIMPLIFICADO (JUNHO/2014) | DX5: FATOR SIMPLIFICADO (JULHO/2014) | DY5: FATOR SIMPLIFICADO (AGOSTO/2014) | DZ5: FATOR SIMPLIFICADO (SETEMBRO/2014) | EA5: FATOR SIMPLIFICADO (OUTUBRO/2014) | EB5: FATOR SIMPLIFICADO (NOVEMBRO/2014) | EC5: FATOR SIMPLIFICADO (DEZEMBRO/2014) | ED5: FATOR SIMPLIFICADO (JANEIRO/2015) | EE5: FATOR SIMPLIFICADO (FEVEREIRO/2015) | EF5: FATOR SIMPLIFICADO (MARÇO/2015) | EG5: FATOR SIMPLIFICADO (ABRIL/2015) | EH5: FATOR SIMPLIFICADO (MAIO/2015) | EI5: FATOR SIMPLIFICADO (JUNHO/2015) | EJ5: FATOR SIMPLIFICADO (JULHO/2015) | EK5: FATOR SIMPLIFICADO (AGOSTO/2015) | EL5: FATOR SIMPLIFICADO (SETEMBRO/2015) | EM5: FATOR SIMPLIFICADO (OUTUBRO/2015) | EN5: FATOR SIMPLIFICADO (NOVEMBRO/2015) | EO5: FATOR SIMPLIFICADO (DEZEMBRO/2015) | EP5: FATOR SIMPLIFICADO (JANEIRO/2016) | EQ5: FATOR SIMPLIFICADO (FEVEREIRO/2016) | ER5: FATOR SIMPLIFICADO (MARÇO/2016) | ES5: FATOR SIMPLIFICADO (ABRIL/2016) | ET5: FATOR SIMPLIFICADO (MAIO/2016) | EU5: FATOR SIMPLIFICADO (JUNHO/2016) | EV5: FATOR SIMPLIFICADO (JULHO/2016) | EW5: FATOR SIMPLIFICADO (AGOSTO/2016) | EX5: FATOR SIMPLIFICADO (SETEMBRO/2016) | EY5: FATOR SIMPLIFICADO (OUTUBRO/2016) | EZ5: FATOR SIMPLIFICADO (NOVEMBRO/2016) | FA5: FATOR SIMPLIFICADO (DEZEMBRO/2016) | FB5: FATOR SIMPLIFICADO (JANEIRO/2017) | FC5: FATOR SIMPLIFICADO (FEVEREIRO/2017) | FD5: FATOR SIMPLIFICADO (MARÇO/2017) | FE5: FATOR SIMPLIFICADO (ABRIL/2017) | FF5: FATOR SIMPLIFICADO (MAIO/2017) | FG5: FATOR SIMPLIFICADO (JUNHO/2017) | FH5: FATOR SIMPLIFICADO (JULHO/2017) | FI5: FATOR SIMPLIFICADO (AGOSTO/2017) | FJ5: FATOR SIMPLIFICADO (SETEMBRO/2017) | FK5: FATOR SIMPLIFICADO (OUTUBRO/2017) | FL5: FATOR SIMPLIFICADO (NOVEMBRO/2017) | FM5: FATOR SIMPLIFICADO (DEZEMBRO/2017) | FN5: FATOR SIMPLIFICADO (JANEIRO/2018) | FO5: FATOR SIMPLIFICADO (FEVEREIRO/2018) | FP5: FATOR SIMPLIFICADO (MARÇO/2018) | FQ5: FATOR SIMPLIFICADO (ABRIL/2018) | FR5: FATOR SIMPLIFICADO (MAIO/2018) | FS5: FATOR SIMPLIFICADO (JUNHO/2018) | FT5: FATOR SIMPLIFICADO (JULHO/2018) | FU5: FATOR SIMPLIFICADO (AGOSTO/2018) | FV5: FATOR SIMPLIFICADO (SETEMBRO/2018) | FW5: FATOR SIMPLIFICADO (OUTUBRO/2018) | FX5: FATOR SIMPLIFICADO (NOVEMBRO/2018) | FY5: FATOR SIMPLIFICADO (DEZEMBRO/2018) | FZ5: FATOR SIMPLIFICADO (JANEIRO/2019) | GA5: FATOR SIMPLIFICADO (FEVEREIRO/2019) | GB5: FATOR SIMPLIFICADO (MARÇO/2019) | GC5: FATOR SIMPLIFICADO (ABRIL/2019) | GD5: FATOR SIMPLIFICADO (MAIO/2019) | GE5: FATOR SIMPLIFICADO (JUNHO/2019) | GF5: FATOR SIMPLIFICADO (JULHO/2019) | GG5: FATOR SIMPLIFICADO (AGOSTO/2019) | GH5: FATOR SIMPLIFICADO (SETEMBRO/2019) | GI5: FATOR SIMPLIFICADO (OUTUBRO/2019) | GJ5: FATOR SIMPLIFICADO (NOVEMBRO/2019) | GK5: FATOR SIMPLIFICADO (DEZEMBRO/2019) | GL5: FATOR SIMPLIFICADO (JANEIRO/2020) | GM5: FATOR SIMPLIFICADO (FEVEREIRO/2020) | GN5: FATOR SIMPLIFICADO (MARÇO/2020) | GO5: FATOR SIMPLIFICADO (ABRIL/2020) | GP5: FATOR SIMPLIFICADO (MAIO/2020) | GQ5: FATOR SIMPLIFICADO (JUNHO/2020) | GR5: FATOR SIMPLIFICADO (JULHO/2020) | GS5: FATOR SIMPLIFICADO (AGOSTO/2020) | GT5: FATOR SIMPLIFICADO (SETEMBRO/2020) | GU5: FATOR SIMPLIFICADO (OUTUBRO/2020) | GV5: FATOR SIMPLIFICADO (NOVEMBRO/2020) | GW5: FATOR SIMPLIFICADO (DEZEMBRO/2020) | GX5: FATOR SIMPLIFICADO (JANEIRO/2021) | GY5: FATOR SIMPLIFICADO (FEVEREIRO/2021) | GZ5: FATOR SIMPLIFICADO (MARÇO/2021) | HA5: FATOR SIMPLIFICADO (ABRIL/2021) | HB5: FATOR SIMPLIFICADO (MAIO/2021) | HC5: FATOR SIMPLIFICADO (JUNHO/2021) | HD5: FATOR SIMPLIFICADO (JULHO/2021) | HE5: FATOR SIMPLIFICADO (AGOSTO/2021) | HF5: FATOR SIMPLIFICADO (SETEMBRO/2021) | HG5: FATOR SIMPLIFICADO (OUTUBRO/2021) | HH5: FATOR SIMPLIFICADO (NOVEMBRO/2021) | HI5: FATOR SIMPLIFICADO (DEZEMBRO/2021) | HJ5: FATOR SIMPLIFICADO (JANEIRO/2022) | HK5: FATOR SIMPLIFICADO (FEVEREIRO/2022) | HL5: FATOR SIMPLIFICADO (MARÇO/2022) | HM5: FATOR SIMPLIFICADO (ABRIL/2022) | HN5: FATOR SIMPLIFICADO (MAIO/2022) | HO5: FATOR SIMPLIFICADO (JUNHO/2022) | HP5: FATOR SIMPLIFICADO (JULHO/2022) | HQ5: FATOR SIMPLIFICADO (AGOSTO/2022) | HR5: FATOR SIMPLIFICADO (SETEMBRO/2022) | HS5: FATOR SIMPLIFICADO (OUTUBRO/2022) | HT5: FATOR SIMPLIFICADO (NOVEMBRO/2022) | HU5: FATOR SIMPLIFICADO (DEZEMBRO/2022) | HV5: FATOR SIMPLIFICADO (JANEIRO/2023) | HW5: FATOR SIMPLIFICADO (FEVEREIRO/2023) | HX5: FATOR SIMPLIFICADO (MARÇO/2023) | HY5: FATOR SIMPLIFICADO (ABRIL/2023) | HZ5: FATOR SIMPLIFICADO (MAIO/2023) | IA5: FATOR SIMPLIFICADO (JUNHO/2023) | IB5: FATOR SIMPLIFICADO (JULHO/2023) | IC5: FATOR SIMPLIFICADO (AGOSTO/2023) | ID5: FATOR SIMPLIFICADO (SETEMBRO/2023) | IE5: FATOR SIMPLIFICADO (OUTUBRO/2023) | IF5: FATOR SIMPLIFICADO (NOVEMBRO/2023) | IG5: FATOR SIMPLIFICADO (DEZEMBRO/2023) | IH5: FATOR SIMPLIFICADO (JANEIRO/2024) | II5: FATOR SIMPLIFICADO (FEVEREIRO/2024) | IJ5: FATOR SIMPLIFICADO (MARÇO/2024) | IK5: FATOR SIMPLIFICADO (ABRIL/2024) | IL5: FATOR SIMPLIFICADO (MAIO/2024) | IM5: FATOR SIMPLIFICADO (JUNHO/2024) | IN5: FATOR SIMPLIFICADO (JULHO/2024) | IO5: FATOR SIMPLIFICADO (AGOSTO/2024) | IP5: FATOR SIMPLIFICADO (SETEMBRO/2024) | IQ5: FATOR SIMPLIFICADO (OUTUBRO/2024) | IR5: FATOR SIMPLIFICADO (NOVEMBRO/2024) | IS5: FATOR SIMPLIFICADO (DEZEMBRO/2024) | IT5: FATOR SIMPLIFICADO (JANEIRO/2025) | IU5: FATOR SIMPLIFICADO (FEVEREIRO/2025) | IV5: FATOR SIMPLIFICADO (MARÇO/2025) | IW5: FATOR SIMPLIFICADO (ABRIL/2025) | IX5: FATOR SIMPLIFICADO (MAIO/2025) | IY5: FATOR SIMPLIFICADO (JUNHO/2025)
B6: 1994-07-01 | C6: 3.570588 | D6: =C6*$D$121 -> 3.584513293 | E6: =D6*$E$122 -> 3.604945019 | F6: =E6*$F$123 -> 3.619725294 | G6: =F6*$G$124 -> 3.634204195 | H6: =G6*$H$125 -> 3.652375216 | I6: =H6*$I$126 -> 3.679037555 | J6: =I6*$J$127 -> 3.697432743 | K6: =J6*$K$128 -> 3.703718378 | L6: =K6*$L$129 -> 3.710014699 | M6: =L6*$M$130 -> 3.726338764 | N6: =M6*$N$131 -> 3.758385277 | O6: =N6*$O$132 -> 3.779808074 | P6: =O6*$P$133 -> 3.796439229 | Q6: =P6*$Q$134 -> 3.824153235 | R6: =Q6*$R$135 -> 3.85895303 | S6: =R6*$S$136 -> 3.885965701 | T6: =S6*$T$137 -> 3.881691139 | U6: =T6*$U$138 -> 3.882855646 | V6: =U6*$V$139 -> 3.882855646 | W6: =V6*$W$140 -> 3.88867993 | X6: =W6*$X$141 -> 3.911234273 | Y6: =X6*$Y$142 -> 3.932354938 | Z6: =Y6*$Z$143 -> 3.948084358 | AA6: =Z6*$AA$144 -> 3.963087079 | AB6: =AA6*$AB$145 -> 3.972202179 | AC6: =AB6*$AC$146 -> 3.982927125 | AD6: =AC6*$AD$147 -> 3.987706637 | AE6: =AD6*$AE$148 -> 3.992890656 | AF6: =AE6*$AF$149 -> 3.990095633 | AG6: =AF6*$AG$150 -> 3.994484738 | AH6: =AG6*$AH$151 -> 3.993685841 | AI6: =AH6*$AI$152 -> 4.000075738 | AJ6: =AI6*$AJ$153 -> 4.017276064 | AK6: =AJ6*$AK$154 -> 4.034148623 | AL6: =AK6*$AL$155 -> 4.059160345 | AM6: =AL6*$AM$156 -> 4.07905023 | AN6: =AM6*$AN$157 -> 4.096182241 | AO6: =AN6*$AO$158 -> 4.114205443 | AP6: =AO6*$AP$159 -> 4.124902377 | AQ6: =AP6*$AQ$160 -> 4.135627124 | AR6: =AQ6*$AR$161 -> 4.148447568 | AS6: =AR6*$AS$162 -> 4.1617226 | AT6: =AS6*$AT$163 -> 4.186276763 | AU6: =AT6*$AU$164 -> 4.196742455 | AV6: =AU6*$AV$165 -> 4.209332682 | AW6: =AV6*$AW$166 -> 4.227432813 | AX6: =AW6*$AX$167 -> 4.268438911 | AY6: =AX6*$AY$168 -> 4.29789114 | AZ6: =AY6*$AZ$169 -> 4.319810385 | BA6: =AZ6*$BA$170 -> 4.341841418 | BB6: =BA6*$BB$171 -> 4.369629203 | BC6: =BB6*$BC$172 -> 4.411577643 | BD6: =BC6*$BD$173 -> 4.451723 | BE6: =BD6*$BE$174 -> 4.477542993 | BF6: =BE6*$BF$175 -> 4.486945833 | BG6: =BF6*$BG$176 -> 4.493676252 | BH6: =BG6*$BH$177 -> 4.516144633 | BI6: =BH6*$BI$178 -> 4.533305983 | BJ6: =BI6*$BJ$179 -> 4.54645257 | BK6: =BJ6*$BK$180 -> 4.575549867 | BL6: =BK6*$BL$181 -> 4.589734071 | BM6: =BL6*$BM$182 -> 4.598913539 | BN6: =BM6*$BN$183 -> 4.624207564 | BO6: =BN6*$BO$184 -> 4.651952809 | BP6: =BO6*$BP$185 -> 4.671491011 | BQ6: =BP6*$BQ$186 -> 4.68223544 | BR6: =BQ6*$BR$187 -> 4.685981229 | BS6: =BR6*$BS$188 -> 4.693478799 | BT6: =BS6*$BT$189 -> 4.704743148 | BU6: =BT6*$BU$190 -> 4.722150697 | BV6: =BU6*$BV$191 -> 4.733483859 | BW6: =BV6*$BW$192 -> 4.775138517 | BX6: =BW6*$BX$193 -> 4.808564487 | BY6: =BX6*$BY$194 -> 4.842705295 | BZ6: =BY6*$BZ$195 -> 4.878057043 | CA6: =BZ6*$CA$196 -> 4.899032688 | CB6: =CA6*$CB$197 -> 4.893643753 | CC6: =CB6*$CC$198 -> 4.890218202 | CD6: =CC6*$CD$199 -> 4.886795049 | CE6: =CD6*$CE$200 -> 4.913183742 | CF6: =CE6*$CF$201 -> 4.958385033 | CG6: =CF6*$CG$202 -> 5.009456399 | CH6: =CG6*$CH$203 -> 5.039513137 | CI6: =CH6*$CI$204 -> 5.086884561 | CJ6: =CI6*$CJ$205 -> 5.114353737 | CK6: =CJ6*$CK$206 -> 5.148108472 | CL6: =CK6*$CL$207 -> 5.185174853 | CM6: =CL6*$CM$208 -> 5.21473035 | CN6: =CM6*$CN$209 -> 5.226202756 | CO6: =CN6*$CO$210 -> 5.226202756 | CP6: =CO6*$CP$211 -> 5.248152808 | CQ6: =CP6*$CQ$212 -> 5.271769496 | CR6: =CQ6*$CR$213 -> 5.288639158 | CS6: =CR6*$CS$214 -> 5.318784401 | CT6: =CS6*$CT$215 -> 5.345910202 | CU6: =CT6*$CU$216 -> 5.373174344 | CV6: =CU6*$CV$217 -> 5.394129724 | CW6: =CV6*$CW$218 -> 5.403839157 | CX6: =CW6*$CX$219 -> 5.438423728 | CY6: =CX6*$CY$220 -> 5.468335058 | CZ6: =CY6*$CZ$221 -> 5.482552729 | DA6: =CZ6*$DA$222 -> 5.506127706 | DB6: =DA6*$DB$223 -> 5.530905281 | DC6: =DB6*$DC$224 -> 5.565749984 | DD6: =DC6*$DD$225 -> 5.605266809 | DE6: =DD6*$DE$226 -> 5.63553525 | DF6: =DE6*$DF$227 -> 5.67723821 | DG6: =DF6*$DG$228 -> 5.729468802 | DH6: =DG6*$DH$229 -> 5.75926204 | DI6: =DH6*$DI$230 -> 5.793817612 | DJ6: =DI6*$DJ$231 -> 5.828001136 | DK6: =DJ6*$DK$232 -> 5.84839914 | DL6: =DK6*$DL$233 -> 5.864774657 | DM6: =DL6*$DM$234 -> 5.85715045 | DN6: =DM6*$DN$235 -> 5.866521891 | DO6: =DN6*$DO$236 -> 5.8823615 | DP6: =DO6*$DP$237 -> 5.918243905 | DQ6: =DP6*$DQ$238 -> 5.950202422 | DR6: =DQ6*$DR$239 -> 5.99304388 | DS6: =DR6*$DS$240 -> 6.030800056 | DT6: =DS6*$DT$241 -> 6.069397177 | DU6: =DT6*$DU$242 -> 6.119166234 | DV6: =DU6*$DV$243 -> 6.16689573 | DW6: =DV6*$DW$244 -> 6.203897105 | DX6: =DW6*$DX$245 -> 6.220027237 | DY6: =DX6*$DY$246 -> 6.228113272 | DZ6: =DY6*$DZ$247 -> 6.239323876 | EA6: =DZ6*$EA$248 -> 6.269896563 | EB6: =EA6*$EB$249 -> 6.29372217 | EC6: =EB6*$EC$250 -> 6.327078898 | ED6: =EC6*$ED$251 -> 6.366306787 | EE6: =ED6*$EE$252 -> 6.460528127 | EF6: =EE6*$EF$253 -> 6.535470254 | EG6: =EF6*$EG$254 -> 6.634155855 | EH6: =EG6*$EH$255 -> 6.681258361 | EI6: =EH6*$EI$256 -> 6.747402819 | EJ6: =EI6*$EJ$257 -> 6.799357821 | EK6: =EJ6*$EK$258 -> 6.838794096 | EL6: =EK6*$EL$259 -> 6.855891081 | EM6: =EL6*$EM$260 -> 6.890856126 | EN6: =EM6*$EN$261 -> 6.943915718 | EO6: =EN6*$EO$262 -> 7.020993182 | EP6: =EO6*$EP$263 -> 7.084182121 | EQ6: =EP6*$EQ$264 -> 7.191153271 | ER6: =EQ6*$ER$265 -> 7.259469227 | ES6: =ER6*$ES$266 -> 7.291410892 | ET6: =ES6*$ET$267 -> 7.338075921 | EU6: =ET6*$EU$268 -> 7.409989065 | EV6: =EU6*$EV$269 -> 7.444816014 | EW6: =EV6*$EW$270 -> 7.492462836 | EX6: =EW6*$EX$271 -> 7.515689471 | EY6: =EX6*$EY$272 -> 7.521702023 | EZ6: =EY6*$EZ$273 -> 7.534488916 | FA6: =EZ6*$FA$274 -> 7.539763059 | FB6: =FA6*$FB$275 -> 7.550318727 | FC6: =FB6*$FC$276 -> 7.582030065 | FD6: =FC6*$FD$277 -> 7.600226938 | FE6: =FD6*$FE$278 -> 7.624547664 | FF6: =FE6*$FF$279 -> 7.630647302 | FG6: =FF6*$FG$280 -> 7.658117632 | FH6: =FG6*$FH$281 -> 7.648123789 | FI6: =FH6*$FI$282 -> 7.661125599 | FJ6: =FI6*$FJ$283 -> 7.658827261 | FK6: =FJ6*$FK$284 -> 7.658827261 | FL6: =FK6*$FL$285 -> 7.658827261 | FM6: =FL6*$FM$286 -> 7.658827261 | FN6: =FM6*$FN$287 -> 7.658827261 | FO6: =FN6*$FO$288 -> 7.658827261 | FP6: =FO6*$FP$289 -> 7.658827261 | FQ6: =FP6*$FQ$290 -> 7.658827261 | FR6: =FQ6*$FR$291 -> 7.658827261 | FS6: =FR6*$FS$292 -> 7.658827261 | FT6: =FS6*$FT$293 -> 7.658827261 | FU6: =FT6*$FU$294 -> 7.658827261 | FV6: =FU6*$FV$295 -> 7.658827261 | FW6: =FV6*$FW$296 -> 7.658827261 | FX6: =FW6*$FX$297 -> 7.658827261 | FY6: =FX6*$FY$298 -> 7.658827261 | FZ6: =FY6*$FZ$299 -> 7.658827261 | GA6: =FZ6*$GA$300 -> 7.658827261 | GB6: =GA6*$GB$301 -> 7.658827261 | GC6: =GB6*$GC$302 -> 7.658827261 | GD6: =GC6*$GD$303 -> 7.658827261 | GE6: =GD6*$GE$304 -> 7.658827261 | GF6: =GE6*$GF$305 -> 7.658827261 | GG6: =GF6*$GG$306 -> 7.658827261 | GH6: =GG6*$GH$307 -> 7.658827261 | GI6: =GH6*$GI$308 -> 7.658827261 | GJ6: =GI6*$GJ$309 -> 7.658827261 | GK6: =GJ6*$GK$310 -> 7.658827261 | GL6: =GK6*$GL$311 -> 7.658827261 | GM6: =GL6*$GM$312 -> 7.658827261 | GN6: =GM6*$GN$313 -> 7.658827261 | GO6: =GN6*$GO$314 -> 7.658827261 | GP6: =GO6*$GP$315 -> 7.658827261 | GQ6: =GP6*$GQ$316 -> 7.658827261 | GR6: =GQ6*$GR$317 -> 7.658827261 | GS6: =GR6*$GS$318 -> 7.658827261 | GT6: =GS6*$GT$319 -> 7.658827261 | GU6: =GT6*$GU$320 -> 7.658827261 | GV6: =GU6*$GV$321 -> 7.658827261 | GW6: =GV6*$GW$322 -> 7.658827261 | GX6: =GW6*$GX$323 -> 7.658827261 | GY6: =GX6*$GY$324 -> 7.658827261 | GZ6: =GY6*$GZ$325 -> 7.658827261 | HA6: =GZ6*$HA$326 -> 7.658827261 | HB6: =HA6*$HB$327 -> 7.658827261 | HC6: =HB6*$HC$328 -> 7.658827261 | HD6: =HC6*$HD$329 -> 7.658827261 | HE6: =HD6*$HE$330 -> 7.658827261 | HF6: =HE6*$HF$331 -> 7.658827261 | HG6: =HF6*$HG$332 -> 7.658827261 | HH6: =HG6*$HH$333 -> 7.658827261 | HI6: =HH6*$HI$334 -> 7.658827261 | HJ6: =HI6*$HJ$335 -> 7.658827261 | HK6: =HJ6*$HK$336 -> 7.658827261 | HL6: =HK6*$HL$337 -> 7.658827261 | HM6: =HL6*$HM$338 -> 7.658827261 | HN6: =HM6*$HN$339 -> 7.658827261 | HO6: =HN6*$HO$340 -> 7.658827261 | HP6: =HO6*$HP$341 -> 7.658827261 | HQ6: =HP6*$HQ$342 -> 7.658827261 | HR6: =HQ6*$HR$343 -> 7.658827261 | HS6: =HR6*$HS$344 -> 7.658827261 | HT6: =HS6*$HT$345 -> 7.658827261 | HU6: =HT6*$HU$346 -> 7.658827261 | HV6: =HU6*$HV$347 -> 7.658827261 | HW6: =HV6*$HW$348 -> 7.658827261 | HX6: =HW6*$HX$349 -> 7.658827261 | HY6: =HX6*$HY$350 -> 7.658827261 | HZ6: =HY6*$HZ$351 -> 7.658827261 | IA6: =HZ6*$IA$352 -> 7.658827261 | IB6: =IA6*$IB$353 -> 7.658827261 | IC6: =IB6*$IC$354 -> 7.658827261 | ID6: =IC6*$ID$355 -> 7.658827261 | IE6: =ID6*$IE$356 -> 7.658827261 | IF6: =IE6*$IF$357 -> 7.658827261 | IG6: =IF6*$IG$358 -> 7.658827261 | IH6: =IG6*$IH$359 -> 7.658827261 | II6: =IH6*$II$360 -> 7.658827261 | IJ6: =II6*$IJ$361 -> 7.658827261 | IK6: =IJ6*$IK$362 -> 7.658827261 | IL6: =IK6*$IL$363 -> 7.658827261 | IM6: =IL6*$IM$364 -> 7.658827261 | IN6: =IM6*$IN$365 -> 7.658827261 | IO6: =IN6*$IO$366 -> 7.658827261 | IP6: =IO6*$IP$367 -> 7.658827261 | IQ6: =IP6*$IQ$368 -> 7.658827261 | IR6: =IQ6*$IR$369 -> 7.658827261 | IS6: =IR6*$IS$370 -> 7.658827261 | IT6: =IS6*$IT$371 -> 7.658827261 | IU6: =IT6*$IU$372 -> 7.658827261 | IV6: =IU6*$IV$373 -> 7.658827261 | IW6: =IV6*$IW$374 -> 7.658827261 | IX6: =IW6*$IX$375 -> 7.658827261 | IY6: =IX6*$IY$376 -> 7.658827261
B7: 1994-08-01 | C7: 3.365939 | D7: 3.379066162 | E7: 3.398326839 | F7: 3.412259979 | G7: 3.425909019 | H7: 3.443038564 | I7: 3.468172746 | J7: 3.48551361 | K7: 3.491438983 | L7: 3.497374429 | M7: 3.512762876 | N7: 3.542972637 | O7: =N7*$O$132 -> 3.563167581 | P7: 3.578845519 | Q7: 3.604971091 | R7: =Q7*$R$135 -> 3.637776328 | S7: 3.663240762 | T7: 3.659211197 | U7: 3.660308961 | V7: 3.660308961 | W7: 3.665799424 | X7: 3.687061061 | Y7: 3.70697119 | Z7: 3.721799075 | AA7: 3.735941912 | AB7: 3.744534578 | AC7: 3.754644821 | AD7: 3.759150395 | AE7: 3.764037291 | AF7: 3.761402465 | AG7: 3.765540007 | AH7: 3.764786899 | AI7: 3.770810558 | AJ7: 3.787025044 | AK7: 3.802930549 | AL7: 3.826508718 | AM7: 3.845258611 | AN7: 3.861408697 | AO7: 3.878398895 | AP7: 3.888482733 | AQ7: 3.898592788 | AR7: 3.910678425 | AS7: 3.923192596 | AT7: 3.946339433 | AU7: 3.956205281 | AV7: 3.968073897 | AW7: 3.985136615 | AX7: 4.02379244 | AY7: 4.051556608 | AZ7: 4.072219547 | BA7: 4.092987866 | BB7: 4.119182989 | BC7: 4.158727145 | BD7: 4.196571562 | BE7: 4.220911677 | BF7: 4.229775592 | BG7: 4.236120255 | BH7: 4.257300857 | BI7: 4.2734786 | BJ7: 4.285871688 | BK7: 4.313301267 | BL7: 4.3266725 | BM7: 4.335325845 | BN7: 4.359170138 | BO7: 4.385325158 | BP7: 4.403743524 | BQ7: 4.413872134 | BR7: 4.417403232 | BS7: 4.424471077 | BT7: 4.435089808 | BU7: 4.45149964 | BV7: 4.462183239 | BW7: 4.501450452 | BX7: 4.532960605 | BY7: 4.565144625 | BZ7: 4.598470181 | CA7: 4.618243603 | CB7: 4.613163535 | CC7: 4.60993432 | CD7: 4.606707366 | CE7: 4.631583586 | CF7: 4.674194155 | CG7: 4.722338355 | CH7: 4.750672385 | CI7: 4.795328705 | CJ7: 4.82122348 | CK7: 4.853043555 | CL7: 4.887985469 | CM7: 4.915846986 | CN7: 4.926661849 | CO7: 4.926661849 | CP7: 4.947353829 | CQ7: 4.969616921 | CR7: 4.985519695 | CS7: 5.013937158 | CT7: 5.039508237 | CU7: 5.065209729 | CV7: 5.084964047 | CW7: 5.094116982 | CX7: 5.126719331 | CY7: 5.154916288 | CZ7: 5.16831907 | DA7: 5.190542842 | DB7: 5.213900285 | DC7: 5.246747856 | DD7: 5.283999766 | DE7: 5.312533365 | DF7: 5.351846112 | DG7: 5.401083096 | DH7: 5.429168728 | DI7: 5.461743741 | DJ7: 5.493968029 | DK7: 5.513196917 | DL7: 5.528633868 | DM7: 5.521446644 | DN7: 5.530280959 | DO7: 5.545212717 | DP7: 5.579038515 | DQ7: 5.609165323 | DR7: 5.649551313 | DS7: 5.685143486 | DT7: 5.721528405 | DU7: 5.768444938 | DV7: 5.813438808 | DW7: 5.848319441 | DX7: 5.863525072 | DY7: 5.871147654 | DZ7: 5.88171572 | EA7: 5.910536127 | EB7: 5.932996164 | EC7: 5.964441044 | ED7: 6.001420578 | EE7: 6.090241603 | EF7: 6.160888406 | EG7: 6.25391782 | EH7: 6.298320637 | EI7: 6.360674011 | EJ7: 6.409651201 | EK7: 6.446827178 | EL7: 6.462944246 | EM7: 6.495905262 | EN7: 6.545923732 | EO7: 6.618583486 | EP7: 6.678150737 | EQ7: 6.778990813 | ER7: 6.843391226 | ES7: 6.873502147 | ET7: 6.917492561 | EU7: 6.985283988 | EV7: 7.018114823 | EW7: 7.063030758 | EX7: 7.084926153 | EY7: 7.090594094 | EZ7: 7.102648104 | FA7: 7.107619958 | FB7: 7.117570626 | FC7: 7.147464422 | FD7: 7.164618337 | FE7: 7.187545116 | FF7: 7.193295152 | FG7: 7.219191014 | FH7: 7.20976997 | FI7: 7.222026579 | FJ7: 7.219859971 | FK7: 7.219859971 | FL7: 7.219859971 | FM7: 7.219859971 | FN7: 7.219859971 | FO7: 7.219859971 | FP7: 7.219859971 | FQ7: 7.219859971 | FR7: 7.219859971 | FS7: 7.219859971 | FT7: 7.219859971 | FU7: 7.219859971 | FV7: 7.219859971 | FW7: 7.219859971 | FX7: 7.219859971 | FY7: 7.219859971 | FZ7: 7.219859971 | GA7: 7.219859971 | GB7: 7.219859971 | GC7: 7.219859971 | GD7: 7.219859971 | GE7: 7.219859971 | GF7: 7.219859971 | GG7: 7.219859971 | GH7: 7.219859971 | GI7: 7.219859971 | GJ7: 7.219859971 | GK7: 7.219859971 | GL7: 7.219859971 | GM7: 7.219859971 | GN7: 7.219859971 | GO7: 7.219859971 | GP7: 7.219859971 | GQ7: 7.219859971 | GR7: 7.219859971 | GS7: 7.219859971 | GT7: 7.219859971 | GU7: 7.219859971 | GV7: 7.219859971 | GW7: 7.219859971 | GX7: 7.219859971 | GY7: 7.219859971 | GZ7: 7.219859971 | HA7: 7.219859971 | HB7: 7.219859971 | HC7: 7.219859971 | HD7: 7.219859971 | HE7: 7.219859971 | HF7: 7.219859971 | HG7: 7.219859971 | HH7: 7.219859971 | HI7: 7.219859971 | HJ7: 7.219859971 | HK7: 7.219859971 | HL7: 7.219859971 | HM7: 7.219859971 | HN7: 7.219859971 | HO7: 7.219859971 | HP7: 7.219859971 | HQ7: 7.219859971 | HR7: 7.219859971 | HS7: 7.219859971 | HT7: 7.219859971 | HU7: 7.219859971 | HV7: 7.219859971 | HW7: 7.219859971 | HX7: 7.219859971 | HY7: 7.219859971 | HZ7: 7.219859971 | IA7: 7.219859971 | IB7: 7.219859971 | IC7: 7.219859971 | ID7: 7.219859971 | IE7: 7.219859971 | IF7: 7.219859971 | IG7: 7.219859971 | IH7: 7.219859971 | II7: 7.219859971 | IJ7: 7.219859971 | IK7: 7.219859971 | IL7: 7.219859971 | IM7: 7.219859971 | IN7: 7.219859971 | IO7: 7.219859971 | IP7: 7.219859971 | IQ7: 7.219859971 | IR7: 7.219859971 | IS7: 7.219859971 | IT7: 7.219859971 | IU7: 7.219859971 | IV7: 7.219859971 | IW7: 7.219859971 | IX7: 7.219859971 | IY7: 7.219859971
B8: 1994-09-01 | C8: 3.191673 | D8: 3.204120525 | E8: 3.222384012 | F8: 3.235595786 | G8: 3.248538169 | H8: 3.26478086 | I8: 3.28861376 | J8: 3.305056829 | K8: 3.310675426 | L8: 3.316303574 | M8: 3.33089531 | N8: 3.359541009 | O8: 3.378690393 | P8: 3.393556631 | Q8: 3.418329594 | R8: 3.449436394 | S8: 3.473582448 | T8: 3.469761508 | U8: 3.470802436 | V8: 3.470802436 | W8: 3.47600864 | X8: 3.49616949 | Y8: 3.515048805 | Z8: 3.529109 | AA8: 3.542519615 | AB8: 3.55066741 | AC8: 3.560254212 | AD8: 3.564526517 | AE8: 3.569160401 | AF8: 3.566661989 | AG8: 3.570585317 | AH8: 3.5698712 | AI8: 3.575582994 | AJ8: 3.590958001 | AK8: 3.606040024 | AL8: 3.628397473 | AM8: 3.64617662 | AN8: 3.661490562 | AO8: 3.677601121 | AP8: 3.687162883 | AQ8: 3.696749507 | AR8: 3.70820943 | AS8: 3.720075701 | AT8: 3.742024147 | AU8: 3.751379208 | AV8: 3.762633345 | AW8: 3.778812669 | AX8: 3.815467151 | AY8: 3.841793875 | AZ8: 3.861387024 | BA8: 3.881080097 | BB8: 3.90591901 | BC8: 3.943415833 | BD8: 3.979300917 | BE8: 4.002380862 | BF8: 4.010785862 | BG8: 4.016802041 | BH8: 4.036886051 | BI8: 4.052226218 | BJ8: 4.063977674 | BK8: 4.089987131 | BL8: 4.102666091 | BM8: 4.110871423 | BN8: 4.133481216 | BO8: 4.158282103 | BP8: 4.175746888 | BQ8: 4.185351106 | BR8: 4.188699387 | BS8: 4.195401306 | BT8: 4.205470269 | BU8: 4.221030509 | BV8: 4.231160982 | BW8: 4.268395199 | BX8: 4.298273965 | BY8: 4.32879171 | BZ8: 4.36039189 | CA8: 4.379141575 | CB8: 4.374324519 | CC8: 4.371262492 | CD8: 4.368202608 | CE8: 4.391790902 | CF8: 4.432195379 | CG8: 4.477846991 | CH8: 4.504714073 | CI8: 4.547058385 | CJ8: 4.571612501 | CK8: 4.601785143 | CL8: 4.634917996 | CM8: 4.661337029 | CN8: 4.67159197 | CO8: 4.67159197 | CP8: 4.691212656 | CQ8: 4.712323113 | CR8: 4.727402547 | CS8: 4.754348742 | CT8: 4.778595921 | CU8: 4.80296676 | CV8: 4.82169833 | CW8: 4.830377387 | CX8: 4.861291802 | CY8: 4.888028907 | CZ8: 4.900737782 | DA8: 4.921810955 | DB8: 4.943959104 | DC8: 4.975106047 | DD8: 5.010429299 | DE8: 5.037485618 | DF8: 5.074763011 | DG8: 5.121450831 | DH8: 5.148082375 | DI8: 5.17897087 | DJ8: 5.209526798 | DK8: 5.227760141 | DL8: 5.24239787 | DM8: 5.235582753 | DN8: 5.243959685 | DO8: 5.258118376 | DP8: 5.290192898 | DQ8: 5.31875994 | DR8: 5.357055011 | DS8: 5.390804458 | DT8: 5.425305607 | DU8: 5.469793113 | DV8: 5.512457499 | DW8: 5.545532244 | DX8: 5.559950628 | DY8: 5.567178563 | DZ8: 5.577199485 | EA8: 5.604527762 | EB8: 5.625824968 | EC8: 5.65564184 | ED8: 5.69070682 | EE8: 5.774929281 | EF8: 5.84191846 | EG8: 5.930131429 | EH8: 5.972235362 | EI8: 6.031360492 | EJ8: 6.077801968 | EK8: 6.113053219 | EL8: 6.128335852 | EM8: 6.159590365 | EN8: 6.207019211 | EO8: 6.275917124 | EP8: 6.332400378 | EQ8: 6.428019624 | ER8: 6.489085811 | ES8: 6.517637788 | ET8: 6.55935067 | EU8: 6.623632307 | EV8: 6.654763378 | EW8: 6.697353864 | EX8: 6.718115661 | EY8: 6.723490154 | EZ8: 6.734920087 | FA8: 6.739634531 | FB8: 6.749070019 | FC8: 6.777416113 | FD8: 6.793681912 | FE8: 6.815421694 | FF8: 6.820874031 | FG8: 6.845429178 | FH8: 6.836495893 | FI8: 6.848117936 | FJ8: 6.846063501 | FK8: 6.846063501 | FL8: 6.846063501 | FM8: 6.846063501 | FN8: 6.846063501 | FO8: 6.846063501 | FP8: 6.846063501 | FQ8: 6.846063501 | FR8: 6.846063501 | FS8: 6.846063501 | FT8: 6.846063501 | FU8: 6.846063501 | FV8: 6.846063501 | FW8: 6.846063501 | FX8: 6.846063501 | FY8: 6.846063501 | FZ8: 6.846063501 | GA8: 6.846063501 | GB8: 6.846063501 | GC8: 6.846063501 | GD8: 6.846063501 | GE8: 6.846063501 | GF8: 6.846063501 | GG8: 6.846063501 | GH8: 6.846063501 | GI8: 6.846063501 | GJ8: 6.846063501 | GK8: 6.846063501 | GL8: 6.846063501 | GM8: 6.846063501 | GN8: 6.846063501 | GO8: 6.846063501 | GP8: 6.846063501 | GQ8: 6.846063501 | GR8: 6.846063501 | GS8: 6.846063501 | GT8: 6.846063501 | GU8: 6.846063501 | GV8: 6.846063501 | GW8: 6.846063501 | GX8: 6.846063501 | GY8: 6.846063501 | GZ8: 6.846063501 | HA8: 6.846063501 | HB8: 6.846063501 | HC8: 6.846063501 | HD8: 6.846063501 | HE8: 6.846063501 | HF8: 6.846063501 | HG8: 6.846063501 | HH8: 6.846063501 | HI8: 6.846063501 | HJ8: 6.846063501 | HK8: 6.846063501 | HL8: 6.846063501 | HM8: 6.846063501 | HN8: 6.846063501 | HO8: 6.846063501 | HP8: 6.846063501 | HQ8: 6.846063501 | HR8: 6.846063501 | HS8: 6.846063501 | HT8: 6.846063501 | HU8: 6.846063501 | HV8: 6.846063501 | HW8: 6.846063501 | HX8: 6.846063501 | HY8: 6.846063501 | HZ8: 6.846063501 | IA8: 6.846063501 | IB8: 6.846063501 | IC8: 6.846063501 | ID8: 6.846063501 | IE8: 6.846063501 | IF8: 6.846063501 | IG8: 6.846063501 | IH8: 6.846063501 | II8: 6.846063501 | IJ8: 6.846063501 | IK8: 6.846063501 | IL8: 6.846063501 | IM8: 6.846063501 | IN8: 6.846063501 | IO8: 6.846063501 | IP8: 6.846063501 | IQ8: 6.846063501 | IR8: 6.846063501 | IS8: 6.846063501 | IT8: 6.846063501 | IU8: 6.846063501 | IV8: 6.846063501 | IW8: 6.846063501 | IX8: 6.846063501 | IY8: 6.846063501
B9: 1994-10-01 | C9: 3.144196 | D9: 3.156458364 | E9: 3.174450177 | F9: 3.187465423 | G9: 3.200215284 | H9: 3.216216361 | I9: 3.23969474 | J9: 3.255893214 | K9: 3.261428233 | L9: 3.266972661 | M9: 3.28134734 | N9: 3.309566927 | O9: 3.328431459 | P9: 3.343076557 | Q9: 3.367481016 | R9: 3.398125093 | S9: 3.421911969 | T9: 3.418147866 | U9: 3.41917331 | V9: 3.41917331 | W9: 3.42430207 | X9: 3.444163022 | Y9: 3.462761503 | Z9: 3.476612549 | AA9: 3.489823676 | AB9: 3.497850271 | AC9: 3.507294466 | AD9: 3.51150322 | AE9: 3.516068174 | AF9: 3.513606926 | AG9: 3.517471894 | AH9: 3.516768399 | AI9: 3.522395229 | AJ9: 3.537541528 | AK9: 3.552399203 | AL9: 3.574424078 | AM9: 3.591938756 | AN9: 3.607024899 | AO9: 3.622895808 | AP9: 3.632315337 | AQ9: 3.641759357 | AR9: 3.653048811 | AS9: 3.664738567 | AT9: 3.686360525 | AU9: 3.695576426 | AV9: 3.706663155 | AW9: 3.722601807 | AX9: 3.758711045 | AY9: 3.784646151 | AZ9: 3.803947846 | BA9: 3.82334798 | BB9: 3.847817407 | BC9: 3.884756454 | BD9: 3.920107738 | BE9: 3.942844363 | BF9: 3.951124336 | BG9: 3.957051023 | BH9: 3.976836278 | BI9: 3.991948256 | BJ9: 4.003524906 | BK9: 4.029147465 | BL9: 4.041637822 | BM9: 4.049721098 | BN9: 4.071994564 | BO9: 4.096426531 | BP9: 4.113631523 | BQ9: 4.123092875 | BR9: 4.126391349 | BS9: 4.132993576 | BT9: 4.14291276 | BU9: 4.158241537 | BV9: 4.168221317 | BW9: 4.204901665 | BX9: 4.234335976 | BY9: 4.264399762 | BZ9: 4.29552988 | CA9: 4.314000658 | CB9: 4.309255258 | CC9: 4.306238779 | CD9: 4.303224412 | CE9: 4.326461824 | CF9: 4.366265272 | CG9: 4.411237805 | CH9: 4.437705232 | CI9: 4.479419661 | CJ9: 4.503608527 | CK9: 4.533332343 | CL9: 4.565972336 | CM9: 4.591998378 | CN9: 4.602100775 | CO9: 4.602100775 | CP9: 4.621429598 | CQ9: 4.642226031 | CR9: 4.657081155 | CS9: 4.683626517 | CT9: 4.707513012 | CU9: 4.731521329 | CV9: 4.749974262 | CW9: 4.758524216 | CX9: 4.788978771 | CY9: 4.815318154 | CZ9: 4.827837981 | DA9: 4.848597684 | DB9: 4.870416374 | DC9: 4.901099997 | DD9: 4.935897807 | DE9: 4.962551655 | DF9: 4.999274538 | DG9: 5.045267863 | DH9: 5.071503256 | DI9: 5.101932276 | DJ9: 5.132033676 | DK9: 5.149995794 | DL9: 5.164415782 | DM9: 5.157702042 | DN9: 5.165954365 | DO9: 5.179902442 | DP9: 5.211499847 | DQ9: 5.239641946 | DR9: 5.277367368 | DS9: 5.310614782 | DT9: 5.344602717 | DU9: 5.388428459 | DV9: 5.430458201 | DW9: 5.46304095 | DX9: 5.477244857 | DY9: 5.484365275 | DZ9: 5.494237133 | EA9: 5.521158895 | EB9: 5.542139298 | EC9: 5.571512637 | ED9: 5.606056015 | EE9: 5.689025644 | EF9: 5.755018341 | EG9: 5.841919118 | EH9: 5.883396744 | EI9: 5.941642372 | EJ9: 5.987393018 | EK9: 6.022119898 | EL9: 6.037175197 | EM9: 6.067964791 | EN9: 6.11468812 | EO9: 6.182561158 | EP9: 6.238204208 | EQ9: 6.332401092 | ER9: 6.392558902 | ES9: 6.420686161 | ET9: 6.461778553 | EU9: 6.525103983 | EV9: 6.555771971 | EW9: 6.597728912 | EX9: 6.618181872 | EY9: 6.623476417 | EZ9: 6.634736327 | FA9: 6.639380643 | FB9: 6.648675775 | FC9: 6.676600214 | FD9: 6.692624054 | FE9: 6.714040451 | FF9: 6.719411684 | FG9: 6.743601566 | FH9: 6.734801166 | FI9: 6.746250328 | FJ9: 6.744226452 | FK9: 6.744226452 | FL9: 6.744226452 | FM9: 6.744226452 | FN9: 6.744226452 | FO9: 6.744226452 | FP9: 6.744226452 | FQ9: 6.744226452 | FR9: 6.744226452 | FS9: 6.744226452 | FT9: 6.744226452 | FU9: 6.744226452 | FV9: 6.744226452 | FW9: 6.744226452 | FX9: 6.744226452 | FY9: 6.744226452 | FZ9: 6.744226452 | GA9: 6.744226452 | GB9: 6.744226452 | GC9: 6.744226452 | GD9: 6.744226452 | GE9: 6.744226452 | GF9: 6.744226452 | GG9: 6.744226452 | GH9: 6.744226452 | GI9: 6.744226452 | GJ9: 6.744226452 | GK9: 6.744226452 | GL9: 6.744226452 | GM9: 6.744226452 | GN9: 6.744226452 | GO9: 6.744226452 | GP9: 6.744226452 | GQ9: 6.744226452 | GR9: 6.744226452 | GS9: 6.744226452 | GT9: 6.744226452 | GU9: 6.744226452 | GV9: 6.744226452 | GW9: 6.744226452 | GX9: 6.744226452 | GY9: 6.744226452 | GZ9: 6.744226452 | HA9: 6.744226452 | HB9: 6.744226452 | HC9: 6.744226452 | HD9: 6.744226452 | HE9: 6.744226452 | HF9: 6.744226452 | HG9: 6.744226452 | HH9: 6.744226452 | HI9: 6.744226452 | HJ9: 6.744226452 | HK9: 6.744226452 | HL9: 6.744226452 | HM9: 6.744226452 | HN9: 6.744226452 | HO9: 6.744226452 | HP9: 6.744226452 | HQ9: 6.744226452 | HR9: 6.744226452 | HS9: 6.744226452 | HT9: 6.744226452 | HU9: 6.744226452 | HV9: 6.744226452 | HW9: 6.744226452 | HX9: 6.744226452 | HY9: 6.744226452 | HZ9: 6.744226452 | IA9: 6.744226452 | IB9: 6.744226452 | IC9: 6.744226452 | ID9: 6.744226452 | IE9: 6.744226452 | IF9: 6.744226452 | IG9: 6.744226452 | IH9: 6.744226452 | II9: 6.744226452 | IJ9: 6.744226452 | IK9: 6.744226452 | IL9: 6.744226452 | IM9: 6.744226452 | IN9: 6.744226452 | IO9: 6.744226452 | IP9: 6.744226452 | IQ9: 6.744226452 | IR9: 6.744226452 | IS9: 6.744226452 | IT9: 6.744226452 | IU9: 6.744226452 | IV9: 6.744226452 | IW9: 6.744226452 | IX9: 6.744226452 | IY9: 6.744226452
B10: 1994-11-01 | C10: 3.086782 | D10: 3.09882045 | E10: 3.116483726 | F10: 3.12926131 | G10: 3.141778355 | H10: 3.157487247 | I10: 3.180536904 | J10: 3.196439588 | K10: 3.201873535 | L10: 3.20731672 | M10: 3.221428914 | N10: 3.249133203 | O10: 3.267653262 | P10: 3.282030936 | Q10: 3.305989762 | R10: 3.336074269 | S10: 3.359426789 | T10: 3.355731419 | U10: 3.356738139 | V10: 3.356738139 | W10: 3.361773246 | X10: 3.381271531 | Y10: 3.399530397 | Z10: 3.413128519 | AA10: 3.426098407 | AB10: 3.433978433 | AC10: 3.443250175 | AD10: 3.447382075 | AE10: 3.451863672 | AF10: 3.449447367 | AG10: 3.45324176 | AH10: 3.452551111 | AI10: 3.458075193 | AJ10: 3.472944916 | AK10: 3.487531285 | AL10: 3.509153979 | AM10: 3.526348833 | AN10: 3.541159499 | AO10: 3.5567406 | AP10: 3.565988126 | AQ10: 3.575259695 | AR10: 3.586343 | AS10: 3.597819298 | AT10: 3.619046431 | AU10: 3.628094048 | AV10: 3.63897833 | AW10: 3.654625937 | AX10: 3.690075808 | AY10: 3.715537331 | AZ10: 3.734486572 | BA10: 3.753532453 | BB10: 3.777555061 | BC10: 3.813819589 | BD10: 3.848525348 | BE10: 3.870846795 | BF10: 3.878975573 | BG10: 3.884794036 | BH10: 3.904218006 | BI10: 3.919054035 | BJ10: 3.930419292 | BK10: 3.955573975 | BL10: 3.967836254 | BM10: 3.975771927 | BN10: 3.997638672 | BO10: 4.021624505 | BP10: 4.038515327 | BQ10: 4.047803913 | BR10: 4.051042156 | BS10: 4.057523823 | BT10: 4.06726188 | BU10: 4.082310749 | BV10: 4.092108295 | BW10: 4.128118848 | BX10: 4.15701568 | BY10: 4.186530491 | BZ10: 4.217092164 | CA10: 4.23522566 | CB10: 4.230566912 | CC10: 4.227605515 | CD10: 4.224646191 | CE10: 4.247459281 | CF10: 4.286535906 | CG10: 4.330687226 | CH10: 4.356671349 | CI10: 4.39762406 | CJ10: 4.42137123 | CK10: 4.45055228 | CL10: 4.482596257 | CM10: 4.508147055 | CN10: 4.518064979 | CO10: 4.518064979 | CP10: 4.537040852 | CQ10: 4.557457536 | CR10: 4.5720414 | CS10: 4.598102036 | CT10: 4.621552356 | CU10: 4.645122273 | CV10: 4.66323825 | CW10: 4.671632079 | CX10: 4.701530524 | CY10: 4.727388942 | CZ10: 4.739680153 | DA10: 4.760060778 | DB10: 4.781481051 | DC10: 4.811604382 | DD10: 4.845766773 | DE10: 4.871933914 | DF10: 4.907986225 | DG10: 4.953139698 | DH10: 4.978896024 | DI10: 5.0087694 | DJ10: 5.03832114 | DK10: 5.055955264 | DL10: 5.070111939 | DM10: 5.063520793 | DN10: 5.071622426 | DO10: 5.085315807 | DP10: 5.116336233 | DQ10: 5.143964449 | DR10: 5.181000993 | DS10: 5.213641299 | DT10: 5.247008604 | DU10: 5.290034074 | DV10: 5.33129634 | DW10: 5.363284118 | DX10: 5.377228657 | DY10: 5.384219054 | DZ10: 5.393910648 | EA10: 5.42034081 | EB10: 5.440938105 | EC10: 5.469775077 | ED10: 5.503687683 | EE10: 5.585142261 | EF10: 5.649929911 | EG10: 5.735243853 | EH10: 5.775964084 | EI10: 5.833146128 | EJ10: 5.878061353 | EK10: 5.912154109 | EL10: 5.926934495 | EM10: 5.957161861 | EN10: 6.003032007 | EO10: 6.069665662 | EP10: 6.124292653 | EQ10: 6.216769472 | ER10: 6.275828782 | ES10: 6.303442429 | ET10: 6.34378446 | EU10: 6.405953548 | EV10: 6.43606153 | EW10: 6.477252324 | EX10: 6.497331806 | EY10: 6.502529671 | EZ10: 6.513583972 | FA10: 6.51814348 | FB10: 6.527268881 | FC10: 6.554683411 | FD10: 6.570414651 | FE10: 6.591439978 | FF10: 6.59671313 | FG10: 6.620461297 | FH10: 6.611821595 | FI10: 6.623061692 | FJ10: 6.621074773 | FK10: 6.621074773 | FL10: 6.621074773 | FM10: 6.621074773 | FN10: 6.621074773 | FO10: 6.621074773 | FP10: 6.621074773 | FQ10: 6.621074773 | FR10: 6.621074773 | FS10: 6.621074773 | FT10: 6.621074773 | FU10: 6.621074773 | FV10: 6.621074773 | FW10: 6.621074773 | FX10: 6.621074773 | FY10: 6.621074773 | FZ10: 6.621074773 | GA10: 6.621074773 | GB10: 6.621074773 | GC10: 6.621074773 | GD10: 6.621074773 | GE10: 6.621074773 | GF10: 6.621074773 | GG10: 6.621074773 | GH10: 6.621074773 | GI10: 6.621074773 | GJ10: 6.621074773 | GK10: 6.621074773 | GL10: 6.621074773 | GM10: 6.621074773 | GN10: 6.621074773 | GO10: 6.621074773 | GP10: 6.621074773 | GQ10: 6.621074773 | GR10: 6.621074773 | GS10: 6.621074773 | GT10: 6.621074773 | GU10: 6.621074773 | GV10: 6.621074773 | GW10: 6.621074773 | GX10: 6.621074773 | GY10: 6.621074773 | GZ10: 6.621074773 | HA10: 6.621074773 | HB10: 6.621074773 | HC10: 6.621074773 | HD10: 6.621074773 | HE10: 6.621074773 | HF10: 6.621074773 | HG10: 6.621074773 | HH10: 6.621074773 | HI10: 6.621074773 | HJ10: 6.621074773 | HK10: 6.621074773 | HL10: 6.621074773 | HM10: 6.621074773 | HN10: 6.621074773 | HO10: 6.621074773 | HP10: 6.621074773 | HQ10: 6.621074773 | HR10: 6.621074773 | HS10: 6.621074773 | HT10: 6.621074773 | HU10: 6.621074773 | HV10: 6.621074773 | HW10: 6.621074773 | HX10: 6.621074773 | HY10: 6.621074773 | HZ10: 6.621074773 | IA10: 6.621074773 | IB10: 6.621074773 | IC10: 6.621074773 | ID10: 6.621074773 | IE10: 6.621074773 | IF10: 6.621074773 | IG10: 6.621074773 | IH10: 6.621074773 | II10: 6.621074773 | IJ10: 6.621074773 | IK10: 6.621074773 | IL10: 6.621074773 | IM10: 6.621074773 | IN10: 6.621074773 | IO10: 6.621074773 | IP10: 6.621074773 | IQ10: 6.621074773 | IR10: 6.621074773 | IS10: 6.621074773 | IT10: 6.621074773 | IU10: 6.621074773 | IV10: 6.621074773 | IW10: 6.621074773 | IX10: 6.621074773 | IY10: 6.621074773
B11: 1994-12-01 | C11: 2.98904 | D11: 3.000697256 | E11: 3.01780123 | F11: 3.030174215 | G11: 3.042294912 | H11: 3.057506387 | I11: 3.079826183 | J11: 3.095225314 | K11: 3.100487197 | L11: 3.105758026 | M11: 3.119423361 | N11: 3.146250402 | O11: 3.164184029 | P11: 3.178106439 | Q11: 3.201306616 | R11: 3.230438506 | S11: 3.253051576 | T11: 3.249473219 | U11: 3.250448061 | V11: 3.250448061 | W11: 3.255323733 | X11: 3.274204611 | Y11: 3.291885315 | Z11: 3.305052857 | AA11: 3.317612058 | AB11: 3.325242565 | AC11: 3.33422072 | AD11: 3.338221785 | AE11: 3.342561473 | AF11: 3.34022168 | AG11: 3.343895924 | AH11: 3.343227145 | AI11: 3.348576309 | AJ11: 3.362975187 | AK11: 3.377099682 | AL11: 3.3980377 | AM11: 3.414688085 | AN11: 3.429029775 | AO11: 3.444117506 | AP11: 3.453072212 | AQ11: 3.462050199 | AR11: 3.472782555 | AS11: 3.483895459 | AT11: 3.504450442 | AU11: 3.513211569 | AV11: 3.523751203 | AW11: 3.538903333 | AX11: 3.573230696 | AY11: 3.597885988 | AZ11: 3.616235206 | BA11: 3.634678006 | BB11: 3.657939945 | BC11: 3.693056168 | BD11: 3.726662979 | BE11: 3.748277625 | BF11: 3.756149008 | BG11: 3.761783231 | BH11: 3.780592147 | BI11: 3.794958398 | BJ11: 3.805963777 | BK11: 3.830321945 | BL11: 3.842195943 | BM11: 3.849880335 | BN11: 3.871054677 | BO11: 3.894281005 | BP11: 3.910636985 | BQ11: 3.91963145 | BR11: 3.922767155 | BS11: 3.929043583 | BT11: 3.938473287 | BU11: 3.953045639 | BV11: 3.962532948 | BW11: 3.997403238 | BX11: 4.025385061 | BY11: 4.053965295 | BZ11: 4.083559241 | CA11: 4.101118546 | CB11: 4.096607316 | CC11: 4.093739691 | CD11: 4.090874073 | CE11: 4.112964793 | CF11: 4.150804069 | CG11: 4.193557351 | CH11: 4.218718695 | CI11: 4.258374651 | CJ11: 4.281369874 | CK11: 4.309626915 | CL11: 4.340656229 | CM11: 4.365397969 | CN11: 4.375001845 | CO11: 4.375001845 | CP11: 4.393376852 | CQ11: 4.413147048 | CR11: 4.427269119 | CS11: 4.452504553 | CT11: 4.475212326 | CU11: 4.498035909 | CV11: 4.515578249 | CW11: 4.52370629 | CX11: 4.55265801 | CY11: 4.577697629 | CZ11: 4.589599643 | DA11: 4.609334921 | DB11: 4.630076929 | DC11: 4.659246413 | DD11: 4.692327063 | DE11: 4.717665629 | DF11: 4.752576355 | DG11: 4.796300057 | DH11: 4.821240817 | DI11: 4.850168262 | DJ11: 4.878784255 | DK11: 4.89586 | DL11: 4.909568408 | DM11: 4.903185969 | DN11: 4.911031066 | DO11: 4.92429085 | DP11: 4.954329025 | DQ11: 4.981082401 | DR11: 5.016946195 | DS11: 5.048552956 | DT11: 5.080863694 | DU11: 5.122526777 | DV11: 5.162482486 | DW11: 5.193457381 | DX11: 5.20696037 | DY11: 5.213729418 | DZ11: 5.223114131 | EA11: 5.24870739 | EB11: 5.268652478 | EC11: 5.296576337 | ED11: 5.32941511 | EE11: 5.408290454 | EF11: 5.471026623 | EG11: 5.553639125 | EH11: 5.593069963 | EI11: 5.648441355 | EJ11: 5.691934354 | EK11: 5.724947573 | EL11: 5.739259942 | EM11: 5.768530168 | EN11: 5.81294785 | EO11: 5.877471571 | EP11: 5.930368815 | EQ11: 6.019917384 | ER11: 6.077106599 | ES11: 6.103845868 | ET11: 6.142910482 | EU11: 6.203111005 | EV11: 6.232265626 | EW11: 6.272152126 | EX11: 6.291595798 | EY11: 6.296629075 | EZ11: 6.307333344 | FA11: 6.311748477 | FB11: 6.320584925 | FC11: 6.347131382 | FD11: 6.362364497 | FE11: 6.382724064 | FF11: 6.387830243 | FG11: 6.410826432 | FH11: 6.402460303 | FI11: 6.413344486 | FJ11: 6.411420482 | FK11: 6.411420482 | FL11: 6.411420482 | FM11: 6.411420482 | FN11: 6.411420482 | FO11: 6.411420482 | FP11: 6.411420482 | FQ11: 6.411420482 | FR11: 6.411420482 | FS11: 6.411420482 | FT11: 6.411420482 | FU11: 6.411420482 | FV11: 6.411420482 | FW11: 6.411420482 | FX11: 6.411420482 | FY11: 6.411420482 | FZ11: 6.411420482 | GA11: 6.411420482 | GB11: 6.411420482 | GC11: 6.411420482 | GD11: 6.411420482 | GE11: 6.411420482 | GF11: 6.411420482 | GG11: 6.411420482 | GH11: 6.411420482 | GI11: 6.411420482 | GJ11: 6.411420482 | GK11: 6.411420482 | GL11: 6.411420482 | GM11: 6.411420482 | GN11: 6.411420482 | GO11: 6.411420482 | GP11: 6.411420482 | GQ11: 6.411420482 | GR11: 6.411420482 | GS11: 6.411420482 | GT11: 6.411420482 | GU11: 6.411420482 | GV11: 6.411420482 | GW11: 6.411420482 | GX11: 6.411420482 | GY11: 6.411420482 | GZ11: 6.411420482 | HA11: 6.411420482 | HB11: 6.411420482 | HC11: 6.411420482 | HD11: 6.411420482 | HE11: 6.411420482 | HF11: 6.411420482 | HG11: 6.411420482 | HH11: 6.411420482 | HI11: 6.411420482 | HJ11: 6.411420482 | HK11: 6.411420482 | HL11: 6.411420482 | HM11: 6.411420482 | HN11: 6.411420482 | HO11: 6.411420482 | HP11: 6.411420482 | HQ11: 6.411420482 | HR11: 6.411420482 | HS11: 6.411420482 | HT11: 6.411420482 | HU11: 6.411420482 | HV11: 6.411420482 | HW11: 6.411420482 | HX11: 6.411420482 | HY11: 6.411420482 | HZ11: 6.411420482 | IA11: 6.411420482 | IB11: 6.411420482 | IC11: 6.411420482 | ID11: 6.411420482 | IE11: 6.411420482 | IF11: 6.411420482 | IG11: 6.411420482 | IH11: 6.411420482 | II11: 6.411420482 | IJ11: 6.411420482 | IK11: 6.411420482 | IL11: 6.411420482 | IM11: 6.411420482 | IN11: 6.411420482 | IO11: 6.411420482 | IP11: 6.411420482 | IQ11: 6.411420482 | IR11: 6.411420482 | IS11: 6.411420482 | IT11: 6.411420482 | IU11: 6.411420482 | IV11: 6.411420482 | IW11: 6.411420482 | IX11: 6.411420482 | IY11: 6.411420482
B12: 1995-01-01 | C12: 2.924983 | D12: 2.936390434 | E12: 2.953127859 | F12: 2.965235683 | G12: 2.977096626 | H12: 2.991982109 | I12: 3.013823579 | J12: 3.028892697 | K12: 3.034041814 | L12: 3.039199685 | M12: 3.052572164 | N12: 3.078824284 | O12: 3.096373583 | P12: 3.109997627 | Q12: 3.132700609 | R12: 3.161208185 | S12: 3.183336642 | T12: 3.179834972 | U12: 3.180788922 | V12: 3.180788922 | W12: 3.185560106 | X12: 3.204036354 | Y12: 3.221338151 | Z12: 3.234223503 | AA12: 3.246513553 | AB12: 3.253980534 | AC12: 3.262766281 | AD12: 3.266681601 | AE12: 3.270928287 | AF12: 3.268638637 | AG12: 3.272234139 | AH12: 3.271579693 | AI12: 3.27681422 | AJ12: 3.290904521 | AK12: 3.30472632 | AL12: 3.325215623 | AM12: 3.34150918 | AN12: 3.355543519 | AO12: 3.37030791 | AP12: 3.379070711 | AQ12: 3.387856294 | AR12: 3.398358649 | AS12: 3.409233397 | AT12: 3.429347874 | AU12: 3.437921243 | AV12: 3.448235007 | AW12: 3.463062418 | AX12: 3.496654123 | AY12: 3.520781037 | AZ12: 3.53873702 | BA12: 3.556784579 | BB12: 3.579548 | BC12: 3.613911661 | BD12: 3.646798257 | BE12: 3.667949687 | BF12: 3.675652381 | BG12: 3.68116586 | BH12: 3.699571689 | BI12: 3.713630061 | BJ12: 3.724399589 | BK12: 3.748235746 | BL12: 3.759855277 | BM12: 3.767374987 | BN12: 3.78809555 | BO12: 3.810824123 | BP12: 3.826829584 | BQ12: 3.835631292 | BR12: 3.838699797 | BS12: 3.844841717 | BT12: 3.854069337 | BU12: 3.868329394 | BV12: 3.877613384 | BW12: 3.911736382 | BX12: 3.939118537 | BY12: 3.967086278 | BZ12: 3.996046008 | CA12: 4.013229006 | CB12: 4.008814454 | CC12: 4.006008284 | CD12: 4.003204078 | CE12: 4.02482138 | CF12: 4.061849737 | CG12: 4.103686789 | CH12: 4.12830891 | CI12: 4.167115014 | CJ12: 4.189617435 | CK12: 4.21726891 | CL12: 4.247633246 | CM12: 4.271844756 | CN12: 4.281242814 | CO12: 4.281242814 | CP12: 4.299224034 | CQ12: 4.318570542 | CR12: 4.332389968 | CS12: 4.357084591 | CT12: 4.379305722 | CU12: 4.401640181 | CV12: 4.418806578 | CW12: 4.42676043 | CX12: 4.455091696 | CY12: 4.479594701 | CZ12: 4.491241647 | DA12: 4.510553986 | DB12: 4.530851479 | DC12: 4.559395843 | DD12: 4.591767554 | DE12: 4.616563099 | DF12: 4.650725665 | DG12: 4.693512342 | DH12: 4.717918606 | DI12: 4.746226117 | DJ12: 4.774228852 | DK12: 4.790938652 | DL12: 4.804353281 | DM12: 4.798107621 | DN12: 4.805784594 | DO12: 4.818760212 | DP12: 4.848154649 | DQ12: 4.874334684 | DR12: 4.909429894 | DS12: 4.940359303 | DT12: 4.971977602 | DU12: 5.012747818 | DV12: 5.051847251 | DW12: 5.082158335 | DX12: 5.095371947 | DY12: 5.10199593 | DZ12: 5.111179523 | EA12: 5.136224302 | EB12: 5.155741955 | EC12: 5.183067387 | ED12: 5.215202405 | EE12: 5.292387401 | EF12: 5.353779094 | EG12: 5.434621159 | EH12: 5.473206969 | EI12: 5.527391718 | EJ12: 5.569952634 | EK12: 5.602258359 | EL12: 5.616264005 | EM12: 5.644906952 | EN12: 5.688372735 | EO12: 5.751513673 | EP12: 5.803277296 | EQ12: 5.890906783 | ER12: 5.946870397 | ES12: 5.973036627 | ET12: 6.011264061 | EU12: 6.070174449 | EV12: 6.098704269 | EW12: 6.137735976 | EX12: 6.156762958 | EY12: 6.161688368 | EZ12: 6.172163239 | FA12: 6.176483753 | FB12: 6.18513083 | FC12: 6.21110838 | FD12: 6.22601504 | FE12: 6.245938288 | FF12: 6.250935038 | FG12: 6.273438405 | FH12: 6.265251568 | FI12: 6.275902495 | FJ12: 6.274019724 | FK12: 6.274019724 | FL12: 6.274019724 | FM12: 6.274019724 | FN12: 6.274019724 | FO12: 6.274019724 | FP12: 6.274019724 | FQ12: 6.274019724 | FR12: 6.274019724 | FS12: 6.274019724 | FT12: 6.274019724 | FU12: 6.274019724 | FV12: 6.274019724 | FW12: 6.274019724 | FX12: 6.274019724 | FY12: 6.274019724 | FZ12: 6.274019724 | GA12: 6.274019724 | GB12: 6.274019724 | GC12: 6.274019724 | GD12: 6.274019724 | GE12: 6.274019724 | GF12: 6.274019724 | GG12: 6.274019724 | GH12: 6.274019724 | GI12: 6.274019724 | GJ12: 6.274019724 | GK12: 6.274019724 | GL12: 6.274019724 | GM12: 6.274019724 | GN12: 6.274019724 | GO12: 6.274019724 | GP12: 6.274019724 | GQ12: 6.274019724 | GR12: 6.274019724 | GS12: 6.274019724 | GT12: 6.274019724 | GU12: 6.274019724 | GV12: 6.274019724 | GW12: 6.274019724 | GX12: 6.274019724 | GY12: 6.274019724 | GZ12: 6.274019724 | HA12: 6.274019724 | HB12: 6.274019724 | HC12: 6.274019724 | HD12: 6.274019724 | HE12: 6.274019724 | HF12: 6.274019724 | HG12: 6.274019724 | HH12: 6.274019724 | HI12: 6.274019724 | HJ12: 6.274019724 | HK12: 6.274019724 | HL12: 6.274019724 | HM12: 6.274019724 | HN12: 6.274019724 | HO12: 6.274019724 | HP12: 6.274019724 | HQ12: 6.274019724 | HR12: 6.274019724 | HS12: 6.274019724 | HT12: 6.274019724 | HU12: 6.274019724 | HV12: 6.274019724 | HW12: 6.274019724 | HX12: 6.274019724 | HY12: 6.274019724 | HZ12: 6.274019724 | IA12: 6.274019724 | IB12: 6.274019724 | IC12: 6.274019724 | ID12: 6.274019724 | IE12: 6.274019724 | IF12: 6.274019724 | IG12: 6.274019724 | IH12: 6.274019724 | II12: 6.274019724 | IJ12: 6.274019724 | IK12: 6.274019724 | IL12: 6.274019724 | IM12: 6.274019724 | IN12: 6.274019724 | IO12: 6.274019724 | IP12: 6.274019724 | IQ12: 6.274019724 | IR12: 6.274019724 | IS12: 6.274019724 | IT12: 6.274019724 | IU12: 6.274019724 | IV12: 6.274019724 | IW12: 6.274019724 | IX12: 6.274019724 | IY12: 6.274019724
B13: 1995-02-01 | C13: 2.876938 | D13: 2.888158058 | E13: 2.904620559 | F13: 2.916529503 | G13: 2.928195621 | H13: 2.9428366 | I13: 2.964319307 | J13: 2.979140903 | K13: 2.984205443 | L13: 2.989278592 | M13: 3.002431418 | N13: 3.028252328 | O13: 3.045513366 | P13: 3.058913625 | Q13: 3.081243695 | R13: 3.109283012 | S13: 3.131047993 | T13: 3.127603841 | U13: 3.128542122 | V13: 3.128542122 | W13: 3.133234935 | X13: 3.151407697 | Y13: 3.168425299 | Z13: 3.181099 | AA13: 3.193187176 | AB13: 3.200531507 | AC13: 3.209172942 | AD13: 3.21302395 | AE13: 3.217200881 | AF13: 3.21494884 | AG13: 3.218485284 | AH13: 3.217841587 | AI13: 3.222990133 | AJ13: 3.236848991 | AK13: 3.250443757 | AL13: 3.270596508 | AM13: 3.286622431 | AN13: 3.300426245 | AO13: 3.31494812 | AP13: 3.323566986 | AQ13: 3.33220826 | AR13: 3.342538105 | AS13: 3.353234227 | AT13: 3.373018309 | AU13: 3.381450855 | AV13: 3.391595208 | AW13: 3.406179067 | AX13: 3.439219004 | AY13: 3.462949615 | AZ13: 3.480610658 | BA13: 3.498361772 | BB13: 3.520751288 | BC13: 3.5545505 | BD13: 3.58689691 | BE13: 3.607700912 | BF13: 3.615277084 | BG13: 3.620699999 | BH13: 3.638803499 | BI13: 3.652630953 | BJ13: 3.663223582 | BK13: 3.686668213 | BL13: 3.698096885 | BM13: 3.705493078 | BN13: 3.72587329 | BO13: 3.74822853 | BP13: 3.76397109 | BQ13: 3.772628224 | BR13: 3.775646326 | BS13: 3.78168736 | BT13: 3.79076341 | BU13: 3.804789234 | BV13: 3.813920729 | BW13: 3.847483231 | BX13: 3.874415614 | BY13: 3.901923965 | BZ13: 3.930408009 | CA13: 3.947308764 | CB13: 3.942966724 | CC13: 3.940206648 | CD13: 3.937448503 | CE13: 3.958710725 | CF13: 3.995130863 | CG13: 4.036280711 | CH13: 4.060498396 | CI13: 4.098667081 | CJ13: 4.120799883 | CK13: 4.147997162 | CL13: 4.177862742 | CM13: 4.201676559 | CN13: 4.210920248 | CO13: 4.210920248 | CP13: 4.228606113 | CQ13: 4.24763484 | CR13: 4.261227272 | CS13: 4.285516267 | CT13: 4.3073724 | CU13: 4.329339999 | CV13: 4.346224425 | CW13: 4.354047629 | CX13: 4.381913534 | CY13: 4.406014059 | CZ13: 4.417469695 | DA13: 4.436464815 | DB13: 4.456428906 | DC13: 4.484504409 | DD13: 4.51634439 | DE13: 4.54073265 | DF13: 4.574334071 | DG13: 4.616417945 | DH13: 4.640423318 | DI13: 4.668265858 | DJ13: 4.695808626 | DK13: 4.712243957 | DL13: 4.72543824 | DM13: 4.71929517 | DN13: 4.726846042 | DO13: 4.739608527 | DP13: 4.768520139 | DQ13: 4.794270147 | DR13: 4.828788892 | DS13: 4.859210262 | DT13: 4.890309208 | DU13: 4.930409744 | DV13: 4.96886694 | DW13: 4.998680141 | DX13: 5.01167671 | DY13: 5.018191889 | DZ13: 5.027224635 | EA13: 5.051858035 | EB13: 5.071055096 | EC13: 5.097931688 | ED13: 5.129538864 | EE13: 5.20545604 | EF13: 5.26583933 | EG13: 5.345353504 | EH13: 5.383305513 | EI13: 5.436600238 | EJ13: 5.47846206 | EK13: 5.51023714 | EL13: 5.524012733 | EM13: 5.552185198 | EN13: 5.594937024 | EO13: 5.657040825 | EP13: 5.707954192 | EQ13: 5.7941443 | ER13: 5.849188671 | ES13: 5.874925101 | ET13: 5.912524622 | EU13: 5.970467363 | EV13: 5.99852856 | EW13: 6.036919143 | EX13: 6.055633592 | EY13: 6.060478099 | EZ13: 6.070780912 | FA13: 6.075030458 | FB13: 6.083535501 | FC13: 6.10908635 | FD13: 6.123748157 | FE13: 6.143344151 | FF13: 6.148258827 | FG13: 6.170392558 | FH13: 6.162340196 | FI13: 6.172816175 | FJ13: 6.17096433 | FK13: 6.17096433 | FL13: 6.17096433 | FM13: 6.17096433 | FN13: 6.17096433 | FO13: 6.17096433 | FP13: 6.17096433 | FQ13: 6.17096433 | FR13: 6.17096433 | FS13: 6.17096433 | FT13: 6.17096433 | FU13: 6.17096433 | FV13: 6.17096433 | FW13: 6.17096433 | FX13: 6.17096433 | FY13: 6.17096433 | FZ13: 6.17096433 | GA13: 6.17096433 | GB13: 6.17096433 | GC13: 6.17096433 | GD13: 6.17096433 | GE13: 6.17096433 | GF13: 6.17096433 | GG13: 6.17096433 | GH13: 6.17096433 | GI13: 6.17096433 | GJ13: 6.17096433 | GK13: 6.17096433 | GL13: 6.17096433 | GM13: 6.17096433 | GN13: 6.17096433 | GO13: 6.17096433 | GP13: 6.17096433 | GQ13: 6.17096433 | GR13: 6.17096433 | GS13: 6.17096433 | GT13: 6.17096433 | GU13: 6.17096433 | GV13: 6.17096433 | GW13: 6.17096433 | GX13: 6.17096433 | GY13: 6.17096433 | GZ13: 6.17096433 | HA13: 6.17096433 | HB13: 6.17096433 | HC13: 6.17096433 | HD13: 6.17096433 | HE13: 6.17096433 | HF13: 6.17096433 | HG13: 6.17096433 | HH13: 6.17096433 | HI13: 6.17096433 | HJ13: 6.17096433 | HK13: 6.17096433 | HL13: 6.17096433 | HM13: 6.17096433 | HN13: 6.17096433 | HO13: 6.17096433 | HP13: 6.17096433 | HQ13: 6.17096433 | HR13: 6.17096433 | HS13: 6.17096433 | HT13: 6.17096433 | HU13: 6.17096433 | HV13: 6.17096433 | HW13: 6.17096433 | HX13: 6.17096433 | HY13: 6.17096433 | HZ13: 6.17096433 | IA13: 6.17096433 | IB13: 6.17096433 | IC13: 6.17096433 | ID13: 6.17096433 | IE13: 6.17096433 | IF13: 6.17096433 | IG13: 6.17096433 | IH13: 6.17096433 | II13: 6.17096433 | IJ13: 6.17096433 | IK13: 6.17096433 | IL13: 6.17096433 | IM13: 6.17096433 | IN13: 6.17096433 | IO13: 6.17096433 | IP13: 6.17096433 | IQ13: 6.17096433 | IR13: 6.17096433 | IS13: 6.17096433 | IT13: 6.17096433 | IU13: 6.17096433 | IV13: 6.17096433 | IW13: 6.17096433 | IX13: 6.17096433 | IY13: 6.17096433
B14: 1995-03-01 | C14: 2.848736 | D14: 2.85984607 | E14: 2.876147193 | F14: 2.887939396 | G14: 2.899491154 | H14: 2.91398861 | I14: 2.935260727 | J14: 2.94993703 | K14: 2.954951923 | L14: 2.959975342 | M14: 2.972999233 | N14: 2.998567026 | O14: 3.015658859 | P14: 3.028927757 | Q14: 3.05103893 | R14: 3.078803384 | S14: 3.100355008 | T14: 3.096944618 | U14: 3.097873701 | V14: 3.097873701 | W14: 3.102520512 | X14: 3.12051513 | Y14: 3.137365912 | Z14: 3.149915376 | AA14: 3.161885054 | AB14: 3.16915739 | AC14: 3.177714115 | AD14: 3.181527372 | AE14: 3.185663357 | AF14: 3.183433393 | AG14: 3.18693517 | AH14: 3.186297783 | AI14: 3.191395859 | AJ14: 3.205118861 | AK14: 3.218580361 | AL14: 3.238535559 | AM14: 3.254404383 | AN14: 3.268072881 | AO14: 3.282452402 | AP14: 3.290986778 | AQ14: 3.299543344 | AR14: 3.309771928 | AS14: 3.320363199 | AT14: 3.339953341 | AU14: 3.348303225 | AV14: 3.358348134 | AW14: 3.372789031 | AX14: 3.405505085 | AY14: 3.42900307 | AZ14: 3.446490986 | BA14: 3.46406809 | BB14: 3.486238126 | BC14: 3.519706012 | BD14: 3.551735336 | BE14: 3.572335401 | BF14: 3.579837306 | BG14: 3.585207062 | BH14: 3.603133097 | BI14: 3.616825003 | BJ14: 3.627313795 | BK14: 3.650528603 | BL14: 3.661845242 | BM14: 3.669168933 | BN14: 3.689349362 | BO14: 3.711485458 | BP14: 3.727073697 | BQ14: 3.735645966 | BR14: 3.738634483 | BS14: 3.744616298 | BT14: 3.753603377 | BU14: 3.76749171 | BV14: 3.77653369 | BW14: 3.809767186 | BX14: 3.836435557 | BY14: 3.863674249 | BZ14: 3.891879071 | CA14: 3.908614151 | CB14: 3.904314676 | CC14: 3.901581655 | CD14: 3.898850548 | CE14: 3.919904341 | CF14: 3.955967461 | CG14: 3.996713926 | CH14: 4.020694209 | CI14: 4.058488735 | CJ14: 4.080404574 | CK14: 4.107335244 | CL14: 4.136908058 | CM14: 4.160488434 | CN14: 4.169641509 | CO14: 4.169641509 | CP14: 4.187154003 | CQ14: 4.205996196 | CR14: 4.219455384 | CS14: 4.24350628 | CT14: 4.265148162 | CU14: 4.286900417 | CV14: 4.303619329 | CW14: 4.311365844 | CX14: 4.338958585 | CY14: 4.362822857 | CZ14: 4.374166197 | DA14: 4.392975111 | DB14: 4.412743499 | DC14: 4.440543783 | DD14: 4.472071644 | DE14: 4.496220831 | DF14: 4.529492865 | DG14: 4.5711642 | DH14: 4.594934253 | DI14: 4.622503859 | DJ14: 4.649776632 | DK14: 4.66605085 | DL14: 4.679115792 | DM14: 4.673032942 | DN14: 4.680509794 | DO14: 4.693147171 | DP14: 4.721775369 | DQ14: 4.747272956 | DR14: 4.781453321 | DS14: 4.811576477 | DT14: 4.842370566 | DU14: 4.882078005 | DV14: 4.920158213 | DW14: 4.949679163 | DX14: 4.962548328 | DY14: 4.968999641 | DZ14: 4.977943841 | EA14: 5.002335766 | EB14: 5.021344641 | EC14: 5.047957768 | ED14: 5.079255106 | EE14: 5.154428082 | EF14: 5.214219447 | EG14: 5.292954161 | EH14: 5.330534136 | EI14: 5.383306424 | EJ14: 5.424757883 | EK14: 5.456221479 | EL14: 5.469862033 | EM14: 5.497758329 | EN14: 5.540091068 | EO14: 5.601586079 | EP14: 5.652000354 | EQ14: 5.737345559 | ER14: 5.791850342 | ES14: 5.817334483 | ET14: 5.854565424 | EU14: 5.911940165 | EV14: 5.939726284 | EW14: 5.977740532 | EX14: 5.996271528 | EY14: 6.001068545 | EZ14: 6.011270361 | FA14: 6.015478251 | FB14: 6.02389992 | FC14: 6.0492003 | FD14: 6.063718381 | FE14: 6.083122279 | FF14: 6.087988777 | FG14: 6.109905537 | FH14: 6.10193211 | FI14: 6.112305395 | FJ14: 6.110471703 | FK14: 6.110471703 | FL14: 6.110471703 | FM14: 6.110471703 | FN14: 6.110471703 | FO14: 6.110471703 | FP14: 6.110471703 | FQ14: 6.110471703 | FR14: 6.110471703 | FS14: 6.110471703 | FT14: 6.110471703 | FU14: 6.110471703 | FV14: 6.110471703 | FW14: 6.110471703 | FX14: 6.110471703 | FY14: 6.110471703 | FZ14: 6.110471703 | GA14: 6.110471703 | GB14: 6.110471703 | GC14: 6.110471703 | GD14: 6.110471703 | GE14: 6.110471703 | GF14: 6.110471703 | GG14: 6.110471703 | GH14: 6.110471703 | GI14: 6.110471703 | GJ14: 6.110471703 | GK14: 6.110471703 | GL14: 6.110471703 | GM14: 6.110471703 | GN14: 6.110471703 | GO14: 6.110471703 | GP14: 6.110471703 | GQ14: 6.110471703 | GR14: 6.110471703 | GS14: 6.110471703 | GT14: 6.110471703 | GU14: 6.110471703 | GV14: 6.110471703 | GW14: 6.110471703 | GX14: 6.110471703 | GY14: 6.110471703 | GZ14: 6.110471703 | HA14: 6.110471703 | HB14: 6.110471703 | HC14: 6.110471703 | HD14: 6.110471703 | HE14: 6.110471703 | HF14: 6.110471703 | HG14: 6.110471703 | HH14: 6.110471703 | HI14: 6.110471703 | HJ14: 6.110471703 | HK14: 6.110471703 | HL14: 6.110471703 | HM14: 6.110471703 | HN14: 6.110471703 | HO14: 6.110471703 | HP14: 6.110471703 | HQ14: 6.110471703 | HR14: 6.110471703 | HS14: 6.110471703 | HT14: 6.110471703 | HU14: 6.110471703 | HV14: 6.110471703 | HW14: 6.110471703 | HX14: 6.110471703 | HY14: 6.110471703 | HZ14: 6.110471703 | IA14: 6.110471703 | IB14: 6.110471703 | IC14: 6.110471703 | ID14: 6.110471703 | IE14: 6.110471703 | IF14: 6.110471703 | IG14: 6.110471703 | IH14: 6.110471703 | II14: 6.110471703 | IJ14: 6.110471703 | IK14: 6.110471703 | IL14: 6.110471703 | IM14: 6.110471703 | IN14: 6.110471703 | IO14: 6.110471703 | IP14: 6.110471703 | IQ14: 6.110471703 | IR14: 6.110471703 | IS14: 6.110471703 | IT14: 6.110471703 | IU14: 6.110471703 | IV14: 6.110471703 | IW14: 6.110471703 | IX14: 6.110471703 | IY14: 6.110471703
B15: 1995-04-01 | C15: 2.809127 | D15: 2.820082595 | E15: 2.836157066 | F15: 2.84778531 | G15: 2.859176451 | H15: 2.873472334 | I15: 2.894448682 | J15: 2.908920925 | K15: 2.913866091 | L15: 2.918819663 | M15: 2.931662469 | N15: 2.956874767 | O15: 2.973728953 | P15: 2.98681336 | Q15: 3.008617098 | R15: 3.035995513 | S15: 3.057247482 | T15: 3.05388451 | U15: 3.054800675 | V15: 3.054800675 | W15: 3.059382876 | X15: 3.077127297 | Y15: 3.093743784 | Z15: 3.106118759 | AA15: 3.117922011 | AB15: 3.125093231 | AC15: 3.133530983 | AD15: 3.13729122 | AE15: 3.141369699 | AF15: 3.13917074 | AG15: 3.142623828 | AH15: 3.141995303 | AI15: 3.147022495 | AJ15: 3.160554692 | AK15: 3.173829022 | AL15: 3.193506762 | AM15: 3.209154945 | AN15: 3.222633396 | AO15: 3.236812983 | AP15: 3.245228696 | AQ15: 3.253666291 | AR15: 3.263752657 | AS15: 3.274196665 | AT15: 3.293514425 | AU15: 3.301748211 | AV15: 3.311653456 | AW15: 3.325893566 | AX15: 3.358154734 | AY15: 3.381326001 | AZ15: 3.398570764 | BA15: 3.415903475 | BB15: 3.437765257 | BC15: 3.470767803 | BD15: 3.50235179 | BE15: 3.522665431 | BF15: 3.530063028 | BG15: 3.535358123 | BH15: 3.553034913 | BI15: 3.566536446 | BJ15: 3.576879402 | BK15: 3.59977143 | BL15: 3.610930721 | BM15: 3.618152583 | BN15: 3.638052422 | BO15: 3.659880736 | BP15: 3.675252236 | BQ15: 3.683705316 | BR15: 3.68665228 | BS15: 3.692550924 | BT15: 3.701413046 | BU15: 3.715108274 | BV15: 3.724024534 | BW15: 3.75679595 | BX15: 3.783093522 | BY15: 3.809953486 | BZ15: 3.837766146 | CA15: 3.85426854 | CB15: 3.850028845 | CC15: 3.847333825 | CD15: 3.844640691 | CE15: 3.865401751 | CF15: 3.900963447 | CG15: 3.94114337 | CH15: 3.964790231 | CI15: 4.002059259 | CJ15: 4.023670379 | CK15: 4.050226603 | CL15: 4.079388235 | CM15: 4.102640748 | CN15: 4.111666557 | CO15: 4.111666557 | CP15: 4.128935557 | CQ15: 4.147515767 | CR15: 4.160787817 | CS15: 4.184504308 | CT15: 4.20584528 | CU15: 4.227295091 | CV15: 4.243781542 | CW15: 4.251420349 | CX15: 4.278629439 | CY15: 4.302161901 | CZ15: 4.313347522 | DA15: 4.331894916 | DB15: 4.351388443 | DC15: 4.37880219 | DD15: 4.409891686 | DE15: 4.433705101 | DF15: 4.466514519 | DG15: 4.507606452 | DH15: 4.531046006 | DI15: 4.558232282 | DJ15: 4.585125852 | DK15: 4.601173793 | DL15: 4.614057079 | DM15: 4.608058805 | DN15: 4.615431699 | DO15: 4.627893365 | DP15: 4.656123514 | DQ15: 4.681266581 | DR15: 4.714971701 | DS15: 4.744676023 | DT15: 4.775041949 | DU15: 4.814197293 | DV15: 4.851748032 | DW15: 4.88085852 | DX15: 4.893548752 | DY15: 4.899910366 | DZ15: 4.908730204 | EA15: 4.932782982 | EB15: 4.951527558 | EC15: 4.977770654 | ED15: 5.008632832 | EE15: 5.082760598 | EF15: 5.141720621 | EG15: 5.219360602 | EH15: 5.256418062 | EI15: 5.308456601 | EJ15: 5.349331717 | EK15: 5.380357841 | EL15: 5.393808735 | EM15: 5.42131716 | EN15: 5.463061302 | EO15: 5.523701283 | EP15: 5.573414594 | EQ15: 5.657573155 | ER15: 5.711320099 | ES15: 5.736449908 | ET15: 5.773163187 | EU15: 5.829740187 | EV15: 5.857139965 | EW15: 5.894625661 | EX15: 5.912899001 | EY15: 5.91762932 | EZ15: 5.92768929 | FA15: 5.931838672 | FB15: 5.940143246 | FC15: 5.965091848 | FD15: 5.979408069 | FE15: 5.998542174 | FF15: 6.003341008 | FG15: 6.024953036 | FH15: 6.017090472 | FI15: 6.027319526 | FJ15: 6.02551133 | FK15: 6.02551133 | FL15: 6.02551133 | FM15: 6.02551133 | FN15: 6.02551133 | FO15: 6.02551133 | FP15: 6.02551133 | FQ15: 6.02551133 | FR15: 6.02551133 | FS15: 6.02551133 | FT15: 6.02551133 | FU15: 6.02551133 | FV15: 6.02551133 | FW15: 6.02551133 | FX15: 6.02551133 | FY15: 6.02551133 | FZ15: 6.02551133 | GA15: 6.02551133 | GB15: 6.02551133 | GC15: 6.02551133 | GD15: 6.02551133 | GE15: 6.02551133 | GF15: 6.02551133 | GG15: 6.02551133 | GH15: 6.02551133 | GI15: 6.02551133 | GJ15: 6.02551133 | GK15: 6.02551133 | GL15: 6.02551133 | GM15: 6.02551133 | GN15: 6.02551133 | GO15: 6.02551133 | GP15: 6.02551133 | GQ15: 6.02551133 | GR15: 6.02551133 | GS15: 6.02551133 | GT15: 6.02551133 | GU15: 6.02551133 | GV15: 6.02551133 | GW15: 6.02551133 | GX15: 6.02551133 | GY15: 6.02551133 | GZ15: 6.02551133 | HA15: 6.02551133 | HB15: 6.02551133 | HC15: 6.02551133 | HD15: 6.02551133 | HE15: 6.02551133 | HF15: 6.02551133 | HG15: 6.02551133 | HH15: 6.02551133 | HI15: 6.02551133 | HJ15: 6.02551133 | HK15: 6.02551133 | HL15: 6.02551133 | HM15: 6.02551133 | HN15: 6.02551133 | HO15: 6.02551133 | HP15: 6.02551133 | HQ15: 6.02551133 | HR15: 6.02551133 | HS15: 6.02551133 | HT15: 6.02551133 | HU15: 6.02551133 | HV15: 6.02551133 | HW15: 6.02551133 | HX15: 6.02551133 | HY15: 6.02551133 | HZ15: 6.02551133 | IA15: 6.02551133 | IB15: 6.02551133 | IC15: 6.02551133 | ID15: 6.02551133 | IE15: 6.02551133 | IF15: 6.02551133 | IG15: 6.02551133 | IH15: 6.02551133 | II15: 6.02551133 | IJ15: 6.02551133 | IK15: 6.02551133 | IL15: 6.02551133 | IM15: 6.02551133 | IN15: 6.02551133 | IO15: 6.02551133 | IP15: 6.02551133 | IQ15: 6.02551133 | IR15: 6.02551133 | IS15: 6.02551133 | IT15: 6.02551133 | IU15: 6.02551133 | IV15: 6.02551133 | IW15: 6.02551133 | IX15: 6.02551133 | IY15: 6.02551133
B16: 1995-05-01 | C16: 2.756208 | D16: 2.766957211 | E16: 2.782728867 | F16: 2.794138056 | G16: 2.805314608 | H16: 2.819341181 | I16: 2.839922372 | J16: 2.854121983 | K16: 2.858973991 | L16: 2.863834247 | M16: 2.876435117 | N16: 2.901172459 | O16: 2.917709142 | P16: 2.930547062 | Q16: 2.951940056 | R16: 2.978802711 | S16: 2.99965433 | T16: 2.99635471 | U16: 2.997253616 | V16: 2.997253616 | W16: 3.001749497 | X16: 3.019159644 | Y16: 3.035463106 | Z16: 3.047604958 | AA16: 3.059185857 | AB16: 3.066221984 | AC16: 3.074500784 | AD16: 3.078190185 | AE16: 3.082191832 | AF16: 3.080034298 | AG16: 3.083422335 | AH16: 3.082805651 | AI16: 3.08773814 | AJ16: 3.101015414 | AK16: 3.114039679 | AL16: 3.133346725 | AM16: 3.148700124 | AN16: 3.161924664 | AO16: 3.175837133 | AP16: 3.184094309 | AQ16: 3.192372955 | AR16: 3.202269311 | AS16: 3.212516573 | AT16: 3.23147042 | AU16: 3.239549096 | AV16: 3.249267744 | AW16: 3.263239595 | AX16: 3.294893019 | AY16: 3.317627781 | AZ16: 3.334547683 | BA16: 3.351553876 | BB16: 3.37300382 | BC16: 3.405384657 | BD16: 3.436373658 | BE16: 3.456304625 | BF16: 3.463562864 | BG16: 3.468758209 | BH16: 3.486102 | BI16: 3.499349187 | BJ16: 3.5094973 | BK16: 3.531958083 | BL16: 3.542907153 | BM16: 3.549992967 | BN16: 3.569517928 | BO16: 3.590935036 | BP16: 3.606016963 | BQ16: 3.614310802 | BR16: 3.617202251 | BS16: 3.622989774 | BT16: 3.63168495 | BU16: 3.645122184 | BV16: 3.653870477 | BW16: 3.686024538 | BX16: 3.711826709 | BY16: 3.738180679 | BZ16: 3.765469398 | CA16: 3.781660916 | CB16: 3.777501089 | CC16: 3.774856839 | CD16: 3.772214439 | CE16: 3.792584397 | CF16: 3.827476173 | CG16: 3.866899178 | CH16: 3.890100573 | CI16: 3.926667518 | CJ16: 3.947871523 | CK16: 3.973927475 | CL16: 4.002539753 | CM16: 4.025354229 | CN16: 4.034210009 | CO16: 4.034210009 | CP16: 4.051153691 | CQ16: 4.069383882 | CR16: 4.082405911 | CS16: 4.105675624 | CT16: 4.12661457 | CU16: 4.147660304 | CV16: 4.16383618 | CW16: 4.171331085 | CX16: 4.198027604 | CY16: 4.221116756 | CZ16: 4.232091659 | DA16: 4.250289653 | DB16: 4.269415957 | DC16: 4.296313277 | DD16: 4.326817101 | DE16: 4.350181914 | DF16: 4.38237326 | DG16: 4.422691094 | DH16: 4.445689088 | DI16: 4.472363222 | DJ16: 4.498750165 | DK16: 4.514495791 | DL16: 4.527136379 | DM16: 4.521251102 | DN16: 4.528485103 | DO16: 4.540712013 | DP16: 4.568410356 | DQ16: 4.593079772 | DR16: 4.626149947 | DS16: 4.655294691 | DT16: 4.685088577 | DU16: 4.723506304 | DV16: 4.760349653 | DW16: 4.788911751 | DX16: 4.801362921 | DY16: 4.807604693 | DZ16: 4.816258382 | EA16: 4.839858048 | EB16: 4.858249508 | EC16: 4.883998231 | ED16: 4.91427902 | EE16: 4.987010349 | EF16: 5.044859669 | EG16: 5.12103705 | EH16: 5.157396413 | EI16: 5.208454638 | EJ16: 5.248559739 | EK16: 5.279001385 | EL16: 5.292198889 | EM16: 5.319189103 | EN16: 5.360146859 | EO16: 5.419644489 | EP16: 5.468421289 | EQ16: 5.550994451 | ER16: 5.603728898 | ES16: 5.628385305 | ET16: 5.664406971 | EU16: 5.71991816 | EV16: 5.746801775 | EW16: 5.783581306 | EX16: 5.801510408 | EY16: 5.806151617 | EZ16: 5.816022075 | FA16: 5.82009329 | FB16: 5.828241421 | FC16: 5.852720035 | FD16: 5.866766563 | FE16: 5.885540216 | FF16: 5.890248648 | FG16: 5.911453543 | FH16: 5.903739096 | FI16: 5.913775453 | FJ16: 5.91200132 | FK16: 5.91200132 | FL16: 5.91200132 | FM16: 5.91200132 | FN16: 5.91200132 | FO16: 5.91200132 | FP16: 5.91200132 | FQ16: 5.91200132 | FR16: 5.91200132 | FS16: 5.91200132 | FT16: 5.91200132 | FU16: 5.91200132 | FV16: 5.91200132 | FW16: 5.91200132 | FX16: 5.91200132 | FY16: 5.91200132 | FZ16: 5.91200132 | GA16: 5.91200132 | GB16: 5.91200132 | GC16: 5.91200132 | GD16: 5.91200132 | GE16: 5.91200132 | GF16: 5.91200132 | GG16: 5.91200132 | GH16: 5.91200132 | GI16: 5.91200132 | GJ16: 5.91200132 | GK16: 5.91200132 | GL16: 5.91200132 | GM16: 5.91200132 | GN16: 5.91200132 | GO16: 5.91200132 | GP16: 5.91200132 | GQ16: 5.91200132 | GR16: 5.91200132 | GS16: 5.91200132 | GT16: 5.91200132 | GU16: 5.91200132 | GV16: 5.91200132 | GW16: 5.91200132 | GX16: 5.91200132 | GY16: 5.91200132 | GZ16: 5.91200132 | HA16: 5.91200132 | HB16: 5.91200132 | HC16: 5.91200132 | HD16: 5.91200132 | HE16: 5.91200132 | HF16: 5.91200132 | HG16: 5.91200132 | HH16: 5.91200132 | HI16: 5.91200132 | HJ16: 5.91200132 | HK16: 5.91200132 | HL16: 5.91200132 | HM16: 5.91200132 | HN16: 5.91200132 | HO16: 5.91200132 | HP16: 5.91200132 | HQ16: 5.91200132 | HR16: 5.91200132 | HS16: 5.91200132 | HT16: 5.91200132 | HU16: 5.91200132 | HV16: 5.91200132 | HW16: 5.91200132 | HX16: 5.91200132 | HY16: 5.91200132 | HZ16: 5.91200132 | IA16: 5.91200132 | IB16: 5.91200132 | IC16: 5.91200132 | ID16: 5.91200132 | IE16: 5.91200132 | IF16: 5.91200132 | IG16: 5.91200132 | IH16: 5.91200132 | II16: 5.91200132 | IJ16: 5.91200132 | IK16: 5.91200132 | IL16: 5.91200132 | IM16: 5.91200132 | IN16: 5.91200132 | IO16: 5.91200132 | IP16: 5.91200132 | IQ16: 5.91200132 | IR16: 5.91200132 | IS16: 5.91200132 | IT16: 5.91200132 | IU16: 5.91200132 | IV16: 5.91200132 | IW16: 5.91200132 | IX16: 5.91200132 | IY16: 5.91200132
B17: 1995-06-01 | C17: 2.687148 | D17: 2.697627877 | E17: 2.713004356 | F17: 2.724127674 | G17: 2.735024185 | H17: 2.748699306 | I17: 2.768764811 | J17: 2.782608635 | K17: 2.787339069 | L17: 2.792077546 | M17: 2.804362687 | N17: 2.828480206 | O17: 2.844602543 | P17: 2.857118794 | Q17: 2.877975762 | R17: 2.904165341 | S17: 2.924494498 | T17: 2.921277554 | U17: 2.922153938 | V17: 2.922153938 | W17: 2.926537169 | X17: 2.943511084 | Y17: 2.959406044 | Z17: 2.971243668 | AA17: 2.982534394 | AB17: 2.989394223 | AC17: 2.997465588 | AD17: 3.001062546 | AE17: 3.004963928 | AF17: 3.002860453 | AG17: 3.006163599 | AH17: 3.005562367 | AI17: 3.010371266 | AJ17: 3.023315863 | AK17: 3.03601379 | AL17: 3.054837075 | AM17: 3.069805777 | AN17: 3.082698961 | AO17: 3.096262836 | AP17: 3.10431312 | AQ17: 3.112384334 | AR17: 3.122032725 | AS17: 3.13202323 | AT17: 3.150502167 | AU17: 3.158378422 | AV17: 3.167853558 | AW17: 3.181475328 | AX17: 3.212335639 | AY17: 3.234500755 | AZ17: 3.250996709 | BA17: 3.267576792 | BB17: 3.288489283 | BC17: 3.32005878 | BD17: 3.350271315 | BE17: 3.369702889 | BF17: 3.376779265 | BG17: 3.381844434 | BH17: 3.398753656 | BI17: 3.41166892 | BJ17: 3.42156276 | BK17: 3.443460761 | BL17: 3.45413549 | BM17: 3.461043761 | BN17: 3.480079501 | BO17: 3.500959978 | BP17: 3.51566401 | BQ17: 3.523750038 | BR17: 3.526569038 | BS17: 3.532211548 | BT17: 3.540688856 | BU17: 3.553789405 | BV17: 3.562318499 | BW17: 3.593666902 | BX17: 3.61882257 | BY17: 3.64451621 | BZ17: 3.671121179 | CA17: 3.686907 | CB17: 3.682851402 | CC17: 3.680273406 | CD17: 3.677697215 | CE17: 3.69755678 | CF17: 3.731574302 | CG17: 3.770009517 | CH17: 3.792629575 | CI17: 3.828280293 | CJ17: 3.848953006 | CK17: 3.874356096 | CL17: 3.90225146 | CM17: 3.924494293 | CN17: 3.933128181 | CO17: 3.933128181 | CP17: 3.949647319 | CQ17: 3.967420732 | CR17: 3.980116478 | CS17: 4.002803142 | CT17: 4.023217438 | CU17: 4.043735847 | CV17: 4.059506417 | CW17: 4.066813528 | CX17: 4.092841135 | CY17: 4.115351761 | CZ17: 4.126051676 | DA17: 4.143793698 | DB17: 4.16244077 | DC17: 4.188664147 | DD17: 4.218403662 | DE17: 4.241183042 | DF17: 4.272567796 | DG17: 4.31187542 | DH17: 4.334297172 | DI17: 4.360302955 | DJ17: 4.386028743 | DK17: 4.401379843 | DL17: 4.413703707 | DM17: 4.407965892 | DN17: 4.415018637 | DO17: 4.426939188 | DP17: 4.453943517 | DQ17: 4.477994812 | DR17: 4.510236374 | DS17: 4.538650864 | DT17: 4.567698229 | DU17: 4.605153355 | DV17: 4.641073551 | DW17: 4.668919992 | DX17: 4.681059184 | DY17: 4.687144561 | DZ17: 4.695581421 | EA17: 4.71858977 | EB17: 4.736520411 | EC17: 4.76162397 | ED17: 4.791146038 | EE17: 4.862054999 | EF17: 4.918454837 | EG17: 4.992723506 | EH17: 5.028171842 | EI17: 5.077950744 | EJ17: 5.117050964 | EK17: 5.14672986 | EL17: 5.159596685 | EM17: 5.185910628 | EN17: 5.22584214 | EO17: 5.283848987 | EP17: 5.331403628 | EQ17: 5.411907823 | ER17: 5.463320947 | ES17: 5.487359559 | ET17: 5.522478661 | EU17: 5.576598952 | EV17: 5.602808967 | EW17: 5.638666944 | EX17: 5.656146811 | EY17: 5.660671729 | EZ17: 5.670294871 | FA17: 5.674264077 | FB17: 5.682208047 | FC17: 5.706073321 | FD17: 5.719767897 | FE17: 5.738071154 | FF17: 5.742661611 | FG17: 5.763335193 | FH17: 5.75581404 | FI17: 5.765598924 | FJ17: 5.763869245 | FK17: 5.763869245 | FL17: 5.763869245 | FM17: 5.763869245 | FN17: 5.763869245 | FO17: 5.763869245 | FP17: 5.763869245 | FQ17: 5.763869245 | FR17: 5.763869245 | FS17: 5.763869245 | FT17: 5.763869245 | FU17: 5.763869245 | FV17: 5.763869245 | FW17: 5.763869245 | FX17: 5.763869245 | FY17: 5.763869245 | FZ17: 5.763869245 | GA17: 5.763869245 | GB17: 5.763869245 | GC17: 5.763869245 | GD17: 5.763869245 | GE17: 5.763869245 | GF17: 5.763869245 | GG17: 5.763869245 | GH17: 5.763869245 | GI17: 5.763869245 | GJ17: 5.763869245 | GK17: 5.763869245 | GL17: 5.763869245 | GM17: 5.763869245 | GN17: 5.763869245 | GO17: 5.763869245 | GP17: 5.763869245 | GQ17: 5.763869245 | GR17: 5.763869245 | GS17: 5.763869245 | GT17: 5.763869245 | GU17: 5.763869245 | GV17: 5.763869245 | GW17: 5.763869245 | GX17: 5.763869245 | GY17: 5.763869245 | GZ17: 5.763869245 | HA17: 5.763869245 | HB17: 5.763869245 | HC17: 5.763869245 | HD17: 5.763869245 | HE17: 5.763869245 | HF17: 5.763869245 | HG17: 5.763869245 | HH17: 5.763869245 | HI17: 5.763869245 | HJ17: 5.763869245 | HK17: 5.763869245 | HL17: 5.763869245 | HM17: 5.763869245 | HN17: 5.763869245 | HO17: 5.763869245 | HP17: 5.763869245 | HQ17: 5.763869245 | HR17: 5.763869245 | HS17: 5.763869245 | HT17: 5.763869245 | HU17: 5.763869245 | HV17: 5.763869245 | HW17: 5.763869245 | HX17: 5.763869245 | HY17: 5.763869245 | HZ17: 5.763869245 | IA17: 5.763869245 | IB17: 5.763869245 | IC17: 5.763869245 | ID17: 5.763869245 | IE17: 5.763869245 | IF17: 5.763869245 | IG17: 5.763869245 | IH17: 5.763869245 | II17: 5.763869245 | IJ17: 5.763869245 | IK17: 5.763869245 | IL17: 5.763869245 | IM17: 5.763869245 | IN17: 5.763869245 | IO17: 5.763869245 | IP17: 5.763869245 | IQ17: 5.763869245 | IR17: 5.763869245 | IS17: 5.763869245 | IT17: 5.763869245 | IU17: 5.763869245 | IV17: 5.763869245 | IW17: 5.763869245 | IX17: 5.763869245 | IY17: 5.763869245
B18: 1995-07-01 | C18: 2.639116 | D18: 2.649408552 | E18: 2.664510181 | F18: 2.675434673 | G18: 2.686136412 | H18: 2.699567094 | I18: 2.719273933 | J18: 2.732870303 | K18: 2.737516183 | L18: 2.74216996 | M18: 2.754235508 | N18: 2.777921933 | O18: 2.793756088 | P18: 2.806048615 | Q18: 2.82653277 | R18: 2.852254218 | S18: 2.872219998 | T18: 2.869060556 | U18: 2.869921274 | V18: 2.869921274 | W18: 2.874226156 | X18: 2.890896668 | Y18: 2.90650751 | Z18: 2.91813354 | AA18: 2.929222447 | AB18: 2.935959659 | AC18: 2.94388675 | AD18: 2.947419414 | AE18: 2.951251059 | AF18: 2.949185183 | AG18: 2.952429287 | AH18: 2.951838801 | AI18: 2.956561743 | AJ18: 2.969274959 | AK18: 2.981745914 | AL18: 3.000232738 | AM18: 3.014933879 | AN18: 3.027596601 | AO18: 3.040918026 | AP18: 3.048824413 | AQ18: 3.056751356 | AR18: 3.066227286 | AS18: 3.076039213 | AT18: 3.094187844 | AU18: 3.101923314 | AV18: 3.111229084 | AW18: 3.124607369 | AX18: 3.15491606 | AY18: 3.176684981 | AZ18: 3.192886075 | BA18: 3.209169793 | BB18: 3.22970848 | BC18: 3.260713682 | BD18: 3.290386176 | BE18: 3.309470416 | BF18: 3.316420304 | BG18: 3.321394934 | BH18: 3.338001909 | BI18: 3.350686316 | BJ18: 3.360403306 | BK18: 3.381909888 | BL18: 3.392393808 | BM18: 3.399178596 | BN18: 3.417874078 | BO18: 3.438381323 | BP18: 3.452822524 | BQ18: 3.460764016 | BR18: 3.463532627 | BS18: 3.469074279 | BT18: 3.477400058 | BU18: 3.490266438 | BV18: 3.498643077 | BW18: 3.529431136 | BX18: 3.554137154 | BY18: 3.579371528 | BZ18: 3.60550094 | CA18: 3.621004594 | CB18: 3.617021489 | CC18: 3.614489574 | CD18: 3.611959432 | CE18: 3.631464013 | CF18: 3.664873481 | CG18: 3.702621678 | CH18: 3.724837408 | CI18: 3.75985088 | CJ18: 3.780154075 | CK18: 3.805103092 | CL18: 3.832499834 | CM18: 3.854345083 | CN18: 3.862824642 | CO18: 3.862824642 | CP18: 3.879048506 | CQ18: 3.896504224 | CR18: 3.908973037 | CS18: 3.931254184 | CT18: 3.95130358 | CU18: 3.971455228 | CV18: 3.986943904 | CW18: 3.994120403 | CX18: 4.019682773 | CY18: 4.041791029 | CZ18: 4.052299685 | DA18: 4.069724574 | DB18: 4.088038335 | DC18: 4.113792976 | DD18: 4.143000906 | DE18: 4.165373111 | DF18: 4.196196872 | DG18: 4.234801883 | DH18: 4.256822853 | DI18: 4.28236379 | DJ18: 4.307629737 | DK18: 4.322706441 | DL18: 4.334810019 | DM18: 4.329174766 | DN18: 4.336101445 | DO18: 4.347808919 | DP18: 4.374330554 | DQ18: 4.397951939 | DR18: 4.429617193 | DS18: 4.457523781 | DT18: 4.486051933 | DU18: 4.522837559 | DV18: 4.558115692 | DW18: 4.585464386 | DX18: 4.597386593 | DY18: 4.603363196 | DZ18: 4.61164925 | EA18: 4.634246331 | EB18: 4.651856467 | EC18: 4.676511306 | ED18: 4.705505676 | EE18: 4.77514716 | EF18: 4.830538868 | EG18: 4.903480004 | EH18: 4.938294712 | EI18: 4.98718383 | EJ18: 5.025585146 | EK18: 5.054733539 | EL18: 5.067370373 | EM18: 5.093213962 | EN18: 5.13243171 | EO18: 5.189401702 | EP18: 5.236106317 | EQ18: 5.315171522 | ER18: 5.365665652 | ES18: 5.389274581 | ET18: 5.423765938 | EU18: 5.476918844 | EV18: 5.502660363 | EW18: 5.537877389 | EX18: 5.555044809 | EY18: 5.559488845 | EZ18: 5.568939976 | FA18: 5.572838234 | FB18: 5.580640207 | FC18: 5.604078896 | FD18: 5.617528686 | FE18: 5.635504777 | FF18: 5.640013181 | FG18: 5.660317229 | FH18: 5.652930515 | FI18: 5.662540497 | FJ18: 5.660841734 | FK18: 5.660841734 | FL18: 5.660841734 | FM18: 5.660841734 | FN18: 5.660841734 | FO18: 5.660841734 | FP18: 5.660841734 | FQ18: 5.660841734 | FR18: 5.660841734 | FS18: 5.660841734 | FT18: 5.660841734 | FU18: 5.660841734 | FV18: 5.660841734 | FW18: 5.660841734 | FX18: 5.660841734 | FY18: 5.660841734 | FZ18: 5.660841734 | GA18: 5.660841734 | GB18: 5.660841734 | GC18: 5.660841734 | GD18: 5.660841734 | GE18: 5.660841734 | GF18: 5.660841734 | GG18: 5.660841734 | GH18: 5.660841734 | GI18: 5.660841734 | GJ18: 5.660841734 | GK18: 5.660841734 | GL18: 5.660841734 | GM18: 5.660841734 | GN18: 5.660841734 | GO18: 5.660841734 | GP18: 5.660841734 | GQ18: 5.660841734 | GR18: 5.660841734 | GS18: 5.660841734 | GT18: 5.660841734 | GU18: 5.660841734 | GV18: 5.660841734 | GW18: 5.660841734 | GX18: 5.660841734 | GY18: 5.660841734 | GZ18: 5.660841734 | HA18: 5.660841734 | HB18: 5.660841734 | HC18: 5.660841734 | HD18: 5.660841734 | HE18: 5.660841734 | HF18: 5.660841734 | HG18: 5.660841734 | HH18: 5.660841734 | HI18: 5.660841734 | HJ18: 5.660841734 | HK18: 5.660841734 | HL18: 5.660841734 | HM18: 5.660841734 | HN18: 5.660841734 | HO18: 5.660841734 | HP18: 5.660841734 | HQ18: 5.660841734 | HR18: 5.660841734 | HS18: 5.660841734 | HT18: 5.660841734 | HU18: 5.660841734 | HV18: 5.660841734 | HW18: 5.660841734 | HX18: 5.660841734 | HY18: 5.660841734 | HZ18: 5.660841734 | IA18: 5.660841734 | IB18: 5.660841734 | IC18: 5.660841734 | ID18: 5.660841734 | IE18: 5.660841734 | IF18: 5.660841734 | IG18: 5.660841734 | IH18: 5.660841734 | II18: 5.660841734 | IJ18: 5.660841734 | IK18: 5.660841734 | IL18: 5.660841734 | IM18: 5.660841734 | IN18: 5.660841734 | IO18: 5.660841734 | IP18: 5.660841734 | IQ18: 5.660841734 | IR18: 5.660841734 | IS18: 5.660841734 | IT18: 5.660841734 | IU18: 5.660841734 | IV18: 5.660841734 | IW18: 5.660841734 | IX18: 5.660841734 | IY18: 5.660841734
B19: 1995-08-01 | C19: 2.575753 | D19: 2.585798437 | E19: 2.600537488 | F19: 2.611199691 | G19: 2.62164449 | H19: 2.634752713 | I19: 2.653986408 | J19: 2.66725634 | K19: 2.671790675 | L19: 2.676332719 | M19: 2.688108583 | N19: 2.711226317 | O19: 2.726680307 | P19: 2.738677701 | Q19: 2.758670048 | R19: 2.783773945 | S19: 2.803260363 | T19: 2.800176776 | U19: 2.80101683 | V19: 2.80101683 | W19: 2.805218355 | X19: 2.821488621 | Y19: 2.83672466 | Z19: 2.848071558 | AA19: 2.85889423 | AB19: 2.865469687 | AC19: 2.873206455 | AD19: 2.876654303 | AE19: 2.880393954 | AF19: 2.878377678 | AG19: 2.881543893 | AH19: 2.880967584 | AI19: 2.885577133 | AJ19: 2.897985114 | AK19: 2.910156652 | AL19: 2.928199623 | AM19: 2.942547801 | AN19: 2.954906502 | AO19: 2.967908091 | AP19: 2.975624652 | AQ19: 2.983361276 | AR19: 2.992609696 | AS19: 3.002186047 | AT19: 3.019898944 | AU19: 3.027448692 | AV19: 3.036531038 | AW19: 3.049588121 | AX19: 3.079169126 | AY19: 3.100415393 | AZ19: 3.116227511 | BA19: 3.132120272 | BB19: 3.152165841 | BC19: 3.182426634 | BD19: 3.211386716 | BE19: 3.230012759 | BF19: 3.236795786 | BG19: 3.241650979 | BH19: 3.257859234 | BI19: 3.270239099 | BJ19: 3.279722793 | BK19: 3.300713019 | BL19: 3.310945229 | BM19: 3.317567119 | BN19: 3.335813739 | BO19: 3.355828621 | BP19: 3.369923101 | BQ19: 3.377673924 | BR19: 3.380376063 | BS19: 3.385784665 | BT19: 3.393910548 | BU19: 3.406468017 | BV19: 3.414643541 | BW19: 3.444692404 | BX19: 3.468805251 | BY19: 3.493433768 | BZ19: 3.518935834 | CA19: 3.534067259 | CB19: 3.530179785 | CC19: 3.527708659 | CD19: 3.525239263 | CE19: 3.544275555 | CF19: 3.57688289 | CG19: 3.613724784 | CH19: 3.635407132 | CI19: 3.669579959 | CJ19: 3.689395691 | CK19: 3.713745703 | CL19: 3.740484672 | CM19: 3.761805434 | CN19: 3.770081406 | CO19: 3.770081406 | CP19: 3.785915748 | CQ19: 3.802952369 | CR19: 3.815121817 | CS19: 3.836868011 | CT19: 3.856436038 | CU19: 3.876103862 | CV19: 3.891220667 | CW19: 3.898224864 | CX19: 3.923173503 | CY19: 3.944750957 | CZ19: 3.95500731 | DA19: 3.972013841 | DB19: 3.989887903 | DC19: 4.015024197 | DD19: 4.043530869 | DE19: 4.065365936 | DF19: 4.095449644 | DG19: 4.13312778 | DH19: 4.154620045 | DI19: 4.179547765 | DJ19: 4.204207097 | DK19: 4.218921822 | DL19: 4.230734803 | DM19: 4.225234848 | DN19: 4.231995223 | DO19: 4.24342161 | DP19: 4.269306482 | DQ19: 4.292360737 | DR19: 4.323265735 | DS19: 4.350502309 | DT19: 4.378345524 | DU19: 4.414247957 | DV19: 4.448679091 | DW19: 4.475371165 | DX19: 4.48700713 | DY19: 4.49284024 | DZ19: 4.500927352 | EA19: 4.522981896 | EB19: 4.540169227 | EC19: 4.564232124 | ED19: 4.592530363 | EE19: 4.660499813 | EF19: 4.714561611 | EG19: 4.785751491 | EH19: 4.819730327 | EI19: 4.867445657 | EJ19: 4.904924988 | EK19: 4.933373553 | EL19: 4.945706987 | EM19: 4.970930093 | EN19: 5.009206255 | EO19: 5.064808444 | EP19: 5.11039172 | EQ19: 5.187558635 | ER19: 5.236840442 | ES19: 5.25988254 | ET19: 5.293545788 | EU19: 5.345422537 | EV19: 5.370546023 | EW19: 5.404917517 | EX19: 5.421672762 | EY19: 5.4260101 | EZ19: 5.435234317 | FA19: 5.439038981 | FB19: 5.446653636 | FC19: 5.469529581 | FD19: 5.482656452 | FE19: 5.500200953 | FF19: 5.504601113 | FG19: 5.524417677 | FH19: 5.517208312 | FI19: 5.526587566 | FJ19: 5.52492959 | FK19: 5.52492959 | FL19: 5.52492959 | FM19: 5.52492959 | FN19: 5.52492959 | FO19: 5.52492959 | FP19: 5.52492959 | FQ19: 5.52492959 | FR19: 5.52492959 | FS19: 5.52492959 | FT19: 5.52492959 | FU19: 5.52492959 | FV19: 5.52492959 | FW19: 5.52492959 | FX19: 5.52492959 | FY19: 5.52492959 | FZ19: 5.52492959 | GA19: 5.52492959 | GB19: 5.52492959 | GC19: 5.52492959 | GD19: 5.52492959 | GE19: 5.52492959 | GF19: 5.52492959 | GG19: 5.52492959 | GH19: 5.52492959 | GI19: 5.52492959 | GJ19: 5.52492959 | GK19: 5.52492959 | GL19: 5.52492959 | GM19: 5.52492959 | GN19: 5.52492959 | GO19: 5.52492959 | GP19: 5.52492959 | GQ19: 5.52492959 | GR19: 5.52492959 | GS19: 5.52492959 | GT19: 5.52492959 | GU19: 5.52492959 | GV19: 5.52492959 | GW19: 5.52492959 | GX19: 5.52492959 | GY19: 5.52492959 | GZ19: 5.52492959 | HA19: 5.52492959 | HB19: 5.52492959 | HC19: 5.52492959 | HD19: 5.52492959 | HE19: 5.52492959 | HF19: 5.52492959 | HG19: 5.52492959 | HH19: 5.52492959 | HI19: 5.52492959 | HJ19: 5.52492959 | HK19: 5.52492959 | HL19: 5.52492959 | HM19: 5.52492959 | HN19: 5.52492959 | HO19: 5.52492959 | HP19: 5.52492959 | HQ19: 5.52492959 | HR19: 5.52492959 | HS19: 5.52492959 | HT19: 5.52492959 | HU19: 5.52492959 | HV19: 5.52492959 | HW19: 5.52492959 | HX19: 5.52492959 | HY19: 5.52492959 | HZ19: 5.52492959 | IA19: 5.52492959 | IB19: 5.52492959 | IC19: 5.52492959 | ID19: 5.52492959 | IE19: 5.52492959 | IF19: 5.52492959 | IG19: 5.52492959 | IH19: 5.52492959 | II19: 5.52492959 | IJ19: 5.52492959 | IK19: 5.52492959 | IL19: 5.52492959 | IM19: 5.52492959 | IN19: 5.52492959 | IO19: 5.52492959 | IP19: 5.52492959 | IQ19: 5.52492959 | IR19: 5.52492959 | IS19: 5.52492959 | IT19: 5.52492959 | IU19: 5.52492959 | IV19: 5.52492959 | IW19: 5.52492959 | IX19: 5.52492959 | IY19: 5.52492959
B20: 1995-09-01 | C20: 2.549745 | D20: 2.559689006 | E20: 2.574279233 | F20: 2.584833778 | G20: 2.595173113 | H20: 2.608148978 | I20: 2.627188466 | J20: 2.640324408 | K20: 2.64481296 | L20: 2.649309142 | M20: 2.660966102 | N20: 2.68385041 | O20: 2.699148358 | P20: 2.711024611 | Q20: 2.73081509 | R20: 2.755665508 | S20: 2.774955166 | T20: 2.771902715 | U20: 2.772734286 | V20: 2.772734286 | W20: 2.776893388 | X20: 2.792999369 | Y20: 2.808081566 | Z20: 2.819313892 | AA20: 2.830027285 | AB20: 2.836536348 | AC20: 2.844194996 | AD20: 2.84760803 | AE20: 2.85130992 | AF20: 2.849314003 | AG20: 2.852448249 | AH20: 2.851877759 | AI20: 2.856440764 | AJ20: 2.868723459 | AK20: 2.880772097 | AL20: 2.898632884 | AM20: 2.912836185 | AN20: 2.925070097 | AO20: 2.937940406 | AP20: 2.945579051 | AQ20: 2.953237556 | AR20: 2.962392593 | AS20: 2.971872249 | AT20: 2.989406295 | AU20: 2.996879811 | AV20: 3.005870451 | AW20: 3.018795694 | AX20: 3.048078012 | AY20: 3.06910975 | AZ20: 3.08476221 | BA20: 3.100494497 | BB20: 3.120337662 | BC20: 3.150292903 | BD20: 3.178960569 | BE20: 3.19739854 | BF20: 3.204113077 | BG20: 3.208919247 | BH20: 3.224963843 | BI20: 3.237218706 | BJ20: 3.24660664 | BK20: 3.267384922 | BL20: 3.277513816 | BM20: 3.284068843 | BN20: 3.302131222 | BO20: 3.321944009 | BP20: 3.335896174 | BQ20: 3.343568735 | BR20: 3.34624359 | BS20: 3.35159758 | BT20: 3.359641414 | BU20: 3.372072087 | BV20: 3.38016506 | BW20: 3.409910513 | BX20: 3.433779886 | BY20: 3.458159724 | BZ20: 3.48340429 | CA20: 3.498382928 | CB20: 3.494534707 | CC20: 3.492088533 | CD20: 3.489644071 | CE20: 3.508488149 | CF20: 3.54076624 | CG20: 3.577236132 | CH20: 3.598699549 | CI20: 3.632527324 | CJ20: 3.652142972 | CK20: 3.676247115 | CL20: 3.702716095 | CM20: 3.723821576 | CN20: 3.732013984 | CO20: 3.732013984 | CP20: 3.747688443 | CQ20: 3.764553041 | CR20: 3.77659961 | CS20: 3.798126228 | CT20: 3.817496672 | CU20: 3.836965905 | CV20: 3.851930072 | CW20: 3.858863546 | CX20: 3.883560273 | CY20: 3.904919854 | CZ20: 3.915072646 | DA20: 3.931907458 | DB20: 3.949601042 | DC20: 3.974483528 | DD20: 4.002702361 | DE20: 4.024316954 | DF20: 4.0540969 | DG20: 4.091394591 | DH20: 4.112669843 | DI20: 4.137345862 | DJ20: 4.161756203 | DK20: 4.176322349 | DL20: 4.188016052 | DM20: 4.182571631 | DN20: 4.189263746 | DO20: 4.200574758 | DP20: 4.226198264 | DQ20: 4.249019734 | DR20: 4.279612677 | DS20: 4.306574236 | DT20: 4.334136312 | DU20: 4.369676229 | DV20: 4.403759704 | DW20: 4.430182262 | DX20: 4.441700736 | DY20: 4.447474947 | DZ20: 4.455480402 | EA20: 4.477312256 | EB20: 4.494326042 | EC20: 4.51814597 | ED20: 4.546158475 | EE20: 4.613441621 | EF20: 4.666957544 | EG20: 4.737428603 | EH20: 4.771064346 | EI20: 4.818297883 | EJ20: 4.855398776 | EK20: 4.883560089 | EL20: 4.89576899 | EM20: 4.920737411 | EN20: 4.958627089 | EO20: 5.01366785 | EP20: 5.058790861 | EQ20: 5.135178603 | ER20: 5.183962799 | ES20: 5.206772236 | ET20: 5.240095578 | EU20: 5.291448515 | EV20: 5.316318323 | EW20: 5.35034276 | EX20: 5.366928823 | EY20: 5.371222366 | EZ20: 5.380353444 | FA20: 5.384119691 | FB20: 5.391657459 | FC20: 5.41430242 | FD20: 5.427296746 | FE20: 5.444664095 | FF20: 5.449019827 | FG20: 5.468636298 | FH20: 5.461499728 | FI20: 5.470784277 | FJ20: 5.469143042 | FK20: 5.469143042 | FL20: 5.469143042 | FM20: 5.469143042 | FN20: 5.469143042 | FO20: 5.469143042 | FP20: 5.469143042 | FQ20: 5.469143042 | FR20: 5.469143042 | FS20: 5.469143042 | FT20: 5.469143042 | FU20: 5.469143042 | FV20: 5.469143042 | FW20: 5.469143042 | FX20: 5.469143042 | FY20: 5.469143042 | FZ20: 5.469143042 | GA20: 5.469143042 | GB20: 5.469143042 | GC20: 5.469143042 | GD20: 5.469143042 | GE20: 5.469143042 | GF20: 5.469143042 | GG20: 5.469143042 | GH20: 5.469143042 | GI20: 5.469143042 | GJ20: 5.469143042 | GK20: 5.469143042 | GL20: 5.469143042 | GM20: 5.469143042 | GN20: 5.469143042 | GO20: 5.469143042 | GP20: 5.469143042 | GQ20: 5.469143042 | GR20: 5.469143042 | GS20: 5.469143042 | GT20: 5.469143042 | GU20: 5.469143042 | GV20: 5.469143042 | GW20: 5.469143042 | GX20: 5.469143042 | GY20: 5.469143042 | GZ20: 5.469143042 | HA20: 5.469143042 | HB20: 5.469143042 | HC20: 5.469143042 | HD20: 5.469143042 | HE20: 5.469143042 | HF20: 5.469143042 | HG20: 5.469143042 | HH20: 5.469143042 | HI20: 5.469143042 | HJ20: 5.469143042 | HK20: 5.469143042 | HL20: 5.469143042 | HM20: 5.469143042 | HN20: 5.469143042 | HO20: 5.469143042 | HP20: 5.469143042 | HQ20: 5.469143042 | HR20: 5.469143042 | HS20: 5.469143042 | HT20: 5.469143042 | HU20: 5.469143042 | HV20: 5.469143042 | HW20: 5.469143042 | HX20: 5.469143042 | HY20: 5.469143042 | HZ20: 5.469143042 | IA20: 5.469143042 | IB20: 5.469143042 | IC20: 5.469143042 | ID20: 5.469143042 | IE20: 5.469143042 | IF20: 5.469143042 | IG20: 5.469143042 | IH20: 5.469143042 | II20: 5.469143042 | IJ20: 5.469143042 | IK20: 5.469143042 | IL20: 5.469143042 | IM20: 5.469143042 | IN20: 5.469143042 | IO20: 5.469143042 | IP20: 5.469143042 | IQ20: 5.469143042 | IR20: 5.469143042 | IS20: 5.469143042 | IT20: 5.469143042 | IU20: 5.469143042 | IV20: 5.469143042 | IW20: 5.469143042 | IX20: 5.469143042 | IY20: 5.469143042
B21: 1995-10-01 | C21: 2.520258 | D21: 2.530087006 | E21: 2.544508502 | F21: 2.554940987 | G21: 2.565160751 | H21: 2.577986555 | I21: 2.596805857 | J21: 2.609789886 | K21: 2.614226529 | L21: 2.618670714 | M21: 2.630192865 | N21: 2.652812524 | O21: 2.667933555 | P21: 2.679672463 | Q21: 2.699234072 | R21: 2.723797102 | S21: 2.742863681 | T21: 2.739846531 | U21: 2.740668485 | V21: 2.740668485 | W21: 2.744779488 | X21: 2.760699209 | Y21: 2.775606985 | Z21: 2.786709413 | AA21: 2.797298908 | AB21: 2.803732696 | AC21: 2.811302774 | AD21: 2.814676337 | AE21: 2.818335417 | AF21: 2.816362582 | AG21: 2.819460581 | AH21: 2.818896689 | AI21: 2.823406923 | AJ21: 2.835547573 | AK21: 2.847456873 | AL21: 2.865111106 | AM21: 2.87915015 | AN21: 2.891242581 | AO21: 2.903964048 | AP21: 2.911514354 | AQ21: 2.919084292 | AR21: 2.928133453 | AS21: 2.93750348 | AT21: 2.954834751 | AU21: 2.962221838 | AV21: 2.971108503 | AW21: 2.98388427 | AX21: 3.012827947 | AY21: 3.03361646 | AZ21: 3.049087904 | BA21: 3.064638252 | BB21: 3.084251937 | BC21: 3.113860756 | BD21: 3.142196888 | BE21: 3.16042163 | BF21: 3.167058516 | BG21: 3.171809104 | BH21: 3.187668149 | BI21: 3.199781288 | BJ21: 3.209060654 | BK21: 3.229598642 | BL21: 3.239610398 | BM21: 3.246089619 | BN21: 3.263943111 | BO21: 3.28352677 | BP21: 3.297317583 | BQ21: 3.304901413 | BR21: 3.307545334 | BS21: 3.312837407 | BT21: 3.320788216 | BU21: 3.333075133 | BV21: 3.341074513 | BW21: 3.370475969 | BX21: 3.394069301 | BY21: 3.418167193 | BZ21: 3.443119813 | CA21: 3.457925228 | CB21: 3.454121511 | CC21: 3.451703626 | CD21: 3.449287433 | CE21: 3.467913585 | CF21: 3.49981839 | CG21: 3.53586652 | CH21: 3.557081719 | CI21: 3.590518287 | CJ21: 3.609907086 | CK21: 3.633732472 | CL21: 3.659895346 | CM21: 3.68075675 | CN21: 3.688854415 | CO21: 3.688854415 | CP21: 3.704347603 | CQ21: 3.721017167 | CR21: 3.732924422 | CS21: 3.754202091 | CT21: 3.773348522 | CU21: 3.7925926 | CV21: 3.807383711 | CW21: 3.814237001 | CX21: 3.838648118 | CY21: 3.859760683 | CZ21: 3.869796061 | DA21: 3.886436184 | DB21: 3.903925146 | DC21: 3.928519875 | DD21: 3.956412366 | DE21: 3.977776993 | DF21: 4.007212543 | DG21: 4.044078898 | DH21: 4.065108108 | DI21: 4.089498757 | DJ21: 4.113626799 | DK21: 4.128024493 | DL21: 4.139582962 | DM21: 4.134201504 | DN21: 4.140816226 | DO21: 4.15199643 | DP21: 4.177323608 | DQ21: 4.199881156 | DR21: 4.2301203 | DS21: 4.256770058 | DT21: 4.284013387 | DU21: 4.319142296 | DV21: 4.352831606 | DW21: 4.378948596 | DX21: 4.390333862 | DY21: 4.396041296 | DZ21: 4.403954171 | EA21: 4.425533546 | EB21: 4.442350573 | EC21: 4.465895032 | ED21: 4.493583581 | EE21: 4.560088618 | EF21: 4.612985646 | EG21: 4.682641729 | EH21: 4.715888485 | EI21: 4.762575781 | EJ21: 4.799247615 | EK21: 4.827083251 | EL21: 4.839150959 | EM21: 4.863830629 | EN21: 4.901282125 | EO21: 4.955686356 | EP21: 5.000287534 | EQ21: 5.075791875 | ER21: 5.124011898 | ES21: 5.14655755 | ET21: 5.179495519 | EU21: 5.230254575 | EV21: 5.254836771 | EW21: 5.288467727 | EX21: 5.304861977 | EY21: 5.309105866 | EZ21: 5.318131346 | FA21: 5.321854038 | FB21: 5.329304634 | FC21: 5.351687713 | FD21: 5.364531764 | FE21: 5.381698265 | FF21: 5.386003624 | FG21: 5.405393237 | FH21: 5.398339199 | FI21: 5.407516376 | FJ21: 5.405894121 | FK21: 5.405894121 | FL21: 5.405894121 | FM21: 5.405894121 | FN21: 5.405894121 | FO21: 5.405894121 | FP21: 5.405894121 | FQ21: 5.405894121 | FR21: 5.405894121 | FS21: 5.405894121 | FT21: 5.405894121 | FU21: 5.405894121 | FV21: 5.405894121 | FW21: 5.405894121 | FX21: 5.405894121 | FY21: 5.405894121 | FZ21: 5.405894121 | GA21: 5.405894121 | GB21: 5.405894121 | GC21: 5.405894121 | GD21: 5.405894121 | GE21: 5.405894121 | GF21: 5.405894121 | GG21: 5.405894121 | GH21: 5.405894121 | GI21: 5.405894121 | GJ21: 5.405894121 | GK21: 5.405894121 | GL21: 5.405894121 | GM21: 5.405894121 | GN21: 5.405894121 | GO21: 5.405894121 | GP21: 5.405894121 | GQ21: 5.405894121 | GR21: 5.405894121 | GS21: 5.405894121 | GT21: 5.405894121 | GU21: 5.405894121 | GV21: 5.405894121 | GW21: 5.405894121 | GX21: 5.405894121 | GY21: 5.405894121 | GZ21: 5.405894121 | HA21: 5.405894121 | HB21: 5.405894121 | HC21: 5.405894121 | HD21: 5.405894121 | HE21: 5.405894121 | HF21: 5.405894121 | HG21: 5.405894121 | HH21: 5.405894121 | HI21: 5.405894121 | HJ21: 5.405894121 | HK21: 5.405894121 | HL21: 5.405894121 | HM21: 5.405894121 | HN21: 5.405894121 | HO21: 5.405894121 | HP21: 5.405894121 | HQ21: 5.405894121 | HR21: 5.405894121 | HS21: 5.405894121 | HT21: 5.405894121 | HU21: 5.405894121 | HV21: 5.405894121 | HW21: 5.405894121 | HX21: 5.405894121 | HY21: 5.405894121 | HZ21: 5.405894121 | IA21: 5.405894121 | IB21: 5.405894121 | IC21: 5.405894121 | ID21: 5.405894121 | IE21: 5.405894121 | IF21: 5.405894121 | IG21: 5.405894121 | IH21: 5.405894121 | II21: 5.405894121 | IJ21: 5.405894121 | IK21: 5.405894121 | IL21: 5.405894121 | IM21: 5.405894121 | IN21: 5.405894121 | IO21: 5.405894121 | IP21: 5.405894121 | IQ21: 5.405894121 | IR21: 5.405894121 | IS21: 5.405894121 | IT21: 5.405894121 | IU21: 5.405894121 | IV21: 5.405894121 | IW21: 5.405894121 | IX21: 5.405894121 | IY21: 5.405894121
B22: 1995-11-01 | C22: 2.485462 | D22: 2.495155302 | E22: 2.509377687 | F22: 2.519666136 | G22: 2.5297448 | H22: 2.542393524 | I22: 2.560952997 | J22: 2.573757762 | K22: 2.57813315 | L22: 2.582515976 | M22: 2.593879047 | N22: 2.616186406 | O22: 2.631098669 | P22: 2.642675503 | Q22: 2.661967034 | R22: 2.686190934 | S22: 2.704994271 | T22: 2.702018777 | U22: 2.702829383 | V22: 2.702829383 | W22: 2.706883627 | X22: 2.722583552 | Y22: 2.737285503 | Z22: 2.748234645 | AA22: 2.758677937 | AB22: 2.765022896 | AC22: 2.772488458 | AD22: 2.775815444 | AE22: 2.779424004 | AF22: 2.777478407 | AG22: 2.780533633 | AH22: 2.779977527 | AI22: 2.784425491 | AJ22: 2.79639852 | AK22: 2.808143394 | AL22: 2.825553883 | AM22: 2.839399097 | AN22: 2.851324573 | AO22: 2.863870402 | AP22: 2.871316465 | AQ22: 2.878781887 | AR22: 2.887706111 | AS22: 2.896946771 | AT22: 2.914038757 | AU22: 2.921323854 | AV22: 2.930087825 | AW22: 2.942687203 | AX22: 2.971231269 | AY22: 2.991732765 | AZ22: 3.006990602 | BA22: 3.022326254 | BB22: 3.041669142 | BC22: 3.070869165 | BD22: 3.098814075 | BE22: 3.116787196 | BF22: 3.12333245 | BG22: 3.128017448 | BH22: 3.143657536 | BI22: 3.155603434 | BJ22: 3.164754684 | BK22: 3.185009114 | BL22: 3.194882642 | BM22: 3.201272408 | BN22: 3.218879406 | BO22: 3.238192682 | BP22: 3.251793092 | BQ22: 3.259272216 | BR22: 3.261879633 | BS22: 3.267098641 | BT22: 3.274939678 | BU22: 3.287056954 | BV22: 3.294945891 | BW22: 3.323941415 | BX22: 3.347209005 | BY22: 3.370974189 | BZ22: 3.3955823 | CA22: 3.410183304 | CB22: 3.406432103 | CC22: 3.4040476 | CD22: 3.401664767 | CE22: 3.420033757 | CF22: 3.451498067 | CG22: 3.487048497 | CH22: 3.507970788 | CI22: 3.540945714 | CJ22: 3.56006682 | CK22: 3.583563261 | CL22: 3.609364917 | CM22: 3.629938297 | CN22: 3.637924161 | CO22: 3.637924161 | CP22: 3.653203443 | CQ22: 3.669642858 | CR22: 3.681385715 | CS22: 3.702369614 | CT22: 3.721251699 | CU22: 3.740230083 | CV22: 3.75481698 | CW22: 3.761575651 | CX22: 3.785649735 | CY22: 3.806470808 | CZ22: 3.816367632 | DA22: 3.832778013 | DB22: 3.850025514 | DC22: 3.874280675 | DD22: 3.901788068 | DE22: 3.922857723 | DF22: 3.95188687 | DG22: 3.98824423 | DH22: 4.0089831 | DI22: 4.033036998 | DJ22: 4.056831917 | DK22: 4.071030828 | DL22: 4.082429715 | DM22: 4.077122556 | DN22: 4.083645952 | DO22: 4.094671796 | DP22: 4.119649294 | DQ22: 4.1418954 | DR22: 4.171717047 | DS22: 4.197998865 | DT22: 4.224866057 | DU22: 4.259509959 | DV22: 4.292734137 | DW22: 4.318490541 | DX22: 4.329718617 | DY22: 4.335347251 | DZ22: 4.343150876 | EA22: 4.364432315 | EB22: 4.381017158 | EC22: 4.404236549 | ED22: 4.431542816 | EE22: 4.497129649 | EF22: 4.549296353 | EG22: 4.617990728 | EH22: 4.650778462 | EI22: 4.696821169 | EJ22: 4.732986692 | EK22: 4.760438015 | EL22: 4.77233911 | EM22: 4.79667804 | EN22: 4.83361246 | EO22: 4.887265559 | EP22: 4.931250949 | EQ22: 5.005712838 | ER22: 5.05326711 | ES22: 5.075501485 | ET22: 5.107984695 | EU22: 5.158042945 | EV22: 5.182285747 | EW22: 5.215452375 | EX22: 5.231620278 | EY22: 5.235805574 | EZ22: 5.244706444 | FA22: 5.248377738 | FB22: 5.255725467 | FC22: 5.277799514 | FD22: 5.290466233 | FE22: 5.307395725 | FF22: 5.311641641 | FG22: 5.330763551 | FH22: 5.323806905 | FI22: 5.332857376 | FJ22: 5.331257519 | FK22: 5.331257519 | FL22: 5.331257519 | FM22: 5.331257519 | FN22: 5.331257519 | FO22: 5.331257519 | FP22: 5.331257519 | FQ22: 5.331257519 | FR22: 5.331257519 | FS22: 5.331257519 | FT22: 5.331257519 | FU22: 5.331257519 | FV22: 5.331257519 | FW22: 5.331257519 | FX22: 5.331257519 | FY22: 5.331257519 | FZ22: 5.331257519 | GA22: 5.331257519 | GB22: 5.331257519 | GC22: 5.331257519 | GD22: 5.331257519 | GE22: 5.331257519 | GF22: 5.331257519 | GG22: 5.331257519 | GH22: 5.331257519 | GI22: 5.331257519 | GJ22: 5.331257519 | GK22: 5.331257519 | GL22: 5.331257519 | GM22: 5.331257519 | GN22: 5.331257519 | GO22: 5.331257519 | GP22: 5.331257519 | GQ22: 5.331257519 | GR22: 5.331257519 | GS22: 5.331257519 | GT22: 5.331257519 | GU22: 5.331257519 | GV22: 5.331257519 | GW22: 5.331257519 | GX22: 5.331257519 | GY22: 5.331257519 | GZ22: 5.331257519 | HA22: 5.331257519 | HB22: 5.331257519 | HC22: 5.331257519 | HD22: 5.331257519 | HE22: 5.331257519 | HF22: 5.331257519 | HG22: 5.331257519 | HH22: 5.331257519 | HI22: 5.331257519 | HJ22: 5.331257519 | HK22: 5.331257519 | HL22: 5.331257519 | HM22: 5.331257519 | HN22: 5.331257519 | HO22: 5.331257519 | HP22: 5.331257519 | HQ22: 5.331257519 | HR22: 5.331257519 | HS22: 5.331257519 | HT22: 5.331257519 | HU22: 5.331257519 | HV22: 5.331257519 | HW22: 5.331257519 | HX22: 5.331257519 | HY22: 5.331257519 | HZ22: 5.331257519 | IA22: 5.331257519 | IB22: 5.331257519 | IC22: 5.331257519 | ID22: 5.331257519 | IE22: 5.331257519 | IF22: 5.331257519 | IG22: 5.331257519 | IH22: 5.331257519 | II22: 5.331257519 | IJ22: 5.331257519 | IK22: 5.331257519 | IL22: 5.331257519 | IM22: 5.331257519 | IN22: 5.331257519 | IO22: 5.331257519 | IP22: 5.331257519 | IQ22: 5.331257519 | IR22: 5.331257519 | IS22: 5.331257519 | IT22: 5.331257519 | IU22: 5.331257519 | IV22: 5.331257519 | IW22: 5.331257519 | IX22: 5.331257519 | IY22: 5.331257519
B23: 1995-12-01 | C23: 2.44849 | D23: 2.458039111 | E23: 2.472049934 | F23: 2.482185339 | G23: 2.49211408 | H23: 2.50457465 | I23: 2.522858045 | J23: 2.535472336 | K23: 2.539782639 | L23: 2.544100269 | M23: 2.55529431 | N23: 2.577269841 | O23: 2.591960279 | P23: 2.603364905 | Q23: 2.622369468 | R23: 2.646233031 | S23: 2.664756662 | T23: 2.661825429 | U23: 2.662623977 | V23: 2.662623977 | W23: 2.666617913 | X23: 2.682084297 | Y23: 2.696567552 | Z23: 2.707353822 | AA23: 2.717641767 | AB23: 2.723892343 | AC23: 2.731246852 | AD23: 2.734524349 | AE23: 2.73807923 | AF23: 2.736162575 | AG23: 2.739172354 | AH23: 2.738624519 | AI23: 2.743006318 | AJ23: 2.754801245 | AK23: 2.766371411 | AL23: 2.783522913 | AM23: 2.797162176 | AN23: 2.808910257 | AO23: 2.821269462 | AP23: 2.828604763 | AQ23: 2.835959135 | AR23: 2.844750608 | AS23: 2.85385381 | AT23: 2.870691548 | AU23: 2.877868277 | AV23: 2.886501881 | AW23: 2.89891384 | AX23: 2.927033304 | AY23: 2.947229834 | AZ23: 2.962260706 | BA23: 2.977368235 | BB23: 2.996423392 | BC23: 3.025189057 | BD23: 3.052718277 | BE23: 3.070424043 | BF23: 3.076871933 | BG23: 3.081487241 | BH23: 3.096894678 | BI23: 3.108662877 | BJ23: 3.117678 | BK23: 3.137631139 | BL23: 3.147357795 | BM23: 3.153652511 | BN23: 3.1709976 | BO23: 3.190023585 | BP23: 3.203421684 | BQ23: 3.210789554 | BR23: 3.213358186 | BS23: 3.218499559 | BT23: 3.226223958 | BU23: 3.238160987 | BV23: 3.245932573 | BW23: 3.27449678 | BX23: 3.297418257 | BY23: 3.320829927 | BZ23: 3.345071985 | CA23: 3.359455795 | CB23: 3.355760393 | CC23: 3.353411361 | CD23: 3.351063973 | CE23: 3.369159719 | CF23: 3.400155988 | CG23: 3.435177595 | CH23: 3.45578866 | CI23: 3.488273074 | CJ23: 3.507109748 | CK23: 3.530256673 | CL23: 3.555674521 | CM23: 3.575941865 | CN23: 3.583808938 | CO23: 3.583808938 | CP23: 3.598860935 | CQ23: 3.615055809 | CR23: 3.626623988 | CS23: 3.647295745 | CT23: 3.665896953 | CU23: 3.684593027 | CV23: 3.69896294 | CW23: 3.705621073 | CX23: 3.729337048 | CY23: 3.749848402 | CZ23: 3.759598008 | DA23: 3.775764279 | DB23: 3.792755219 | DC23: 3.816649577 | DD23: 3.843747789 | DE23: 3.864504027 | DF23: 3.893101356 | DG23: 3.928917889 | DH23: 3.949348262 | DI23: 3.973044351 | DJ23: 3.996485313 | DK23: 4.010473012 | DL23: 4.021702336 | DM23: 4.016474123 | DN23: 4.022900482 | DO23: 4.033762313 | DP23: 4.058368263 | DQ23: 4.080283452 | DR23: 4.109661493 | DS23: 4.13555236 | DT23: 4.162019895 | DU23: 4.196148458 | DV23: 4.228878416 | DW23: 4.254251687 | DX23: 4.265312741 | DY23: 4.270857648 | DZ23: 4.278545191 | EA23: 4.299510063 | EB23: 4.315848201 | EC23: 4.338722197 | ED23: 4.365622274 | EE23: 4.430233484 | EF23: 4.481624192 | EG23: 4.549296718 | EH23: 4.581596724 | EI23: 4.626954532 | EJ23: 4.662582082 | EK23: 4.689625058 | EL23: 4.70134912 | EM23: 4.725326001 | EN23: 4.761711011 | EO23: 4.814566003 | EP23: 4.857897097 | EQ23: 4.931251344 | ER23: 4.978098231 | ES23: 5.000001864 | ET23: 5.032001876 | EU23: 5.081315494 | EV23: 5.105197677 | EW23: 5.137870942 | EX23: 5.153798342 | EY23: 5.15792138 | EZ23: 5.166689847 | FA23: 5.17030653 | FB23: 5.177544959 | FC23: 5.199290648 | FD23: 5.211768945 | FE23: 5.228446606 | FF23: 5.232629363 | FG23: 5.251466829 | FH23: 5.244613665 | FI23: 5.253529508 | FJ23: 5.251953449 | FK23: 5.251953449 | FL23: 5.251953449 | FM23: 5.251953449 | FN23: 5.251953449 | FO23: 5.251953449 | FP23: 5.251953449 | FQ23: 5.251953449 | FR23: 5.251953449 | FS23: 5.251953449 | FT23: 5.251953449 | FU23: 5.251953449 | FV23: 5.251953449 | FW23: 5.251953449 | FX23: 5.251953449 | FY23: 5.251953449 | FZ23: 5.251953449 | GA23: 5.251953449 | GB23: 5.251953449 | GC23: 5.251953449 | GD23: 5.251953449 | GE23: 5.251953449 | GF23: 5.251953449 | GG23: 5.251953449 | GH23: 5.251953449 | GI23: 5.251953449 | GJ23: 5.251953449 | GK23: 5.251953449 | GL23: 5.251953449 | GM23: 5.251953449 | GN23: 5.251953449 | GO23: 5.251953449 | GP23: 5.251953449 | GQ23: 5.251953449 | GR23: 5.251953449 | GS23: 5.251953449 | GT23: 5.251953449 | GU23: 5.251953449 | GV23: 5.251953449 | GW23: 5.251953449 | GX23: 5.251953449 | GY23: 5.251953449 | GZ23: 5.251953449 | HA23: 5.251953449 | HB23: 5.251953449 | HC23: 5.251953449 | HD23: 5.251953449 | HE23: 5.251953449 | HF23: 5.251953449 | HG23: 5.251953449 | HH23: 5.251953449 | HI23: 5.251953449 | HJ23: 5.251953449 | HK23: 5.251953449 | HL23: 5.251953449 | HM23: 5.251953449 | HN23: 5.251953449 | HO23: 5.251953449 | HP23: 5.251953449 | HQ23: 5.251953449 | HR23: 5.251953449 | HS23: 5.251953449 | HT23: 5.251953449 | HU23: 5.251953449 | HV23: 5.251953449 | HW23: 5.251953449 | HX23: 5.251953449 | HY23: 5.251953449 | HZ23: 5.251953449 | IA23: 5.251953449 | IB23: 5.251953449 | IC23: 5.251953449 | ID23: 5.251953449 | IE23: 5.251953449 | IF23: 5.251953449 | IG23: 5.251953449 | IH23: 5.251953449 | II23: 5.251953449 | IJ23: 5.251953449 | IK23: 5.251953449 | IL23: 5.251953449 | IM23: 5.251953449 | IN23: 5.251953449 | IO23: 5.251953449 | IP23: 5.251953449 | IQ23: 5.251953449 | IR23: 5.251953449 | IS23: 5.251953449 | IT23: 5.251953449 | IU23: 5.251953449 | IV23: 5.251953449 | IW23: 5.251953449 | IX23: 5.251953449 | IY23: 5.251953449
B24: 1996-01-01 | C24: 2.408745 | D24: 2.418139106 | E24: 2.431922498 | F24: 2.441893381 | G24: 2.451660954 | H24: 2.463919259 | I24: 2.48190587 | J24: 2.494315399 | K24: 2.498555735 | L24: 2.50280328 | M24: 2.513815614 | N24: 2.535434429 | O24: 2.549886405 | P24: 2.561105905 | Q24: 2.579801978 | R24: 2.603278176 | S24: 2.621501123 | T24: 2.618617472 | U24: 2.619403057 | V24: 2.619403057 | W24: 2.623332162 | X24: 2.638547488 | Y24: 2.652795645 | Z24: 2.663406827 | AA24: 2.673527773 | AB24: 2.679676887 | AC24: 2.686912015 | AD24: 2.690136309 | AE24: 2.693633486 | AF24: 2.691747943 | AG24: 2.694708866 | AH24: 2.694169924 | AI24: 2.698480596 | AJ24: 2.710084062 | AK24: 2.721466415 | AL24: 2.738339507 | AM24: 2.751757371 | AN24: 2.763314752 | AO24: 2.775473337 | AP24: 2.782689567 | AQ24: 2.78992456 | AR24: 2.798573326 | AS24: 2.807528761 | AT24: 2.824093181 | AU24: 2.831153414 | AV24: 2.839646874 | AW24: 2.851857355 | AX24: 2.879520372 | AY24: 2.899389062 | AZ24: 2.914175947 | BA24: 2.929038244 | BB24: 2.947784089 | BC24: 2.976082816 | BD24: 3.00316517 | BE24: 3.020583528 | BF24: 3.026926753 | BG24: 3.031467143 | BH24: 3.046624479 | BI24: 3.058201652 | BJ24: 3.067070437 | BK24: 3.086699687 | BL24: 3.096268456 | BM24: 3.102460993 | BN24: 3.119524529 | BO24: 3.138241676 | BP24: 3.151422291 | BQ24: 3.158670562 | BR24: 3.161197499 | BS24: 3.166255415 | BT24: 3.173854428 | BU24: 3.185597689 | BV24: 3.193243124 | BW24: 3.221343663 | BX24: 3.243893069 | BY24: 3.26692471 | BZ24: 3.29077326 | CA24: 3.304923585 | CB24: 3.301288169 | CC24: 3.298977267 | CD24: 3.296667983 | CE24: 3.31446999 | CF24: 3.344963114 | CG24: 3.379416234 | CH24: 3.399692732 | CI24: 3.431649843 | CJ24: 3.450180752 | CK24: 3.472951945 | CL24: 3.497957199 | CM24: 3.517895556 | CN24: 3.525634926 | CO24: 3.525634926 | CP24: 3.540442592 | CQ24: 3.556374584 | CR24: 3.567754983 | CS24: 3.588091186 | CT24: 3.606390451 | CU24: 3.624783043 | CV24: 3.638919696 | CW24: 3.645469752 | CX24: 3.668800758 | CY24: 3.688979162 | CZ24: 3.698570508 | DA24: 3.714474361 | DB24: 3.731189496 | DC24: 3.75469599 | DD24: 3.781354331 | DE24: 3.801773645 | DF24: 3.82990677 | DG24: 3.865141912 | DH24: 3.88524065 | DI24: 3.908552094 | DJ24: 3.931612551 | DK24: 3.945373195 | DL24: 3.95642024 | DM24: 3.951276894 | DN24: 3.957598937 | DO24: 3.968284454 | DP24: 3.992490989 | DQ24: 4.01405044 | DR24: 4.042951604 | DS24: 4.068422199 | DT24: 4.094460101 | DU24: 4.128034674 | DV24: 4.160233344 | DW24: 4.185194744 | DX24: 4.19607625 | DY24: 4.20153115 | DZ24: 4.209093906 | EA24: 4.229718466 | EB24: 4.245791396 | EC24: 4.26829409 | ED24: 4.294757514 | EE24: 4.358319925 | EF24: 4.408876436 | EG24: 4.47545047 | EH24: 4.507226169 | EI24: 4.551847708 | EJ24: 4.586896935 | EK24: 4.613500937 | EL24: 4.62503469 | EM24: 4.648622367 | EN24: 4.684416759 | EO24: 4.736413785 | EP24: 4.779041509 | EQ24: 4.851205036 | ER24: 4.897291483 | ES24: 4.918839566 | ET24: 4.950320139 | EU24: 4.998833277 | EV24: 5.022327793 | EW24: 5.054470691 | EX24: 5.07013955 | EY24: 5.074195662 | EZ24: 5.082821794 | FA24: 5.086379769 | FB24: 5.093500701 | FC24: 5.114893404 | FD24: 5.127169148 | FE24: 5.14357609 | FF24: 5.14769095 | FG24: 5.166222638 | FH24: 5.159480717 | FI24: 5.168251835 | FJ24: 5.166701359 | FK24: 5.166701359 | FL24: 5.166701359 | FM24: 5.166701359 | FN24: 5.166701359 | FO24: 5.166701359 | FP24: 5.166701359 | FQ24: 5.166701359 | FR24: 5.166701359 | FS24: 5.166701359 | FT24: 5.166701359 | FU24: 5.166701359 | FV24: 5.166701359 | FW24: 5.166701359 | FX24: 5.166701359 | FY24: 5.166701359 | FZ24: 5.166701359 | GA24: 5.166701359 | GB24: 5.166701359 | GC24: 5.166701359 | GD24: 5.166701359 | GE24: 5.166701359 | GF24: 5.166701359 | GG24: 5.166701359 | GH24: 5.166701359 | GI24: 5.166701359 | GJ24: 5.166701359 | GK24: 5.166701359 | GL24: 5.166701359 | GM24: 5.166701359 | GN24: 5.166701359 | GO24: 5.166701359 | GP24: 5.166701359 | GQ24: 5.166701359 | GR24: 5.166701359 | GS24: 5.166701359 | GT24: 5.166701359 | GU24: 5.166701359 | GV24: 5.166701359 | GW24: 5.166701359 | GX24: 5.166701359 | GY24: 5.166701359 | GZ24: 5.166701359 | HA24: 5.166701359 | HB24: 5.166701359 | HC24: 5.166701359 | HD24: 5.166701359 | HE24: 5.166701359 | HF24: 5.166701359 | HG24: 5.166701359 | HH24: 5.166701359 | HI24: 5.166701359 | HJ24: 5.166701359 | HK24: 5.166701359 | HL24: 5.166701359 | HM24: 5.166701359 | HN24: 5.166701359 | HO24: 5.166701359 | HP24: 5.166701359 | HQ24: 5.166701359 | HR24: 5.166701359 | HS24: 5.166701359 | HT24: 5.166701359 | HU24: 5.166701359 | HV24: 5.166701359 | HW24: 5.166701359 | HX24: 5.166701359 | HY24: 5.166701359 | HZ24: 5.166701359 | IA24: 5.166701359 | IB24: 5.166701359 | IC24: 5.166701359 | ID24: 5.166701359 | IE24: 5.166701359 | IF24: 5.166701359 | IG24: 5.166701359 | IH24: 5.166701359 | II24: 5.166701359 | IJ24: 5.166701359 | IK24: 5.166701359 | IL24: 5.166701359 | IM24: 5.166701359 | IN24: 5.166701359 | IO24: 5.166701359 | IP24: 5.166701359 | IQ24: 5.166701359 | IR24: 5.166701359 | IS24: 5.166701359 | IT24: 5.166701359 | IU24: 5.166701359 | IV24: 5.166701359 | IW24: 5.166701359 | IX24: 5.166701359 | IY24: 5.166701359
B25: 1996-02-01 | C25: 2.374084 | D25: 2.383342928 | E25: 2.396927982 | F25: 2.406755387 | G25: 2.416382409 | H25: 2.428464321 | I25: 2.44619211 | J25: 2.458423071 | K25: 2.46260239 | L25: 2.466788814 | M25: 2.477642685 | N25: 2.498950412 | O25: 2.513194429 | P25: 2.524252485 | Q25: 2.542679528 | R25: 2.565817912 | S25: 2.583778637 | T25: 2.58093648 | U25: 2.581710761 | V25: 2.581710761 | W25: 2.585583327 | X25: 2.600579711 | Y25: 2.614622841 | Z25: 2.625081333 | AA25: 2.635056642 | AB25: 2.641117272 | AC25: 2.648248289 | AD25: 2.651426187 | AE25: 2.654873041 | AF25: 2.653014629 | AG25: 2.655932946 | AH25: 2.655401759 | AI25: 2.659650402 | AJ25: 2.671086898 | AK25: 2.682305463 | AL25: 2.698935757 | AM25: 2.712160543 | AN25: 2.723551617 | AO25: 2.735535244 | AP25: 2.742647636 | AQ25: 2.749778519 | AR25: 2.758302833 | AS25: 2.767129402 | AT25: 2.783455465 | AU25: 2.790414104 | AV25: 2.798785346 | AW25: 2.810820123 | AX25: 2.838085079 | AY25: 2.857667866 | AZ25: 2.872241972 | BA25: 2.886890406 | BB25: 2.905366504 | BC25: 2.933258023 | BD25: 2.959950671 | BE25: 2.977118385 | BF25: 2.983370333 | BG25: 2.987845389 | BH25: 3.002784616 | BI25: 3.014195197 | BJ25: 3.022936363 | BK25: 3.042283156 | BL25: 3.051714234 | BM25: 3.057817662 | BN25: 3.074635659 | BO25: 3.093083473 | BP25: 3.106074424 | BQ25: 3.113218395 | BR25: 3.11570897 | BS25: 3.120694104 | BT25: 3.12818377 | BU25: 3.13975805 | BV25: 3.147293469 | BW25: 3.174989652 | BX25: 3.197214579 | BY25: 3.219914803 | BZ25: 3.243420181 | CA25: 3.257366888 | CB25: 3.253783784 | CC25: 3.251506136 | CD25: 3.249230081 | CE25: 3.266775924 | CF25: 3.296830262 | CG25: 3.330787614 | CH25: 3.35077234 | CI25: 3.3822696 | CJ25: 3.400533855 | CK25: 3.422977379 | CL25: 3.447622816 | CM25: 3.467274266 | CN25: 3.474902269 | CO25: 3.474902269 | CP25: 3.489496859 | CQ25: 3.505199595 | CR25: 3.516416234 | CS25: 3.536459806 | CT25: 3.554495751 | CU25: 3.572623679 | CV25: 3.586556912 | CW25: 3.593012714 | CX25: 3.616007996 | CY25: 3.63589604 | CZ25: 3.645349369 | DA25: 3.661024372 | DB25: 3.677498981 | DC25: 3.700667225 | DD25: 3.726941962 | DE25: 3.747067449 | DF25: 3.774795748 | DG25: 3.809523869 | DH25: 3.829333393 | DI25: 3.852309393 | DJ25: 3.875038019 | DK25: 3.888600652 | DL25: 3.899488733 | DM25: 3.894419398 | DN25: 3.900650469 | DO25: 3.911182225 | DP25: 3.935040437 | DQ25: 3.956289655 | DR25: 3.984774941 | DS25: 4.009879023 | DT25: 4.035542249 | DU25: 4.068633695 | DV25: 4.100369038 | DW25: 4.124971252 | DX25: 4.135696178 | DY25: 4.141072583 | DZ25: 4.148526513 | EA25: 4.168854293 | EB25: 4.184695939 | EC25: 4.206874828 | ED25: 4.232957452 | EE25: 4.295605222 | EF25: 4.345434243 | EG25: 4.4110503 | EH25: 4.442368757 | EI25: 4.486348208 | EJ25: 4.520893089 | EK25: 4.547114269 | EL25: 4.558482054 | EM25: 4.581730313 | EN25: 4.617009636 | EO25: 4.668258443 | EP25: 4.710272769 | EQ25: 4.781397888 | ER25: 4.826821168 | ES25: 4.848059181 | ET25: 4.87908676 | EU25: 4.92690181 | EV25: 4.950058249 | EW25: 4.981738621 | EX25: 4.997182011 | EY25: 5.001179757 | EZ25: 5.009681762 | FA25: 5.01318854 | FB25: 5.020207003 | FC25: 5.041291873 | FD25: 5.053390973 | FE25: 5.069561825 | FF25: 5.073617474 | FG25: 5.091882497 | FH25: 5.08523759 | FI25: 5.093882494 | FJ25: 5.092354329 | FK25: 5.092354329 | FL25: 5.092354329 | FM25: 5.092354329 | FN25: 5.092354329 | FO25: 5.092354329 | FP25: 5.092354329 | FQ25: 5.092354329 | FR25: 5.092354329 | FS25: 5.092354329 | FT25: 5.092354329 | FU25: 5.092354329 | FV25: 5.092354329 | FW25: 5.092354329 | FX25: 5.092354329 | FY25: 5.092354329 | FZ25: 5.092354329 | GA25: 5.092354329 | GB25: 5.092354329 | GC25: 5.092354329 | GD25: 5.092354329 | GE25: 5.092354329 | GF25: 5.092354329 | GG25: 5.092354329 | GH25: 5.092354329 | GI25: 5.092354329 | GJ25: 5.092354329 | GK25: 5.092354329 | GL25: 5.092354329 | GM25: 5.092354329 | GN25: 5.092354329 | GO25: 5.092354329 | GP25: 5.092354329 | GQ25: 5.092354329 | GR25: 5.092354329 | GS25: 5.092354329 | GT25: 5.092354329 | GU25: 5.092354329 | GV25: 5.092354329 | GW25: 5.092354329 | GX25: 5.092354329 | GY25: 5.092354329 | GZ25: 5.092354329 | HA25: 5.092354329 | HB25: 5.092354329 | HC25: 5.092354329 | HD25: 5.092354329 | HE25: 5.092354329 | HF25: 5.092354329 | HG25: 5.092354329 | HH25: 5.092354329 | HI25: 5.092354329 | HJ25: 5.092354329 | HK25: 5.092354329 | HL25: 5.092354329 | HM25: 5.092354329 | HN25: 5.092354329 | HO25: 5.092354329 | HP25: 5.092354329 | HQ25: 5.092354329 | HR25: 5.092354329 | HS25: 5.092354329 | HT25: 5.092354329 | HU25: 5.092354329 | HV25: 5.092354329 | HW25: 5.092354329 | HX25: 5.092354329 | HY25: 5.092354329 | HZ25: 5.092354329 | IA25: 5.092354329 | IB25: 5.092354329 | IC25: 5.092354329 | ID25: 5.092354329 | IE25: 5.092354329 | IF25: 5.092354329 | IG25: 5.092354329 | IH25: 5.092354329 | II25: 5.092354329 | IJ25: 5.092354329 | IK25: 5.092354329 | IL25: 5.092354329 | IM25: 5.092354329 | IN25: 5.092354329 | IO25: 5.092354329 | IP25: 5.092354329 | IQ25: 5.092354329 | IR25: 5.092354329 | IS25: 5.092354329 | IT25: 5.092354329 | IU25: 5.092354329 | IV25: 5.092354329 | IW25: 5.092354329 | IX25: 5.092354329 | IY25: 5.092354329
B26: 1996-03-01 | C26: 2.357347 | D26: 2.366540653 | E26: 2.380029935 | F26: 2.389788058 | G26: 2.39934721 | H26: 2.411343946 | I26: 2.428946757 | J26: 2.441091491 | K26: 2.445241346 | L26: 2.449398256 | M26: 2.460175609 | N26: 2.481333119 | O26: 2.495476718 | P26: 2.506456815 | Q26: 2.52475395 | R26: 2.547729211 | S26: 2.565563316 | T26: 2.562741196 | U26: 2.563510018 | V26: 2.563510018 | W26: 2.567355283 | X26: 2.582245944 | Y26: 2.596190072 | Z26: 2.606574832 | AA26: 2.616479817 | AB26: 2.62249772 | AC26: 2.629578464 | AD26: 2.632733958 | AE26: 2.636156512 | AF26: 2.634311203 | AG26: 2.637208945 | AH26: 2.636681503 | AI26: 2.640900194 | AJ26: 2.652256065 | AK26: 2.66339554 | AL26: 2.679908592 | AM26: 2.693040145 | AN26: 2.704350913 | AO26: 2.716250057 | AP26: 2.723312307 | AQ26: 2.730392919 | AR26: 2.738857137 | AS26: 2.74762148 | AT26: 2.763832447 | AU26: 2.770742028 | AV26: 2.779054254 | AW26: 2.791004187 | AX26: 2.818076928 | AY26: 2.837521659 | AZ26: 2.851993019 | BA26: 2.866538184 | BB26: 2.884884028 | BC26: 2.912578915 | BD26: 2.939083383 | BE26: 2.956130066 | BF26: 2.96233794 | BG26: 2.966781447 | BH26: 2.981615354 | BI26: 2.992945492 | BJ26: 3.001625034 | BK26: 3.020835434 | BL26: 3.030200024 | BM26: 3.036260424 | BN26: 3.052959856 | BO26: 3.071277616 | BP26: 3.084176982 | BQ26: 3.091270589 | BR26: 3.093743605 | BS26: 3.098693595 | BT26: 3.10613046 | BU26: 3.117623142 | BV26: 3.125105438 | BW26: 3.152606366 | BX26: 3.17467461 | BY26: 3.1972148 | BZ26: 3.220554468 | CA26: 3.234402852 | CB26: 3.230845009 | CC26: 3.228583418 | CD26: 3.226323409 | CE26: 3.243745556 | CF26: 3.273588015 | CG26: 3.307305971 | CH26: 3.327149807 | CI26: 3.358425015 | CJ26: 3.37656051 | CK26: 3.39884581 | CL26: 3.423317499 | CM26: 3.442830409 | CN26: 3.450404636 | CO26: 3.450404636 | CP26: 3.464896336 | CQ26: 3.480488369 | CR26: 3.491625932 | CS26: 3.5115282 | CT26: 3.529436994 | CU26: 3.547437122 | CV26: 3.561272127 | CW26: 3.567682417 | CX26: 3.590515584 | CY26: 3.61026342 | CZ26: 3.619650105 | DA26: 3.6352146 | DB26: 3.651573066 | DC26: 3.674577976 | DD26: 3.70066748 | DE26: 3.720651084 | DF26: 3.748183902 | DG26: 3.782667194 | DH26: 3.802337064 | DI26: 3.825151086 | DJ26: 3.847719477 | DK26: 3.861186496 | DL26: 3.871997818 | DM26: 3.866964221 | DN26: 3.873151363 | DO26: 3.883608872 | DP26: 3.907298886 | DQ26: 3.9283983 | DR26: 3.956682768 | DS26: 3.981609869 | DT26: 4.007092173 | DU26: 4.039950328 | DV26: 4.071461941 | DW26: 4.095890713 | DX26: 4.106540028 | DY26: 4.111878531 | DZ26: 4.119279912 | EA26: 4.139464383 | EB26: 4.155194348 | EC26: 4.177216878 | ED26: 4.203115623 | EE26: 4.265321734 | EF26: 4.314799466 | EG26: 4.379952938 | EH26: 4.411050604 | EI26: 4.454720005 | EJ26: 4.489021349 | EK26: 4.515057673 | EL26: 4.526345317 | EM26: 4.549429678 | EN26: 4.584460287 | EO26: 4.635347796 | EP26: 4.677065926 | EQ26: 4.747689621 | ER26: 4.792792673 | ES26: 4.813880961 | ET26: 4.844689799 | EU26: 4.892167759 | EV26: 4.915160947 | EW26: 4.946617977 | EX26: 4.961952493 | EY26: 4.965922055 | EZ26: 4.974364122 | FA26: 4.977846177 | FB26: 4.984815162 | FC26: 5.005751386 | FD26: 5.017765189 | FE26: 5.033822038 | FF26: 5.037849095 | FG26: 5.055985352 | FH26: 5.049387291 | FI26: 5.05797125 | FJ26: 5.056453858 | FK26: 5.056453858 | FL26: 5.056453858 | FM26: 5.056453858 | FN26: 5.056453858 | FO26: 5.056453858 | FP26: 5.056453858 | FQ26: 5.056453858 | FR26: 5.056453858 | FS26: 5.056453858 | FT26: 5.056453858 | FU26: 5.056453858 | FV26: 5.056453858 | FW26: 5.056453858 | FX26: 5.056453858 | FY26: 5.056453858 | FZ26: 5.056453858 | GA26: 5.056453858 | GB26: 5.056453858 | GC26: 5.056453858 | GD26: 5.056453858 | GE26: 5.056453858 | GF26: 5.056453858 | GG26: 5.056453858 | GH26: 5.056453858 | GI26: 5.056453858 | GJ26: 5.056453858 | GK26: 5.056453858 | GL26: 5.056453858 | GM26: 5.056453858 | GN26: 5.056453858 | GO26: 5.056453858 | GP26: 5.056453858 | GQ26: 5.056453858 | GR26: 5.056453858 | GS26: 5.056453858 | GT26: 5.056453858 | GU26: 5.056453858 | GV26: 5.056453858 | GW26: 5.056453858 | GX26: 5.056453858 | GY26: 5.056453858 | GZ26: 5.056453858 | HA26: 5.056453858 | HB26: 5.056453858 | HC26: 5.056453858 | HD26: 5.056453858 | HE26: 5.056453858 | HF26: 5.056453858 | HG26: 5.056453858 | HH26: 5.056453858 | HI26: 5.056453858 | HJ26: 5.056453858 | HK26: 5.056453858 | HL26: 5.056453858 | HM26: 5.056453858 | HN26: 5.056453858 | HO26: 5.056453858 | HP26: 5.056453858 | HQ26: 5.056453858 | HR26: 5.056453858 | HS26: 5.056453858 | HT26: 5.056453858 | HU26: 5.056453858 | HV26: 5.056453858 | HW26: 5.056453858 | HX26: 5.056453858 | HY26: 5.056453858 | HZ26: 5.056453858 | IA26: 5.056453858 | IB26: 5.056453858 | IC26: 5.056453858 | ID26: 5.056453858 | IE26: 5.056453858 | IF26: 5.056453858 | IG26: 5.056453858 | IH26: 5.056453858 | II26: 5.056453858 | IJ26: 5.056453858 | IK26: 5.056453858 | IL26: 5.056453858 | IM26: 5.056453858 | IN26: 5.056453858 | IO26: 5.056453858 | IP26: 5.056453858 | IQ26: 5.056453858 | IR26: 5.056453858 | IS26: 5.056453858 | IT26: 5.056453858 | IU26: 5.056453858 | IV26: 5.056453858 | IW26: 5.056453858 | IX26: 5.056453858 | IY26: 5.056453858
B27: 1996-04-01 | C27: 2.35053 | D27: 2.359697067 | E27: 2.37314734 | F27: 2.382877244 | G27: 2.392408753 | H27: 2.404370797 | I27: 2.421922704 | J27: 2.434032317 | K27: 2.438170172 | L27: 2.442315062 | M27: 2.453061248 | N27: 2.474157575 | O27: 2.488260273 | P27: 2.499208618 | Q27: 2.517452841 | R27: 2.540361662 | S27: 2.558144193 | T27: 2.555330235 | U27: 2.556096834 | V27: 2.556096834 | W27: 2.559930979 | X27: 2.574778579 | Y27: 2.588682383 | Z27: 2.599037113 | AA27: 2.608913454 | AB27: 2.614913955 | AC27: 2.621974222 | AD27: 2.625120591 | AE27: 2.628533248 | AF27: 2.626693275 | AG27: 2.629582638 | AH27: 2.629056721 | AI27: 2.633263212 | AJ27: 2.644586244 | AK27: 2.655693506 | AL27: 2.672158806 | AM27: 2.685252384 | AN27: 2.696530444 | AO27: 2.708395178 | AP27: 2.715437005 | AQ27: 2.722497141 | AR27: 2.730936882 | AS27: 2.73967588 | AT27: 2.755839968 | AU27: 2.762729568 | AV27: 2.771017757 | AW27: 2.782933133 | AX27: 2.809927585 | AY27: 2.829316085 | AZ27: 2.843745597 | BA27: 2.858248699 | BB27: 2.876541491 | BC27: 2.904156289 | BD27: 2.930584112 | BE27: 2.9475815 | BF27: 2.953771421 | BG27: 2.958202078 | BH27: 2.972993088 | BI27: 2.984290462 | BJ27: 2.992944904 | BK27: 3.012099752 | BL27: 3.021437261 | BM27: 3.027480135 | BN27: 3.044131276 | BO27: 3.062396064 | BP27: 3.075258127 | BQ27: 3.082331221 | BR27: 3.084797086 | BS27: 3.089732761 | BT27: 3.09714812 | BU27: 3.108607568 | BV27: 3.116068226 | BW27: 3.143489627 | BX27: 3.165494054 | BY27: 3.187969062 | BZ27: 3.211241236 | CA27: 3.225049573 | CB27: 3.221502019 | CC27: 3.219246967 | CD27: 3.216993494 | CE27: 3.234365259 | CF27: 3.26412142 | CG27: 3.29774187 | CH27: 3.317528321 | CI27: 3.348713088 | CJ27: 3.366796138 | CK27: 3.389016993 | CL27: 3.413417915 | CM27: 3.432874397 | CN27: 3.440426721 | CO27: 3.440426721 | CP27: 3.454876513 | CQ27: 3.470423457 | CR27: 3.481528813 | CS27: 3.501373527 | CT27: 3.519230532 | CU27: 3.537178607 | CV27: 3.550973604 | CW27: 3.557365357 | CX27: 3.580132495 | CY27: 3.599823224 | CZ27: 3.609182764 | DA27: 3.62470225 | DB27: 3.64101341 | DC27: 3.663951794 | DD27: 3.689965852 | DE27: 3.709891668 | DF27: 3.737344866 | DG27: 3.771728439 | DH27: 3.791341427 | DI27: 3.814089475 | DJ27: 3.836592603 | DK27: 3.850020677 | DL27: 3.860800735 | DM27: 3.855781694 | DN27: 3.861950945 | DO27: 3.872378213 | DP27: 3.89599972 | DQ27: 3.917038118 | DR27: 3.945240793 | DS27: 3.97009581 | DT27: 3.995504423 | DU27: 4.028267559 | DV27: 4.059688046 | DW27: 4.084046174 | DX27: 4.094664694 | DY27: 4.099987758 | DZ27: 4.107367736 | EA27: 4.127493838 | EB27: 4.143178315 | EC27: 4.16513716 | ED27: 4.19096101 | EE27: 4.252987233 | EF27: 4.302321885 | EG27: 4.367286946 | EH27: 4.398294683 | EI27: 4.4418378 | EJ27: 4.476039951 | EK27: 4.502000983 | EL27: 4.513255986 | EM27: 4.536273591 | EN27: 4.571202898 | EO27: 4.62194325 | EP27: 4.663540739 | EQ27: 4.733960204 | ER27: 4.778932826 | ES27: 4.799960131 | ET27: 4.830679876 | EU27: 4.878020538 | EV27: 4.900947235 | EW27: 4.932313297 | EX27: 4.947603468 | EY27: 4.951561551 | EZ27: 4.959979206 | FA27: 4.963451191 | FB27: 4.970400023 | FC27: 4.991275703 | FD27: 5.003254765 | FE27: 5.01926518 | FF27: 5.023280592 | FG27: 5.041364402 | FH27: 5.034785422 | FI27: 5.043344557 | FJ27: 5.041831553 | FK27: 5.041831553 | FL27: 5.041831553 | FM27: 5.041831553 | FN27: 5.041831553 | FO27: 5.041831553 | FP27: 5.041831553 | FQ27: 5.041831553 | FR27: 5.041831553 | FS27: 5.041831553 | FT27: 5.041831553 | FU27: 5.041831553 | FV27: 5.041831553 | FW27: 5.041831553 | FX27: 5.041831553 | FY27: 5.041831553 | FZ27: 5.041831553 | GA27: 5.041831553 | GB27: 5.041831553 | GC27: 5.041831553 | GD27: 5.041831553 | GE27: 5.041831553 | GF27: 5.041831553 | GG27: 5.041831553 | GH27: 5.041831553 | GI27: 5.041831553 | GJ27: 5.041831553 | GK27: 5.041831553 | GL27: 5.041831553 | GM27: 5.041831553 | GN27: 5.041831553 | GO27: 5.041831553 | GP27: 5.041831553 | GQ27: 5.041831553 | GR27: 5.041831553 | GS27: 5.041831553 | GT27: 5.041831553 | GU27: 5.041831553 | GV27: 5.041831553 | GW27: 5.041831553 | GX27: 5.041831553 | GY27: 5.041831553 | GZ27: 5.041831553 | HA27: 5.041831553 | HB27: 5.041831553 | HC27: 5.041831553 | HD27: 5.041831553 | HE27: 5.041831553 | HF27: 5.041831553 | HG27: 5.041831553 | HH27: 5.041831553 | HI27: 5.041831553 | HJ27: 5.041831553 | HK27: 5.041831553 | HL27: 5.041831553 | HM27: 5.041831553 | HN27: 5.041831553 | HO27: 5.041831553 | HP27: 5.041831553 | HQ27: 5.041831553 | HR27: 5.041831553 | HS27: 5.041831553 | HT27: 5.041831553 | HU27: 5.041831553 | HV27: 5.041831553 | HW27: 5.041831553 | HX27: 5.041831553 | HY27: 5.041831553 | HZ27: 5.041831553 | IA27: 5.041831553 | IB27: 5.041831553 | IC27: 5.041831553 | ID27: 5.041831553 | IE27: 5.041831553 | IF27: 5.041831553 | IG27: 5.041831553 | IH27: 5.041831553 | II27: 5.041831553 | IJ27: 5.041831553 | IK27: 5.041831553 | IL27: 5.041831553 | IM27: 5.041831553 | IN27: 5.041831553 | IO27: 5.041831553 | IP27: 5.041831553 | IQ27: 5.041831553 | IR27: 5.041831553 | IS27: 5.041831553 | IT27: 5.041831553 | IU27: 5.041831553 | IV27: 5.041831553 | IW27: 5.041831553 | IX27: 5.041831553 | IY27: 5.041831553
B28: 1996-05-01 | C28: 2.334191 | D28: 2.343294345 | E28: 2.356651123 | F28: 2.366313392 | G28: 2.375778646 | H28: 2.387657539 | I28: 2.405087439 | J28: 2.417112876 | K28: 2.421221968 | L28: 2.425338046 | M28: 2.436009533 | N28: 2.456959215 | O28: 2.470963882 | P28: 2.481836124 | Q28: 2.499953527 | R28: 2.522703104 | S28: 2.540362026 | T28: 2.537567628 | U28: 2.538328898 | V28: 2.538328898 | W28: 2.542136391 | X28: 2.556880783 | Y28: 2.570687939 | Z28: 2.580970691 | AA28: 2.590778379 | AB28: 2.596737169 | AC28: 2.60374836 | AD28: 2.606872858 | AE28: 2.610261793 | AF28: 2.608434609 | AG28: 2.611303887 | AH28: 2.610781627 | AI28: 2.614958877 | AJ28: 2.6262032 | AK28: 2.637233254 | AL28: 2.6535841 | AM28: 2.666586662 | AN28: 2.677786326 | AO28: 2.689568586 | AP28: 2.696561464 | AQ28: 2.703572524 | AR28: 2.711953599 | AS28: 2.72063185 | AT28: 2.736683578 | AU28: 2.743525287 | AV28: 2.751755863 | AW28: 2.763588413 | AX28: 2.790395221 | AY28: 2.809648948 | AZ28: 2.823978158 | BA28: 2.838380446 | BB28: 2.856546081 | BC28: 2.883968923 | BD28: 2.910213041 | BE28: 2.927092276 | BF28: 2.93323917 | BG28: 2.937639029 | BH28: 2.952327224 | BI28: 2.963546067 | BJ28: 2.972140351 | BK28: 2.991162049 | BL28: 3.000434652 | BM28: 3.006435521 | BN28: 3.022970916 | BO28: 3.041108742 | BP28: 3.053881398 | BQ28: 3.060905326 | BR28: 3.06335405 | BS28: 3.068255416 | BT28: 3.075619229 | BU28: 3.08699902 | BV28: 3.094407818 | BW28: 3.121638607 | BX28: 3.143490077 | BY28: 3.165808857 | BZ28: 3.188919261 | CA28: 3.202631614 | CB28: 3.199108719 | CC28: 3.196869343 | CD28: 3.194631535 | CE28: 3.211882545 | CF28: 3.241431865 | CG28: 3.274818613 | CH28: 3.294467524 | CI28: 3.325435519 | CJ28: 3.343392871 | CK28: 3.365459264 | CL28: 3.389690571 | CM28: 3.409011807 | CN28: 3.416511633 | CO28: 3.416511633 | CP28: 3.430860982 | CQ28: 3.446299856 | CR28: 3.457328016 | CS28: 3.477034785 | CT28: 3.494767663 | CU28: 3.512590978 | CV28: 3.526290083 | CW28: 3.532637405 | CX28: 3.555246284 | CY28: 3.574800139 | CZ28: 3.584094619 | DA28: 3.599506226 | DB28: 3.615704004 | DC28: 3.638482939 | DD28: 3.664316168 | DE28: 3.684103475 | DF28: 3.711365841 | DG28: 3.745510407 | DH28: 3.764987061 | DI28: 3.787576983 | DJ28: 3.809923687 | DK28: 3.82325842 | DL28: 3.833963544 | DM28: 3.828979391 | DN28: 3.835105758 | DO28: 3.845460544 | DP28: 3.868917853 | DQ28: 3.88981001 | DR28: 3.917816642 | DS28: 3.942498887 | DT28: 3.967730879 | DU28: 4.000266273 | DV28: 4.03146835 | DW28: 4.05565716 | DX28: 4.066201868 | DY28: 4.071487931 | DZ28: 4.078816609 | EA28: 4.09880281 | EB28: 4.114378261 | EC28: 4.136184466 | ED28: 4.16182881 | EE28: 4.223423876 | EF28: 4.272415593 | EG28: 4.336929068 | EH28: 4.367721265 | EI28: 4.410961705 | EJ28: 4.44492611 | EK28: 4.470706682 | EL28: 4.481883448 | EM28: 4.504741054 | EN28: 4.53942756 | EO28: 4.589815206 | EP28: 4.631123543 | EQ28: 4.701053508 | ER28: 4.745713517 | ES28: 4.766594656 | ET28: 4.797100862 | EU28: 4.844112451 | EV28: 4.866879779 | EW28: 4.89802781 | EX28: 4.913211696 | EY28: 4.917142265 | EZ28: 4.925501407 | FA28: 4.928949258 | FB28: 4.935849787 | FC28: 4.956580356 | FD28: 4.968476149 | FE28: 4.984375273 | FF28: 4.988362773 | FG28: 5.006320879 | FH28: 4.99978763 | FI28: 5.008287269 | FJ28: 5.006784783 | FK28: 5.006784783 | FL28: 5.006784783 | FM28: 5.006784783 | FN28: 5.006784783 | FO28: 5.006784783 | FP28: 5.006784783 | FQ28: 5.006784783 | FR28: 5.006784783 | FS28: 5.006784783 | FT28: 5.006784783 | FU28: 5.006784783 | FV28: 5.006784783 | FW28: 5.006784783 | FX28: 5.006784783 | FY28: 5.006784783 | FZ28: 5.006784783 | GA28: 5.006784783 | GB28: 5.006784783 | GC28: 5.006784783 | GD28: 5.006784783 | GE28: 5.006784783 | GF28: 5.006784783 | GG28: 5.006784783 | GH28: 5.006784783 | GI28: 5.006784783 | GJ28: 5.006784783 | GK28: 5.006784783 | GL28: 5.006784783 | GM28: 5.006784783 | GN28: 5.006784783 | GO28: 5.006784783 | GP28: 5.006784783 | GQ28: 5.006784783 | GR28: 5.006784783 | GS28: 5.006784783 | GT28: 5.006784783 | GU28: 5.006784783 | GV28: 5.006784783 | GW28: 5.006784783 | GX28: 5.006784783 | GY28: 5.006784783 | GZ28: 5.006784783 | HA28: 5.006784783 | HB28: 5.006784783 | HC28: 5.006784783 | HD28: 5.006784783 | HE28: 5.006784783 | HF28: 5.006784783 | HG28: 5.006784783 | HH28: 5.006784783 | HI28: 5.006784783 | HJ28: 5.006784783 | HK28: 5.006784783 | HL28: 5.006784783 | HM28: 5.006784783 | HN28: 5.006784783 | HO28: 5.006784783 | HP28: 5.006784783 | HQ28: 5.006784783 | HR28: 5.006784783 | HS28: 5.006784783 | HT28: 5.006784783 | HU28: 5.006784783 | HV28: 5.006784783 | HW28: 5.006784783 | HX28: 5.006784783 | HY28: 5.006784783 | HZ28: 5.006784783 | IA28: 5.006784783 | IB28: 5.006784783 | IC28: 5.006784783 | ID28: 5.006784783 | IE28: 5.006784783 | IF28: 5.006784783 | IG28: 5.006784783 | IH28: 5.006784783 | II28: 5.006784783 | IJ28: 5.006784783 | IK28: 5.006784783 | IL28: 5.006784783 | IM28: 5.006784783 | IN28: 5.006784783 | IO28: 5.006784783 | IP28: 5.006784783 | IQ28: 5.006784783 | IR28: 5.006784783 | IS28: 5.006784783 | IT28: 5.006784783 | IU28: 5.006784783 | IV28: 5.006784783 | IW28: 5.006784783 | IX28: 5.006784783 | IY28: 5.006784783
B29: 1996-06-01 | C29: 2.295624 | D29: 2.304576934 | E29: 2.317713022 | F29: 2.327215646 | G29: 2.336524508 | H29: 2.348207131 | I29: 2.365349043 | J29: 2.377175788 | K29: 2.381216987 | L29: 2.385265056 | M29: 2.395760222 | N29: 2.41636376 | O29: 2.430137033 | P29: 2.440829636 | Q29: 2.458647692 | R29: 2.481021386 | S29: 2.498388536 | T29: 2.495640309 | U29: 2.496389001 | V29: 2.496389001 | W29: 2.500133584 | X29: 2.514634359 | Y29: 2.528213385 | Z29: 2.538326238 | AA29: 2.547971878 | AB29: 2.553832213 | AC29: 2.56072756 | AD29: 2.563800433 | AE29: 2.567133374 | AF29: 2.565336381 | AG29: 2.568158251 | AH29: 2.567644619 | AI29: 2.57175285 | AJ29: 2.582811388 | AK29: 2.593659195 | AL29: 2.609739882 | AM29: 2.622527608 | AN29: 2.633542224 | AO29: 2.64512981 | AP29: 2.652007147 | AQ29: 2.658902366 | AR29: 2.667144963 | AS29: 2.675679827 | AT29: 2.691466338 | AU29: 2.698195004 | AV29: 2.706289589 | AW29: 2.717926634 | AX29: 2.744290522 | AY29: 2.763226127 | AZ29: 2.77731858 | BA29: 2.791482905 | BB29: 2.809348395 | BC29: 2.83631814 | BD29: 2.862128635 | BE29: 2.878728981 | BF29: 2.884774312 | BG29: 2.889101474 | BH29: 2.903546981 | BI29: 2.914580459 | BJ29: 2.923032743 | BK29: 2.941740152 | BL29: 2.950859547 | BM29: 2.956761266 | BN29: 2.973023453 | BO29: 2.990861594 | BP29: 3.003423212 | BQ29: 3.010331086 | BR29: 3.012739351 | BS29: 3.017559734 | BT29: 3.024801877 | BU29: 3.035993644 | BV29: 3.043280029 | BW29: 3.070060893 | BX29: 3.091551319 | BY29: 3.113501333 | BZ29: 3.136229893 | CA29: 3.149715682 | CB29: 3.146250994 | CC29: 3.144048619 | CD29: 3.141847785 | CE29: 3.158813763 | CF29: 3.187874849 | CG29: 3.22070996 | CH29: 3.24003422 | CI29: 3.270490542 | CJ29: 3.288151191 | CK29: 3.309852989 | CL29: 3.33368393 | CM29: 3.352685928 | CN29: 3.360061837 | CO29: 3.360061837 | CP29: 3.374174097 | CQ29: 3.389357881 | CR29: 3.400203826 | CS29: 3.419584988 | CT29: 3.437024871 | CU29: 3.454553698 | CV29: 3.468026457 | CW29: 3.474268905 | CX29: 3.496504226 | CY29: 3.515734999 | CZ29: 3.52487591 | DA29: 3.540032877 | DB29: 3.555963025 | DC29: 3.578365592 | DD29: 3.603771987 | DE29: 3.623232356 | DF29: 3.650044276 | DG29: 3.683624683 | DH29: 3.702779531 | DI29: 3.724996208 | DJ29: 3.746973686 | DK29: 3.760088094 | DL29: 3.770616341 | DM29: 3.765714539 | DN29: 3.771739683 | DO29: 3.78192338 | DP29: 3.804993112 | DQ29: 3.825540075 | DR29: 3.853083964 | DS29: 3.877358393 | DT29: 3.902173486 | DU29: 3.934171309 | DV29: 3.964857845 | DW29: 3.988646992 | DX29: 3.999017474 | DY29: 4.004216197 | DZ29: 4.011423786 | EA29: 4.031079763 | EB29: 4.046397866 | EC29: 4.067843775 | ED29: 4.093064406 | EE29: 4.153641759 | EF29: 4.201824004 | EG29: 4.265271546 | EH29: 4.295554974 | EI29: 4.338080968 | EJ29: 4.371484192 | EK29: 4.3968388 | EL29: 4.407830897 | EM29: 4.430310835 | EN29: 4.464424228 | EO29: 4.513979337 | EP29: 4.554605151 | EQ29: 4.623379689 | ER29: 4.667301796 | ES29: 4.687837924 | ET29: 4.717840087 | EU29: 4.764074919 | EV29: 4.786466071 | EW29: 4.817099454 | EX29: 4.832032463 | EY29: 4.835898089 | EZ29: 4.844119115 | FA29: 4.847509999 | FB29: 4.854296513 | FC29: 4.874684558 | FD29: 4.886383801 | FE29: 4.902020229 | FF29: 4.905941845 | FG29: 4.923603236 | FH29: 4.917177934 | FI29: 4.925537136 | FJ29: 4.924059475 | FK29: 4.924059475 | FL29: 4.924059475 | FM29: 4.924059475 | FN29: 4.924059475 | FO29: 4.924059475 | FP29: 4.924059475 | FQ29: 4.924059475 | FR29: 4.924059475 | FS29: 4.924059475 | FT29: 4.924059475 | FU29: 4.924059475 | FV29: 4.924059475 | FW29: 4.924059475 | FX29: 4.924059475 | FY29: 4.924059475 | FZ29: 4.924059475 | GA29: 4.924059475 | GB29: 4.924059475 | GC29: 4.924059475 | GD29: 4.924059475 | GE29: 4.924059475 | GF29: 4.924059475 | GG29: 4.924059475 | GH29: 4.924059475 | GI29: 4.924059475 | GJ29: 4.924059475 | GK29: 4.924059475 | GL29: 4.924059475 | GM29: 4.924059475 | GN29: 4.924059475 | GO29: 4.924059475 | GP29: 4.924059475 | GQ29: 4.924059475 | GR29: 4.924059475 | GS29: 4.924059475 | GT29: 4.924059475 | GU29: 4.924059475 | GV29: 4.924059475 | GW29: 4.924059475 | GX29: 4.924059475 | GY29: 4.924059475 | GZ29: 4.924059475 | HA29: 4.924059475 | HB29: 4.924059475 | HC29: 4.924059475 | HD29: 4.924059475 | HE29: 4.924059475 | HF29: 4.924059475 | HG29: 4.924059475 | HH29: 4.924059475 | HI29: 4.924059475 | HJ29: 4.924059475 | HK29: 4.924059475 | HL29: 4.924059475 | HM29: 4.924059475 | HN29: 4.924059475 | HO29: 4.924059475 | HP29: 4.924059475 | HQ29: 4.924059475 | HR29: 4.924059475 | HS29: 4.924059475 | HT29: 4.924059475 | HU29: 4.924059475 | HV29: 4.924059475 | HW29: 4.924059475 | HX29: 4.924059475 | HY29: 4.924059475 | HZ29: 4.924059475 | IA29: 4.924059475 | IB29: 4.924059475 | IC29: 4.924059475 | ID29: 4.924059475 | IE29: 4.924059475 | IF29: 4.924059475 | IG29: 4.924059475 | IH29: 4.924059475 | II29: 4.924059475 | IJ29: 4.924059475 | IK29: 4.924059475 | IL29: 4.924059475 | IM29: 4.924059475 | IN29: 4.924059475 | IO29: 4.924059475 | IP29: 4.924059475 | IQ29: 4.924059475 | IR29: 4.924059475 | IS29: 4.924059475 | IT29: 4.924059475 | IU29: 4.924059475 | IV29: 4.924059475 | IW29: 4.924059475 | IX29: 4.924059475 | IY29: 4.924059475
B30: 1996-07-01 | C30: 2.267955 | D30: 2.276800025 | E30: 2.289777785 | F30: 2.299165874 | G30: 2.308362537 | H30: 2.31990435 | I30: 2.336839651 | J30: 2.34852385 | K30: 2.35251634 | L30: 2.356515618 | M30: 2.366884287 | N30: 2.387239492 | O30: 2.400846757 | P30: 2.411410482 | Q30: 2.429013779 | R30: 2.451117804 | S30: 2.468275629 | T30: 2.465560526 | U30: 2.466300194 | V30: 2.466300194 | W30: 2.469999644 | X30: 2.484325642 | Y30: 2.497741001 | Z30: 2.507731965 | AA30: 2.517261346 | AB30: 2.523051047 | AC30: 2.529863285 | AD30: 2.532899121 | AE30: 2.53619189 | AF30: 2.534416556 | AG30: 2.537204414 | AH30: 2.536696973 | AI30: 2.540755688 | AJ30: 2.551680938 | AK30: 2.562397997 | AL30: 2.578284865 | AM30: 2.590918461 | AN30: 2.601800318 | AO30: 2.61324824 | AP30: 2.620042685 | AQ30: 2.626854796 | AR30: 2.634998046 | AS30: 2.64343004 | AT30: 2.659026277 | AU30: 2.665673843 | AV30: 2.673670864 | AW30: 2.685167649 | AX30: 2.711213775 | AY30: 2.72992115 | AZ30: 2.743843748 | BA30: 2.757837351 | BB30: 2.77548751 | BC30: 2.80213219 | BD30: 2.827631593 | BE30: 2.844031857 | BF30: 2.850004323 | BG30: 2.85427933 | BH30: 2.868550727 | BI30: 2.879451219 | BJ30: 2.887801628 | BK30: 2.906283558 | BL30: 2.915293037 | BM30: 2.921123623 | BN30: 2.937189803 | BO30: 2.954812942 | BP30: 2.967223156 | BQ30: 2.97404777 | BR30: 2.976427008 | BS30: 2.981189291 | BT30: 2.988344145 | BU30: 2.999401019 | BV30: 3.006599581 | BW30: 3.033057658 | BX30: 3.054289061 | BY30: 3.075974514 | BZ30: 3.098429127 | CA30: 3.111752373 | CB30: 3.108329445 | CC30: 3.106153614 | CD30: 3.103979307 | CE30: 3.120740795 | CF30: 3.149451611 | CG30: 3.181890962 | CH30: 3.200982308 | CI30: 3.231071542 | CJ30: 3.248519328 | CK30: 3.269959555 | CL30: 3.293503264 | CM30: 3.312276233 | CN30: 3.319563241 | CO30: 3.319563241 | CP30: 3.333505406 | CQ30: 3.348506181 | CR30: 3.3592214 | CS30: 3.378368962 | CT30: 3.395598644 | CU30: 3.412916197 | CV30: 3.42622657 | CW30: 3.432393778 | CX30: 3.454361098 | CY30: 3.473360084 | CZ30: 3.482390821 | DA30: 3.497365101 | DB30: 3.513103244 | DC30: 3.535235794 | DD30: 3.560335969 | DE30: 3.579561783 | DF30: 3.60605054 | DG30: 3.639226205 | DH30: 3.658150181 | DI30: 3.680099082 | DJ30: 3.701811667 | DK30: 3.714768008 | DL30: 3.725169358 | DM30: 3.720326638 | DN30: 3.726279161 | DO30: 3.736340114 | DP30: 3.759131789 | DQ30: 3.779431101 | DR30: 3.806643005 | DS30: 3.830624856 | DT30: 3.855140855 | DU30: 3.88675301 | DV30: 3.917069683 | DW30: 3.940572101 | DX30: 3.950817589 | DY30: 3.955953652 | DZ30: 3.963074368 | EA30: 3.982493433 | EB30: 3.997626908 | EC30: 4.01881433 | ED30: 4.043730979 | EE30: 4.103578198 | EF30: 4.151179705 | EG30: 4.213862518 | EH30: 4.243780942 | EI30: 4.285794373 | EJ30: 4.31879499 | EK30: 4.343844001 | EL30: 4.354703611 | EM30: 4.376912599 | EN30: 4.410614826 | EO30: 4.459572651 | EP30: 4.499708805 | EQ30: 4.567654408 | ER30: 4.611047125 | ES30: 4.631335732 | ET30: 4.660976281 | EU30: 4.706653848 | EV30: 4.728775121 | EW30: 4.759039282 | EX30: 4.773792304 | EY30: 4.777611338 | EZ30: 4.785733277 | FA30: 4.78908329 | FB30: 4.795788007 | FC30: 4.815930317 | FD30: 4.827488549 | FE30: 4.842936513 | FF30: 4.846810862 | FG30: 4.864259381 | FH30: 4.857911522 | FI30: 4.866169972 | FJ30: 4.864710121 | FK30: 4.864710121 | FL30: 4.864710121 | FM30: 4.864710121 | FN30: 4.864710121 | FO30: 4.864710121 | FP30: 4.864710121 | FQ30: 4.864710121 | FR30: 4.864710121 | FS30: 4.864710121 | FT30: 4.864710121 | FU30: 4.864710121 | FV30: 4.864710121 | FW30: 4.864710121 | FX30: 4.864710121 | FY30: 4.864710121 | FZ30: 4.864710121 | GA30: 4.864710121 | GB30: 4.864710121 | GC30: 4.864710121 | GD30: 4.864710121 | GE30: 4.864710121 | GF30: 4.864710121 | GG30: 4.864710121 | GH30: 4.864710121 | GI30: 4.864710121 | GJ30: 4.864710121 | GK30: 4.864710121 | GL30: 4.864710121 | GM30: 4.864710121 | GN30: 4.864710121 | GO30: 4.864710121 | GP30: 4.864710121 | GQ30: 4.864710121 | GR30: 4.864710121 | GS30: 4.864710121 | GT30: 4.864710121 | GU30: 4.864710121 | GV30: 4.864710121 | GW30: 4.864710121 | GX30: 4.864710121 | GY30: 4.864710121 | GZ30: 4.864710121 | HA30: 4.864710121 | HB30: 4.864710121 | HC30: 4.864710121 | HD30: 4.864710121 | HE30: 4.864710121 | HF30: 4.864710121 | HG30: 4.864710121 | HH30: 4.864710121 | HI30: 4.864710121 | HJ30: 4.864710121 | HK30: 4.864710121 | HL30: 4.864710121 | HM30: 4.864710121 | HN30: 4.864710121 | HO30: 4.864710121 | HP30: 4.864710121 | HQ30: 4.864710121 | HR30: 4.864710121 | HS30: 4.864710121 | HT30: 4.864710121 | HU30: 4.864710121 | HV30: 4.864710121 | HW30: 4.864710121 | HX30: 4.864710121 | HY30: 4.864710121 | HZ30: 4.864710121 | IA30: 4.864710121 | IB30: 4.864710121 | IC30: 4.864710121 | ID30: 4.864710121 | IE30: 4.864710121 | IF30: 4.864710121 | IG30: 4.864710121 | IH30: 4.864710121 | II30: 4.864710121 | IJ30: 4.864710121 | IK30: 4.864710121 | IL30: 4.864710121 | IM30: 4.864710121 | IN30: 4.864710121 | IO30: 4.864710121 | IP30: 4.864710121 | IQ30: 4.864710121 | IR30: 4.864710121 | IS30: 4.864710121 | IT30: 4.864710121 | IU30: 4.864710121 | IV30: 4.864710121 | IW30: 4.864710121 | IX30: 4.864710121 | IY30: 4.864710121
B31: 1996-08-01 | C31: 2.243501 | D31: 2.252250654 | E31: 2.265088483 | F31: 2.274375345 | G31: 2.283472847 | H31: 2.294890211 | I31: 2.31164291 | J31: 2.323201124 | K31: 2.327150566 | L31: 2.331106722 | M31: 2.341363592 | N31: 2.361499318 | O31: 2.374959865 | P31: 2.385409688 | Q31: 2.402823179 | R31: 2.42468887 | S31: 2.441661692 | T31: 2.438975864 | U31: 2.439707557 | V31: 2.439707557 | W31: 2.443367118 | X31: 2.457538647 | Y31: 2.470809356 | Z31: 2.480692593 | AA31: 2.490119225 | AB31: 2.495846499 | AC31: 2.502585285 | AD31: 2.505588387 | AE31: 2.508845652 | AF31: 2.50708946 | AG31: 2.509847259 | AH31: 2.509345289 | AI31: 2.513360242 | AJ31: 2.524167691 | AK31: 2.534769195 | AL31: 2.550484764 | AM31: 2.562982139 | AN31: 2.573746664 | AO31: 2.58507115 | AP31: 2.591792335 | AQ31: 2.598530995 | AR31: 2.606586441 | AS31: 2.614927517 | AT31: 2.63035559 | AU31: 2.636931479 | AV31: 2.644842273 | AW31: 2.656215095 | AX31: 2.681980381 | AY31: 2.700486046 | AZ31: 2.714258525 | BA31: 2.728101243 | BB31: 2.745561091 | BC31: 2.771918478 | BD31: 2.797142936 | BE31: 2.813366365 | BF31: 2.819274434 | BG31: 2.823503346 | BH31: 2.837620863 | BI31: 2.848403822 | BJ31: 2.856664193 | BK31: 2.874946844 | BL31: 2.883859179 | BM31: 2.889626897 | BN31: 2.905519845 | BO31: 2.922952964 | BP31: 2.935229367 | BQ31: 2.941980394 | BR31: 2.944333979 | BS31: 2.949044913 | BT31: 2.956122621 | BU31: 2.967060275 | BV31: 2.974181219 | BW31: 3.000354014 | BX31: 3.021356492 | BY31: 3.042808123 | BZ31: 3.065020623 | CA31: 3.078200211 | CB31: 3.074814191 | CC31: 3.072661821 | CD31: 3.070510958 | CE31: 3.087091717 | CF31: 3.115492961 | CG31: 3.147582538 | CH31: 3.166468033 | CI31: 3.196232833 | CJ31: 3.21349249 | CK31: 3.234701541 | CL31: 3.257991392 | CM31: 3.276561943 | CN31: 3.283770379 | CO31: 3.283770379 | CP31: 3.297562215 | CQ31: 3.312401245 | CR31: 3.323000929 | CS31: 3.341942034 | CT31: 3.358985938 | CU31: 3.376116766 | CV31: 3.389283622 | CW31: 3.395384332 | CX31: 3.417114792 | CY31: 3.435908923 | CZ31: 3.444842287 | DA31: 3.459655108 | DB31: 3.475223556 | DC31: 3.497117465 | DD31: 3.521946999 | DE31: 3.540965513 | DF31: 3.567168657 | DG31: 3.599986609 | DH31: 3.618706539 | DI31: 3.640418779 | DJ31: 3.66189725 | DK31: 3.67471389 | DL31: 3.685003089 | DM31: 3.680212585 | DN31: 3.686100925 | DO31: 3.696053397 | DP31: 3.718599323 | DQ31: 3.738679759 | DR31: 3.765598254 | DS31: 3.789321523 | DT31: 3.81357318 | DU31: 3.844844481 | DV31: 3.874834268 | DW31: 3.898083273 | DX31: 3.90821829 | DY31: 3.913298973 | DZ31: 3.920342912 | EA31: 3.939552592 | EB31: 3.954522892 | EC31: 3.975481863 | ED31: 4.000129851 | EE31: 4.059331772 | EF31: 4.106420021 | EG31: 4.168426963 | EH31: 4.198022795 | EI31: 4.23958322 | EJ31: 4.272228011 | EK31: 4.297006934 | EL31: 4.307749451 | EM31: 4.329718973 | EN31: 4.363057809 | EO31: 4.411487751 | EP31: 4.451191141 | EQ31: 4.518404127 | ER31: 4.561328966 | ES31: 4.581398814 | ET31: 4.610719766 | EU31: 4.65590482 | EV31: 4.677787572 | EW31: 4.707725413 | EX31: 4.722319362 | EY31: 4.726097217 | EZ31: 4.734131582 | FA31: 4.737445474 | FB31: 4.744077898 | FC31: 4.764003025 | FD31: 4.775436633 | FE31: 4.79071803 | FF31: 4.794550604 | FG31: 4.811810986 | FH31: 4.805531573 | FI31: 4.813700977 | FJ31: 4.812256866 | FK31: 4.812256866 | FL31: 4.812256866 | FM31: 4.812256866 | FN31: 4.812256866 | FO31: 4.812256866 | FP31: 4.812256866 | FQ31: 4.812256866 | FR31: 4.812256866 | FS31: 4.812256866 | FT31: 4.812256866 | FU31: 4.812256866 | FV31: 4.812256866 | FW31: 4.812256866 | FX31: 4.812256866 | FY31: 4.812256866 | FZ31: 4.812256866 | GA31: 4.812256866 | GB31: 4.812256866 | GC31: 4.812256866 | GD31: 4.812256866 | GE31: 4.812256866 | GF31: 4.812256866 | GG31: 4.812256866 | GH31: 4.812256866 | GI31: 4.812256866 | GJ31: 4.812256866 | GK31: 4.812256866 | GL31: 4.812256866 | GM31: 4.812256866 | GN31: 4.812256866 | GO31: 4.812256866 | GP31: 4.812256866 | GQ31: 4.812256866 | GR31: 4.812256866 | GS31: 4.812256866 | GT31: 4.812256866 | GU31: 4.812256866 | GV31: 4.812256866 | GW31: 4.812256866 | GX31: 4.812256866 | GY31: 4.812256866 | GZ31: 4.812256866 | HA31: 4.812256866 | HB31: 4.812256866 | HC31: 4.812256866 | HD31: 4.812256866 | HE31: 4.812256866 | HF31: 4.812256866 | HG31: 4.812256866 | HH31: 4.812256866 | HI31: 4.812256866 | HJ31: 4.812256866 | HK31: 4.812256866 | HL31: 4.812256866 | HM31: 4.812256866 | HN31: 4.812256866 | HO31: 4.812256866 | HP31: 4.812256866 | HQ31: 4.812256866 | HR31: 4.812256866 | HS31: 4.812256866 | HT31: 4.812256866 | HU31: 4.812256866 | HV31: 4.812256866 | HW31: 4.812256866 | HX31: 4.812256866 | HY31: 4.812256866 | HZ31: 4.812256866 | IA31: 4.812256866 | IB31: 4.812256866 | IC31: 4.812256866 | ID31: 4.812256866 | IE31: 4.812256866 | IF31: 4.812256866 | IG31: 4.812256866 | IH31: 4.812256866 | II31: 4.812256866 | IJ31: 4.812256866 | IK31: 4.812256866 | IL31: 4.812256866 | IM31: 4.812256866 | IN31: 4.812256866 | IO31: 4.812256866 | IP31: 4.812256866 | IQ31: 4.812256866 | IR31: 4.812256866 | IS31: 4.812256866 | IT31: 4.812256866 | IU31: 4.812256866 | IV31: 4.812256866 | IW31: 4.812256866 | IX31: 4.812256866 | IY31: 4.812256866
B32: 1996-09-01 | C32: 2.243411 | D32: 2.252160303 | E32: 2.264997617 | F32: 2.274284107 | G32: 2.283381243 | H32: 2.294798149 | I32: 2.311550176 | J32: 2.323107927 | K32: 2.32705721 | L32: 2.331013208 | M32: 2.341269666 | N32: 2.361404585 | O32: 2.374864591 | P32: 2.385313995 | Q32: 2.402726787 | R32: 2.424591601 | S32: 2.441563742 | T32: 2.438878022 | U32: 2.439609686 | V32: 2.439609686 | W32: 2.4432691 | X32: 2.457440061 | Y32: 2.470710237 | Z32: 2.480593078 | AA32: 2.490019332 | AB32: 2.495746376 | AC32: 2.502484892 | AD32: 2.505487873 | AE32: 2.508745008 | AF32: 2.506988886 | AG32: 2.509746574 | AH32: 2.509244625 | AI32: 2.513259416 | AJ32: 2.524066432 | AK32: 2.534667511 | AL32: 2.550382449 | AM32: 2.562879323 | AN32: 2.573643416 | AO32: 2.584967447 | AP32: 2.591688363 | AQ32: 2.598426752 | AR32: 2.606481875 | AS32: 2.614822617 | AT32: 2.630250071 | AU32: 2.636825696 | AV32: 2.644736173 | AW32: 2.656108539 | AX32: 2.681872791 | AY32: 2.700377714 | AZ32: 2.71414964 | BA32: 2.727991803 | BB32: 2.745450951 | BC32: 2.77180728 | BD32: 2.797030726 | BE32: 2.813253504 | BF32: 2.819161337 | BG32: 2.823390079 | BH32: 2.837507029 | BI32: 2.848289556 | BJ32: 2.856549595 | BK32: 2.874831513 | BL32: 2.883743491 | BM32: 2.889510978 | BN32: 2.905403288 | BO32: 2.922835708 | BP32: 2.935111618 | BQ32: 2.941862374 | BR32: 2.944215864 | BS32: 2.94892661 | BT32: 2.956004033 | BU32: 2.966941248 | BV32: 2.974061907 | BW32: 3.000233652 | BX32: 3.021235288 | BY32: 3.042686058 | BZ32: 3.064897667 | CA32: 3.078076726 | CB32: 3.074690842 | CC32: 3.072538559 | CD32: 3.070387782 | CE32: 3.086967876 | CF32: 3.11536798 | CG32: 3.14745627 | CH32: 3.166341008 | CI32: 3.196104613 | CJ32: 3.213363578 | CK32: 3.234571778 | CL32: 3.257860695 | CM32: 3.276430501 | CN32: 3.283638648 | CO32: 3.283638648 | CP32: 3.29742993 | CQ32: 3.312268365 | CR32: 3.322867623 | CS32: 3.341807969 | CT32: 3.35885119 | CU32: 3.375981331 | CV32: 3.389147658 | CW32: 3.395248124 | CX32: 3.416977712 | CY32: 3.435771089 | CZ32: 3.444704094 | DA32: 3.459516321 | DB32: 3.475084145 | DC32: 3.496977175 | DD32: 3.521805713 | DE32: 3.540823464 | DF32: 3.567025557 | DG32: 3.599842193 | DH32: 3.618561372 | DI32: 3.64027274 | DJ32: 3.661750349 | DK32: 3.674566476 | DL32: 3.684855262 | DM32: 3.68006495 | DN32: 3.685953054 | DO32: 3.695905127 | DP32: 3.718450148 | DQ32: 3.738529779 | DR32: 3.765447193 | DS32: 3.789169511 | DT32: 3.813420196 | DU32: 3.844690241 | DV32: 3.874678825 | DW32: 3.897926898 | DX32: 3.908061508 | DY32: 3.913141988 | DZ32: 3.920185644 | EA32: 3.939394553 | EB32: 3.954364253 | EC32: 3.975322383 | ED32: 3.999969382 | EE32: 4.059168929 | EF32: 4.106255288 | EG32: 4.168259743 | EH32: 4.197854387 | EI32: 4.239413146 | EJ32: 4.272056627 | EK32: 4.296834555 | EL32: 4.307576642 | EM32: 4.329545283 | EN32: 4.362882781 | EO32: 4.41131078 | EP32: 4.451012577 | EQ32: 4.518222867 | ER32: 4.561145984 | ES32: 4.581215027 | ET32: 4.610534803 | EU32: 4.655718044 | EV32: 4.677599919 | EW32: 4.707536558 | EX32: 4.722129922 | EY32: 4.725907626 | EZ32: 4.733941668 | FA32: 4.737255428 | FB32: 4.743887585 | FC32: 4.763811913 | FD32: 4.775245062 | FE32: 4.790525846 | FF32: 4.794358267 | FG32: 4.811617956 | FH32: 4.805338795 | FI32: 4.813507871 | FJ32: 4.812063818 | FK32: 4.812063818 | FL32: 4.812063818 | FM32: 4.812063818 | FN32: 4.812063818 | FO32: 4.812063818 | FP32: 4.812063818 | FQ32: 4.812063818 | FR32: 4.812063818 | FS32: 4.812063818 | FT32: 4.812063818 | FU32: 4.812063818 | FV32: 4.812063818 | FW32: 4.812063818 | FX32: 4.812063818 | FY32: 4.812063818 | FZ32: 4.812063818 | GA32: 4.812063818 | GB32: 4.812063818 | GC32: 4.812063818 | GD32: 4.812063818 | GE32: 4.812063818 | GF32: 4.812063818 | GG32: 4.812063818 | GH32: 4.812063818 | GI32: 4.812063818 | GJ32: 4.812063818 | GK32: 4.812063818 | GL32: 4.812063818 | GM32: 4.812063818 | GN32: 4.812063818 | GO32: 4.812063818 | GP32: 4.812063818 | GQ32: 4.812063818 | GR32: 4.812063818 | GS32: 4.812063818 | GT32: 4.812063818 | GU32: 4.812063818 | GV32: 4.812063818 | GW32: 4.812063818 | GX32: 4.812063818 | GY32: 4.812063818 | GZ32: 4.812063818 | HA32: 4.812063818 | HB32: 4.812063818 | HC32: 4.812063818 | HD32: 4.812063818 | HE32: 4.812063818 | HF32: 4.812063818 | HG32: 4.812063818 | HH32: 4.812063818 | HI32: 4.812063818 | HJ32: 4.812063818 | HK32: 4.812063818 | HL32: 4.812063818 | HM32: 4.812063818 | HN32: 4.812063818 | HO32: 4.812063818 | HP32: 4.812063818 | HQ32: 4.812063818 | HR32: 4.812063818 | HS32: 4.812063818 | HT32: 4.812063818 | HU32: 4.812063818 | HV32: 4.812063818 | HW32: 4.812063818 | HX32: 4.812063818 | HY32: 4.812063818 | HZ32: 4.812063818 | IA32: 4.812063818 | IB32: 4.812063818 | IC32: 4.812063818 | ID32: 4.812063818 | IE32: 4.812063818 | IF32: 4.812063818 | IG32: 4.812063818 | IH32: 4.812063818 | II32: 4.812063818 | IJ32: 4.812063818 | IK32: 4.812063818 | IL32: 4.812063818 | IM32: 4.812063818 | IN32: 4.812063818 | IO32: 4.812063818 | IP32: 4.812063818 | IQ32: 4.812063818 | IR32: 4.812063818 | IS32: 4.812063818 | IT32: 4.812063818 | IU32: 4.812063818 | IV32: 4.812063818 | IW32: 4.812063818 | IX32: 4.812063818 | IY32: 4.812063818
B33: 1996-10-01 | C33: 2.240499 | D33: 2.249236946 | E33: 2.262057597 | F33: 2.271332033 | G33: 2.280417361 | H33: 2.291819448 | I33: 2.30854973 | J33: 2.320092478 | K33: 2.324036636 | L33: 2.327987498 | M33: 2.338230643 | N33: 2.358339426 | O33: 2.371781961 | P33: 2.382217802 | Q33: 2.399607992 | R33: 2.421444424 | S33: 2.438394535 | T33: 2.435712301 | U33: 2.436443015 | V33: 2.436443015 | W33: 2.44009768 | X33: 2.454250246 | Y33: 2.467503198 | Z33: 2.47737321 | AA33: 2.486787228 | AB33: 2.492506839 | AC33: 2.499236608 | AD33: 2.502235692 | AE33: 2.505488598 | AF33: 2.503734756 | AG33: 2.506488864 | AH33: 2.505987566 | AI33: 2.509997146 | AJ33: 2.520790134 | AK33: 2.531377453 | AL33: 2.547071993 | AM33: 2.559552646 | AN33: 2.570302767 | AO33: 2.581612099 | AP33: 2.58832429 | AQ33: 2.595053934 | AR33: 2.603098601 | AS33: 2.611428516 | AT33: 2.626835945 | AU33: 2.633403034 | AV33: 2.641303244 | AW33: 2.652660848 | AX33: 2.678391658 | AY33: 2.69687256 | AZ33: 2.71062661 | BA33: 2.724450806 | BB33: 2.741887291 | BC33: 2.768209409 | BD33: 2.793400115 | BE33: 2.809601835 | BF33: 2.815501999 | BG33: 2.819725252 | BH33: 2.833823878 | BI33: 2.844592409 | BJ33: 2.852841727 | BK33: 2.871099914 | BL33: 2.880000324 | BM33: 2.885760325 | BN33: 2.901632006 | BO33: 2.919041798 | BP33: 2.931301774 | BQ33: 2.938043768 | BR33: 2.940394203 | BS33: 2.945098834 | BT33: 2.952167071 | BU33: 2.963090089 | BV33: 2.970201505 | BW33: 2.996339279 | BX33: 3.017313654 | BY33: 3.038736581 | BZ33: 3.060919358 | CA33: 3.074081311 | CB33: 3.070699821 | CC33: 3.068550332 | CD33: 3.066402346 | CE33: 3.082960919 | CF33: 3.111324159 | CG33: 3.143370798 | CH33: 3.162231023 | CI33: 3.191955995 | CJ33: 3.209192557 | CK33: 3.230373228 | CL33: 3.253631915 | CM33: 3.272177617 | CN33: 3.279376408 | CO33: 3.279376408 | CP33: 3.293149789 | CQ33: 3.307968963 | CR33: 3.318554463 | CS33: 3.337470224 | CT33: 3.354491322 | CU33: 3.371599228 | CV33: 3.384748465 | CW33: 3.390841012 | CX33: 3.412542394 | CY33: 3.431311378 | CZ33: 3.440232787 | DA33: 3.455025788 | DB33: 3.470573404 | DC33: 3.492438017 | DD33: 3.517234327 | DE33: 3.536227392 | DF33: 3.562395475 | DG33: 3.595169513 | DH33: 3.613864395 | DI33: 3.635547581 | DJ33: 3.656997312 | DK33: 3.669796802 | DL33: 3.680072233 | DM33: 3.675288139 | DN33: 3.6811686 | DO33: 3.691107756 | DP33: 3.713623513 | DQ33: 3.73367708 | DR33: 3.760559555 | DS33: 3.78425108 | DT33: 3.808470287 | DU33: 3.839699743 | DV33: 3.869649401 | DW33: 3.892867298 | DX33: 3.902988753 | DY33: 3.908062638 | DZ33: 3.915097151 | EA33: 3.934281127 | EB33: 3.949231395 | EC33: 3.970162322 | ED33: 3.994777328 | EE33: 4.053900032 | EF33: 4.100925273 | EG33: 4.162849244 | EH33: 4.192405474 | EI33: 4.233910288 | EJ33: 4.266511397 | EK33: 4.291257164 | EL33: 4.301985306 | EM33: 4.323925432 | EN33: 4.357219657 | EO33: 4.405584796 | EP33: 4.445235059 | EQ33: 4.512358108 | ER33: 4.55522551 | ES33: 4.575268502 | ET33: 4.604550221 | EU33: 4.649674813 | EV33: 4.671528285 | EW33: 4.701426066 | EX33: 4.716000486 | EY33: 4.719773287 | EZ33: 4.727796901 | FA33: 4.731106359 | FB33: 4.737729908 | FC33: 4.757628374 | FD33: 4.769046682 | FE33: 4.784307631 | FF33: 4.788135077 | FG33: 4.805372364 | FH33: 4.799101353 | FI33: 4.807259825 | FJ33: 4.805817647 | FK33: 4.805817647 | FL33: 4.805817647 | FM33: 4.805817647 | FN33: 4.805817647 | FO33: 4.805817647 | FP33: 4.805817647 | FQ33: 4.805817647 | FR33: 4.805817647 | FS33: 4.805817647 | FT33: 4.805817647 | FU33: 4.805817647 | FV33: 4.805817647 | FW33: 4.805817647 | FX33: 4.805817647 | FY33: 4.805817647 | FZ33: 4.805817647 | GA33: 4.805817647 | GB33: 4.805817647 | GC33: 4.805817647 | GD33: 4.805817647 | GE33: 4.805817647 | GF33: 4.805817647 | GG33: 4.805817647 | GH33: 4.805817647 | GI33: 4.805817647 | GJ33: 4.805817647 | GK33: 4.805817647 | GL33: 4.805817647 | GM33: 4.805817647 | GN33: 4.805817647 | GO33: 4.805817647 | GP33: 4.805817647 | GQ33: 4.805817647 | GR33: 4.805817647 | GS33: 4.805817647 | GT33: 4.805817647 | GU33: 4.805817647 | GV33: 4.805817647 | GW33: 4.805817647 | GX33: 4.805817647 | GY33: 4.805817647 | GZ33: 4.805817647 | HA33: 4.805817647 | HB33: 4.805817647 | HC33: 4.805817647 | HD33: 4.805817647 | HE33: 4.805817647 | HF33: 4.805817647 | HG33: 4.805817647 | HH33: 4.805817647 | HI33: 4.805817647 | HJ33: 4.805817647 | HK33: 4.805817647 | HL33: 4.805817647 | HM33: 4.805817647 | HN33: 4.805817647 | HO33: 4.805817647 | HP33: 4.805817647 | HQ33: 4.805817647 | HR33: 4.805817647 | HS33: 4.805817647 | HT33: 4.805817647 | HU33: 4.805817647 | HV33: 4.805817647 | HW33: 4.805817647 | HX33: 4.805817647 | HY33: 4.805817647 | HZ33: 4.805817647 | IA33: 4.805817647 | IB33: 4.805817647 | IC33: 4.805817647 | ID33: 4.805817647 | IE33: 4.805817647 | IF33: 4.805817647 | IG33: 4.805817647 | IH33: 4.805817647 | II33: 4.805817647 | IJ33: 4.805817647 | IK33: 4.805817647 | IL33: 4.805817647 | IM33: 4.805817647 | IN33: 4.805817647 | IO33: 4.805817647 | IP33: 4.805817647 | IQ33: 4.805817647 | IR33: 4.805817647 | IS33: 4.805817647 | IT33: 4.805817647 | IU33: 4.805817647 | IV33: 4.805817647 | IW33: 4.805817647 | IX33: 4.805817647 | IY33: 4.805817647
B34: 1996-11-01 | C34: 2.23558 | D34: 2.244298762 | E34: 2.257091265 | F34: 2.266345339 | G34: 2.27541072 | H34: 2.286787774 | I34: 2.303481325 | J34: 2.314998731 | K34: 2.318934229 | L34: 2.322876417 | M34: 2.333097074 | N34: 2.353161709 | O34: 2.36657473 | P34: 2.376987659 | Q34: 2.394339669 | R34: 2.41612816 | S34: 2.433041057 | T34: 2.430364712 | U34: 2.431093821 | V34: 2.431093821 | W34: 2.434740462 | X34: 2.448861957 | Y34: 2.462085811 | Z34: 2.471934155 | AA34: 2.481327504 | AB34: 2.487034558 | AC34: 2.493749551 | AD34: 2.49674205 | AE34: 2.499987815 | AF34: 2.498237824 | AG34: 2.500985885 | AH34: 2.500485688 | AI34: 2.504486465 | AJ34: 2.515255757 | AK34: 2.525819831 | AL34: 2.541479914 | AM34: 2.553933166 | AN34: 2.564659685 | AO34: 2.575944188 | AP34: 2.582641642 | AQ34: 2.589356511 | AR34: 2.597383516 | AS34: 2.605695143 | AT34: 2.621068745 | AU34: 2.627621416 | AV34: 2.635504281 | AW34: 2.646836949 | AX34: 2.672511267 | AY34: 2.690951595 | AZ34: 2.704675448 | BA34: 2.718469293 | BB34: 2.735867497 | BC34: 2.762131825 | BD34: 2.787267224 | BE34: 2.803433374 | BF34: 2.809320584 | BG34: 2.813534565 | BH34: 2.827602238 | BI34: 2.838347126 | BJ34: 2.846578333 | BK34: 2.864796434 | BL34: 2.873677303 | BM34: 2.879424658 | BN34: 2.895261494 | BO34: 2.912633062 | BP34: 2.924866121 | BQ34: 2.931593313 | BR34: 2.933938588 | BS34: 2.93863289 | BT34: 2.945685609 | BU34: 2.956584645 | BV34: 2.963680449 | BW34: 2.989760837 | BX34: 3.010689162 | BY34: 3.032065055 | BZ34: 3.05419913 | CA34: 3.067332187 | CB34: 3.063958121 | CC34: 3.061813351 | CD34: 3.059670081 | CE34: 3.0761923 | CF34: 3.104493269 | CG34: 3.136469549 | CH34: 3.155288367 | CI34: 3.184948077 | CJ34: 3.202146797 | CK34: 3.223280966 | CL34: 3.246488589 | CM34: 3.264993574 | CN34: 3.27217656 | CO34: 3.27217656 | CP34: 3.285919701 | CQ34: 3.30070634 | CR34: 3.3112686 | CS34: 3.330142831 | CT34: 3.34712656 | CU34: 3.364196905 | CV34: 3.377317273 | CW34: 3.383396444 | CX34: 3.405050181 | CY34: 3.423777957 | CZ34: 3.43267978 | DA34: 3.447440303 | DB34: 3.462953784 | DC34: 3.484770393 | DD34: 3.509512263 | DE34: 3.528463629 | DF34: 3.55457426 | DG34: 3.587276343 | DH34: 3.60593018 | DI34: 3.627565761 | DJ34: 3.648968399 | DK34: 3.661739789 | DL34: 3.67199266 | DM34: 3.66721907 | DN34: 3.67308662 | DO34: 3.683003954 | DP34: 3.705470278 | DQ34: 3.725479818 | DR34: 3.752303272 | DS34: 3.775942783 | DT34: 3.800108817 | DU34: 3.831269709 | DV34: 3.861153613 | DW34: 3.884320535 | DX34: 3.894419768 | DY34: 3.899482514 | DZ34: 3.906501582 | EA34: 3.92564344 | EB34: 3.940560885 | EC34: 3.961445858 | ED34: 3.986006822 | EE34: 4.044999723 | EF34: 4.09192172 | EG34: 4.153709738 | EH34: 4.183201077 | EI34: 4.224614768 | EJ34: 4.257144301 | EK34: 4.281835738 | EL34: 4.292540328 | EM34: 4.314432283 | EN34: 4.347653412 | EO34: 4.395912365 | EP34: 4.435475576 | EQ34: 4.502451257 | ER34: 4.545224544 | ES34: 4.565223532 | ET34: 4.594440963 | EU34: 4.639466484 | EV34: 4.661271977 | EW34: 4.691104117 | EX34: 4.70564654 | EY34: 4.709411057 | EZ34: 4.717417056 | FA34: 4.720719248 | FB34: 4.727328255 | FC34: 4.747183034 | FD34: 4.758576273 | FE34: 4.773803717 | FF34: 4.77762276 | FG34: 4.794822202 | FH34: 4.788564959 | FI34: 4.796705519 | FJ34: 4.795266508 | FK34: 4.795266508 | FL34: 4.795266508 | FM34: 4.795266508 | FN34: 4.795266508 | FO34: 4.795266508 | FP34: 4.795266508 | FQ34: 4.795266508 | FR34: 4.795266508 | FS34: 4.795266508 | FT34: 4.795266508 | FU34: 4.795266508 | FV34: 4.795266508 | FW34: 4.795266508 | FX34: 4.795266508 | FY34: 4.795266508 | FZ34: 4.795266508 | GA34: 4.795266508 | GB34: 4.795266508 | GC34: 4.795266508 | GD34: 4.795266508 | GE34: 4.795266508 | GF34: 4.795266508 | GG34: 4.795266508 | GH34: 4.795266508 | GI34: 4.795266508 | GJ34: 4.795266508 | GK34: 4.795266508 | GL34: 4.795266508 | GM34: 4.795266508 | GN34: 4.795266508 | GO34: 4.795266508 | GP34: 4.795266508 | GQ34: 4.795266508 | GR34: 4.795266508 | GS34: 4.795266508 | GT34: 4.795266508 | GU34: 4.795266508 | GV34: 4.795266508 | GW34: 4.795266508 | GX34: 4.795266508 | GY34: 4.795266508 | GZ34: 4.795266508 | HA34: 4.795266508 | HB34: 4.795266508 | HC34: 4.795266508 | HD34: 4.795266508 | HE34: 4.795266508 | HF34: 4.795266508 | HG34: 4.795266508 | HH34: 4.795266508 | HI34: 4.795266508 | HJ34: 4.795266508 | HK34: 4.795266508 | HL34: 4.795266508 | HM34: 4.795266508 | HN34: 4.795266508 | HO34: 4.795266508 | HP34: 4.795266508 | HQ34: 4.795266508 | HR34: 4.795266508 | HS34: 4.795266508 | HT34: 4.795266508 | HU34: 4.795266508 | HV34: 4.795266508 | HW34: 4.795266508 | HX34: 4.795266508 | HY34: 4.795266508 | HZ34: 4.795266508 | IA34: 4.795266508 | IB34: 4.795266508 | IC34: 4.795266508 | ID34: 4.795266508 | IE34: 4.795266508 | IF34: 4.795266508 | IG34: 4.795266508 | IH34: 4.795266508 | II34: 4.795266508 | IJ34: 4.795266508 | IK34: 4.795266508 | IL34: 4.795266508 | IM34: 4.795266508 | IN34: 4.795266508 | IO34: 4.795266508 | IP34: 4.795266508 | IQ34: 4.795266508 | IR34: 4.795266508 | IS34: 4.795266508 | IT34: 4.795266508 | IU34: 4.795266508 | IV34: 4.795266508 | IW34: 4.795266508 | IX34: 4.795266508 | IY34: 4.795266508
B35: 1996-12-01 | C35: 2.229338 | D35: 2.238032418 | E35: 2.250789203 | F35: 2.260017439 | G35: 2.269057508 | H35: 2.280402796 | I35: 2.297049736 | J35: 2.308534985 | K35: 2.312459495 | L35: 2.316390676 | M35: 2.326582795 | N35: 2.346591407 | O35: 2.359966978 | P35: 2.370350832 | Q35: 2.387654394 | R35: 2.409382049 | S35: 2.426247723 | T35: 2.42357885 | U35: 2.424305924 | V35: 2.424305924 | W35: 2.427942383 | X35: 2.442024449 | Y35: 2.455211381 | Z35: 2.465032226 | AA35: 2.474399349 | AB35: 2.480090467 | AC35: 2.486786711 | AD35: 2.489770856 | AE35: 2.493007558 | AF35: 2.491262452 | AG35: 2.494002841 | AH35: 2.49350404 | AI35: 2.497493647 | AJ35: 2.50823287 | AK35: 2.518767448 | AL35: 2.534383806 | AM35: 2.546802287 | AN35: 2.557498856 | AO35: 2.568751851 | AP35: 2.575430606 | AQ35: 2.582126725 | AR35: 2.590131318 | AS35: 2.598419739 | AT35: 2.613750415 | AU35: 2.620284791 | AV35: 2.628145645 | AW35: 2.639446672 | AX35: 2.665049304 | AY35: 2.683438145 | AZ35: 2.697123679 | BA35: 2.71087901 | BB35: 2.728228636 | BC35: 2.75441963 | BD35: 2.779484849 | BE35: 2.795605861 | BF35: 2.801476634 | BG35: 2.805678848 | BH35: 2.819707243 | BI35: 2.83042213 | BJ35: 2.838630354 | BK35: 2.856797589 | BL35: 2.865653661 | BM35: 2.871384969 | BN35: 2.887177586 | BO35: 2.904500651 | BP35: 2.916699554 | BQ35: 2.923407963 | BR35: 2.925746689 | BS35: 2.930427884 | BT35: 2.937460911 | BU35: 2.948329516 | BV35: 2.955405507 | BW35: 2.981413076 | BX35: 3.002282967 | BY35: 3.023599176 | BZ35: 3.04567145 | CA35: 3.058767838 | CB35: 3.055403193 | CC35: 3.053264411 | CD35: 3.051127126 | CE35: 3.067603212 | CF35: 3.095825162 | CG35: 3.127712161 | CH35: 3.146478434 | CI35: 3.176055331 | CJ35: 3.19320603 | CK35: 3.21428119 | CL35: 3.237424014 | CM35: 3.255877331 | CN35: 3.263040261 | CO35: 3.263040261 | CP35: 3.27674503 | CQ35: 3.291490383 | CR35: 3.302023152 | CS35: 3.320844684 | CT35: 3.337780992 | CU35: 3.354803675 | CV35: 3.367887409 | CW35: 3.373949607 | CX35: 3.395542884 | CY35: 3.41421837 | CZ35: 3.423095338 | DA35: 3.437814648 | DB35: 3.453284814 | DC35: 3.475040508 | DD35: 3.499713296 | DE35: 3.518611747 | DF35: 3.544649474 | DG35: 3.57726025 | DH35: 3.595862003 | DI35: 3.617437175 | DJ35: 3.638780054 | DK35: 3.651515784 | DL35: 3.661740029 | DM35: 3.656979767 | DN35: 3.662830934 | DO35: 3.672720578 | DP35: 3.695124173 | DQ35: 3.715077844 | DR35: 3.741826404 | DS35: 3.765399911 | DT35: 3.78949847 | DU35: 3.820572358 | DV35: 3.850372822 | DW35: 3.873475059 | DX35: 3.883546094 | DY35: 3.888594704 | DZ35: 3.895594174 | EA35: 3.914682586 | EB35: 3.92955838 | EC35: 3.950385039 | ED35: 3.974877426 | EE35: 4.033705612 | EF35: 4.080496597 | EG35: 4.142112096 | EH35: 4.171521092 | EI35: 4.212819151 | EJ35: 4.245257858 | EK35: 4.269880354 | EL35: 4.280555055 | EM35: 4.302385885 | EN35: 4.335514257 | EO35: 4.383638465 | EP35: 4.423091211 | EQ35: 4.489879888 | ER35: 4.532533747 | ES35: 4.552476896 | ET35: 4.581612748 | EU35: 4.626512553 | EV35: 4.648257162 | EW35: 4.678006008 | EX35: 4.692507826 | EY35: 4.696261833 | EZ35: 4.704245478 | FA35: 4.70753845 | FB35: 4.714129003 | FC35: 4.733928345 | FD35: 4.745289773 | FE35: 4.7604747 | FF35: 4.76428308 | FG35: 4.781434499 | FH35: 4.775194727 | FI35: 4.783312558 | FJ35: 4.781877565 | FK35: 4.781877565 | FL35: 4.781877565 | FM35: 4.781877565 | FN35: 4.781877565 | FO35: 4.781877565 | FP35: 4.781877565 | FQ35: 4.781877565 | FR35: 4.781877565 | FS35: 4.781877565 | FT35: 4.781877565 | FU35: 4.781877565 | FV35: 4.781877565 | FW35: 4.781877565 | FX35: 4.781877565 | FY35: 4.781877565 | FZ35: 4.781877565 | GA35: 4.781877565 | GB35: 4.781877565 | GC35: 4.781877565 | GD35: 4.781877565 | GE35: 4.781877565 | GF35: 4.781877565 | GG35: 4.781877565 | GH35: 4.781877565 | GI35: 4.781877565 | GJ35: 4.781877565 | GK35: 4.781877565 | GL35: 4.781877565 | GM35: 4.781877565 | GN35: 4.781877565 | GO35: 4.781877565 | GP35: 4.781877565 | GQ35: 4.781877565 | GR35: 4.781877565 | GS35: 4.781877565 | GT35: 4.781877565 | GU35: 4.781877565 | GV35: 4.781877565 | GW35: 4.781877565 | GX35: 4.781877565 | GY35: 4.781877565 | GZ35: 4.781877565 | HA35: 4.781877565 | HB35: 4.781877565 | HC35: 4.781877565 | HD35: 4.781877565 | HE35: 4.781877565 | HF35: 4.781877565 | HG35: 4.781877565 | HH35: 4.781877565 | HI35: 4.781877565 | HJ35: 4.781877565 | HK35: 4.781877565 | HL35: 4.781877565 | HM35: 4.781877565 | HN35: 4.781877565 | HO35: 4.781877565 | HP35: 4.781877565 | HQ35: 4.781877565 | HR35: 4.781877565 | HS35: 4.781877565 | HT35: 4.781877565 | HU35: 4.781877565 | HV35: 4.781877565 | HW35: 4.781877565 | HX35: 4.781877565 | HY35: 4.781877565 | HZ35: 4.781877565 | IA35: 4.781877565 | IB35: 4.781877565 | IC35: 4.781877565 | ID35: 4.781877565 | IE35: 4.781877565 | IF35: 4.781877565 | IG35: 4.781877565 | IH35: 4.781877565 | II35: 4.781877565 | IJ35: 4.781877565 | IK35: 4.781877565 | IL35: 4.781877565 | IM35: 4.781877565 | IN35: 4.781877565 | IO35: 4.781877565 | IP35: 4.781877565 | IQ35: 4.781877565 | IR35: 4.781877565 | IS35: 4.781877565 | IT35: 4.781877565 | IU35: 4.781877565 | IV35: 4.781877565 | IW35: 4.781877565 | IX35: 4.781877565 | IY35: 4.781877565
B36: 1997-01-01 | C36: 2.209891 | D36: 2.218509575 | E36: 2.231155079 | F36: 2.240302815 | G36: 2.249264027 | H36: 2.260510347 | I36: 2.277012072 | J36: 2.288397133 | K36: 2.292287408 | L36: 2.296184296 | M36: 2.306287507 | N36: 2.32612158 | O36: 2.339380473 | P36: 2.349673747 | Q36: 2.366826365 | R36: 2.388364485 | S36: 2.405083037 | T36: 2.402437445 | U36: 2.403158176 | V36: 2.403158176 | W36: 2.406762914 | X36: 2.420722139 | Y36: 2.433794038 | Z36: 2.443529214 | AA36: 2.452814625 | AB36: 2.458456099 | AC36: 2.46509393 | AD36: 2.468052043 | AE36: 2.471260511 | AF36: 2.469530628 | AG36: 2.472247112 | AH36: 2.471752663 | AI36: 2.475707467 | AJ36: 2.486353009 | AK36: 2.496795692 | AL36: 2.512275825 | AM36: 2.524585977 | AN36: 2.535189238 | AO36: 2.54634407 | AP36: 2.552964565 | AQ36: 2.559602273 | AR36: 2.56753704 | AS36: 2.575753158 | AT36: 2.590950102 | AU36: 2.597427477 | AV36: 2.60521976 | AW36: 2.616422205 | AX36: 2.6418015 | AY36: 2.66002993 | AZ36: 2.673596083 | BA36: 2.687231423 | BB36: 2.704429704 | BC36: 2.730392229 | BD36: 2.755238799 | BE36: 2.771219184 | BF36: 2.777038744 | BG36: 2.781204302 | BH36: 2.795110323 | BI36: 2.805731743 | BJ36: 2.813868365 | BK36: 2.831877122 | BL36: 2.840655941 | BM36: 2.846337253 | BN36: 2.861992108 | BO36: 2.879164061 | BP36: 2.89125655 | BQ36: 2.89790644 | BR36: 2.900224765 | BS36: 2.904865125 | BT36: 2.911836801 | BU36: 2.922610597 | BV36: 2.929624863 | BW36: 2.955405561 | BX36: 2.9760934 | BY36: 2.997223663 | BZ36: 3.019103396 | CA36: 3.032085541 | CB36: 3.028750247 | CC36: 3.026630122 | CD36: 3.02451148 | CE36: 3.040843842 | CF36: 3.068819606 | CG36: 3.100428448 | CH36: 3.119031018 | CI36: 3.14834991 | CJ36: 3.165351 | CK36: 3.186242316 | CL36: 3.209183261 | CM36: 3.227475605 | CN36: 3.234576052 | CO36: 3.234576052 | CP36: 3.248161271 | CQ36: 3.262777997 | CR36: 3.273218886 | CS36: 3.291876234 | CT36: 3.308664803 | CU36: 3.325538993 | CV36: 3.338508595 | CW36: 3.344517911 | CX36: 3.365922826 | CY36: 3.384435401 | CZ36: 3.393234933 | DA36: 3.407825843 | DB36: 3.42316106 | DC36: 3.444726974 | DD36: 3.469184536 | DE36: 3.487918132 | DF36: 3.513728727 | DG36: 3.546055031 | DH36: 3.564494517 | DI36: 3.585881484 | DJ36: 3.607038185 | DK36: 3.619662818 | DL36: 3.629797874 | DM36: 3.625079137 | DN36: 3.630879264 | DO36: 3.640682638 | DP36: 3.662890802 | DQ36: 3.682670412 | DR36: 3.709185639 | DS36: 3.732553509 | DT36: 3.756441851 | DU36: 3.787244674 | DV36: 3.816785183 | DW36: 3.839685894 | DX36: 3.849669077 | DY36: 3.854673647 | DZ36: 3.86161206 | EA36: 3.880533959 | EB36: 3.895279988 | EC36: 3.915924972 | ED36: 3.940203706 | EE36: 3.998518721 | EF36: 4.044901538 | EG36: 4.105979552 | EH36: 4.135132006 | EI36: 4.176069813 | EJ36: 4.208225551 | EK36: 4.232633259 | EL36: 4.243214842 | EM36: 4.264855238 | EN36: 4.297694623 | EO36: 4.345399034 | EP36: 4.384507625 | EQ36: 4.45071369 | ER36: 4.49299547 | ES36: 4.51276465 | ET36: 4.541646344 | EU36: 4.586154478 | EV36: 4.607709404 | EW36: 4.637198744 | EX36: 4.65157406 | EY36: 4.65529532 | EZ36: 4.663209322 | FA36: 4.666473568 | FB36: 4.673006631 | FC36: 4.692633259 | FD36: 4.703895579 | FE36: 4.718948045 | FF36: 4.722723203 | FG36: 4.739725007 | FH36: 4.733539666 | FI36: 4.741586683 | FJ36: 4.740164207 | FK36: 4.740164207 | FL36: 4.740164207 | FM36: 4.740164207 | FN36: 4.740164207 | FO36: 4.740164207 | FP36: 4.740164207 | FQ36: 4.740164207 | FR36: 4.740164207 | FS36: 4.740164207 | FT36: 4.740164207 | FU36: 4.740164207 | FV36: 4.740164207 | FW36: 4.740164207 | FX36: 4.740164207 | FY36: 4.740164207 | FZ36: 4.740164207 | GA36: 4.740164207 | GB36: 4.740164207 | GC36: 4.740164207 | GD36: 4.740164207 | GE36: 4.740164207 | GF36: 4.740164207 | GG36: 4.740164207 | GH36: 4.740164207 | GI36: 4.740164207 | GJ36: 4.740164207 | GK36: 4.740164207 | GL36: 4.740164207 | GM36: 4.740164207 | GN36: 4.740164207 | GO36: 4.740164207 | GP36: 4.740164207 | GQ36: 4.740164207 | GR36: 4.740164207 | GS36: 4.740164207 | GT36: 4.740164207 | GU36: 4.740164207 | GV36: 4.740164207 | GW36: 4.740164207 | GX36: 4.740164207 | GY36: 4.740164207 | GZ36: 4.740164207 | HA36: 4.740164207 | HB36: 4.740164207 | HC36: 4.740164207 | HD36: 4.740164207 | HE36: 4.740164207 | HF36: 4.740164207 | HG36: 4.740164207 | HH36: 4.740164207 | HI36: 4.740164207 | HJ36: 4.740164207 | HK36: 4.740164207 | HL36: 4.740164207 | HM36: 4.740164207 | HN36: 4.740164207 | HO36: 4.740164207 | HP36: 4.740164207 | HQ36: 4.740164207 | HR36: 4.740164207 | HS36: 4.740164207 | HT36: 4.740164207 | HU36: 4.740164207 | HV36: 4.740164207 | HW36: 4.740164207 | HX36: 4.740164207 | HY36: 4.740164207 | HZ36: 4.740164207 | IA36: 4.740164207 | IB36: 4.740164207 | IC36: 4.740164207 | ID36: 4.740164207 | IE36: 4.740164207 | IF36: 4.740164207 | IG36: 4.740164207 | IH36: 4.740164207 | II36: 4.740164207 | IJ36: 4.740164207 | IK36: 4.740164207 | IL36: 4.740164207 | IM36: 4.740164207 | IN36: 4.740164207 | IO36: 4.740164207 | IP36: 4.740164207 | IQ36: 4.740164207 | IR36: 4.740164207 | IS36: 4.740164207 | IT36: 4.740164207 | IU36: 4.740164207 | IV36: 4.740164207 | IW36: 4.740164207 | IX36: 4.740164207 | IY36: 4.740164207
B37: 1997-02-01 | C37: 2.175518 | D37: 2.18400252 | E37: 2.196451335 | F37: 2.205456785 | G37: 2.214278612 | H37: 2.225350005 | I37: 2.24159506 | J37: 2.252803036 | K37: 2.256632801 | L37: 2.260469076 | M37: 2.27041514 | N37: 2.289940711 | O37: 2.302993373 | P37: 2.313126544 | Q37: 2.330012367 | R37: 2.35121548 | S37: 2.367673988 | T37: 2.365069547 | U37: 2.365779068 | V37: 2.365779068 | W37: 2.369327736 | X37: 2.383069837 | Y37: 2.395938414 | Z37: 2.405522168 | AA37: 2.414663152 | AB37: 2.420216877 | AC37: 2.426751463 | AD37: 2.429663565 | AE37: 2.432822127 | AF37: 2.431119152 | AG37: 2.433793383 | AH37: 2.433306624 | AI37: 2.437199915 | AJ37: 2.447679875 | AK37: 2.45796013 | AL37: 2.473199483 | AM37: 2.48531816 | AN37: 2.495756497 | AO37: 2.506737825 | AP37: 2.513255343 | AQ37: 2.519789807 | AR37: 2.527601156 | AS37: 2.535689479 | AT37: 2.550650047 | AU37: 2.557026673 | AV37: 2.564697753 | AW37: 2.575725953 | AX37: 2.600710495 | AY37: 2.618655397 | AZ37: 2.63201054 | BA37: 2.645433793 | BB37: 2.66236457 | BC37: 2.687923269 | BD37: 2.712383371 | BE37: 2.728115195 | BF37: 2.733844237 | BG37: 2.737945003 | BH37: 2.751634728 | BI37: 2.76209094 | BJ37: 2.770101004 | BK37: 2.78782965 | BL37: 2.796471922 | BM37: 2.802064866 | BN37: 2.817476223 | BO37: 2.83438108 | BP37: 2.846285481 | BQ37: 2.852831937 | BR37: 2.855114203 | BS37: 2.859682385 | BT37: 2.866545623 | BU37: 2.877151842 | BV37: 2.884057006 | BW37: 2.909436708 | BX37: 2.929802765 | BY37: 2.950604365 | BZ37: 2.972143776 | CA37: 2.984923995 | CB37: 2.981640578 | CC37: 2.97955343 | CD37: 2.977467742 | CE37: 2.993546068 | CF37: 3.021086692 | CG37: 3.052203885 | CH37: 3.070517108 | CI37: 3.099379969 | CJ37: 3.116116621 | CK37: 3.136682991 | CL37: 3.159267108 | CM37: 3.177274931 | CN37: 3.184264936 | CO37: 3.184264936 | CP37: 3.197638848 | CQ37: 3.212028223 | CR37: 3.222306713 | CS37: 3.240673862 | CT37: 3.257201298 | CU37: 3.273813025 | CV37: 3.286580896 | CW37: 3.292496741 | CX37: 3.313568721 | CY37: 3.331793349 | CZ37: 3.340456011 | DA37: 3.354819972 | DB37: 3.369916662 | DC37: 3.391147137 | DD37: 3.415224282 | DE37: 3.433666493 | DF37: 3.459075625 | DG37: 3.490899121 | DH37: 3.509051796 | DI37: 3.530106107 | DJ37: 3.550933733 | DK37: 3.563362001 | DL37: 3.573339414 | DM37: 3.568694073 | DN37: 3.574403984 | DO37: 3.584054875 | DP37: 3.605917609 | DQ37: 3.625389564 | DR37: 3.651492369 | DS37: 3.674496771 | DT37: 3.69801355 | DU37: 3.728337262 | DV37: 3.757418292 | DW37: 3.779962802 | DX37: 3.789790705 | DY37: 3.794717433 | DZ37: 3.801547925 | EA37: 3.820175509 | EB37: 3.834692176 | EC37: 3.855016045 | ED37: 3.878917144 | EE37: 3.936325118 | EF37: 3.981986489 | EG37: 4.042114485 | EH37: 4.070813498 | EI37: 4.111114552 | EJ37: 4.142770134 | EK37: 4.166798201 | EL37: 4.177215196 | EM37: 4.198518994 | EN37: 4.23084759 | EO37: 4.277809998 | EP37: 4.316310288 | EQ37: 4.381486574 | ER37: 4.423110696 | ES37: 4.442572383 | ET37: 4.471004846 | EU37: 4.514820694 | EV37: 4.536040351 | EW37: 4.565071009 | EX37: 4.579222729 | EY37: 4.582886108 | EZ37: 4.590677014 | FA37: 4.593890488 | FB37: 4.600321935 | FC37: 4.619643287 | FD37: 4.630730431 | FE37: 4.645548768 | FF37: 4.649265207 | FG37: 4.666002562 | FH37: 4.659913428 | FI37: 4.667835281 | FJ37: 4.666434931 | FK37: 4.666434931 | FL37: 4.666434931 | FM37: 4.666434931 | FN37: 4.666434931 | FO37: 4.666434931 | FP37: 4.666434931 | FQ37: 4.666434931 | FR37: 4.666434931 | FS37: 4.666434931 | FT37: 4.666434931 | FU37: 4.666434931 | FV37: 4.666434931 | FW37: 4.666434931 | FX37: 4.666434931 | FY37: 4.666434931 | FZ37: 4.666434931 | GA37: 4.666434931 | GB37: 4.666434931 | GC37: 4.666434931 | GD37: 4.666434931 | GE37: 4.666434931 | GF37: 4.666434931 | GG37: 4.666434931 | GH37: 4.666434931 | GI37: 4.666434931 | GJ37: 4.666434931 | GK37: 4.666434931 | GL37: 4.666434931 | GM37: 4.666434931 | GN37: 4.666434931 | GO37: 4.666434931 | GP37: 4.666434931 | GQ37: 4.666434931 | GR37: 4.666434931 | GS37: 4.666434931 | GT37: 4.666434931 | GU37: 4.666434931 | GV37: 4.666434931 | GW37: 4.666434931 | GX37: 4.666434931 | GY37: 4.666434931 | GZ37: 4.666434931 | HA37: 4.666434931 | HB37: 4.666434931 | HC37: 4.666434931 | HD37: 4.666434931 | HE37: 4.666434931 | HF37: 4.666434931 | HG37: 4.666434931 | HH37: 4.666434931 | HI37: 4.666434931 | HJ37: 4.666434931 | HK37: 4.666434931 | HL37: 4.666434931 | HM37: 4.666434931 | HN37: 4.666434931 | HO37: 4.666434931 | HP37: 4.666434931 | HQ37: 4.666434931 | HR37: 4.666434931 | HS37: 4.666434931 | HT37: 4.666434931 | HU37: 4.666434931 | HV37: 4.666434931 | HW37: 4.666434931 | HX37: 4.666434931 | HY37: 4.666434931 | HZ37: 4.666434931 | IA37: 4.666434931 | IB37: 4.666434931 | IC37: 4.666434931 | ID37: 4.666434931 | IE37: 4.666434931 | IF37: 4.666434931 | IG37: 4.666434931 | IH37: 4.666434931 | II37: 4.666434931 | IJ37: 4.666434931 | IK37: 4.666434931 | IL37: 4.666434931 | IM37: 4.666434931 | IN37: 4.666434931 | IO37: 4.666434931 | IP37: 4.666434931 | IQ37: 4.666434931 | IR37: 4.666434931 | IS37: 4.666434931 | IT37: 4.666434931 | IU37: 4.666434931 | IV37: 4.666434931 | IW37: 4.666434931 | IX37: 4.666434931 | IY37: 4.666434931
B38: 1997-03-01 | C38: 2.166419 | D38: 2.174868034 | E38: 2.187264782 | F38: 2.196232568 | G38: 2.205017498 | H38: 2.216042585 | I38: 2.232219696 | J38: 2.243380795 | K38: 2.247194542 | L38: 2.251014773 | M38: 2.260919238 | N38: 2.280363143 | O38: 2.293361213 | P38: 2.303452002 | Q38: 2.320267202 | R38: 2.341381634 | S38: 2.357771305 | T38: =S38*$T$137 -> 2.355177757 | U38: 2.35588431 | V38: 2.35588431 | W38: 2.359418136 | X38: 2.373102762 | Y38: 2.385917516 | Z38: =Y38*$Z$143 -> 2.395461186 | AA38: 2.404563939 | AB38: 2.410094436 | AC38: 2.416601691 | AD38: 2.419501613 | AE38: 2.422646965 | AF38: 2.420951112 | AG38: 2.423614159 | AH38: 2.423129436 | AI38: 2.427006443 | AJ38: 2.43744257 | AK38: =AJ38*$AK$154 -> 2.447679829 | AL38: 2.462855444 | AM38: 2.474923436 | AN38: 2.485318114 | AO38: 2.496253514 | AP38: =AO38*$AP$159 -> 2.502743773 | AQ38: 2.509250907 | AR38: 2.517029585 | AS38: 2.525084079 | AT38: 2.539982076 | AU38: 2.546332031 | AV38: 2.553971027 | AW38: 2.564953102 | AX38: =AW38*$AX$167 -> 2.589833147 | AY38: 2.607702996 | AZ38: 2.621002281 | BA38: 2.634369393 | BB38: 2.651229357 | BC38: 2.676681159 | BD38: 2.701038957 | BE38: 2.716704983 | BF38: 2.722410064 | BG38: 2.726493679 | BH38: 2.740126147 | BI38: =BH38*$BI$178 -> 2.750538627 | BJ38: 2.758515189 | BK38: 2.776169686 | BL38: 2.784775812 | BM38: 2.790345364 | BN38: =BM38*$BN$183 -> 2.805692263 | BO38: 2.822526417 | BP38: 2.834381028 | BQ38: 2.840900104 | BR38: 2.843172824 | BS38: 2.847721901 | BT38: 2.854556433 | BU38: 2.865118292 | BV38: 2.871994576 | BW38: 2.897268128 | BX38: 2.917549005 | BY38: =BX38*$BY$194 -> 2.938263603 | BZ38: 2.959712927 | CA38: 2.972439693 | CB38: 2.969170009 | CC38: 2.96709159 | CD38: =CC38*$CD$199 -> 2.965014626 | CE38: 2.981025705 | CF38: 3.008451142 | CG38: 3.039438188 | CH38: 3.057674817 | CI38: 3.086416961 | CJ38: =CI38*$CJ$205 -> 3.103083612 | CK38: 3.123563964 | CL38: 3.146053625 | CM38: 3.16398613 | CN38: 3.1709469 | CO38: 3.1709469 | CP38: 3.184264877 | CQ38: 3.198594069 | CR38: 3.20882957 | CS38: 3.227119898 | CT38: 3.24357821 | CU38: 3.260120459 | CV38: 3.272834928 | CW38: 3.278726031 | CX38: 3.299709878 | CY38: 3.317858282 | CZ38: 3.326484714 | DA38: 3.340788598 | DB38: 3.355822147 | DC38: 3.376963826 | DD38: 3.400940269 | DE38: 3.419305347 | DF38: 3.444608206 | DG38: 3.476298602 | DH38: 3.494375355 | DI38: 3.515341607 | DJ38: 3.536082122 | DK38: 3.54845841 | DL38: 3.558394093 | DM38: 3.553768181 | DN38: 3.55945421 | DO38: 3.569064736 | DP38: 3.590836031 | DQ38: 3.610226546 | DR38: 3.636220177 | DS38: 3.659128364 | DT38: 3.682546786 | DU38: 3.712743669 | DV38: 3.74170307 | DW38: 3.764153288 | DX38: 3.773940087 | DY38: 3.778846209 | DZ38: 3.785648132 | EA38: 3.804197808 | EB38: 3.81865376 | EC38: 3.838892625 | ED38: 3.862693759 | EE38: 3.919861626 | EF38: 3.965332021 | EG38: 4.025208535 | EH38: 4.053787515 | EI38: 4.093920012 | EJ38: 4.125443196 | EK38: 4.149370767 | EL38: 4.159744193 | EM38: 4.180958889 | EN38: 4.213152272 | EO38: 4.259918262 | EP38: 4.298257527 | EQ38: 4.363161216 | ER38: 4.404611247 | ES38: 4.423991537 | ET38: 4.452305082 | EU38: 4.495937672 | EV38: 4.517068579 | EW38: 4.545977818 | EX38: 4.560070349 | EY38: 4.563718406 | EZ38: 4.571476727 | FA38: 4.574676761 | FB38: 4.581081308 | FC38: 4.60032185 | FD38: 4.611362622 | FE38: 4.626118982 | FF38: 4.629819878 | FG38: 4.646487229 | FH38: 4.640423563 | FI38: 4.648312283 | FJ38: 4.64691779 | FK38: 4.64691779 | FL38: 4.64691779 | FM38: 4.64691779 | FN38: 4.64691779 | FO38: 4.64691779 | FP38: 4.64691779 | FQ38: 4.64691779 | FR38: 4.64691779 | FS38: 4.64691779 | FT38: 4.64691779 | FU38: 4.64691779 | FV38: 4.64691779 | FW38: 4.64691779 | FX38: 4.64691779 | FY38: 4.64691779 | FZ38: 4.64691779 | GA38: 4.64691779 | GB38: 4.64691779 | GC38: 4.64691779 | GD38: 4.64691779 | GE38: 4.64691779 | GF38: 4.64691779 | GG38: 4.64691779 | GH38: 4.64691779 | GI38: 4.64691779 | GJ38: 4.64691779 | GK38: 4.64691779 | GL38: 4.64691779 | GM38: 4.64691779 | GN38: 4.64691779 | GO38: 4.64691779 | GP38: 4.64691779 | GQ38: 4.64691779 | GR38: 4.64691779 | GS38: 4.64691779 | GT38: 4.64691779 | GU38: 4.64691779 | GV38: 4.64691779 | GW38: 4.64691779 | GX38: 4.64691779 | GY38: 4.64691779 | GZ38: 4.64691779 | HA38: 4.64691779 | HB38: 4.64691779 | HC38: 4.64691779 | HD38: 4.64691779 | HE38: 4.64691779 | HF38: 4.64691779 | HG38: 4.64691779 | HH38: 4.64691779 | HI38: 4.64691779 | HJ38: 4.64691779 | HK38: 4.64691779 | HL38: 4.64691779 | HM38: 4.64691779 | HN38: 4.64691779 | HO38: 4.64691779 | HP38: 4.64691779 | HQ38: 4.64691779 | HR38: 4.64691779 | HS38: 4.64691779 | HT38: 4.64691779 | HU38: 4.64691779 | HV38: 4.64691779 | HW38: 4.64691779 | HX38: 4.64691779 | HY38: 4.64691779 | HZ38: 4.64691779 | IA38: 4.64691779 | IB38: 4.64691779 | IC38: 4.64691779 | ID38: 4.64691779 | IE38: 4.64691779 | IF38: 4.64691779 | IG38: 4.64691779 | IH38: 4.64691779 | II38: 4.64691779 | IJ38: 4.64691779 | IK38: 4.64691779 | IL38: 4.64691779 | IM38: 4.64691779 | IN38: 4.64691779 | IO38: 4.64691779 | IP38: 4.64691779 | IQ38: 4.64691779 | IR38: 4.64691779 | IS38: 4.64691779 | IT38: 4.64691779 | IU38: 4.64691779 | IV38: 4.64691779 | IW38: 4.64691779 | IX38: 4.64691779 | IY38: 4.64691779
B39: 1997-04-01 | C39: 2.141577 | D39: 2.14992915 | E39: 2.162183746 | F39: 2.1710487 | G39: 2.179732895 | H39: 2.190631559 | I39: 2.206623169 | J39: 2.217656285 | K39: 2.221426301 | L39: 2.225202726 | M39: 2.234993618 | N39: 2.254214563 | O39: 2.267063586 | P39: 2.277038666 | Q39: 2.293661048 | R39: 2.314533363 | S39: 2.330735097 | T39: 2.328171288 | U39: 2.32886974 | V39: 2.32886974 | W39: 2.332363044 | X39: 2.34589075 | Y39: 2.35855856 | Z39: 2.367992794 | AA39: 2.376991167 | AB39: 2.382458247 | AC39: 2.388890884 | AD39: 2.391757553 | AE39: 2.394866838 | AF39: 2.393190431 | AG39: 2.39582294 | AH39: 2.395343776 | AI39: 2.399176326 | AJ39: 2.409492784 | AK39: 2.419612654 | AL39: 2.434614252 | AM39: 2.446543862 | AN39: 2.456819346 | AO39: 2.467629351 | AP39: 2.474045188 | AQ39: 2.480477705 | AR39: 2.488167186 | AS39: 2.496129321 | AT39: 2.510856484 | AU39: 2.517133625 | AV39: 2.524685026 | AW39: 2.535541172 | AX39: 2.560135921 | AY39: 2.577800859 | AZ39: 2.590947643 | BA39: 2.604161476 | BB39: 2.62082811 | BC39: 2.64598806 | BD39: 2.670066551 | BE39: 2.685552937 | BF39: 2.691192598 | BG39: 2.695229387 | BH39: 2.708705534 | BI39: 2.718998615 | BJ39: 2.726883711 | BK39: 2.744335767 | BL39: 2.752843208 | BM39: 2.758348894 | BN39: 2.773519813 | BO39: 2.790160932 | BP39: 2.801879608 | BQ39: 2.808323931 | BR39: 2.81057059 | BS39: 2.815067503 | BT39: 2.821823665 | BU39: 2.832264413 | BV39: 2.839061847 | BW39: 2.864045591 | BX39: 2.884093911 | BY39: 2.904570977 | BZ39: 2.925774345 | CA39: 2.938355175 | CB39: 2.935122984 | CC39: 2.933068398 | CD39: 2.93101525 | CE39: 2.946842733 | CF39: 2.973953686 | CG39: 3.004585409 | CH39: 3.022612921 | CI39: 3.051025483 | CJ39: 3.06750102 | CK39: 3.087746527 | CL39: 3.109978302 | CM39: 3.127705178 | CN39: 3.13458613 | CO39: 3.13458613 | CP39: 3.147751392 | CQ39: 3.161916273 | CR39: 3.172034405 | CS39: 3.190115001 | CT39: 3.206384588 | CU39: 3.222737149 | CV39: 3.235305824 | CW39: 3.241129374 | CX39: 3.261872602 | CY39: 3.279812902 | CZ39: 3.288340415 | DA39: 3.302480279 | DB39: 3.31734144 | DC39: 3.338240691 | DD39: 3.3619422 | DE39: 3.380096688 | DF39: 3.405109404 | DG39: 3.43643641 | DH39: 3.454305879 | DI39: 3.475031715 | DJ39: 3.495534402 | DK39: 3.507768772 | DL39: 3.517590525 | DM39: 3.513017657 | DN39: 3.518638485 | DO39: 3.528138809 | DP39: 3.549660456 | DQ39: 3.568828622 | DR39: 3.594524189 | DS39: 3.617169691 | DT39: 3.640319577 | DU39: 3.670170197 | DV39: 3.698797525 | DW39: 3.72099031 | DX39: 3.730664885 | DY39: 3.735514749 | DZ39: 3.742238676 | EA39: 3.760575645 | EB39: 3.774865833 | EC39: 3.794872622 | ED39: 3.818400832 | EE39: 3.874913164 | EF39: 3.919862157 | EG39: 3.979052076 | EH39: 4.007303345 | EI39: 4.046975648 | EJ39: 4.078137361 | EK39: 4.101790558 | EL39: 4.112045034 | EM39: 4.133016464 | EN39: 4.16484069 | EO39: 4.211070422 | EP39: 4.248970056 | EQ39: 4.313129504 | ER39: 4.354104234 | ES39: 4.373262293 | ET39: 4.401251171 | EU39: 4.444383433 | EV39: 4.465272035 | EW39: 4.493849776 | EX39: 4.50778071 | EY39: 4.511386935 | EZ39: 4.519056293 | FA39: 4.522219632 | FB39: 4.52855074 | FC39: 4.547570653 | FD39: 4.558484822 | FE39: 4.573071974 | FF39: 4.576730431 | FG39: 4.593206661 | FH39: 4.587212526 | FI39: 4.595010787 | FJ39: 4.593632284 | FK39: 4.593632284 | FL39: 4.593632284 | FM39: 4.593632284 | FN39: 4.593632284 | FO39: 4.593632284 | FP39: 4.593632284 | FQ39: 4.593632284 | FR39: 4.593632284 | FS39: 4.593632284 | FT39: 4.593632284 | FU39: 4.593632284 | FV39: 4.593632284 | FW39: 4.593632284 | FX39: 4.593632284 | FY39: 4.593632284 | FZ39: 4.593632284 | GA39: 4.593632284 | GB39: 4.593632284 | GC39: 4.593632284 | GD39: 4.593632284 | GE39: 4.593632284 | GF39: 4.593632284 | GG39: 4.593632284 | GH39: 4.593632284 | GI39: 4.593632284 | GJ39: 4.593632284 | GK39: 4.593632284 | GL39: 4.593632284 | GM39: 4.593632284 | GN39: 4.593632284 | GO39: 4.593632284 | GP39: 4.593632284 | GQ39: 4.593632284 | GR39: 4.593632284 | GS39: 4.593632284 | GT39: 4.593632284 | GU39: 4.593632284 | GV39: 4.593632284 | GW39: 4.593632284 | GX39: 4.593632284 | GY39: 4.593632284 | GZ39: 4.593632284 | HA39: 4.593632284 | HB39: 4.593632284 | HC39: 4.593632284 | HD39: 4.593632284 | HE39: 4.593632284 | HF39: 4.593632284 | HG39: 4.593632284 | HH39: 4.593632284 | HI39: 4.593632284 | HJ39: 4.593632284 | HK39: 4.593632284 | HL39: 4.593632284 | HM39: 4.593632284 | HN39: 4.593632284 | HO39: 4.593632284 | HP39: 4.593632284 | HQ39: 4.593632284 | HR39: 4.593632284 | HS39: 4.593632284 | HT39: 4.593632284 | HU39: 4.593632284 | HV39: 4.593632284 | HW39: 4.593632284 | HX39: 4.593632284 | HY39: 4.593632284 | HZ39: 4.593632284 | IA39: 4.593632284 | IB39: 4.593632284 | IC39: 4.593632284 | ID39: 4.593632284 | IE39: 4.593632284 | IF39: 4.593632284 | IG39: 4.593632284 | IH39: 4.593632284 | II39: 4.593632284 | IJ39: 4.593632284 | IK39: 4.593632284 | IL39: 4.593632284 | IM39: 4.593632284 | IN39: 4.593632284 | IO39: 4.593632284 | IP39: 4.593632284 | IQ39: 4.593632284 | IR39: 4.593632284 | IS39: 4.593632284 | IT39: 4.593632284 | IU39: 4.593632284 | IV39: 4.593632284 | IW39: 4.593632284 | IX39: 4.593632284 | IY39: 4.593632284
B40: 1997-05-01 | C40: 2.129015 | D40: 2.137318158 | E40: 2.149500872 | F40: 2.158313826 | G40: 2.166947081 | H40: 2.177781816 | I40: 2.193679624 | J40: 2.204648022 | K40: 2.208395923 | L40: 2.212150196 | M40: 2.221883657 | N40: 2.240991857 | O40: 2.25376551 | P40: 2.263682079 | Q40: 2.280206958 | R40: 2.300956841 | S40: 2.317063539 | T40: 2.314514769 | U40: 2.315209123 | V40: 2.315209123 | W40: 2.318681937 | X40: 2.332130292 | Y40: 2.344723796 | Z40: 2.354102691 | AA40: 2.363048281 | AB40: 2.368483292 | AC40: 2.374878197 | AD40: 2.377728051 | AE40: 2.380819098 | AF40: 2.379152524 | AG40: 2.381769592 | AH40: 2.381293238 | AI40: 2.385103307 | AJ40: 2.395359251 | AK40: 2.40541976 | AL40: 2.420333363 | AM40: 2.432192996 | AN40: 2.442408207 | AO40: 2.453154803 | AP40: 2.459533005 | AQ40: 2.465927791 | AR40: 2.473572167 | AS40: 2.481487598 | AT40: 2.496128375 | AU40: 2.502368696 | AV40: 2.509875802 | AW40: 2.520668268 | AX40: 2.54511875 | AY40: 2.56268007 | AZ40: 2.575749738 | BA40: 2.588886062 | BB40: 2.605454933 | BC40: 2.6304673 | BD40: 2.654404552 | BE40: 2.669800099 | BF40: 2.675406679 | BG40: 2.679419789 | BH40: 2.692816888 | BI40: 2.703049592 | BJ40: 2.710888436 | BK40: 2.728238122 | BL40: 2.73669566 | BM40: 2.742169051 | BN40: 2.757250981 | BO40: 2.773794487 | BP40: 2.785444424 | BQ40: 2.791850946 | BR40: 2.794084427 | BS40: 2.798554962 | BT40: 2.805271494 | BU40: 2.815650998 | BV40: 2.822408561 | BW40: 2.847245756 | BX40: 2.867176476 | BY40: 2.887533429 | BZ40: 2.908612423 | CA40: 2.921119457 | CB40: 2.917906225 | CC40: 2.915863691 | CD40: 2.913822587 | CE40: 2.929557228 | CF40: 2.956509155 | CG40: 2.986961199 | CH40: 3.004882966 | CI40: 3.033128866 | CJ40: 3.049507762 | CK40: 3.069634513 | CL40: 3.091735882 | CM40: 3.109358777 | CN40: 3.116199366 | CO40: 3.116199366 | CP40: 3.129287403 | CQ40: 3.143369196 | CR40: 3.153427978 | CS40: 3.171402517 | CT40: 3.18757667 | CU40: 3.203833311 | CV40: 3.216328261 | CW40: 3.222117652 | CX40: 3.242739205 | CY40: 3.260574271 | CZ40: 3.269051764 | DA40: 3.283108686 | DB40: 3.297882675 | DC40: 3.318659336 | DD40: 3.342221818 | DE40: 3.360269815 | DF40: 3.385135812 | DG40: 3.416279061 | DH40: 3.434043713 | DI40: 3.454647975 | DJ40: 3.475030398 | DK40: 3.487193004 | DL40: 3.496957145 | DM40: 3.4924111 | DN40: 3.497998958 | DO40: 3.507443555 | DP40: 3.528838961 | DQ40: 3.547894691 | DR40: 3.573439533 | DS40: 3.595952202 | DT40: 3.618966296 | DU40: 3.64864182 | DV40: 3.677101226 | DW40: 3.699163834 | DX40: 3.70878166 | DY40: 3.713603076 | DZ40: 3.720287561 | EA40: 3.73851697 | EB40: 3.752723335 | EC40: 3.772612768 | ED40: 3.796002968 | EE40: 3.852183812 | EF40: 3.896869144 | EG40: 3.955711868 | EH40: 3.983797422 | EI40: 4.023237017 | EJ40: 4.054215942 | EK40: 4.077730394 | EL40: 4.08792472 | EM40: 4.108773136 | EN40: 4.140410689 | EO40: 4.186369248 | EP40: 4.224046571 | EQ40: 4.287829674 | ER40: 4.328564056 | ES40: 4.347609738 | ET40: 4.37543444 | EU40: 4.418313698 | EV40: 4.439079772 | EW40: 4.467489883 | EX40: 4.481339101 | EY40: 4.484924173 | EZ40: 4.492548544 | FA40: 4.495693328 | FB40: 4.501987298 | FC40: 4.520895645 | FD40: 4.531745795 | FE40: 4.546247381 | FF40: 4.549884379 | FG40: 4.566263963 | FH40: 4.560304988 | FI40: 4.568057507 | FJ40: 4.56668709 | FK40: 4.56668709 | FL40: 4.56668709 | FM40: 4.56668709 | FN40: 4.56668709 | FO40: 4.56668709 | FP40: 4.56668709 | FQ40: 4.56668709 | FR40: 4.56668709 | FS40: 4.56668709 | FT40: 4.56668709 | FU40: 4.56668709 | FV40: 4.56668709 | FW40: 4.56668709 | FX40: 4.56668709 | FY40: 4.56668709 | FZ40: 4.56668709 | GA40: 4.56668709 | GB40: 4.56668709 | GC40: 4.56668709 | GD40: 4.56668709 | GE40: 4.56668709 | GF40: 4.56668709 | GG40: 4.56668709 | GH40: 4.56668709 | GI40: 4.56668709 | GJ40: 4.56668709 | GK40: 4.56668709 | GL40: 4.56668709 | GM40: 4.56668709 | GN40: 4.56668709 | GO40: 4.56668709 | GP40: 4.56668709 | GQ40: 4.56668709 | GR40: 4.56668709 | GS40: 4.56668709 | GT40: 4.56668709 | GU40: 4.56668709 | GV40: 4.56668709 | GW40: 4.56668709 | GX40: 4.56668709 | GY40: 4.56668709 | GZ40: 4.56668709 | HA40: 4.56668709 | HB40: 4.56668709 | HC40: 4.56668709 | HD40: 4.56668709 | HE40: 4.56668709 | HF40: 4.56668709 | HG40: 4.56668709 | HH40: 4.56668709 | HI40: 4.56668709 | HJ40: 4.56668709 | HK40: 4.56668709 | HL40: 4.56668709 | HM40: 4.56668709 | HN40: 4.56668709 | HO40: 4.56668709 | HP40: 4.56668709 | HQ40: 4.56668709 | HR40: 4.56668709 | HS40: 4.56668709 | HT40: 4.56668709 | HU40: 4.56668709 | HV40: 4.56668709 | HW40: 4.56668709 | HX40: 4.56668709 | HY40: 4.56668709 | HZ40: 4.56668709 | IA40: 4.56668709 | IB40: 4.56668709 | IC40: 4.56668709 | ID40: 4.56668709 | IE40: 4.56668709 | IF40: 4.56668709 | IG40: 4.56668709 | IH40: 4.56668709 | II40: 4.56668709 | IJ40: 4.56668709 | IK40: 4.56668709 | IL40: 4.56668709 | IM40: 4.56668709 | IN40: 4.56668709 | IO40: 4.56668709 | IP40: 4.56668709 | IQ40: 4.56668709 | IR40: 4.56668709 | IS40: 4.56668709 | IT40: 4.56668709 | IU40: 4.56668709 | IV40: 4.56668709 | IW40: 4.56668709 | IX40: 4.56668709 | IY40: 4.56668709
B41: 1997-06-01 | C41: 2.122648 | D41: 2.130926327 | E41: 2.143072607 | F41: 2.151859205 | G41: 2.160466642 | H41: 2.171268975 | I41: 2.187119239 | J41: 2.198054835 | K41: 2.201791528 | L41: 2.205534574 | M41: 2.215238926 | N41: 2.23428998 | O41: 2.247025433 | P41: 2.256912345 | Q41: 2.273387805 | R41: 2.294075634 | S41: 2.310134164 | T41: 2.307593016 | U41: 2.308285294 | V41: 2.308285294 | W41: 2.311747722 | X41: 2.325155859 | Y41: 2.3377117 | Z41: 2.347062547 | AA41: 2.355981385 | AB41: 2.361400142 | AC41: 2.367775923 | AD41: 2.370617254 | AE41: 2.373699056 | AF41: 2.372037467 | AG41: 2.374646708 | AH41: 2.374171779 | AI41: 2.377970453 | AJ41: 2.388195726 | AK41: 2.398226148 | AL41: 2.413095151 | AM41: 2.424919317 | AN41: 2.435103978 | AO41: 2.445818435 | AP41: 2.452177563 | AQ41: 2.458553225 | AR41: 2.46617474 | AS41: 2.474066499 | AT41: 2.488663492 | AU41: 2.49488515 | AV41: 2.502369806 | AW41: 2.513129996 | AX41: 2.537507357 | AY41: 2.555016158 | AZ41: 2.56804674 | BA41: 2.581143778 | BB41: 2.597663099 | BC41: 2.622600664 | BD41: 2.64646633 | BE41: 2.661815835 | BF41: 2.667405648 | BG41: 2.671406757 | BH41: 2.684763791 | BI41: 2.694965893 | BJ41: 2.702781294 | BK41: 2.720079094 | BL41: 2.72851134 | BM41: 2.733968362 | BN41: 2.749005188 | BO41: 2.765499219 | BP41: 2.777114316 | BQ41: 2.783501679 | BR41: 2.78572848 | BS41: 2.790185646 | BT41: 2.796882091 | BU41: 2.807230555 | BV41: 2.813967909 | BW41: 2.838730826 | BX41: 2.858601942 | BY41: 2.878898016 | BZ41: 2.899913971 | CA41: 2.912383601 | CB41: 2.909179979 | CC41: 2.907143553 | CD41: 2.905108553 | CE41: 2.920796139 | CF41: 2.947667464 | CG41: 2.978028438 | CH41: 2.995896609 | CI41: 3.024058037 | CJ41: 3.040387951 | CK41: 3.060454511 | CL41: 3.082489783 | CM41: 3.100059975 | CN41: 3.106880107 | CO41: 3.106880107 | CP41: 3.119929004 | CQ41: 3.133968684 | CR41: 3.143997384 | CS41: 3.161918169 | CT41: 3.178043952 | CU41: 3.194251976 | CV41: 3.206709559 | CW41: 3.212481636 | CX41: 3.233041518 | CY41: 3.250823247 | CZ41: 3.259275387 | DA41: 3.273290271 | DB41: 3.288020077 | DC41: 3.308734604 | DD41: 3.33222662 | DE41: 3.350220643 | DF41: 3.375012276 | DG41: 3.406062389 | DH41: 3.423773913 | DI41: 3.444316557 | DJ41: 3.464638025 | DK41: 3.476764258 | DL41: 3.486499198 | DM41: 3.481966749 | DN41: 3.487537895 | DO41: 3.496954248 | DP41: 3.518285669 | DQ41: 3.537284411 | DR41: 3.562752859 | DS41: 3.585198202 | DT41: 3.608143471 | DU41: 3.637730247 | DV41: 3.666104543 | DW41: 3.68810117 | DX41: 3.697690233 | DY41: 3.702497231 | DZ41: 3.709161726 | EA41: 3.727336618 | EB41: 3.741500497 | EC41: 3.76133045 | ED41: 3.784650699 | EE41: 3.840663529 | EF41: 3.885215226 | EG41: 3.943881976 | EH41: 3.971883538 | EI41: 4.011205185 | EJ41: 4.042091465 | EK41: 4.065535595 | EL41: 4.075699434 | EM41: 4.096485501 | EN41: 4.12802844 | EO41: 4.173849555 | EP41: 4.211414201 | EQ41: 4.275006556 | ER41: 4.315619118 | ES41: 4.334607842 | ET41: 4.362349332 | EU41: 4.405100356 | EV41: 4.425804328 | EW41: 4.454129475 | EX41: 4.467937277 | EY41: 4.471511626 | EZ41: 4.479113196 | FA41: 4.482248575 | FB41: 4.488523723 | FC41: 4.507375523 | FD41: 4.518193224 | FE41: 4.532651443 | FF41: 4.536277564 | FG41: 4.552608163 | FH41: 4.546667009 | FI41: 4.554396343 | FJ41: 4.553030024 | FK41: 4.553030024 | FL41: 4.553030024 | FM41: 4.553030024 | FN41: 4.553030024 | FO41: 4.553030024 | FP41: 4.553030024 | FQ41: 4.553030024 | FR41: 4.553030024 | FS41: 4.553030024 | FT41: 4.553030024 | FU41: 4.553030024 | FV41: 4.553030024 | FW41: 4.553030024 | FX41: 4.553030024 | FY41: 4.553030024 | FZ41: 4.553030024 | GA41: 4.553030024 | GB41: 4.553030024 | GC41: 4.553030024 | GD41: 4.553030024 | GE41: 4.553030024 | GF41: 4.553030024 | GG41: 4.553030024 | GH41: 4.553030024 | GI41: 4.553030024 | GJ41: 4.553030024 | GK41: 4.553030024 | GL41: 4.553030024 | GM41: 4.553030024 | GN41: 4.553030024 | GO41: 4.553030024 | GP41: 4.553030024 | GQ41: 4.553030024 | GR41: 4.553030024 | GS41: 4.553030024 | GT41: 4.553030024 | GU41: 4.553030024 | GV41: 4.553030024 | GW41: 4.553030024 | GX41: 4.553030024 | GY41: 4.553030024 | GZ41: 4.553030024 | HA41: 4.553030024 | HB41: 4.553030024 | HC41: 4.553030024 | HD41: 4.553030024 | HE41: 4.553030024 | HF41: 4.553030024 | HG41: 4.553030024 | HH41: 4.553030024 | HI41: 4.553030024 | HJ41: 4.553030024 | HK41: 4.553030024 | HL41: 4.553030024 | HM41: 4.553030024 | HN41: 4.553030024 | HO41: 4.553030024 | HP41: 4.553030024 | HQ41: 4.553030024 | HR41: 4.553030024 | HS41: 4.553030024 | HT41: 4.553030024 | HU41: 4.553030024 | HV41: 4.553030024 | HW41: 4.553030024 | HX41: 4.553030024 | HY41: 4.553030024 | HZ41: 4.553030024 | IA41: 4.553030024 | IB41: 4.553030024 | IC41: 4.553030024 | ID41: 4.553030024 | IE41: 4.553030024 | IF41: 4.553030024 | IG41: 4.553030024 | IH41: 4.553030024 | II41: 4.553030024 | IJ41: 4.553030024 | IK41: 4.553030024 | IL41: 4.553030024 | IM41: 4.553030024 | IN41: 4.553030024 | IO41: 4.553030024 | IP41: 4.553030024 | IQ41: 4.553030024 | IR41: 4.553030024 | IS41: 4.553030024 | IT41: 4.553030024 | IU41: 4.553030024 | IV41: 4.553030024 | IW41: 4.553030024 | IX41: 4.553030024 | IY41: 4.553030024
B42: 1997-07-01 | C42: 2.107892 | D42: 2.116112779 | E42: 2.128174622 | F42: 2.136900138 | G42: 2.145447738 | H42: 2.156174977 | I42: 2.171915054 | J42: 2.182774629 | K42: 2.186485346 | L42: 2.190202371 | M42: 2.199839262 | N42: 2.218757879 | O42: 2.231404799 | P42: 2.241222981 | Q42: 2.257583908 | R42: 2.278127922 | S42: 2.294074817 | T42: 2.291551335 | U42: 2.2922388 | V42: 2.2922388 | W42: 2.295677159 | X42: 2.308992086 | Y42: 2.321460643 | Z42: 2.330746486 | AA42: 2.339603323 | AB42: 2.34498441 | AC42: 2.351315868 | AD42: 2.354137447 | AE42: 2.357197826 | AF42: 2.355547787 | AG42: 2.35813889 | AH42: 2.357667262 | AI42: 2.36143953 | AJ42: 2.37159372 | AK42: 2.381554413 | AL42: 2.396320051 | AM42: 2.408062019 | AN42: 2.418175879 | AO42: 2.428815853 | AP42: 2.435130775 | AQ42: 2.441462115 | AR42: 2.449030647 | AS42: 2.456867545 | AT42: 2.471363064 | AU42: 2.477541471 | AV42: 2.484974096 | AW42: 2.495659484 | AX42: 2.519867381 | AY42: 2.537254466 | AZ42: 2.550194464 | BA42: 2.563200456 | BB42: 2.579604939 | BC42: 2.604369146 | BD42: 2.628068905 | BE42: 2.643311705 | BF42: 2.64886266 | BG42: 2.652835954 | BH42: 2.666100133 | BI42: 2.676231314 | BJ42: 2.683992385 | BK42: 2.701169936 | BL42: 2.709543563 | BM42: 2.71496265 | BN42: 2.729894945 | BO42: 2.746274314 | BP42: 2.757808666 | BQ42: 2.764151626 | BR42: 2.766362948 | BS42: 2.770789128 | BT42: 2.777439022 | BU42: 2.787715547 | BV42: 2.794406064 | BW42: 2.818996837 | BX42: 2.838729815 | BY42: 2.858884797 | BZ42: 2.879754656 | CA42: 2.892137601 | CB42: 2.888956249 | CC42: 2.88693398 | CD42: 2.884913126 | CE42: 2.900491657 | CF42: 2.92717618 | CG42: 2.957326095 | CH42: 2.975070052 | CI42: 3.00303571 | CJ42: 3.019252103 | CK42: 3.039179167 | CL42: 3.061061257 | CM42: 3.078509306 | CN42: 3.085282026 | CO42: 3.085282026 | CP42: 3.098240211 | CQ42: 3.112182292 | CR42: 3.122141275 | CS42: 3.139937481 | CT42: 3.155951162 | CU42: 3.172046513 | CV42: 3.184417494 | CW42: 3.190149446 | CX42: 3.210566402 | CY42: 3.228224517 | CZ42: 3.236617901 | DA42: 3.250535358 | DB42: 3.265162767 | DC42: 3.285733292 | DD42: 3.309061999 | DE42: 3.326930934 | DF42: 3.351550223 | DG42: 3.382384485 | DH42: 3.399972884 | DI42: 3.420372721 | DJ42: 3.44055292 | DK42: 3.452594855 | DL42: 3.462262121 | DM42: 3.45776118 | DN42: 3.463293598 | DO42: 3.472644491 | DP42: 3.493827622 | DQ42: 3.512694291 | DR42: 3.53798569 | DS42: 3.560275 | DT42: 3.58306076 | DU42: 3.612441858 | DV42: 3.640618905 | DW42: 3.662462618 | DX42: 3.671985021 | DY42: 3.676758602 | DZ42: 3.683376767 | EA42: 3.701425313 | EB42: 3.71549073 | EC42: 3.73518283 | ED42: 3.758340964 | EE42: 3.81396441 | EF42: 3.858206397 | EG42: 3.916465314 | EH42: 3.944272218 | EI42: 3.983320513 | EJ42: 4.013992081 | EK42: 4.037273235 | EL42: 4.047366418 | EM42: 4.068007986 | EN42: 4.099331648 | EO42: 4.144834229 | EP42: 4.182137737 | EQ42: 4.245288017 | ER42: 4.285618253 | ES42: 4.304474974 | ET42: 4.332023613 | EU42: 4.374477445 | EV42: 4.395037489 | EW42: 4.423165729 | EX42: 4.436877543 | EY42: 4.440427045 | EZ42: 4.447975771 | FA42: 4.451089354 | FB42: 4.457320879 | FC42: 4.476041626 | FD42: 4.486784126 | FE42: 4.501141836 | FF42: 4.504742749 | FG42: 4.520959823 | FH42: 4.51505997 | FI42: 4.522735572 | FJ42: 4.521378752 | FK42: 4.521378752 | FL42: 4.521378752 | FM42: 4.521378752 | FN42: 4.521378752 | FO42: 4.521378752 | FP42: 4.521378752 | FQ42: 4.521378752 | FR42: 4.521378752 | FS42: 4.521378752 | FT42: 4.521378752 | FU42: 4.521378752 | FV42: 4.521378752 | FW42: 4.521378752 | FX42: 4.521378752 | FY42: 4.521378752 | FZ42: 4.521378752 | GA42: 4.521378752 | GB42: 4.521378752 | GC42: 4.521378752 | GD42: 4.521378752 | GE42: 4.521378752 | GF42: 4.521378752 | GG42: 4.521378752 | GH42: 4.521378752 | GI42: 4.521378752 | GJ42: 4.521378752 | GK42: 4.521378752 | GL42: 4.521378752 | GM42: 4.521378752 | GN42: 4.521378752 | GO42: 4.521378752 | GP42: 4.521378752 | GQ42: 4.521378752 | GR42: 4.521378752 | GS42: 4.521378752 | GT42: 4.521378752 | GU42: 4.521378752 | GV42: 4.521378752 | GW42: 4.521378752 | GX42: 4.521378752 | GY42: 4.521378752 | GZ42: 4.521378752 | HA42: 4.521378752 | HB42: 4.521378752 | HC42: 4.521378752 | HD42: 4.521378752 | HE42: 4.521378752 | HF42: 4.521378752 | HG42: 4.521378752 | HH42: 4.521378752 | HI42: 4.521378752 | HJ42: 4.521378752 | HK42: 4.521378752 | HL42: 4.521378752 | HM42: 4.521378752 | HN42: 4.521378752 | HO42: 4.521378752 | HP42: 4.521378752 | HQ42: 4.521378752 | HR42: 4.521378752 | HS42: 4.521378752 | HT42: 4.521378752 | HU42: 4.521378752 | HV42: 4.521378752 | HW42: 4.521378752 | HX42: 4.521378752 | HY42: 4.521378752 | HZ42: 4.521378752 | IA42: 4.521378752 | IB42: 4.521378752 | IC42: 4.521378752 | ID42: 4.521378752 | IE42: 4.521378752 | IF42: 4.521378752 | IG42: 4.521378752 | IH42: 4.521378752 | II42: 4.521378752 | IJ42: 4.521378752 | IK42: 4.521378752 | IL42: 4.521378752 | IM42: 4.521378752 | IN42: 4.521378752 | IO42: 4.521378752 | IP42: 4.521378752 | IQ42: 4.521378752 | IR42: 4.521378752 | IS42: 4.521378752 | IT42: 4.521378752 | IU42: 4.521378752 | IV42: 4.521378752 | IW42: 4.521378752 | IX42: 4.521378752 | IY42: 4.521378752
B43: 1997-08-01 | C43: 2.105997 | D43: 2.114210388 | E43: 2.126261388 | F43: 2.134979059 | G43: 2.143518975 | H43: 2.15423657 | I43: 2.169962497 | J43: 2.18081231 | K43: 2.184519691 | L43: 2.188233374 | M43: 2.197861601 | N43: 2.216763211 | O43: 2.229398761 | P43: 2.239208116 | Q43: 2.255554335 | R43: 2.276079879 | S43: 2.292012438 | T43: 2.289491225 | U43: 2.290178072 | V43: 2.290178072 | W43: 2.293613339 | X43: 2.306916297 | Y43: 2.319373645 | Z43: 2.328651139 | AA43: 2.337500014 | AB43: 2.342876264 | AC43: 2.349202029 | AD43: 2.352021072 | AE43: 2.355078699 | AF43: 2.353430144 | AG43: 2.356018917 | AH43: 2.355547714 | AI43: 2.35931659 | AJ43: 2.369461651 | AK43: 2.37941339 | AL43: 2.394165753 | AM43: 2.405897165 | AN43: 2.416001934 | AO43: 2.426632342 | AP43: 2.432941586 | AQ43: 2.439267234 | AR43: 2.446828963 | AS43: 2.454658815 | AT43: 2.469141302 | AU43: 2.475314156 | AV43: 2.482740098 | AW43: 2.493415881 | AX43: 2.517602015 | AY43: 2.534973468 | AZ43: 2.547901833 | BA43: 2.560896132 | BB43: 2.577285868 | BC43: 2.602027812 | BD43: 2.625706265 | BE43: 2.640935361 | BF43: 2.646481326 | BG43: 2.650451048 | BH43: 2.663703303 | BI43: 2.673825376 | BJ43: 2.681579469 | BK43: 2.698741578 | BL43: 2.707107677 | BM43: 2.712521892 | BN43: 2.727440762 | BO43: 2.743805407 | BP43: 2.75532939 | BQ43: 2.761666647 | BR43: 2.763875981 | BS43: 2.768298182 | BT43: 2.774942098 | BU43: 2.785209384 | BV43: 2.791893886 | BW43: 2.816462552 | BX43: 2.83617779 | BY43: 2.856314652 | BZ43: 2.877165749 | CA43: 2.889537562 | CB43: 2.886359071 | CC43: 2.884338619 | CD43: 2.882319582 | CE43: 2.897884108 | CF43: 2.924544642 | CG43: 2.954667452 | CH43: 2.972395456 | CI43: 3.000335974 | CJ43: 3.016537788 | CK43: 3.036446937 | CL43: 3.058309355 | CM43: 3.075741719 | CN43: 3.08250835 | CO43: 3.08250835 | CP43: 3.095454886 | CQ43: 3.109384433 | CR43: 3.119334463 | CS43: 3.137114669 | CT43: 3.153113954 | CU43: 3.169194835 | CV43: 3.181554695 | CW43: 3.187281493 | CX43: 3.207680095 | CY43: 3.225322336 | CZ43: 3.233708174 | DA43: 3.247613119 | DB43: 3.262227378 | DC43: 3.28277941 | DD43: 3.306087144 | DE43: 3.323940015 | DF43: 3.348537171 | DG43: 3.379343713 | DH43: 3.3969163 | DI43: 3.417297798 | DJ43: 3.437459855 | DK43: 3.449490964 | DL43: 3.459149539 | DM43: 3.454652645 | DN43: 3.460180089 | DO43: 3.469522575 | DP43: 3.490686663 | DQ43: 3.509536371 | DR43: 3.534805033 | DS43: 3.557074304 | DT43: 3.57983958 | DU43: 3.609194264 | DV43: 3.63734598 | DW43: 3.659170056 | DX43: 3.668683898 | DY43: 3.673453187 | DZ43: 3.680065403 | EA43: 3.698097723 | EB43: 3.712150494 | EC43: 3.731824892 | ED43: 3.754962206 | EE43: 3.810535647 | EF43: 3.85473786 | EG43: 3.912944402 | EH43: 3.940726307 | EI43: 3.979739498 | EJ43: 4.010383492 | EK43: 4.033643716 | EL43: 4.043727826 | EM43: 4.064350837 | EN43: 4.095646339 | EO43: 4.141108013 | EP43: 4.178377985 | EQ43: 4.241471493 | ER43: 4.281765472 | ES43: 4.30060524 | ET43: 4.328129114 | EU43: 4.370544779 | EV43: 4.39108634 | EW43: 4.419189292 | EX43: 4.432888779 | EY43: 4.43643509 | EZ43: 4.44397703 | FA43: 4.447087814 | FB43: 4.453313736 | FC43: 4.472017654 | FD43: 4.482750497 | FE43: 4.497095298 | FF43: 4.500692974 | FG43: 4.516895469 | FH43: 4.51100092 | FI43: 4.518669622 | FJ43: 4.517314021 | FK43: 4.517314021 | FL43: 4.517314021 | FM43: 4.517314021 | FN43: 4.517314021 | FO43: 4.517314021 | FP43: 4.517314021 | FQ43: 4.517314021 | FR43: 4.517314021 | FS43: 4.517314021 | FT43: 4.517314021 | FU43: 4.517314021 | FV43: 4.517314021 | FW43: 4.517314021 | FX43: 4.517314021 | FY43: 4.517314021 | FZ43: 4.517314021 | GA43: 4.517314021 | GB43: 4.517314021 | GC43: 4.517314021 | GD43: 4.517314021 | GE43: 4.517314021 | GF43: 4.517314021 | GG43: 4.517314021 | GH43: 4.517314021 | GI43: 4.517314021 | GJ43: 4.517314021 | GK43: 4.517314021 | GL43: 4.517314021 | GM43: 4.517314021 | GN43: 4.517314021 | GO43: 4.517314021 | GP43: 4.517314021 | GQ43: 4.517314021 | GR43: 4.517314021 | GS43: 4.517314021 | GT43: 4.517314021 | GU43: 4.517314021 | GV43: 4.517314021 | GW43: 4.517314021 | GX43: 4.517314021 | GY43: 4.517314021 | GZ43: 4.517314021 | HA43: 4.517314021 | HB43: 4.517314021 | HC43: 4.517314021 | HD43: 4.517314021 | HE43: 4.517314021 | HF43: 4.517314021 | HG43: 4.517314021 | HH43: 4.517314021 | HI43: 4.517314021 | HJ43: 4.517314021 | HK43: 4.517314021 | HL43: 4.517314021 | HM43: 4.517314021 | HN43: 4.517314021 | HO43: 4.517314021 | HP43: 4.517314021 | HQ43: 4.517314021 | HR43: 4.517314021 | HS43: 4.517314021 | HT43: 4.517314021 | HU43: 4.517314021 | HV43: 4.517314021 | HW43: 4.517314021 | HX43: 4.517314021 | HY43: 4.517314021 | HZ43: 4.517314021 | IA43: 4.517314021 | IB43: 4.517314021 | IC43: 4.517314021 | ID43: 4.517314021 | IE43: 4.517314021 | IF43: 4.517314021 | IG43: 4.517314021 | IH43: 4.517314021 | II43: 4.517314021 | IJ43: 4.517314021 | IK43: 4.517314021 | IL43: 4.517314021 | IM43: 4.517314021 | IN43: 4.517314021 | IO43: 4.517314021 | IP43: 4.517314021 | IQ43: 4.517314021 | IR43: 4.517314021 | IS43: 4.517314021 | IT43: 4.517314021 | IU43: 4.517314021 | IV43: 4.517314021 | IW43: 4.517314021 | IX43: 4.517314021 | IY43: 4.517314021
B44: 1997-09-01 | C44: 2.105997 | D44: 2.114210388 | E44: 2.126261388 | F44: 2.134979059 | G44: 2.143518975 | H44: 2.15423657 | I44: 2.169962497 | J44: 2.18081231 | K44: 2.184519691 | L44: 2.188233374 | M44: 2.197861601 | N44: 2.216763211 | O44: 2.229398761 | P44: 2.239208116 | Q44: 2.255554335 | R44: 2.276079879 | S44: 2.292012438 | T44: 2.289491225 | U44: 2.290178072 | V44: 2.290178072 | W44: 2.293613339 | X44: 2.306916297 | Y44: 2.319373645 | Z44: 2.328651139 | AA44: 2.337500014 | AB44: 2.342876264 | AC44: 2.349202029 | AD44: 2.352021072 | AE44: 2.355078699 | AF44: 2.353430144 | AG44: 2.356018917 | AH44: 2.355547714 | AI44: 2.35931659 | AJ44: 2.369461651 | AK44: 2.37941339 | AL44: 2.394165753 | AM44: 2.405897165 | AN44: 2.416001934 | AO44: 2.426632342 | AP44: 2.432941586 | AQ44: 2.439267234 | AR44: 2.446828963 | AS44: 2.454658815 | AT44: 2.469141302 | AU44: 2.475314156 | AV44: 2.482740098 | AW44: 2.493415881 | AX44: 2.517602015 | AY44: 2.534973468 | AZ44: 2.547901833 | BA44: 2.560896132 | BB44: 2.577285868 | BC44: 2.602027812 | BD44: 2.625706265 | BE44: 2.640935361 | BF44: 2.646481326 | BG44: 2.650451048 | BH44: 2.663703303 | BI44: 2.673825376 | BJ44: 2.681579469 | BK44: 2.698741578 | BL44: 2.707107677 | BM44: 2.712521892 | BN44: 2.727440762 | BO44: 2.743805407 | BP44: 2.75532939 | BQ44: 2.761666647 | BR44: 2.763875981 | BS44: 2.768298182 | BT44: 2.774942098 | BU44: 2.785209384 | BV44: 2.791893886 | BW44: 2.816462552 | BX44: 2.83617779 | BY44: 2.856314652 | BZ44: 2.877165749 | CA44: 2.889537562 | CB44: 2.886359071 | CC44: 2.884338619 | CD44: 2.882319582 | CE44: 2.897884108 | CF44: 2.924544642 | CG44: 2.954667452 | CH44: 2.972395456 | CI44: 3.000335974 | CJ44: 3.016537788 | CK44: 3.036446937 | CL44: 3.058309355 | CM44: 3.075741719 | CN44: 3.08250835 | CO44: 3.08250835 | CP44: 3.095454886 | CQ44: 3.109384433 | CR44: 3.119334463 | CS44: 3.137114669 | CT44: 3.153113954 | CU44: 3.169194835 | CV44: 3.181554695 | CW44: 3.187281493 | CX44: 3.207680095 | CY44: 3.225322336 | CZ44: 3.233708174 | DA44: 3.247613119 | DB44: 3.262227378 | DC44: 3.28277941 | DD44: 3.306087144 | DE44: 3.323940015 | DF44: 3.348537171 | DG44: 3.379343713 | DH44: 3.3969163 | DI44: 3.417297798 | DJ44: 3.437459855 | DK44: 3.449490964 | DL44: 3.459149539 | DM44: 3.454652645 | DN44: 3.460180089 | DO44: 3.469522575 | DP44: 3.490686663 | DQ44: 3.509536371 | DR44: 3.534805033 | DS44: 3.557074304 | DT44: 3.57983958 | DU44: 3.609194264 | DV44: 3.63734598 | DW44: 3.659170056 | DX44: 3.668683898 | DY44: 3.673453187 | DZ44: 3.680065403 | EA44: 3.698097723 | EB44: 3.712150494 | EC44: 3.731824892 | ED44: 3.754962206 | EE44: 3.810535647 | EF44: 3.85473786 | EG44: 3.912944402 | EH44: 3.940726307 | EI44: 3.979739498 | EJ44: 4.010383492 | EK44: 4.033643716 | EL44: 4.043727826 | EM44: 4.064350837 | EN44: 4.095646339 | EO44: 4.141108013 | EP44: 4.178377985 | EQ44: 4.241471493 | ER44: 4.281765472 | ES44: 4.30060524 | ET44: 4.328129114 | EU44: 4.370544779 | EV44: 4.39108634 | EW44: 4.419189292 | EX44: 4.432888779 | EY44: 4.43643509 | EZ44: 4.44397703 | FA44: 4.447087814 | FB44: 4.453313736 | FC44: 4.472017654 | FD44: 4.482750497 | FE44: 4.497095298 | FF44: 4.500692974 | FG44: 4.516895469 | FH44: 4.51100092 | FI44: 4.518669622 | FJ44: 4.517314021 | FK44: 4.517314021 | FL44: 4.517314021 | FM44: 4.517314021 | FN44: 4.517314021 | FO44: 4.517314021 | FP44: 4.517314021 | FQ44: 4.517314021 | FR44: 4.517314021 | FS44: 4.517314021 | FT44: 4.517314021 | FU44: 4.517314021 | FV44: 4.517314021 | FW44: 4.517314021 | FX44: 4.517314021 | FY44: 4.517314021 | FZ44: 4.517314021 | GA44: 4.517314021 | GB44: 4.517314021 | GC44: 4.517314021 | GD44: 4.517314021 | GE44: 4.517314021 | GF44: 4.517314021 | GG44: 4.517314021 | GH44: 4.517314021 | GI44: 4.517314021 | GJ44: 4.517314021 | GK44: 4.517314021 | GL44: 4.517314021 | GM44: 4.517314021 | GN44: 4.517314021 | GO44: 4.517314021 | GP44: 4.517314021 | GQ44: 4.517314021 | GR44: 4.517314021 | GS44: 4.517314021 | GT44: 4.517314021 | GU44: 4.517314021 | GV44: 4.517314021 | GW44: 4.517314021 | GX44: 4.517314021 | GY44: 4.517314021 | GZ44: 4.517314021 | HA44: 4.517314021 | HB44: 4.517314021 | HC44: 4.517314021 | HD44: 4.517314021 | HE44: 4.517314021 | HF44: 4.517314021 | HG44: 4.517314021 | HH44: 4.517314021 | HI44: 4.517314021 | HJ44: 4.517314021 | HK44: 4.517314021 | HL44: 4.517314021 | HM44: 4.517314021 | HN44: 4.517314021 | HO44: 4.517314021 | HP44: 4.517314021 | HQ44: 4.517314021 | HR44: 4.517314021 | HS44: 4.517314021 | HT44: 4.517314021 | HU44: 4.517314021 | HV44: 4.517314021 | HW44: 4.517314021 | HX44: 4.517314021 | HY44: 4.517314021 | HZ44: 4.517314021 | IA44: 4.517314021 | IB44: 4.517314021 | IC44: 4.517314021 | ID44: 4.517314021 | IE44: 4.517314021 | IF44: 4.517314021 | IG44: 4.517314021 | IH44: 4.517314021 | II44: 4.517314021 | IJ44: 4.517314021 | IK44: 4.517314021 | IL44: 4.517314021 | IM44: 4.517314021 | IN44: 4.517314021 | IO44: 4.517314021 | IP44: 4.517314021 | IQ44: 4.517314021 | IR44: 4.517314021 | IS44: 4.517314021 | IT44: 4.517314021 | IU44: 4.517314021 | IV44: 4.517314021 | IW44: 4.517314021 | IX44: 4.517314021 | IY44: 4.517314021
B45: 1997-10-01 | C45: 2.093644 | D45: 2.101809212 | E45: 2.113789524 | F45: 2.122456061 | G45: 2.130945885 | H45: 2.141600615 | I45: 2.157234299 | J45: 2.168020471 | K45: 2.171706106 | L45: 2.175398006 | M45: 2.184969757 | N45: 2.203760497 | O45: 2.216321932 | P45: 2.226073748 | Q45: 2.242324087 | R45: 2.262729236 | S45: 2.278568341 | T45: 2.276061915 | U45: 2.276744734 | V45: 2.276744734 | W45: 2.280159851 | X45: 2.293384778 | Y45: 2.305769056 | Z45: 2.314992132 | AA45: 2.323789102 | AB45: 2.329133817 | AC45: 2.335422479 | AD45: 2.338224986 | AE45: 2.341264678 | AF45: 2.339625793 | AG45: 2.342199381 | AH45: 2.341730941 | AI45: 2.345477711 | AJ45: 2.355563265 | AK45: 2.365456631 | AL45: 2.380122462 | AM45: 2.391785062 | AN45: 2.401830559 | AO45: 2.412398614 | AP45: 2.41867085 | AQ45: 2.424959394 | AR45: 2.432476768 | AS45: 2.440260694 | AT45: 2.454658232 | AU45: 2.460794878 | AV45: 2.468177262 | AW45: 2.478790425 | AX45: 2.502834692 | AY45: 2.520104251 | AZ45: 2.532956783 | BA45: 2.545874862 | BB45: 2.562168461 | BC45: 2.586765279 | BD45: 2.610304843 | BE45: 2.625444611 | BF45: 2.630958044 | BG45: 2.634904482 | BH45: 2.648079004 | BI45: 2.658141704 | BJ45: 2.665850315 | BK45: 2.682911757 | BL45: 2.691228784 | BM45: 2.696611241 | BN45: 2.711442603 | BO45: 2.727711259 | BP45: 2.739167646 | BQ45: 2.745467731 | BR45: 2.747664106 | BS45: 2.752060368 | BT45: 2.758665313 | BU45: 2.768872375 | BV45: 2.775517668 | BW45: 2.799942224 | BX45: 2.819541819 | BY45: 2.839560566 | BZ45: 2.860289359 | CA45: 2.872588603 | CB45: 2.869428755 | CC45: 2.867420155 | CD45: 2.865412961 | CE45: 2.880886191 | CF45: 2.907390344 | CG45: 2.937336465 | CH45: 2.954960483 | CI45: 2.982737112 | CJ45: 2.998843892 | CK45: 3.018636262 | CL45: 3.040370443 | CM45: 3.057700555 | CN45: 3.064427496 | CO45: 3.064427496 | CP45: 3.077298091 | CQ45: 3.091145933 | CR45: 3.1010376 | CS45: 3.118713514 | CT45: 3.134618953 | CU45: 3.15060551 | CV45: 3.162892871 | CW45: 3.168586078 | CX45: 3.188865029 | CY45: 3.206403787 | CZ45: 3.214740437 | DA45: 3.228563821 | DB45: 3.243092358 | DC45: 3.26352384 | DD45: 3.286694859 | DE45: 3.304443011 | DF45: 3.328895889 | DG45: 3.359521732 | DH45: 3.376991245 | DI45: 3.397253192 | DJ45: 3.417296986 | DK45: 3.429257525 | DL45: 3.438859446 | DM45: 3.434388929 | DN45: 3.439883951 | DO45: 3.449171638 | DP45: 3.470211585 | DQ45: 3.488950728 | DR45: 3.514071173 | DS45: 3.536209821 | DT45: 3.558841564 | DU45: 3.588024065 | DV45: 3.616010653 | DW45: 3.637706717 | DX45: 3.647164754 | DY45: 3.651906068 | DZ45: 3.658479499 | EA45: 3.676406049 | EB45: 3.690376392 | EC45: 3.709935387 | ED45: 3.732936986 | EE45: 3.788184453 | EF45: 3.832127393 | EG45: 3.889992517 | EH45: 3.917611463 | EI45: 3.956395817 | EJ45: 3.986860065 | EK45: 4.009983853 | EL45: 4.020008813 | EM45: 4.040510858 | EN45: 4.071622791 | EO45: 4.116817804 | EP45: 4.153869165 | EQ45: 4.216592589 | ER45: 4.256650219 | ES45: 4.275379479 | ET45: 4.302741908 | EU45: 4.344908779 | EV45: 4.36532985 | EW45: 4.393267961 | EX45: 4.406887092 | EY45: 4.410412601 | EZ45: 4.417910303 | FA45: 4.42100284 | FB45: 4.427192244 | FC45: 4.445786452 | FD45: 4.456456339 | FE45: 4.470716999 | FF45: 4.474293573 | FG45: 4.49040103 | FH45: 4.484541056 | FI45: 4.492164776 | FJ45: 4.490817127 | FK45: 4.490817127 | FL45: 4.490817127 | FM45: 4.490817127 | FN45: 4.490817127 | FO45: 4.490817127 | FP45: 4.490817127 | FQ45: 4.490817127 | FR45: 4.490817127 | FS45: 4.490817127 | FT45: 4.490817127 | FU45: 4.490817127 | FV45: 4.490817127 | FW45: 4.490817127 | FX45: 4.490817127 | FY45: 4.490817127 | FZ45: 4.490817127 | GA45: 4.490817127 | GB45: 4.490817127 | GC45: 4.490817127 | GD45: 4.490817127 | GE45: 4.490817127 | GF45: 4.490817127 | GG45: 4.490817127 | GH45: 4.490817127 | GI45: 4.490817127 | GJ45: 4.490817127 | GK45: 4.490817127 | GL45: 4.490817127 | GM45: 4.490817127 | GN45: 4.490817127 | GO45: 4.490817127 | GP45: 4.490817127 | GQ45: 4.490817127 | GR45: 4.490817127 | GS45: 4.490817127 | GT45: 4.490817127 | GU45: 4.490817127 | GV45: 4.490817127 | GW45: 4.490817127 | GX45: 4.490817127 | GY45: 4.490817127 | GZ45: 4.490817127 | HA45: 4.490817127 | HB45: 4.490817127 | HC45: 4.490817127 | HD45: 4.490817127 | HE45: 4.490817127 | HF45: 4.490817127 | HG45: 4.490817127 | HH45: 4.490817127 | HI45: 4.490817127 | HJ45: 4.490817127 | HK45: 4.490817127 | HL45: 4.490817127 | HM45: 4.490817127 | HN45: 4.490817127 | HO45: 4.490817127 | HP45: 4.490817127 | HQ45: 4.490817127 | HR45: 4.490817127 | HS45: 4.490817127 | HT45: 4.490817127 | HU45: 4.490817127 | HV45: 4.490817127 | HW45: 4.490817127 | HX45: 4.490817127 | HY45: 4.490817127 | HZ45: 4.490817127 | IA45: 4.490817127 | IB45: 4.490817127 | IC45: 4.490817127 | ID45: 4.490817127 | IE45: 4.490817127 | IF45: 4.490817127 | IG45: 4.490817127 | IH45: 4.490817127 | II45: 4.490817127 | IJ45: 4.490817127 | IK45: 4.490817127 | IL45: 4.490817127 | IM45: 4.490817127 | IN45: 4.490817127 | IO45: 4.490817127 | IP45: 4.490817127 | IQ45: 4.490817127 | IR45: 4.490817127 | IS45: 4.490817127 | IT45: 4.490817127 | IU45: 4.490817127 | IV45: 4.490817127 | IW45: 4.490817127 | IX45: 4.490817127 | IY45: 4.490817127
B46: 1997-11-01 | C46: 2.08655 | D46: 2.094687545 | E46: 2.106627264 | F46: 2.115264436 | G46: 2.123725494 | H46: 2.134344121 | I46: 2.149924833 | J46: 2.160674457 | K46: 2.164347604 | L46: 2.168026995 | M46: 2.177566314 | N46: 2.196293384 | O46: 2.208812256 | P46: 2.21853103 | Q46: 2.234726307 | R46: 2.255062316 | S46: 2.270847752 | T46: 2.26834982 | U46: 2.269030325 | V46: 2.269030325 | W46: 2.27243387 | X46: 2.285613987 | Y46: 2.297956302 | Z46: 2.307148127 | AA46: 2.31591529 | AB46: 2.321241895 | AC46: 2.327509248 | AD46: 2.33030226 | AE46: 2.333331652 | AF46: 2.33169832 | AG46: 2.334263188 | AH46: 2.333796336 | AI46: 2.33753041 | AJ46: 2.347581791 | AK46: 2.357441634 | AL46: 2.372057772 | AM46: 2.383680855 | AN46: 2.393692315 | AO46: 2.404224561 | AP46: 2.410475545 | AQ46: 2.416742782 | AR46: 2.424234684 | AS46: 2.431992235 | AT46: 2.446340989 | AU46: 2.452456842 | AV46: 2.459814212 | AW46: 2.470391413 | AX46: 2.49435421 | AY46: 2.511565254 | AZ46: 2.524374237 | BA46: 2.537248546 | BB46: 2.553486936 | BC46: 2.578000411 | BD46: 2.601460215 | BE46: 2.616548684 | BF46: 2.622043436 | BG46: 2.625976501 | BH46: 2.639106384 | BI46: 2.649134988 | BJ46: 2.656817479 | BK46: 2.673821111 | BL46: 2.682109957 | BM46: 2.687474177 | BN46: 2.702255285 | BO46: 2.718468816 | BP46: 2.729886385 | BQ46: 2.736165124 | BR46: 2.738354056 | BS46: 2.742735423 | BT46: 2.749317988 | BU46: 2.759490464 | BV46: 2.766113241 | BW46: 2.790455038 | BX46: 2.809988223 | BY46: 2.82993914 | BZ46: 2.850597695 | CA46: 2.862855265 | CB46: 2.859706125 | CC46: 2.85770433 | CD46: 2.855703937 | CE46: 2.871124738 | CF46: 2.897539086 | CG46: 2.927383739 | CH46: 2.944948041 | CI46: 2.972630553 | CJ46: 2.988682758 | CK46: 3.008408064 | CL46: 3.030068602 | CM46: 3.047339993 | CN46: 3.054044141 | CO46: 3.054044141 | CP46: 3.066871126 | CQ46: 3.080672046 | CR46: 3.090530197 | CS46: 3.108146219 | CT46: 3.123997765 | CU46: 3.139930153 | CV46: 3.152175881 | CW46: 3.157849798 | CX46: 3.178060036 | CY46: 3.195539366 | CZ46: 3.203847769 | DA46: 3.217624314 | DB46: 3.232103624 | DC46: 3.252465876 | DD46: 3.275558384 | DE46: 3.293246399 | DF46: 3.317616423 | DG46: 3.348138494 | DH46: 3.365548814 | DI46: 3.385742107 | DJ46: 3.405717985 | DK46: 3.417637998 | DL46: 3.427207385 | DM46: 3.422752015 | DN46: 3.428228418 | DO46: 3.437484635 | DP46: 3.458453291 | DQ46: 3.477128939 | DR46: 3.502164268 | DS46: 3.524227902 | DT46: 3.546782961 | DU46: 3.575866581 | DV46: 3.603758341 | DW46: 3.625380891 | DX46: 3.634806881 | DY46: 3.63953213 | DZ46: 3.646083288 | EA46: 3.663949096 | EB46: 3.677872102 | EC46: 3.697364825 | ED46: 3.720288486 | EE46: 3.775348756 | EF46: 3.819142802 | EG46: 3.876811858 | EH46: 3.904337222 | EI46: 3.942990161 | EJ46: 3.973351185 | EK46: 3.996396622 | EL46: 4.006387613 | EM46: 4.02682019 | EN46: 4.057826706 | EO46: 4.102868582 | EP46: 4.139794399 | EQ46: 4.202305295 | ER46: 4.242227195 | ES46: 4.260892995 | ET46: 4.28816271 | EU46: 4.330186704 | EV46: 4.350538582 | EW46: 4.378382029 | EX46: 4.391955013 | EY46: 4.395468577 | EZ46: 4.402940874 | FA46: 4.406022932 | FB46: 4.412191364 | FC46: 4.430722568 | FD46: 4.441356302 | FE46: 4.455568642 | FF46: 4.459133097 | FG46: 4.475185977 | FH46: 4.469345859 | FI46: 4.476943747 | FJ46: 4.475600664 | FK46: 4.475600664 | FL46: 4.475600664 | FM46: 4.475600664 | FN46: 4.475600664 | FO46: 4.475600664 | FP46: 4.475600664 | FQ46: 4.475600664 | FR46: 4.475600664 | FS46: 4.475600664 | FT46: 4.475600664 | FU46: 4.475600664 | FV46: 4.475600664 | FW46: 4.475600664 | FX46: 4.475600664 | FY46: 4.475600664 | FZ46: 4.475600664 | GA46: 4.475600664 | GB46: 4.475600664 | GC46: 4.475600664 | GD46: 4.475600664 | GE46: 4.475600664 | GF46: 4.475600664 | GG46: 4.475600664 | GH46: 4.475600664 | GI46: 4.475600664 | GJ46: 4.475600664 | GK46: 4.475600664 | GL46: 4.475600664 | GM46: 4.475600664 | GN46: 4.475600664 | GO46: 4.475600664 | GP46: 4.475600664 | GQ46: 4.475600664 | GR46: 4.475600664 | GS46: 4.475600664 | GT46: 4.475600664 | GU46: 4.475600664 | GV46: 4.475600664 | GW46: 4.475600664 | GX46: 4.475600664 | GY46: 4.475600664 | GZ46: 4.475600664 | HA46: 4.475600664 | HB46: 4.475600664 | HC46: 4.475600664 | HD46: 4.475600664 | HE46: 4.475600664 | HF46: 4.475600664 | HG46: 4.475600664 | HH46: 4.475600664 | HI46: 4.475600664 | HJ46: 4.475600664 | HK46: 4.475600664 | HL46: 4.475600664 | HM46: 4.475600664 | HN46: 4.475600664 | HO46: 4.475600664 | HP46: 4.475600664 | HQ46: 4.475600664 | HR46: 4.475600664 | HS46: 4.475600664 | HT46: 4.475600664 | HU46: 4.475600664 | HV46: 4.475600664 | HW46: 4.475600664 | HX46: 4.475600664 | HY46: 4.475600664 | HZ46: 4.475600664 | IA46: 4.475600664 | IB46: 4.475600664 | IC46: 4.475600664 | ID46: 4.475600664 | IE46: 4.475600664 | IF46: 4.475600664 | IG46: 4.475600664 | IH46: 4.475600664 | II46: 4.475600664 | IJ46: 4.475600664 | IK46: 4.475600664 | IL46: 4.475600664 | IM46: 4.475600664 | IN46: 4.475600664 | IO46: 4.475600664 | IP46: 4.475600664 | IQ46: 4.475600664 | IR46: 4.475600664 | IS46: 4.475600664 | IT46: 4.475600664 | IU46: 4.475600664 | IV46: 4.475600664 | IW46: 4.475600664 | IX46: 4.475600664 | IY46: 4.475600664
B47: 1997-12-01 | C47: 2.069374 | D47: 2.077444559 | E47: 2.089285993 | F47: 2.097852065 | G47: 2.106243473 | H47: 2.116774691 | I47: 2.132227146 | J47: 2.142888282 | K47: 2.146531192 | L47: 2.150180295 | M47: 2.159641088 | N47: 2.178214002 | O47: 2.190629821 | P47: 2.200268593 | Q47: 2.216330553 | R47: 2.236499161 | S47: 2.252154655 | T47: 2.249677285 | U47: 2.250352188 | V47: 2.250352188 | W47: 2.253727717 | X47: 2.266799338 | Y47: 2.279040054 | Z47: 2.288156214 | AA47: 2.296851208 | AB47: 2.302133966 | AC47: 2.308349727 | AD47: 2.311119747 | AE47: 2.314124203 | AF47: 2.312504316 | AG47: 2.31504807 | AH47: 2.314585061 | AI47: 2.318288397 | AJ47: 2.328257037 | AK47: 2.338035717 | AL47: 2.352531538 | AM47: 2.364058943 | AN47: 2.37398799 | AO47: 2.384433537 | AP47: 2.390633064 | AQ47: 2.39684871 | AR47: 2.404278941 | AS47: 2.411972634 | AT47: 2.426203273 | AU47: 2.432268781 | AV47: 2.439565587 | AW47: 2.450055719 | AX47: 2.47382126 | AY47: 2.490890626 | AZ47: 2.503594168 | BA47: 2.516362499 | BB47: 2.532467219 | BC47: 2.556778904 | BD47: 2.580045592 | BE47: 2.595009856 | BF47: 2.600459377 | BG47: 2.604360066 | BH47: 2.617381867 | BI47: 2.627327918 | BJ47: 2.634947169 | BK47: 2.651810831 | BL47: 2.660031444 | BM47: 2.665351507 | BN47: 2.68001094 | BO47: 2.696091006 | BP47: 2.707414588 | BQ47: 2.713641642 | BR47: 2.715812555 | BS47: 2.720157855 | BT47: 2.726686234 | BU47: 2.736774973 | BV47: 2.743343233 | BW47: 2.767484653 | BX47: 2.786857046 | BY47: 2.806643731 | BZ47: 2.82713223 | CA47: 2.839288899 | CB47: 2.836165681 | CC47: 2.834180365 | CD47: 2.832196439 | CE47: 2.8474903 | CF47: 2.87368721 | CG47: 2.903286189 | CH47: 2.920705906 | CI47: 2.948160541 | CJ47: 2.964080608 | CK47: 2.98364354 | CL47: 3.005125774 | CM47: 3.022254991 | CN47: 3.028903952 | CO47: 3.028903952 | CP47: 3.041625348 | CQ47: 3.055312662 | CR47: 3.065089663 | CS47: 3.082560674 | CT47: 3.098281733 | CU47: 3.11408297 | CV47: 3.126227894 | CW47: 3.131855104 | CX47: 3.151898977 | CY47: 3.169234421 | CZ47: 3.17747443 | DA47: 3.19113757 | DB47: 3.20549769 | DC47: 3.225692325 | DD47: 3.24859474 | DE47: 3.266137152 | DF47: 3.290306567 | DG47: 3.320577387 | DH47: 3.33784439 | DI47: 3.357871456 | DJ47: 3.377682898 | DK47: 3.389504788 | DL47: 3.398995401 | DM47: 3.394576707 | DN47: 3.40000803 | DO47: 3.409188052 | DP47: 3.429984099 | DQ47: 3.448506013 | DR47: 3.473335256 | DS47: 3.495217268 | DT47: 3.517586659 | DU47: 3.546430869 | DV47: 3.57409303 | DW47: 3.595537588 | DX47: 3.604885986 | DY47: 3.609572338 | DZ47: 3.616069568 | EA47: 3.633788309 | EB47: 3.647596705 | EC47: 3.666928967 | ED47: 3.689663927 | EE47: 3.744270953 | EF47: 3.787704496 | EG47: 3.844898834 | EH47: 3.872197616 | EI47: 3.910532372 | EJ47: 3.940643471 | EK47: 3.963499203 | EL47: 3.973407951 | EM47: 3.993672332 | EN47: 4.024423609 | EO47: 4.069094711 | EP47: 4.105716563 | EQ47: 4.167712883 | ER47: 4.207306156 | ES47: 4.225818303 | ET47: 4.25286354 | EU47: 4.294541603 | EV47: 4.314725948 | EW47: 4.342340194 | EX47: 4.355801449 | EY47: 4.35928609 | EZ47: 4.366696876 | FA47: 4.369753564 | FB47: 4.375871219 | FC47: 4.394249878 | FD47: 4.404796078 | FE47: 4.418891426 | FF47: 4.422426539 | FG47: 4.438347274 | FH47: 4.432555231 | FI47: 4.440090575 | FJ47: 4.438758548 | FK47: 4.438758548 | FL47: 4.438758548 | FM47: 4.438758548 | FN47: 4.438758548 | FO47: 4.438758548 | FP47: 4.438758548 | FQ47: 4.438758548 | FR47: 4.438758548 | FS47: 4.438758548 | FT47: 4.438758548 | FU47: 4.438758548 | FV47: 4.438758548 | FW47: 4.438758548 | FX47: 4.438758548 | FY47: 4.438758548 | FZ47: 4.438758548 | GA47: 4.438758548 | GB47: 4.438758548 | GC47: 4.438758548 | GD47: 4.438758548 | GE47: 4.438758548 | GF47: 4.438758548 | GG47: 4.438758548 | GH47: 4.438758548 | GI47: 4.438758548 | GJ47: 4.438758548 | GK47: 4.438758548 | GL47: 4.438758548 | GM47: 4.438758548 | GN47: 4.438758548 | GO47: 4.438758548 | GP47: 4.438758548 | GQ47: 4.438758548 | GR47: 4.438758548 | GS47: 4.438758548 | GT47: 4.438758548 | GU47: 4.438758548 | GV47: 4.438758548 | GW47: 4.438758548 | GX47: 4.438758548 | GY47: 4.438758548 | GZ47: 4.438758548 | HA47: 4.438758548 | HB47: 4.438758548 | HC47: 4.438758548 | HD47: 4.438758548 | HE47: 4.438758548 | HF47: 4.438758548 | HG47: 4.438758548 | HH47: 4.438758548 | HI47: 4.438758548 | HJ47: 4.438758548 | HK47: 4.438758548 | HL47: 4.438758548 | HM47: 4.438758548 | HN47: 4.438758548 | HO47: 4.438758548 | HP47: 4.438758548 | HQ47: 4.438758548 | HR47: 4.438758548 | HS47: 4.438758548 | HT47: 4.438758548 | HU47: 4.438758548 | HV47: 4.438758548 | HW47: 4.438758548 | HX47: 4.438758548 | HY47: 4.438758548 | HZ47: 4.438758548 | IA47: 4.438758548 | IB47: 4.438758548 | IC47: 4.438758548 | ID47: 4.438758548 | IE47: 4.438758548 | IF47: 4.438758548 | IG47: 4.438758548 | IH47: 4.438758548 | II47: 4.438758548 | IJ47: 4.438758548 | IK47: 4.438758548 | IL47: 4.438758548 | IM47: 4.438758548 | IN47: 4.438758548 | IO47: 4.438758548 | IP47: 4.438758548 | IQ47: 4.438758548 | IR47: 4.438758548 | IS47: 4.438758548 | IT47: 4.438758548 | IU47: 4.438758548 | IV47: 4.438758548 | IW47: 4.438758548 | IX47: 4.438758548 | IY47: 4.438758548
B48: 1998-01-01 | C48: 2.055193 | D48: 2.063208253 | E48: 2.07496854 | F48: 2.083475911 | G48: 2.091809814 | H48: 2.102268863 | I48: 2.117615426 | J48: 2.128203503 | K48: 2.131821449 | L48: 2.135445546 | M48: 2.144841506 | N48: 2.163287143 | O48: 2.17561788 | P48: 2.185190598 | Q48: 2.20114249 | R48: 2.221172886 | S48: 2.236721097 | T48: 2.234260703 | U48: 2.234930982 | V48: 2.234930982 | W48: 2.238283378 | X48: 2.251265422 | Y48: 2.263422255 | Z48: 2.272475944 | AA48: 2.281111353 | AB48: 2.286357909 | AC48: 2.292531075 | AD48: 2.295282112 | AE48: 2.298265979 | AF48: 2.296657193 | AG48: 2.299183516 | AH48: 2.298723679 | AI48: 2.302401637 | AJ48: 2.312301964 | AK48: 2.322013632 | AL48: 2.336410117 | AM48: 2.347858526 | AN48: 2.357719532 | AO48: 2.368093498 | AP48: 2.374250541 | AQ48: 2.380423593 | AR48: 2.387802906 | AS48: 2.395443875 | AT48: 2.409576994 | AU48: 2.415600936 | AV48: 2.422847739 | AW48: 2.433265985 | AX48: 2.456868665 | AY48: 2.473821058 | AZ48: 2.486437546 | BA48: 2.499118377 | BB48: 2.515112735 | BC48: 2.539257817 | BD48: 2.562365063 | BE48: 2.577226781 | BF48: 2.582638957 | BG48: 2.586512915 | BH48: 2.59944548 | BI48: 2.609323373 | BJ48: 2.616890411 | BK48: 2.633638509 | BL48: 2.641802789 | BM48: 2.647086394 | BN48: 2.661645369 | BO48: 2.677615241 | BP48: 2.688861225 | BQ48: 2.695045606 | BR48: 2.697201643 | BS48: 2.701517165 | BT48: 2.708000807 | BU48: 2.71802041 | BV48: 2.724543659 | BW48: 2.748519643 | BX48: 2.76775928 | BY48: 2.787410371 | BZ48: 2.807758467 | CA48: 2.819831828 | CB48: 2.816730013 | CC48: 2.814758302 | CD48: 2.812787971 | CE48: 2.827977027 | CF48: 2.853994415 | CG48: 2.883390558 | CH48: 2.900690901 | CI48: 2.927957395 | CJ48: 2.943768365 | CK48: 2.963197237 | CL48: 2.984532257 | CM48: 3.001544091 | CN48: 3.008147488 | CO48: 3.008147488 | CP48: 3.020781707 | CQ48: 3.034375225 | CR48: 3.044085225 | CS48: 3.061436511 | CT48: 3.077049837 | CU48: 3.092742792 | CV48: 3.104804488 | CW48: 3.110393137 | CX48: 3.130299653 | CY48: 3.147516301 | CZ48: 3.155699843 | DA48: 3.169269352 | DB48: 3.183531064 | DC48: 3.20358731 | DD48: 3.22633278 | DE48: 3.243754977 | DF48: 3.267758764 | DG48: 3.297822145 | DH48: 3.31497082 | DI48: 3.334860645 | DJ48: 3.354536322 | DK48: 3.3662772 | DL48: 3.375702776 | DM48: 3.371314362 | DN48: 3.376708465 | DO48: 3.385825578 | DP48: 3.406479114 | DQ48: 3.424874101 | DR48: 3.449533195 | DS48: 3.471265254 | DT48: 3.493481351 | DU48: 3.522127899 | DV48: 3.549600496 | DW48: 3.570898099 | DX48: 3.580182434 | DY48: 3.584836671 | DZ48: 3.591289377 | EA48: 3.608886695 | EB48: 3.622600465 | EC48: 3.641800247 | ED48: 3.664379409 | EE48: 3.718612224 | EF48: 3.761748126 | EG48: 3.818550523 | EH48: 3.845662231 | EI48: 3.883734287 | EJ48: 3.913639041 | EK48: 3.936338148 | EL48: 3.946178993 | EM48: 3.966304506 | EN48: 3.996845051 | EO48: 4.041210031 | EP48: 4.077580921 | EQ48: 4.139152393 | ER48: 4.178474341 | ES48: 4.196859628 | ET48: 4.223719529 | EU48: 4.265111981 | EV48: 4.285158007 | EW48: 4.312583018 | EX48: 4.325952026 | EY48: 4.329412787 | EZ48: 4.336772789 | FA48: 4.33980853 | FB48: 4.345884262 | FC48: 4.364136976 | FD48: 4.374610905 | FE48: 4.388609659 | FF48: 4.392120547 | FG48: 4.407932181 | FH48: 4.40217983 | FI48: 4.409663535 | FJ48: 4.408340636 | FK48: 4.408340636 | FL48: 4.408340636 | FM48: 4.408340636 | FN48: 4.408340636 | FO48: 4.408340636 | FP48: 4.408340636 | FQ48: 4.408340636 | FR48: 4.408340636 | FS48: 4.408340636 | FT48: 4.408340636 | FU48: 4.408340636 | FV48: 4.408340636 | FW48: 4.408340636 | FX48: 4.408340636 | FY48: 4.408340636 | FZ48: 4.408340636 | GA48: 4.408340636 | GB48: 4.408340636 | GC48: 4.408340636 | GD48: 4.408340636 | GE48: 4.408340636 | GF48: 4.408340636 | GG48: 4.408340636 | GH48: 4.408340636 | GI48: 4.408340636 | GJ48: 4.408340636 | GK48: 4.408340636 | GL48: 4.408340636 | GM48: 4.408340636 | GN48: 4.408340636 | GO48: 4.408340636 | GP48: 4.408340636 | GQ48: 4.408340636 | GR48: 4.408340636 | GS48: 4.408340636 | GT48: 4.408340636 | GU48: 4.408340636 | GV48: 4.408340636 | GW48: 4.408340636 | GX48: 4.408340636 | GY48: 4.408340636 | GZ48: 4.408340636 | HA48: 4.408340636 | HB48: 4.408340636 | HC48: 4.408340636 | HD48: 4.408340636 | HE48: 4.408340636 | HF48: 4.408340636 | HG48: 4.408340636 | HH48: 4.408340636 | HI48: 4.408340636 | HJ48: 4.408340636 | HK48: 4.408340636 | HL48: 4.408340636 | HM48: 4.408340636 | HN48: 4.408340636 | HO48: 4.408340636 | HP48: 4.408340636 | HQ48: 4.408340636 | HR48: 4.408340636 | HS48: 4.408340636 | HT48: 4.408340636 | HU48: 4.408340636 | HV48: 4.408340636 | HW48: 4.408340636 | HX48: 4.408340636 | HY48: 4.408340636 | HZ48: 4.408340636 | IA48: 4.408340636 | IB48: 4.408340636 | IC48: 4.408340636 | ID48: 4.408340636 | IE48: 4.408340636 | IF48: 4.408340636 | IG48: 4.408340636 | IH48: 4.408340636 | II48: 4.408340636 | IJ48: 4.408340636 | IK48: 4.408340636 | IL48: 4.408340636 | IM48: 4.408340636 | IN48: 4.408340636 | IO48: 4.408340636 | IP48: 4.408340636 | IQ48: 4.408340636 | IR48: 4.408340636 | IS48: 4.408340636 | IT48: 4.408340636 | IU48: 4.408340636 | IV48: 4.408340636 | IW48: 4.408340636 | IX48: 4.408340636 | IY48: 4.408340636
B49: 1998-02-01 | C49: 2.037266 | D49: 2.045211337 | E49: 2.056869042 | F49: 2.065302205 | G49: 2.073563414 | H49: 2.083931231 | I49: 2.099143929 | J49: 2.109639649 | K49: 2.113226036 | L49: 2.11681852 | M49: 2.126132522 | N49: 2.144417261 | O49: 2.15664044 | P49: 2.166129658 | Q49: 2.181942404 | R49: 2.20179808 | S49: 2.217210667 | T49: 2.214771735 | U49: 2.215436167 | V49: 2.215436167 | W49: 2.218759321 | X49: 2.231628125 | Y49: 2.243678917 | Z49: 2.252653632 | AA49: 2.261213716 | AB49: 2.266414508 | AC49: 2.272533827 | AD49: 2.275260867 | AE49: 2.278218707 | AF49: 2.276623954 | AG49: 2.27912824 | AH49: 2.278672414 | AI49: 2.28231829 | AJ49: 2.292132259 | AK49: 2.301759214 | AL49: 2.316030121 | AM49: 2.327378669 | AN49: 2.337153659 | AO49: 2.347437135 | AP49: 2.353540472 | AQ49: 2.359659677 | AR49: 2.366974622 | AS49: 2.374548941 | AT49: 2.38855878 | AU49: 2.394530177 | AV49: 2.401713767 | AW49: 2.412041136 | AX49: 2.435437935 | AY49: 2.452242457 | AZ49: 2.464748894 | BA49: 2.477319113 | BB49: 2.493173955 | BC49: 2.517108425 | BD49: 2.540014112 | BE49: 2.554746194 | BF49: 2.560111161 | BG49: 2.563951328 | BH49: 2.576771084 | BI49: 2.586562814 | BJ49: 2.594063847 | BK49: 2.610665855 | BL49: 2.618758919 | BM49: 2.623996437 | BN49: 2.638428418 | BO49: 2.654258988 | BP49: 2.665406876 | BQ49: 2.671537312 | BR49: 2.673674542 | BS49: 2.677952421 | BT49: 2.684379507 | BU49: 2.694311711 | BV49: 2.700778059 | BW49: 2.724544906 | BX49: 2.74361672 | BY49: 2.763096399 | BZ49: 2.783267003 | CA49: 2.795235051 | CB49: 2.792160292 | CC49: 2.79020578 | CD49: 2.788252636 | CE49: 2.8033092 | CF49: 2.829099645 | CG49: 2.858239371 | CH49: 2.875388807 | CI49: 2.902417462 | CJ49: 2.918090516 | CK49: 2.937349914 | CL49: 2.958498833 | CM49: 2.975362277 | CN49: 2.981908074 | CO49: 2.981908074 | CP49: 2.994432087 | CQ49: 3.007907032 | CR49: 3.017532334 | CS49: 3.034732269 | CT49: 3.050209403 | CU49: 3.065765471 | CV49: 3.077721957 | CW49: 3.083261856 | CX49: 3.102994732 | CY49: 3.120061203 | CZ49: 3.128173362 | DA49: 3.141624508 | DB49: 3.155761818 | DC49: 3.175643117 | DD49: 3.198190183 | DE49: 3.21546041 | DF49: 3.239254817 | DG49: 3.269055962 | DH49: 3.286055053 | DI49: 3.305771383 | DJ49: 3.325275434 | DK49: 3.336913898 | DL49: 3.346257257 | DM49: 3.341907123 | DN49: 3.347254174 | DO49: 3.35629176 | DP49: 3.37676514 | DQ49: 3.394999672 | DR49: 3.41944367 | DS49: 3.440986165 | DT49: 3.463008476 | DU49: 3.491405146 | DV49: 3.518638106 | DW49: 3.539749934 | DX49: 3.548953284 | DY49: 3.553566923 | DZ49: 3.559963344 | EA49: 3.577407164 | EB49: 3.591001312 | EC49: 3.610033618 | ED49: 3.632415827 | EE49: 3.686175581 | EF49: 3.728935218 | EG49: 3.78524214 | EH49: 3.812117359 | EI49: 3.849857321 | EJ49: 3.879501222 | EK49: 3.902002329 | EL49: 3.911757335 | EM49: 3.931707297 | EN49: 3.961981444 | EO49: 4.005959438 | EP49: 4.042013073 | EQ49: 4.10304747 | ER49: 4.142026421 | ES49: 4.160251337 | ET49: 4.186876946 | EU49: 4.22790834 | EV49: 4.247779509 | EW49: 4.274965298 | EX49: 4.28821769 | EY49: 4.291648264 | EZ49: 4.298944067 | FA49: 4.301953327 | FB49: 4.307976062 | FC49: 4.326069561 | FD49: 4.336452128 | FE49: 4.350328775 | FF49: 4.353809038 | FG49: 4.369482751 | FH49: 4.363780576 | FI49: 4.371199003 | FJ49: 4.369887643 | FK49: 4.369887643 | FL49: 4.369887643 | FM49: 4.369887643 | FN49: 4.369887643 | FO49: 4.369887643 | FP49: 4.369887643 | FQ49: 4.369887643 | FR49: 4.369887643 | FS49: 4.369887643 | FT49: 4.369887643 | FU49: 4.369887643 | FV49: 4.369887643 | FW49: 4.369887643 | FX49: 4.369887643 | FY49: 4.369887643 | FZ49: 4.369887643 | GA49: 4.369887643 | GB49: 4.369887643 | GC49: 4.369887643 | GD49: 4.369887643 | GE49: 4.369887643 | GF49: 4.369887643 | GG49: 4.369887643 | GH49: 4.369887643 | GI49: 4.369887643 | GJ49: 4.369887643 | GK49: 4.369887643 | GL49: 4.369887643 | GM49: 4.369887643 | GN49: 4.369887643 | GO49: 4.369887643 | GP49: 4.369887643 | GQ49: 4.369887643 | GR49: 4.369887643 | GS49: 4.369887643 | GT49: 4.369887643 | GU49: 4.369887643 | GV49: 4.369887643 | GW49: 4.369887643 | GX49: 4.369887643 | GY49: 4.369887643 | GZ49: 4.369887643 | HA49: 4.369887643 | HB49: 4.369887643 | HC49: 4.369887643 | HD49: 4.369887643 | HE49: 4.369887643 | HF49: 4.369887643 | HG49: 4.369887643 | HH49: 4.369887643 | HI49: 4.369887643 | HJ49: 4.369887643 | HK49: 4.369887643 | HL49: 4.369887643 | HM49: 4.369887643 | HN49: 4.369887643 | HO49: 4.369887643 | HP49: 4.369887643 | HQ49: 4.369887643 | HR49: 4.369887643 | HS49: 4.369887643 | HT49: 4.369887643 | HU49: 4.369887643 | HV49: 4.369887643 | HW49: 4.369887643 | HX49: 4.369887643 | HY49: 4.369887643 | HZ49: 4.369887643 | IA49: 4.369887643 | IB49: 4.369887643 | IC49: 4.369887643 | ID49: 4.369887643 | IE49: 4.369887643 | IF49: 4.369887643 | IG49: 4.369887643 | IH49: 4.369887643 | II49: 4.369887643 | IJ49: 4.369887643 | IK49: 4.369887643 | IL49: 4.369887643 | IM49: 4.369887643 | IN49: 4.369887643 | IO49: 4.369887643 | IP49: 4.369887643 | IQ49: 4.369887643 | IR49: 4.369887643 | IS49: 4.369887643 | IT49: 4.369887643 | IU49: 4.369887643 | IV49: 4.369887643 | IW49: 4.369887643 | IX49: 4.369887643 | IY49: 4.369887643
B50: 1998-03-01 | C50: 2.036858 | D50: 2.044801746 | E50: 2.056457116 | F50: 2.06488859 | G50: 2.073148145 | H50: 2.083513885 | I50: 2.098723537 | J50: 2.109217154 | K50: 2.112802824 | L50: 2.116394588 | M50: 2.125706725 | N50: 2.143987802 | O50: 2.156208533 | P50: 2.16569585 | Q50: 2.18150543 | R50: 2.20135713 | S50: 2.216766629 | T50: 2.214328186 | U50: 2.214992485 | V50: 2.214992485 | W50: 2.218314973 | X50: 2.2311812 | Y50: 2.243229579 | Z50: 2.252202497 | AA50: 2.260760867 | AB50: 2.265960617 | AC50: 2.27207871 | AD50: 2.274805205 | AE50: 2.277762451 | AF50: 2.276168018 | AG50: 2.278671802 | AH50: 2.278216068 | AI50: 2.281861214 | AJ50: 2.291673217 | AK50: 2.301298245 | AL50: 2.315566294 | AM50: 2.326912569 | AN50: 2.336685601 | AO50: 2.346967018 | AP50: 2.353069132 | AQ50: 2.359187112 | AR50: 2.366500592 | AS50: 2.374073394 | AT50: 2.388080427 | AU50: 2.394050628 | AV50: 2.40123278 | AW50: 2.411558081 | AX50: 2.434950194 | AY50: 2.451751351 | AZ50: 2.464255282 | BA50: 2.476822984 | BB50: 2.492674651 | BC50: 2.516604328 | BD50: 2.539505428 | BE50: 2.554234559 | BF50: 2.559598452 | BG50: 2.563437849 | BH50: 2.576255038 | BI50: 2.586044808 | BJ50: 2.593544338 | BK50: 2.610143021 | BL50: 2.618234465 | BM50: 2.623470934 | BN50: 2.637900024 | BO50: 2.653727424 | BP50: 2.664873079 | BQ50: 2.671002287 | BR50: 2.673139089 | BS50: 2.677416112 | BT50: 2.68384191 | BU50: 2.693772125 | BV50: 2.700237178 | BW50: 2.723999266 | BX50: 2.74306726 | BY50: 2.762543038 | BZ50: 2.782709602 | CA50: 2.794675253 | CB50: 2.791601111 | CC50: 2.78964699 | CD50: 2.787694237 | CE50: 2.802747786 | CF50: 2.828533065 | CG50: 2.857666956 | CH50: 2.874812958 | CI50: 2.9018362 | CJ50: 2.917506115 | CK50: 2.936761655 | CL50: 2.957906339 | CM50: 2.974766405 | CN50: 2.981310892 | CO50: 2.981310892 | CP50: 2.993832397 | CQ50: 3.007304643 | CR50: 3.016928018 | CS50: 3.034124508 | CT50: 3.049598543 | CU50: 3.065151495 | CV50: 3.077105586 | CW50: 3.082644376 | CX50: 3.1023733 | CY50: 3.119436353 | CZ50: 3.127546888 | DA50: 3.140995339 | DB50: 3.155129818 | DC50: 3.175007136 | DD50: 3.197549687 | DE50: 3.214816455 | DF50: 3.238606097 | DG50: 3.268401273 | DH50: 3.28539696 | DI50: 3.305109342 | DJ50: 3.324609487 | DK50: 3.33624562 | DL50: 3.345587108 | DM50: 3.341237844 | DN50: 3.346583825 | DO50: 3.355619601 | DP50: 3.376088881 | DQ50: 3.394319761 | DR50: 3.418758863 | DS50: 3.440297044 | DT50: 3.462314945 | DU50: 3.490705927 | DV50: 3.517933434 | DW50: 3.539041034 | DX50: 3.548242541 | DY50: 3.552855256 | DZ50: 3.559250396 | EA50: 3.576690723 | EB50: 3.590282147 | EC50: 3.609310643 | ED50: 3.631688369 | EE50: 3.685437357 | EF50: 3.72818843 | EG50: 3.784484075 | EH50: 3.811353912 | EI50: 3.849086316 | EJ50: 3.878724281 | EK50: 3.901220881 | EL50: 3.910973934 | EM50: 3.930919901 | EN50: 3.961187984 | EO50: 4.005157171 | EP50: 4.041203585 | EQ50: 4.102225759 | ER50: 4.141196904 | ES50: 4.15941817 | ET50: 4.186038447 | EU50: 4.227061623 | EV50: 4.246928813 | EW50: 4.274109157 | EX50: 4.287358896 | EY50: 4.290788783 | EZ50: 4.298083124 | FA50: 4.301091782 | FB50: 4.307113311 | FC50: 4.325203186 | FD50: 4.335583674 | FE50: 4.349457542 | FF50: 4.352937108 | FG50: 4.368607681 | FH50: 4.362906648 | FI50: 4.37032359 | FJ50: 4.369012493 | FK50: 4.369012493 | FL50: 4.369012493 | FM50: 4.369012493 | FN50: 4.369012493 | FO50: 4.369012493 | FP50: 4.369012493 | FQ50: 4.369012493 | FR50: 4.369012493 | FS50: 4.369012493 | FT50: 4.369012493 | FU50: 4.369012493 | FV50: 4.369012493 | FW50: 4.369012493 | FX50: 4.369012493 | FY50: 4.369012493 | FZ50: 4.369012493 | GA50: 4.369012493 | GB50: 4.369012493 | GC50: 4.369012493 | GD50: 4.369012493 | GE50: 4.369012493 | GF50: 4.369012493 | GG50: 4.369012493 | GH50: 4.369012493 | GI50: 4.369012493 | GJ50: 4.369012493 | GK50: 4.369012493 | GL50: 4.369012493 | GM50: 4.369012493 | GN50: 4.369012493 | GO50: 4.369012493 | GP50: 4.369012493 | GQ50: 4.369012493 | GR50: 4.369012493 | GS50: 4.369012493 | GT50: 4.369012493 | GU50: 4.369012493 | GV50: 4.369012493 | GW50: 4.369012493 | GX50: 4.369012493 | GY50: 4.369012493 | GZ50: 4.369012493 | HA50: 4.369012493 | HB50: 4.369012493 | HC50: 4.369012493 | HD50: 4.369012493 | HE50: 4.369012493 | HF50: 4.369012493 | HG50: 4.369012493 | HH50: 4.369012493 | HI50: 4.369012493 | HJ50: 4.369012493 | HK50: 4.369012493 | HL50: 4.369012493 | HM50: 4.369012493 | HN50: 4.369012493 | HO50: 4.369012493 | HP50: 4.369012493 | HQ50: 4.369012493 | HR50: 4.369012493 | HS50: 4.369012493 | HT50: 4.369012493 | HU50: 4.369012493 | HV50: 4.369012493 | HW50: 4.369012493 | HX50: 4.369012493 | HY50: 4.369012493 | HZ50: 4.369012493 | IA50: 4.369012493 | IB50: 4.369012493 | IC50: 4.369012493 | ID50: 4.369012493 | IE50: 4.369012493 | IF50: 4.369012493 | IG50: 4.369012493 | IH50: 4.369012493 | II50: 4.369012493 | IJ50: 4.369012493 | IK50: 4.369012493 | IL50: 4.369012493 | IM50: 4.369012493 | IN50: 4.369012493 | IO50: 4.369012493 | IP50: 4.369012493 | IQ50: 4.369012493 | IR50: 4.369012493 | IS50: 4.369012493 | IT50: 4.369012493 | IU50: 4.369012493 | IV50: 4.369012493 | IW50: 4.369012493 | IX50: 4.369012493 | IY50: 4.369012493
B51: 1998-04-01 | C51: 2.032184 | D51: 2.040109518 | E51: 2.051738142 | F51: 2.060150268 | G51: 2.068390869 | H51: 2.078732824 | I51: 2.093907573 | J51: 2.104377111 | K51: 2.107954552 | L51: 2.111538075 | M51: 2.120828842 | N51: 2.139067971 | O51: 2.151260658 | P51: 2.160726205 | Q51: 2.176499506 | R51: 2.196305652 | S51: 2.211679791 | T51: 2.209246943 | U51: 2.209909718 | V51: 2.209909718 | W51: 2.213224582 | X51: 2.226061285 | Y51: 2.238082016 | Z51: 2.247034344 | AA51: 2.255573074 | AB51: 2.260760892 | AC51: 2.266864947 | AD51: 2.269585185 | AE51: 2.272535645 | AF51: 2.27094487 | AG51: 2.27344291 | AH51: 2.272988221 | AI51: 2.276625002 | AJ51: 2.28641449 | AK51: 2.296017431 | AL51: 2.310252739 | AM51: 2.321572977 | AN51: 2.331323584 | AO51: 2.341581407 | AP51: 2.347669519 | AQ51: 2.35377346 | AR51: 2.361070158 | AS51: 2.368625582 | AT51: 2.382600473 | AU51: 2.388556974 | AV51: 2.395722645 | AW51: 2.406024253 | AX51: 2.429362688 | AY51: 2.44612529 | AZ51: 2.458600529 | BA51: 2.471139392 | BB51: 2.486954684 | BC51: 2.510829449 | BD51: 2.533677997 | BE51: 2.548373329 | BF51: 2.553724913 | BG51: 2.557555501 | BH51: 2.570343278 | BI51: 2.580110583 | BJ51: 2.587592903 | BK51: 2.604153498 | BL51: 2.612226374 | BM51: 2.617450827 | BN51: 2.631846806 | BO51: 2.647637887 | BP51: 2.658757966 | BQ51: 2.664873109 | BR51: 2.667005008 | BS51: 2.671272216 | BT51: 2.677683269 | BU51: 2.687590697 | BV51: 2.694040915 | BW51: 2.717748475 | BX51: 2.736772714 | BY51: 2.756203801 | BZ51: 2.776324088 | CA51: 2.788262282 | CB51: 2.785195194 | CC51: 2.783245557 | CD51: 2.781297285 | CE51: 2.79631629 | CF51: 2.8220424 | CG51: 2.851109437 | CH51: 2.868216094 | CI51: 2.895177325 | CJ51: 2.910811282 | CK51: 2.930022637 | CL51: 2.9511188 | CM51: 2.967940177 | CN51: 2.974469645 | CO51: 2.974469645 | CP51: 2.986962418 | CQ51: 3.000403749 | CR51: 3.010005041 | CS51: 3.027162069 | CT51: 3.042600596 | CU51: 3.058117859 | CV51: 3.070044519 | CW51: 3.075570599 | CX51: 3.095254251 | CY51: 3.112278149 | CZ51: 3.120370072 | DA51: 3.133787664 | DB51: 3.147889708 | DC51: 3.167721413 | DD51: 3.190212235 | DE51: 3.207439381 | DF51: 3.231174433 | DG51: 3.260901238 | DH51: 3.277857924 | DI51: 3.297525072 | DJ51: 3.316980469 | DK51: 3.328589901 | DL51: 3.337909953 | DM51: 3.33357067 | DN51: 3.338904383 | DO51: 3.347919425 | DP51: 3.368341733 | DQ51: 3.386530779 | DR51: 3.4109138 | DS51: 3.432402557 | DT51: 3.454369934 | DU51: 3.482695767 | DV51: 3.509860794 | DW51: 3.530919959 | DX51: 3.540100351 | DY51: 3.544702481 | DZ51: 3.551082946 | EA51: 3.568483252 | EB51: 3.582043488 | EC51: 3.601028319 | ED51: 3.623354694 | EE51: 3.676980344 | EF51: 3.719633316 | EG51: 3.775799779 | EH51: 3.802607957 | EI51: 3.840253776 | EJ51: 3.86982373 | EK51: 3.892268708 | EL51: 3.90199938 | EM51: 3.921899576 | EN51: 3.952098203 | EO51: 3.995966493 | EP51: 4.031930192 | EQ51: 4.092812338 | ER51: 4.131694055 | ES51: 4.149873509 | ET51: 4.176432699 | EU51: 4.21736174 | EV51: 4.23718334 | EW51: 4.264301313 | EX51: 4.277520647 | EY51: 4.280942664 | EZ51: 4.288220266 | FA51: 4.29122202 | FB51: 4.297229731 | FC51: 4.315278096 | FD51: 4.325634764 | FE51: 4.339476795 | FF51: 4.342948376 | FG51: 4.35858299 | FH51: 4.35289504 | FI51: 4.360294961 | FJ51: 4.358986873 | FK51: 4.358986873 | FL51: 4.358986873 | FM51: 4.358986873 | FN51: 4.358986873 | FO51: 4.358986873 | FP51: 4.358986873 | FQ51: 4.358986873 | FR51: 4.358986873 | FS51: 4.358986873 | FT51: 4.358986873 | FU51: 4.358986873 | FV51: 4.358986873 | FW51: 4.358986873 | FX51: 4.358986873 | FY51: 4.358986873 | FZ51: 4.358986873 | GA51: 4.358986873 | GB51: 4.358986873 | GC51: 4.358986873 | GD51: 4.358986873 | GE51: 4.358986873 | GF51: 4.358986873 | GG51: 4.358986873 | GH51: 4.358986873 | GI51: 4.358986873 | GJ51: 4.358986873 | GK51: 4.358986873 | GL51: 4.358986873 | GM51: 4.358986873 | GN51: 4.358986873 | GO51: 4.358986873 | GP51: 4.358986873 | GQ51: 4.358986873 | GR51: 4.358986873 | GS51: 4.358986873 | GT51: 4.358986873 | GU51: 4.358986873 | GV51: 4.358986873 | GW51: 4.358986873 | GX51: 4.358986873 | GY51: 4.358986873 | GZ51: 4.358986873 | HA51: 4.358986873 | HB51: 4.358986873 | HC51: 4.358986873 | HD51: 4.358986873 | HE51: 4.358986873 | HF51: 4.358986873 | HG51: 4.358986873 | HH51: 4.358986873 | HI51: 4.358986873 | HJ51: 4.358986873 | HK51: 4.358986873 | HL51: 4.358986873 | HM51: 4.358986873 | HN51: 4.358986873 | HO51: 4.358986873 | HP51: 4.358986873 | HQ51: 4.358986873 | HR51: 4.358986873 | HS51: 4.358986873 | HT51: 4.358986873 | HU51: 4.358986873 | HV51: 4.358986873 | HW51: 4.358986873 | HX51: 4.358986873 | HY51: 4.358986873 | HZ51: 4.358986873 | IA51: 4.358986873 | IB51: 4.358986873 | IC51: 4.358986873 | ID51: 4.358986873 | IE51: 4.358986873 | IF51: 4.358986873 | IG51: 4.358986873 | IH51: 4.358986873 | II51: 4.358986873 | IJ51: 4.358986873 | IK51: 4.358986873 | IL51: 4.358986873 | IM51: 4.358986873 | IN51: 4.358986873 | IO51: 4.358986873 | IP51: 4.358986873 | IQ51: 4.358986873 | IR51: 4.358986873 | IS51: 4.358986873 | IT51: 4.358986873 | IU51: 4.358986873 | IV51: 4.358986873 | IW51: 4.358986873 | IX51: 4.358986873 | IY51: 4.358986873
B52: 1998-05-01 | C52: 2.032184 | D52: 2.040109518 | E52: 2.051738142 | F52: 2.060150268 | G52: 2.068390869 | H52: 2.078732824 | I52: 2.093907573 | J52: 2.104377111 | K52: 2.107954552 | L52: 2.111538075 | M52: 2.120828842 | N52: 2.139067971 | O52: 2.151260658 | P52: 2.160726205 | Q52: 2.176499506 | R52: 2.196305652 | S52: 2.211679791 | T52: 2.209246943 | U52: 2.209909718 | V52: 2.209909718 | W52: 2.213224582 | X52: 2.226061285 | Y52: 2.238082016 | Z52: 2.247034344 | AA52: 2.255573074 | AB52: 2.260760892 | AC52: 2.266864947 | AD52: 2.269585185 | AE52: 2.272535645 | AF52: 2.27094487 | AG52: 2.27344291 | AH52: 2.272988221 | AI52: 2.276625002 | AJ52: 2.28641449 | AK52: 2.296017431 | AL52: 2.310252739 | AM52: 2.321572977 | AN52: 2.331323584 | AO52: 2.341581407 | AP52: 2.347669519 | AQ52: 2.35377346 | AR52: 2.361070158 | AS52: 2.368625582 | AT52: 2.382600473 | AU52: 2.388556974 | AV52: 2.395722645 | AW52: 2.406024253 | AX52: 2.429362688 | AY52: 2.44612529 | AZ52: 2.458600529 | BA52: 2.471139392 | BB52: 2.486954684 | BC52: 2.510829449 | BD52: 2.533677997 | BE52: 2.548373329 | BF52: 2.553724913 | BG52: 2.557555501 | BH52: 2.570343278 | BI52: 2.580110583 | BJ52: 2.587592903 | BK52: 2.604153498 | BL52: 2.612226374 | BM52: 2.617450827 | BN52: 2.631846806 | BO52: 2.647637887 | BP52: 2.658757966 | BQ52: 2.664873109 | BR52: 2.667005008 | BS52: 2.671272216 | BT52: 2.677683269 | BU52: 2.687590697 | BV52: 2.694040915 | BW52: 2.717748475 | BX52: 2.736772714 | BY52: 2.756203801 | BZ52: 2.776324088 | CA52: 2.788262282 | CB52: 2.785195194 | CC52: 2.783245557 | CD52: 2.781297285 | CE52: 2.79631629 | CF52: 2.8220424 | CG52: 2.851109437 | CH52: 2.868216094 | CI52: 2.895177325 | CJ52: 2.910811282 | CK52: 2.930022637 | CL52: 2.9511188 | CM52: 2.967940177 | CN52: 2.974469645 | CO52: 2.974469645 | CP52: 2.986962418 | CQ52: 3.000403749 | CR52: 3.010005041 | CS52: 3.027162069 | CT52: 3.042600596 | CU52: 3.058117859 | CV52: 3.070044519 | CW52: 3.075570599 | CX52: 3.095254251 | CY52: 3.112278149 | CZ52: 3.120370072 | DA52: 3.133787664 | DB52: 3.147889708 | DC52: 3.167721413 | DD52: 3.190212235 | DE52: 3.207439381 | DF52: 3.231174433 | DG52: 3.260901238 | DH52: 3.277857924 | DI52: 3.297525072 | DJ52: 3.316980469 | DK52: 3.328589901 | DL52: 3.337909953 | DM52: 3.33357067 | DN52: 3.338904383 | DO52: 3.347919425 | DP52: 3.368341733 | DQ52: 3.386530779 | DR52: 3.4109138 | DS52: 3.432402557 | DT52: 3.454369934 | DU52: 3.482695767 | DV52: 3.509860794 | DW52: 3.530919959 | DX52: 3.540100351 | DY52: 3.544702481 | DZ52: 3.551082946 | EA52: 3.568483252 | EB52: 3.582043488 | EC52: 3.601028319 | ED52: 3.623354694 | EE52: 3.676980344 | EF52: 3.719633316 | EG52: 3.775799779 | EH52: 3.802607957 | EI52: 3.840253776 | EJ52: 3.86982373 | EK52: 3.892268708 | EL52: 3.90199938 | EM52: 3.921899576 | EN52: 3.952098203 | EO52: 3.995966493 | EP52: 4.031930192 | EQ52: 4.092812338 | ER52: 4.131694055 | ES52: 4.149873509 | ET52: 4.176432699 | EU52: 4.21736174 | EV52: 4.23718334 | EW52: 4.264301313 | EX52: 4.277520647 | EY52: 4.280942664 | EZ52: 4.288220266 | FA52: 4.29122202 | FB52: 4.297229731 | FC52: 4.315278096 | FD52: 4.325634764 | FE52: 4.339476795 | FF52: 4.342948376 | FG52: 4.35858299 | FH52: 4.35289504 | FI52: 4.360294961 | FJ52: 4.358986873 | FK52: 4.358986873 | FL52: 4.358986873 | FM52: 4.358986873 | FN52: 4.358986873 | FO52: 4.358986873 | FP52: 4.358986873 | FQ52: 4.358986873 | FR52: 4.358986873 | FS52: 4.358986873 | FT52: 4.358986873 | FU52: 4.358986873 | FV52: 4.358986873 | FW52: 4.358986873 | FX52: 4.358986873 | FY52: 4.358986873 | FZ52: 4.358986873 | GA52: 4.358986873 | GB52: 4.358986873 | GC52: 4.358986873 | GD52: 4.358986873 | GE52: 4.358986873 | GF52: 4.358986873 | GG52: 4.358986873 | GH52: 4.358986873 | GI52: 4.358986873 | GJ52: 4.358986873 | GK52: 4.358986873 | GL52: 4.358986873 | GM52: 4.358986873 | GN52: 4.358986873 | GO52: 4.358986873 | GP52: 4.358986873 | GQ52: 4.358986873 | GR52: 4.358986873 | GS52: 4.358986873 | GT52: 4.358986873 | GU52: 4.358986873 | GV52: 4.358986873 | GW52: 4.358986873 | GX52: 4.358986873 | GY52: 4.358986873 | GZ52: 4.358986873 | HA52: 4.358986873 | HB52: 4.358986873 | HC52: 4.358986873 | HD52: 4.358986873 | HE52: 4.358986873 | HF52: 4.358986873 | HG52: 4.358986873 | HH52: 4.358986873 | HI52: 4.358986873 | HJ52: 4.358986873 | HK52: 4.358986873 | HL52: 4.358986873 | HM52: 4.358986873 | HN52: 4.358986873 | HO52: 4.358986873 | HP52: 4.358986873 | HQ52: 4.358986873 | HR52: 4.358986873 | HS52: 4.358986873 | HT52: 4.358986873 | HU52: 4.358986873 | HV52: 4.358986873 | HW52: 4.358986873 | HX52: 4.358986873 | HY52: 4.358986873 | HZ52: 4.358986873 | IA52: 4.358986873 | IB52: 4.358986873 | IC52: 4.358986873 | ID52: 4.358986873 | IE52: 4.358986873 | IF52: 4.358986873 | IG52: 4.358986873 | IH52: 4.358986873 | II52: 4.358986873 | IJ52: 4.358986873 | IK52: 4.358986873 | IL52: 4.358986873 | IM52: 4.358986873 | IN52: 4.358986873 | IO52: 4.358986873 | IP52: 4.358986873 | IQ52: 4.358986873 | IR52: 4.358986873 | IS52: 4.358986873 | IT52: 4.358986873 | IU52: 4.358986873 | IV52: 4.358986873 | IW52: 4.358986873 | IX52: 4.358986873 | IY52: 4.358986873
B53: 1998-06-01 | C53: 2.027521 | D53: 2.035428332 | E53: 2.047030273 | F53: 2.055423098 | G53: 2.06364479 | H53: 2.073963014 | I53: 2.089102944 | J53: 2.099548459 | K53: 2.103117691 | L53: 2.106692991 | M53: 2.11596244 | N53: 2.134159717 | O53: 2.146324428 | P53: 2.155768255 | Q53: 2.171505363 | R53: 2.191266062 | S53: 2.206604925 | T53: 2.204177659 | U53: 2.204838912 | V53: 2.204838912 | W53: 2.208146171 | X53: 2.220953419 | Y53: 2.232946567 | Z53: 2.241878353 | AA53: 2.250397491 | AB53: 2.255573405 | AC53: 2.261663453 | AD53: 2.26437745 | AE53: 2.26732114 | AF53: 2.265734016 | AG53: 2.268226323 | AH53: 2.267772678 | AI53: 2.271401114 | AJ53: 2.281168139 | AK53: 2.290749045 | AL53: 2.304951689 | AM53: 2.316245952 | AN53: 2.325974185 | AO53: 2.336208472 | AP53: 2.342282614 | AQ53: 2.348372549 | AR53: 2.355652503 | AS53: 2.363190591 | AT53: 2.377133416 | AU53: 2.383076249 | AV53: 2.390225478 | AW53: 2.400503448 | AX53: 2.423788331 | AY53: 2.440512471 | AZ53: 2.452959084 | BA53: 2.465469176 | BB53: 2.481248178 | BC53: 2.505068161 | BD53: 2.527864281 | BE53: 2.542525894 | BF53: 2.547865198 | BG53: 2.551686996 | BH53: 2.564445431 | BI53: 2.574190324 | BJ53: 2.581655476 | BK53: 2.598178071 | BL53: 2.606232423 | BM53: 2.611444888 | BN53: 2.625807834 | BO53: 2.641562681 | BP53: 2.652657245 | BQ53: 2.658758356 | BR53: 2.660885363 | BS53: 2.66514278 | BT53: 2.671539122 | BU53: 2.681423817 | BV53: 2.687859234 | BW53: 2.711512396 | BX53: 2.730492982 | BY53: 2.749879482 | BZ53: 2.769953603 | CA53: 2.781864403 | CB53: 2.778804352 | CC53: 2.776859189 | CD53: 2.774915388 | CE53: 2.789899931 | CF53: 2.81556701 | CG53: 2.844567351 | CH53: 2.861634755 | CI53: 2.888534121 | CJ53: 2.904132206 | CK53: 2.923299478 | CL53: 2.944347234 | CM53: 2.961130014 | CN53: 2.9676445 | CO53: 2.9676445 | CP53: 2.980108607 | CQ53: 2.993519095 | CR53: 3.003098356 | CS53: 3.020216017 | CT53: 3.035619119 | CU53: 3.051100776 | CV53: 3.063000069 | CW53: 3.068513469 | CX53: 3.088151956 | CY53: 3.105136791 | CZ53: 3.113210147 | DA53: 3.126596951 | DB53: 3.140666637 | DC53: 3.160452837 | DD53: 3.182892052 | DE53: 3.200079669 | DF53: 3.223760258 | DG53: 3.253418853 | DH53: 3.270336631 | DI53: 3.289958651 | DJ53: 3.309369407 | DK53: 3.3209522 | DL53: 3.330250866 | DM53: 3.32592154 | DN53: 3.331243014 | DO53: 3.34023737 | DP53: 3.360612818 | DQ53: 3.378760127 | DR53: 3.4030872 | DS53: 3.42452665 | DT53: 3.44644362 | DU53: 3.474704458 | DV53: 3.501807153 | DW53: 3.522817996 | DX53: 3.531977322 | DY53: 3.536568893 | DZ53: 3.542934717 | EA53: 3.560295097 | EB53: 3.573824218 | EC53: 3.592765487 | ED53: 3.615040633 | EE53: 3.668543234 | EF53: 3.711098336 | EG53: 3.767135921 | EH53: 3.793882586 | EI53: 3.831442023 | EJ53: 3.860944127 | EK53: 3.883337603 | EL53: 3.893045947 | EM53: 3.912900481 | EN53: 3.943029815 | EO53: 3.986797446 | EP53: 4.022678623 | EQ53: 4.08342107 | ER53: 4.12221357 | ES53: 4.14035131 | ET53: 4.166849558 | EU53: 4.207684684 | EV53: 4.227460802 | EW53: 4.254516551 | EX53: 4.267705552 | EY53: 4.271119717 | EZ53: 4.27838062 | FA53: 4.281375487 | FB53: 4.287369412 | FC53: 4.305376364 | FD53: 4.315709267 | FE53: 4.329519537 | FF53: 4.332983152 | FG53: 4.348581892 | FH53: 4.342906992 | FI53: 4.350289934 | FJ53: 4.348984847 | FK53: 4.348984847 | FL53: 4.348984847 | FM53: 4.348984847 | FN53: 4.348984847 | FO53: 4.348984847 | FP53: 4.348984847 | FQ53: 4.348984847 | FR53: 4.348984847 | FS53: 4.348984847 | FT53: 4.348984847 | FU53: 4.348984847 | FV53: 4.348984847 | FW53: 4.348984847 | FX53: 4.348984847 | FY53: 4.348984847 | FZ53: 4.348984847 | GA53: 4.348984847 | GB53: 4.348984847 | GC53: 4.348984847 | GD53: 4.348984847 | GE53: 4.348984847 | GF53: 4.348984847 | GG53: 4.348984847 | GH53: 4.348984847 | GI53: 4.348984847 | GJ53: 4.348984847 | GK53: 4.348984847 | GL53: 4.348984847 | GM53: 4.348984847 | GN53: 4.348984847 | GO53: 4.348984847 | GP53: 4.348984847 | GQ53: 4.348984847 | GR53: 4.348984847 | GS53: 4.348984847 | GT53: 4.348984847 | GU53: 4.348984847 | GV53: 4.348984847 | GW53: 4.348984847 | GX53: 4.348984847 | GY53: 4.348984847 | GZ53: 4.348984847 | HA53: 4.348984847 | HB53: 4.348984847 | HC53: 4.348984847 | HD53: 4.348984847 | HE53: 4.348984847 | HF53: 4.348984847 | HG53: 4.348984847 | HH53: 4.348984847 | HI53: 4.348984847 | HJ53: 4.348984847 | HK53: 4.348984847 | HL53: 4.348984847 | HM53: 4.348984847 | HN53: 4.348984847 | HO53: 4.348984847 | HP53: 4.348984847 | HQ53: 4.348984847 | HR53: 4.348984847 | HS53: 4.348984847 | HT53: 4.348984847 | HU53: 4.348984847 | HV53: 4.348984847 | HW53: 4.348984847 | HX53: 4.348984847 | HY53: 4.348984847 | HZ53: 4.348984847 | IA53: 4.348984847 | IB53: 4.348984847 | IC53: 4.348984847 | ID53: 4.348984847 | IE53: 4.348984847 | IF53: 4.348984847 | IG53: 4.348984847 | IH53: 4.348984847 | II53: 4.348984847 | IJ53: 4.348984847 | IK53: 4.348984847 | IL53: 4.348984847 | IM53: 4.348984847 | IN53: 4.348984847 | IO53: 4.348984847 | IP53: 4.348984847 | IQ53: 4.348984847 | IR53: 4.348984847 | IS53: 4.348984847 | IT53: 4.348984847 | IU53: 4.348984847 | IV53: 4.348984847 | IW53: 4.348984847 | IX53: 4.348984847 | IY53: 4.348984847
B54: 1998-07-01 | C54: 2.02186 | D54: 2.029745254 | E54: 2.041314802 | F54: 2.049684193 | G54: 2.057882929 | H54: 2.068172344 | I54: 2.083270002 | J54: 2.093686352 | K54: 2.097245619 | L54: 2.100810937 | M54: 2.110054505 | N54: 2.128200973 | O54: 2.140331719 | P54: 2.149749178 | Q54: 2.165442348 | R54: 2.185147873 | S54: 2.200443908 | T54: 2.19802342 | U54: 2.198682827 | V54: 2.198682827 | W54: 2.201980851 | X54: 2.21475234 | Y54: 2.226712003 | Z54: 2.235618851 | AA54: 2.244114202 | AB54: 2.249275665 | AC54: 2.255348709 | AD54: 2.258055128 | AE54: 2.260990599 | AF54: 2.259407906 | AG54: 2.261893255 | AH54: 2.261440876 | AI54: 2.265059181 | AJ54: 2.274798936 | AK54: 2.284353091 | AL54: 2.29851608 | AM54: 2.309778809 | AN54: 2.31947988 | AO54: 2.329685592 | AP54: 2.335742774 | AQ54: 2.341815705 | AR54: 2.349075334 | AS54: 2.356592375 | AT54: 2.37049627 | AU54: 2.376422511 | AV54: 2.383551778 | AW54: 2.393801051 | AX54: 2.417020921 | AY54: 2.433698366 | AZ54: 2.446110227 | BA54: 2.458585389 | BB54: 2.474320336 | BC54: 2.498073811 | BD54: 2.520806283 | BE54: 2.535426959 | BF54: 2.540751356 | BG54: 2.544562483 | BH54: 2.557285295 | BI54: 2.567002979 | BJ54: 2.574447288 | BK54: 2.590923751 | BL54: 2.598955614 | BM54: 2.604153526 | BN54: 2.61847637 | BO54: 2.634187228 | BP54: 2.645250815 | BQ54: 2.651334891 | BR54: 2.653455959 | BS54: 2.657701489 | BT54: 2.664079972 | BU54: 2.673937068 | BV54: 2.680354517 | BW54: 2.703941637 | BX54: 2.722869229 | BY54: 2.7422016 | BZ54: 2.762219672 | CA54: 2.774097216 | CB54: 2.771045709 | CC54: 2.769105977 | CD54: 2.767167603 | CE54: 2.782110308 | CF54: 2.807705723 | CG54: 2.836625092 | CH54: 2.853644843 | CI54: 2.880469104 | CJ54: 2.896023637 | CK54: 2.915137393 | CL54: 2.936126383 | CM54: 2.952862303 | CN54: 2.9593586 | CO54: 2.9593586 | CP54: 2.971787906 | CQ54: 2.985160952 | CR54: 2.994713467 | CS54: 3.011783333 | CT54: 3.027143428 | CU54: 3.04258186 | CV54: 3.054447929 | CW54: 3.059945936 | CX54: 3.079529589 | CY54: 3.096467002 | CZ54: 3.104517816 | DA54: 3.117867243 | DB54: 3.131897646 | DC54: 3.151628601 | DD54: 3.174005164 | DE54: 3.191144792 | DF54: 3.214759263 | DG54: 3.244335048 | DH54: 3.261205591 | DI54: 3.280772824 | DJ54: 3.300129384 | DK54: 3.311679837 | DL54: 3.32095254 | DM54: 3.316635302 | DN54: 3.321941918 | DO54: 3.330911162 | DP54: 3.35122972 | DQ54: 3.36932636 | DR54: 3.39358551 | DS54: 3.414965099 | DT54: 3.436820875 | DU54: 3.465002807 | DV54: 3.492029828 | DW54: 3.512982007 | DX54: 3.522115761 | DY54: 3.526694511 | DZ54: 3.533042561 | EA54: 3.55035447 | EB54: 3.563845817 | EC54: 3.5827342 | ED54: 3.604947152 | EE54: 3.658300369 | EF54: 3.700736654 | EG54: 3.756617777 | EH54: 3.783289763 | EI54: 3.820744332 | EJ54: 3.850164063 | EK54: 3.872495015 | EL54: 3.882176253 | EM54: 3.901975351 | EN54: 3.932020562 | EO54: 3.97566599 | EP54: 4.011446984 | EQ54: 4.072019833 | ER54: 4.110704022 | ES54: 4.128791119 | ET54: 4.155215383 | EU54: 4.195936493 | EV54: 4.215657395 | EW54: 4.242637602 | EX54: 4.255789779 | EY54: 4.259194411 | EZ54: 4.266435041 | FA54: 4.269421546 | FB54: 4.275398736 | FC54: 4.29335541 | FD54: 4.303659463 | FE54: 4.317431174 | FF54: 4.320885119 | FG54: 4.336440305 | FH54: 4.33078125 | FI54: 4.338143579 | FJ54: 4.336842135 | FK54: 4.336842135 | FL54: 4.336842135 | FM54: 4.336842135 | FN54: 4.336842135 | FO54: 4.336842135 | FP54: 4.336842135 | FQ54: 4.336842135 | FR54: 4.336842135 | FS54: 4.336842135 | FT54: 4.336842135 | FU54: 4.336842135 | FV54: 4.336842135 | FW54: 4.336842135 | FX54: 4.336842135 | FY54: 4.336842135 | FZ54: 4.336842135 | GA54: 4.336842135 | GB54: 4.336842135 | GC54: 4.336842135 | GD54: 4.336842135 | GE54: 4.336842135 | GF54: 4.336842135 | GG54: 4.336842135 | GH54: 4.336842135 | GI54: 4.336842135 | GJ54: 4.336842135 | GK54: 4.336842135 | GL54: 4.336842135 | GM54: 4.336842135 | GN54: 4.336842135 | GO54: 4.336842135 | GP54: 4.336842135 | GQ54: 4.336842135 | GR54: 4.336842135 | GS54: 4.336842135 | GT54: 4.336842135 | GU54: 4.336842135 | GV54: 4.336842135 | GW54: 4.336842135 | GX54: 4.336842135 | GY54: 4.336842135 | GZ54: 4.336842135 | HA54: 4.336842135 | HB54: 4.336842135 | HC54: 4.336842135 | HD54: 4.336842135 | HE54: 4.336842135 | HF54: 4.336842135 | HG54: 4.336842135 | HH54: 4.336842135 | HI54: 4.336842135 | HJ54: 4.336842135 | HK54: 4.336842135 | HL54: 4.336842135 | HM54: 4.336842135 | HN54: 4.336842135 | HO54: 4.336842135 | HP54: 4.336842135 | HQ54: 4.336842135 | HR54: 4.336842135 | HS54: 4.336842135 | HT54: 4.336842135 | HU54: 4.336842135 | HV54: 4.336842135 | HW54: 4.336842135 | HX54: 4.336842135 | HY54: 4.336842135 | HZ54: 4.336842135 | IA54: 4.336842135 | IB54: 4.336842135 | IC54: 4.336842135 | ID54: 4.336842135 | IE54: 4.336842135 | IF54: 4.336842135 | IG54: 4.336842135 | IH54: 4.336842135 | II54: 4.336842135 | IJ54: 4.336842135 | IK54: 4.336842135 | IL54: 4.336842135 | IM54: 4.336842135 | IN54: 4.336842135 | IO54: 4.336842135 | IP54: 4.336842135 | IQ54: 4.336842135 | IR54: 4.336842135 | IS54: 4.336842135 | IT54: 4.336842135 | IU54: 4.336842135 | IV54: 4.336842135 | IW54: 4.336842135 | IX54: 4.336842135 | IY54: 4.336842135
B55: 1998-08-01 | C55: 2.02186 | D55: 2.029745254 | E55: 2.041314802 | F55: 2.049684193 | G55: 2.057882929 | H55: 2.068172344 | I55: 2.083270002 | J55: 2.093686352 | K55: 2.097245619 | L55: 2.100810937 | M55: 2.110054505 | N55: 2.128200973 | O55: 2.140331719 | P55: 2.149749178 | Q55: 2.165442348 | R55: 2.185147873 | S55: 2.200443908 | T55: 2.19802342 | U55: 2.198682827 | V55: 2.198682827 | W55: 2.201980851 | X55: 2.21475234 | Y55: 2.226712003 | Z55: 2.235618851 | AA55: 2.244114202 | AB55: 2.249275665 | AC55: 2.255348709 | AD55: 2.258055128 | AE55: 2.260990599 | AF55: 2.259407906 | AG55: 2.261893255 | AH55: 2.261440876 | AI55: 2.265059181 | AJ55: 2.274798936 | AK55: 2.284353091 | AL55: 2.29851608 | AM55: 2.309778809 | AN55: 2.31947988 | AO55: 2.329685592 | AP55: 2.335742774 | AQ55: 2.341815705 | AR55: 2.349075334 | AS55: 2.356592375 | AT55: 2.37049627 | AU55: 2.376422511 | AV55: 2.383551778 | AW55: 2.393801051 | AX55: 2.417020921 | AY55: 2.433698366 | AZ55: 2.446110227 | BA55: 2.458585389 | BB55: 2.474320336 | BC55: 2.498073811 | BD55: 2.520806283 | BE55: 2.535426959 | BF55: 2.540751356 | BG55: 2.544562483 | BH55: 2.557285295 | BI55: 2.567002979 | BJ55: 2.574447288 | BK55: 2.590923751 | BL55: 2.598955614 | BM55: 2.604153526 | BN55: 2.61847637 | BO55: 2.634187228 | BP55: 2.645250815 | BQ55: 2.651334891 | BR55: 2.653455959 | BS55: 2.657701489 | BT55: 2.664079972 | BU55: 2.673937068 | BV55: 2.680354517 | BW55: 2.703941637 | BX55: 2.722869229 | BY55: 2.7422016 | BZ55: 2.762219672 | CA55: 2.774097216 | CB55: 2.771045709 | CC55: 2.769105977 | CD55: 2.767167603 | CE55: 2.782110308 | CF55: 2.807705723 | CG55: 2.836625092 | CH55: 2.853644843 | CI55: 2.880469104 | CJ55: 2.896023637 | CK55: 2.915137393 | CL55: 2.936126383 | CM55: 2.952862303 | CN55: 2.9593586 | CO55: 2.9593586 | CP55: 2.971787906 | CQ55: 2.985160952 | CR55: 2.994713467 | CS55: 3.011783333 | CT55: 3.027143428 | CU55: 3.04258186 | CV55: 3.054447929 | CW55: 3.059945936 | CX55: 3.079529589 | CY55: 3.096467002 | CZ55: 3.104517816 | DA55: 3.117867243 | DB55: 3.131897646 | DC55: 3.151628601 | DD55: 3.174005164 | DE55: 3.191144792 | DF55: 3.214759263 | DG55: 3.244335048 | DH55: 3.261205591 | DI55: 3.280772824 | DJ55: 3.300129384 | DK55: 3.311679837 | DL55: 3.32095254 | DM55: 3.316635302 | DN55: 3.321941918 | DO55: 3.330911162 | DP55: 3.35122972 | DQ55: 3.36932636 | DR55: 3.39358551 | DS55: 3.414965099 | DT55: 3.436820875 | DU55: 3.465002807 | DV55: 3.492029828 | DW55: 3.512982007 | DX55: 3.522115761 | DY55: 3.526694511 | DZ55: 3.533042561 | EA55: 3.55035447 | EB55: 3.563845817 | EC55: 3.5827342 | ED55: 3.604947152 | EE55: 3.658300369 | EF55: 3.700736654 | EG55: 3.756617777 | EH55: 3.783289763 | EI55: 3.820744332 | EJ55: 3.850164063 | EK55: 3.872495015 | EL55: 3.882176253 | EM55: 3.901975351 | EN55: 3.932020562 | EO55: 3.97566599 | EP55: 4.011446984 | EQ55: 4.072019833 | ER55: 4.110704022 | ES55: 4.128791119 | ET55: 4.155215383 | EU55: 4.195936493 | EV55: 4.215657395 | EW55: 4.242637602 | EX55: 4.255789779 | EY55: 4.259194411 | EZ55: 4.266435041 | FA55: 4.269421546 | FB55: 4.275398736 | FC55: 4.29335541 | FD55: 4.303659463 | FE55: 4.317431174 | FF55: 4.320885119 | FG55: 4.336440305 | FH55: 4.33078125 | FI55: 4.338143579 | FJ55: 4.336842135 | FK55: 4.336842135 | FL55: 4.336842135 | FM55: 4.336842135 | FN55: 4.336842135 | FO55: 4.336842135 | FP55: 4.336842135 | FQ55: 4.336842135 | FR55: 4.336842135 | FS55: 4.336842135 | FT55: 4.336842135 | FU55: 4.336842135 | FV55: 4.336842135 | FW55: 4.336842135 | FX55: 4.336842135 | FY55: 4.336842135 | FZ55: 4.336842135 | GA55: 4.336842135 | GB55: 4.336842135 | GC55: 4.336842135 | GD55: 4.336842135 | GE55: 4.336842135 | GF55: 4.336842135 | GG55: 4.336842135 | GH55: 4.336842135 | GI55: 4.336842135 | GJ55: 4.336842135 | GK55: 4.336842135 | GL55: 4.336842135 | GM55: 4.336842135 | GN55: 4.336842135 | GO55: 4.336842135 | GP55: 4.336842135 | GQ55: 4.336842135 | GR55: 4.336842135 | GS55: 4.336842135 | GT55: 4.336842135 | GU55: 4.336842135 | GV55: 4.336842135 | GW55: 4.336842135 | GX55: 4.336842135 | GY55: 4.336842135 | GZ55: 4.336842135 | HA55: 4.336842135 | HB55: 4.336842135 | HC55: 4.336842135 | HD55: 4.336842135 | HE55: 4.336842135 | HF55: 4.336842135 | HG55: 4.336842135 | HH55: 4.336842135 | HI55: 4.336842135 | HJ55: 4.336842135 | HK55: 4.336842135 | HL55: 4.336842135 | HM55: 4.336842135 | HN55: 4.336842135 | HO55: 4.336842135 | HP55: 4.336842135 | HQ55: 4.336842135 | HR55: 4.336842135 | HS55: 4.336842135 | HT55: 4.336842135 | HU55: 4.336842135 | HV55: 4.336842135 | HW55: 4.336842135 | HX55: 4.336842135 | HY55: 4.336842135 | HZ55: 4.336842135 | IA55: 4.336842135 | IB55: 4.336842135 | IC55: 4.336842135 | ID55: 4.336842135 | IE55: 4.336842135 | IF55: 4.336842135 | IG55: 4.336842135 | IH55: 4.336842135 | II55: 4.336842135 | IJ55: 4.336842135 | IK55: 4.336842135 | IL55: 4.336842135 | IM55: 4.336842135 | IN55: 4.336842135 | IO55: 4.336842135 | IP55: 4.336842135 | IQ55: 4.336842135 | IR55: 4.336842135 | IS55: 4.336842135 | IT55: 4.336842135 | IU55: 4.336842135 | IV55: 4.336842135 | IW55: 4.336842135 | IX55: 4.336842135 | IY55: 4.336842135
B56: 1998-09-01 | C56: 2.02186 | D56: 2.029745254 | E56: 2.041314802 | F56: 2.049684193 | G56: 2.057882929 | H56: 2.068172344 | I56: 2.083270002 | J56: 2.093686352 | K56: 2.097245619 | L56: 2.100810937 | M56: 2.110054505 | N56: 2.128200973 | O56: 2.140331719 | P56: 2.149749178 | Q56: 2.165442348 | R56: 2.185147873 | S56: 2.200443908 | T56: 2.19802342 | U56: 2.198682827 | V56: 2.198682827 | W56: 2.201980851 | X56: 2.21475234 | Y56: 2.226712003 | Z56: 2.235618851 | AA56: 2.244114202 | AB56: 2.249275665 | AC56: 2.255348709 | AD56: 2.258055128 | AE56: 2.260990599 | AF56: 2.259407906 | AG56: 2.261893255 | AH56: 2.261440876 | AI56: 2.265059181 | AJ56: 2.274798936 | AK56: 2.284353091 | AL56: 2.29851608 | AM56: 2.309778809 | AN56: 2.31947988 | AO56: 2.329685592 | AP56: 2.335742774 | AQ56: 2.341815705 | AR56: 2.349075334 | AS56: 2.356592375 | AT56: 2.37049627 | AU56: 2.376422511 | AV56: 2.383551778 | AW56: 2.393801051 | AX56: 2.417020921 | AY56: 2.433698366 | AZ56: 2.446110227 | BA56: 2.458585389 | BB56: 2.474320336 | BC56: 2.498073811 | BD56: 2.520806283 | BE56: 2.535426959 | BF56: 2.540751356 | BG56: 2.544562483 | BH56: 2.557285295 | BI56: 2.567002979 | BJ56: 2.574447288 | BK56: 2.590923751 | BL56: 2.598955614 | BM56: 2.604153526 | BN56: 2.61847637 | BO56: 2.634187228 | BP56: 2.645250815 | BQ56: 2.651334891 | BR56: 2.653455959 | BS56: 2.657701489 | BT56: 2.664079972 | BU56: 2.673937068 | BV56: 2.680354517 | BW56: 2.703941637 | BX56: 2.722869229 | BY56: 2.7422016 | BZ56: 2.762219672 | CA56: 2.774097216 | CB56: 2.771045709 | CC56: 2.769105977 | CD56: 2.767167603 | CE56: 2.782110308 | CF56: 2.807705723 | CG56: 2.836625092 | CH56: 2.853644843 | CI56: 2.880469104 | CJ56: 2.896023637 | CK56: 2.915137393 | CL56: 2.936126383 | CM56: 2.952862303 | CN56: 2.9593586 | CO56: 2.9593586 | CP56: 2.971787906 | CQ56: 2.985160952 | CR56: 2.994713467 | CS56: 3.011783333 | CT56: 3.027143428 | CU56: 3.04258186 | CV56: 3.054447929 | CW56: 3.059945936 | CX56: 3.079529589 | CY56: 3.096467002 | CZ56: 3.104517816 | DA56: 3.117867243 | DB56: 3.131897646 | DC56: 3.151628601 | DD56: 3.174005164 | DE56: 3.191144792 | DF56: 3.214759263 | DG56: 3.244335048 | DH56: 3.261205591 | DI56: 3.280772824 | DJ56: 3.300129384 | DK56: 3.311679837 | DL56: 3.32095254 | DM56: 3.316635302 | DN56: 3.321941918 | DO56: 3.330911162 | DP56: 3.35122972 | DQ56: 3.36932636 | DR56: 3.39358551 | DS56: 3.414965099 | DT56: 3.436820875 | DU56: 3.465002807 | DV56: 3.492029828 | DW56: 3.512982007 | DX56: 3.522115761 | DY56: 3.526694511 | DZ56: 3.533042561 | EA56: 3.55035447 | EB56: 3.563845817 | EC56: 3.5827342 | ED56: 3.604947152 | EE56: 3.658300369 | EF56: 3.700736654 | EG56: 3.756617777 | EH56: 3.783289763 | EI56: 3.820744332 | EJ56: 3.850164063 | EK56: 3.872495015 | EL56: 3.882176253 | EM56: 3.901975351 | EN56: 3.932020562 | EO56: 3.97566599 | EP56: 4.011446984 | EQ56: 4.072019833 | ER56: 4.110704022 | ES56: 4.128791119 | ET56: 4.155215383 | EU56: 4.195936493 | EV56: 4.215657395 | EW56: 4.242637602 | EX56: 4.255789779 | EY56: 4.259194411 | EZ56: 4.266435041 | FA56: 4.269421546 | FB56: 4.275398736 | FC56: 4.29335541 | FD56: 4.303659463 | FE56: 4.317431174 | FF56: 4.320885119 | FG56: 4.336440305 | FH56: 4.33078125 | FI56: 4.338143579 | FJ56: 4.336842135 | FK56: 4.336842135 | FL56: 4.336842135 | FM56: 4.336842135 | FN56: 4.336842135 | FO56: 4.336842135 | FP56: 4.336842135 | FQ56: 4.336842135 | FR56: 4.336842135 | FS56: 4.336842135 | FT56: 4.336842135 | FU56: 4.336842135 | FV56: 4.336842135 | FW56: 4.336842135 | FX56: 4.336842135 | FY56: 4.336842135 | FZ56: 4.336842135 | GA56: 4.336842135 | GB56: 4.336842135 | GC56: 4.336842135 | GD56: 4.336842135 | GE56: 4.336842135 | GF56: 4.336842135 | GG56: 4.336842135 | GH56: 4.336842135 | GI56: 4.336842135 | GJ56: 4.336842135 | GK56: 4.336842135 | GL56: 4.336842135 | GM56: 4.336842135 | GN56: 4.336842135 | GO56: 4.336842135 | GP56: 4.336842135 | GQ56: 4.336842135 | GR56: 4.336842135 | GS56: 4.336842135 | GT56: 4.336842135 | GU56: 4.336842135 | GV56: 4.336842135 | GW56: 4.336842135 | GX56: 4.336842135 | GY56: 4.336842135 | GZ56: 4.336842135 | HA56: 4.336842135 | HB56: 4.336842135 | HC56: 4.336842135 | HD56: 4.336842135 | HE56: 4.336842135 | HF56: 4.336842135 | HG56: 4.336842135 | HH56: 4.336842135 | HI56: 4.336842135 | HJ56: 4.336842135 | HK56: 4.336842135 | HL56: 4.336842135 | HM56: 4.336842135 | HN56: 4.336842135 | HO56: 4.336842135 | HP56: 4.336842135 | HQ56: 4.336842135 | HR56: 4.336842135 | HS56: 4.336842135 | HT56: 4.336842135 | HU56: 4.336842135 | HV56: 4.336842135 | HW56: 4.336842135 | HX56: 4.336842135 | HY56: 4.336842135 | HZ56: 4.336842135 | IA56: 4.336842135 | IB56: 4.336842135 | IC56: 4.336842135 | ID56: 4.336842135 | IE56: 4.336842135 | IF56: 4.336842135 | IG56: 4.336842135 | IH56: 4.336842135 | II56: 4.336842135 | IJ56: 4.336842135 | IK56: 4.336842135 | IL56: 4.336842135 | IM56: 4.336842135 | IN56: 4.336842135 | IO56: 4.336842135 | IP56: 4.336842135 | IQ56: 4.336842135 | IR56: 4.336842135 | IS56: 4.336842135 | IT56: 4.336842135 | IU56: 4.336842135 | IV56: 4.336842135 | IW56: 4.336842135 | IX56: 4.336842135 | IY56: 4.336842135
B57: 1998-10-01 | C57: 2.02186 | D57: 2.029745254 | E57: 2.041314802 | F57: 2.049684193 | G57: 2.057882929 | H57: 2.068172344 | I57: 2.083270002 | J57: 2.093686352 | K57: 2.097245619 | L57: 2.100810937 | M57: 2.110054505 | N57: 2.128200973 | O57: 2.140331719 | P57: 2.149749178 | Q57: 2.165442348 | R57: 2.185147873 | S57: 2.200443908 | T57: 2.19802342 | U57: 2.198682827 | V57: 2.198682827 | W57: 2.201980851 | X57: 2.21475234 | Y57: 2.226712003 | Z57: 2.235618851 | AA57: 2.244114202 | AB57: 2.249275665 | AC57: 2.255348709 | AD57: 2.258055128 | AE57: 2.260990599 | AF57: 2.259407906 | AG57: 2.261893255 | AH57: 2.261440876 | AI57: 2.265059181 | AJ57: 2.274798936 | AK57: 2.284353091 | AL57: 2.29851608 | AM57: 2.309778809 | AN57: 2.31947988 | AO57: 2.329685592 | AP57: 2.335742774 | AQ57: 2.341815705 | AR57: 2.349075334 | AS57: 2.356592375 | AT57: 2.37049627 | AU57: 2.376422511 | AV57: 2.383551778 | AW57: 2.393801051 | AX57: 2.417020921 | AY57: 2.433698366 | AZ57: 2.446110227 | BA57: 2.458585389 | BB57: 2.474320336 | BC57: 2.498073811 | BD57: 2.520806283 | BE57: 2.535426959 | BF57: 2.540751356 | BG57: 2.544562483 | BH57: 2.557285295 | BI57: 2.567002979 | BJ57: 2.574447288 | BK57: 2.590923751 | BL57: 2.598955614 | BM57: 2.604153526 | BN57: 2.61847637 | BO57: 2.634187228 | BP57: 2.645250815 | BQ57: 2.651334891 | BR57: 2.653455959 | BS57: 2.657701489 | BT57: 2.664079972 | BU57: 2.673937068 | BV57: 2.680354517 | BW57: 2.703941637 | BX57: 2.722869229 | BY57: 2.7422016 | BZ57: 2.762219672 | CA57: 2.774097216 | CB57: 2.771045709 | CC57: 2.769105977 | CD57: 2.767167603 | CE57: 2.782110308 | CF57: 2.807705723 | CG57: 2.836625092 | CH57: 2.853644843 | CI57: 2.880469104 | CJ57: 2.896023637 | CK57: 2.915137393 | CL57: 2.936126383 | CM57: 2.952862303 | CN57: 2.9593586 | CO57: 2.9593586 | CP57: 2.971787906 | CQ57: 2.985160952 | CR57: 2.994713467 | CS57: 3.011783333 | CT57: 3.027143428 | CU57: 3.04258186 | CV57: 3.054447929 | CW57: 3.059945936 | CX57: 3.079529589 | CY57: 3.096467002 | CZ57: 3.104517816 | DA57: 3.117867243 | DB57: 3.131897646 | DC57: 3.151628601 | DD57: 3.174005164 | DE57: 3.191144792 | DF57: 3.214759263 | DG57: 3.244335048 | DH57: 3.261205591 | DI57: 3.280772824 | DJ57: 3.300129384 | DK57: 3.311679837 | DL57: 3.32095254 | DM57: 3.316635302 | DN57: 3.321941918 | DO57: 3.330911162 | DP57: 3.35122972 | DQ57: 3.36932636 | DR57: 3.39358551 | DS57: 3.414965099 | DT57: 3.436820875 | DU57: 3.465002807 | DV57: 3.492029828 | DW57: 3.512982007 | DX57: 3.522115761 | DY57: 3.526694511 | DZ57: 3.533042561 | EA57: 3.55035447 | EB57: 3.563845817 | EC57: 3.5827342 | ED57: 3.604947152 | EE57: 3.658300369 | EF57: 3.700736654 | EG57: 3.756617777 | EH57: 3.783289763 | EI57: 3.820744332 | EJ57: 3.850164063 | EK57: 3.872495015 | EL57: 3.882176253 | EM57: 3.901975351 | EN57: 3.932020562 | EO57: 3.97566599 | EP57: 4.011446984 | EQ57: 4.072019833 | ER57: 4.110704022 | ES57: 4.128791119 | ET57: 4.155215383 | EU57: 4.195936493 | EV57: 4.215657395 | EW57: 4.242637602 | EX57: 4.255789779 | EY57: 4.259194411 | EZ57: 4.266435041 | FA57: 4.269421546 | FB57: 4.275398736 | FC57: 4.29335541 | FD57: 4.303659463 | FE57: 4.317431174 | FF57: 4.320885119 | FG57: 4.336440305 | FH57: 4.33078125 | FI57: 4.338143579 | FJ57: 4.336842135 | FK57: 4.336842135 | FL57: 4.336842135 | FM57: 4.336842135 | FN57: 4.336842135 | FO57: 4.336842135 | FP57: 4.336842135 | FQ57: 4.336842135 | FR57: 4.336842135 | FS57: 4.336842135 | FT57: 4.336842135 | FU57: 4.336842135 | FV57: 4.336842135 | FW57: 4.336842135 | FX57: 4.336842135 | FY57: 4.336842135 | FZ57: 4.336842135 | GA57: 4.336842135 | GB57: 4.336842135 | GC57: 4.336842135 | GD57: 4.336842135 | GE57: 4.336842135 | GF57: 4.336842135 | GG57: 4.336842135 | GH57: 4.336842135 | GI57: 4.336842135 | GJ57: 4.336842135 | GK57: 4.336842135 | GL57: 4.336842135 | GM57: 4.336842135 | GN57: 4.336842135 | GO57: 4.336842135 | GP57: 4.336842135 | GQ57: 4.336842135 | GR57: 4.336842135 | GS57: 4.336842135 | GT57: 4.336842135 | GU57: 4.336842135 | GV57: 4.336842135 | GW57: 4.336842135 | GX57: 4.336842135 | GY57: 4.336842135 | GZ57: 4.336842135 | HA57: 4.336842135 | HB57: 4.336842135 | HC57: 4.336842135 | HD57: 4.336842135 | HE57: 4.336842135 | HF57: 4.336842135 | HG57: 4.336842135 | HH57: 4.336842135 | HI57: 4.336842135 | HJ57: 4.336842135 | HK57: 4.336842135 | HL57: 4.336842135 | HM57: 4.336842135 | HN57: 4.336842135 | HO57: 4.336842135 | HP57: 4.336842135 | HQ57: 4.336842135 | HR57: 4.336842135 | HS57: 4.336842135 | HT57: 4.336842135 | HU57: 4.336842135 | HV57: 4.336842135 | HW57: 4.336842135 | HX57: 4.336842135 | HY57: 4.336842135 | HZ57: 4.336842135 | IA57: 4.336842135 | IB57: 4.336842135 | IC57: 4.336842135 | ID57: 4.336842135 | IE57: 4.336842135 | IF57: 4.336842135 | IG57: 4.336842135 | IH57: 4.336842135 | II57: 4.336842135 | IJ57: 4.336842135 | IK57: 4.336842135 | IL57: 4.336842135 | IM57: 4.336842135 | IN57: 4.336842135 | IO57: 4.336842135 | IP57: 4.336842135 | IQ57: 4.336842135 | IR57: 4.336842135 | IS57: 4.336842135 | IT57: 4.336842135 | IU57: 4.336842135 | IV57: 4.336842135 | IW57: 4.336842135 | IX57: 4.336842135 | IY57: 4.336842135
B58: 1998-11-01 | C58: 2.02186 | D58: 2.029745254 | E58: 2.041314802 | F58: 2.049684193 | G58: 2.057882929 | H58: 2.068172344 | I58: 2.083270002 | J58: 2.093686352 | K58: 2.097245619 | L58: 2.100810937 | M58: 2.110054505 | N58: 2.128200973 | O58: 2.140331719 | P58: 2.149749178 | Q58: 2.165442348 | R58: 2.185147873 | S58: 2.200443908 | T58: 2.19802342 | U58: 2.198682827 | V58: 2.198682827 | W58: 2.201980851 | X58: 2.21475234 | Y58: 2.226712003 | Z58: 2.235618851 | AA58: 2.244114202 | AB58: 2.249275665 | AC58: 2.255348709 | AD58: 2.258055128 | AE58: 2.260990599 | AF58: 2.259407906 | AG58: 2.261893255 | AH58: 2.261440876 | AI58: 2.265059181 | AJ58: 2.274798936 | AK58: 2.284353091 | AL58: 2.29851608 | AM58: 2.309778809 | AN58: 2.31947988 | AO58: 2.329685592 | AP58: 2.335742774 | AQ58: 2.341815705 | AR58: 2.349075334 | AS58: 2.356592375 | AT58: 2.37049627 | AU58: 2.376422511 | AV58: 2.383551778 | AW58: 2.393801051 | AX58: 2.417020921 | AY58: 2.433698366 | AZ58: 2.446110227 | BA58: 2.458585389 | BB58: 2.474320336 | BC58: 2.498073811 | BD58: 2.520806283 | BE58: 2.535426959 | BF58: 2.540751356 | BG58: 2.544562483 | BH58: 2.557285295 | BI58: 2.567002979 | BJ58: 2.574447288 | BK58: 2.590923751 | BL58: 2.598955614 | BM58: 2.604153526 | BN58: 2.61847637 | BO58: 2.634187228 | BP58: 2.645250815 | BQ58: 2.651334891 | BR58: 2.653455959 | BS58: 2.657701489 | BT58: 2.664079972 | BU58: 2.673937068 | BV58: 2.680354517 | BW58: 2.703941637 | BX58: 2.722869229 | BY58: 2.7422016 | BZ58: 2.762219672 | CA58: 2.774097216 | CB58: 2.771045709 | CC58: 2.769105977 | CD58: 2.767167603 | CE58: 2.782110308 | CF58: 2.807705723 | CG58: 2.836625092 | CH58: 2.853644843 | CI58: 2.880469104 | CJ58: 2.896023637 | CK58: 2.915137393 | CL58: 2.936126383 | CM58: 2.952862303 | CN58: 2.9593586 | CO58: 2.9593586 | CP58: 2.971787906 | CQ58: 2.985160952 | CR58: 2.994713467 | CS58: 3.011783333 | CT58: 3.027143428 | CU58: 3.04258186 | CV58: 3.054447929 | CW58: 3.059945936 | CX58: 3.079529589 | CY58: 3.096467002 | CZ58: 3.104517816 | DA58: 3.117867243 | DB58: 3.131897646 | DC58: 3.151628601 | DD58: 3.174005164 | DE58: 3.191144792 | DF58: 3.214759263 | DG58: 3.244335048 | DH58: 3.261205591 | DI58: 3.280772824 | DJ58: 3.300129384 | DK58: 3.311679837 | DL58: 3.32095254 | DM58: 3.316635302 | DN58: 3.321941918 | DO58: 3.330911162 | DP58: 3.35122972 | DQ58: 3.36932636 | DR58: 3.39358551 | DS58: 3.414965099 | DT58: 3.436820875 | DU58: 3.465002807 | DV58: 3.492029828 | DW58: 3.512982007 | DX58: 3.522115761 | DY58: 3.526694511 | DZ58: 3.533042561 | EA58: 3.55035447 | EB58: 3.563845817 | EC58: 3.5827342 | ED58: 3.604947152 | EE58: 3.658300369 | EF58: 3.700736654 | EG58: 3.756617777 | EH58: 3.783289763 | EI58: 3.820744332 | EJ58: 3.850164063 | EK58: 3.872495015 | EL58: 3.882176253 | EM58: 3.901975351 | EN58: 3.932020562 | EO58: 3.97566599 | EP58: 4.011446984 | EQ58: 4.072019833 | ER58: 4.110704022 | ES58: 4.128791119 | ET58: 4.155215383 | EU58: 4.195936493 | EV58: 4.215657395 | EW58: 4.242637602 | EX58: 4.255789779 | EY58: 4.259194411 | EZ58: 4.266435041 | FA58: 4.269421546 | FB58: 4.275398736 | FC58: 4.29335541 | FD58: 4.303659463 | FE58: 4.317431174 | FF58: 4.320885119 | FG58: 4.336440305 | FH58: 4.33078125 | FI58: 4.338143579 | FJ58: 4.336842135 | FK58: 4.336842135 | FL58: 4.336842135 | FM58: 4.336842135 | FN58: 4.336842135 | FO58: 4.336842135 | FP58: 4.336842135 | FQ58: 4.336842135 | FR58: 4.336842135 | FS58: 4.336842135 | FT58: 4.336842135 | FU58: 4.336842135 | FV58: 4.336842135 | FW58: 4.336842135 | FX58: 4.336842135 | FY58: 4.336842135 | FZ58: 4.336842135 | GA58: 4.336842135 | GB58: 4.336842135 | GC58: 4.336842135 | GD58: 4.336842135 | GE58: 4.336842135 | GF58: 4.336842135 | GG58: 4.336842135 | GH58: 4.336842135 | GI58: 4.336842135 | GJ58: 4.336842135 | GK58: 4.336842135 | GL58: 4.336842135 | GM58: 4.336842135 | GN58: 4.336842135 | GO58: 4.336842135 | GP58: 4.336842135 | GQ58: 4.336842135 | GR58: 4.336842135 | GS58: 4.336842135 | GT58: 4.336842135 | GU58: 4.336842135 | GV58: 4.336842135 | GW58: 4.336842135 | GX58: 4.336842135 | GY58: 4.336842135 | GZ58: 4.336842135 | HA58: 4.336842135 | HB58: 4.336842135 | HC58: 4.336842135 | HD58: 4.336842135 | HE58: 4.336842135 | HF58: 4.336842135 | HG58: 4.336842135 | HH58: 4.336842135 | HI58: 4.336842135 | HJ58: 4.336842135 | HK58: 4.336842135 | HL58: 4.336842135 | HM58: 4.336842135 | HN58: 4.336842135 | HO58: 4.336842135 | HP58: 4.336842135 | HQ58: 4.336842135 | HR58: 4.336842135 | HS58: 4.336842135 | HT58: 4.336842135 | HU58: 4.336842135 | HV58: 4.336842135 | HW58: 4.336842135 | HX58: 4.336842135 | HY58: 4.336842135 | HZ58: 4.336842135 | IA58: 4.336842135 | IB58: 4.336842135 | IC58: 4.336842135 | ID58: 4.336842135 | IE58: 4.336842135 | IF58: 4.336842135 | IG58: 4.336842135 | IH58: 4.336842135 | II58: 4.336842135 | IJ58: 4.336842135 | IK58: 4.336842135 | IL58: 4.336842135 | IM58: 4.336842135 | IN58: 4.336842135 | IO58: 4.336842135 | IP58: 4.336842135 | IQ58: 4.336842135 | IR58: 4.336842135 | IS58: 4.336842135 | IT58: 4.336842135 | IU58: 4.336842135 | IV58: 4.336842135 | IW58: 4.336842135 | IX58: 4.336842135 | IY58: 4.336842135
B59: 1998-12-01 | C59: 2.02186 | D59: 2.029745254 | E59: 2.041314802 | F59: 2.049684193 | G59: 2.057882929 | H59: 2.068172344 | I59: 2.083270002 | J59: 2.093686352 | K59: 2.097245619 | L59: 2.100810937 | M59: 2.110054505 | N59: 2.128200973 | O59: 2.140331719 | P59: 2.149749178 | Q59: 2.165442348 | R59: 2.185147873 | S59: 2.200443908 | T59: 2.19802342 | U59: 2.198682827 | V59: 2.198682827 | W59: 2.201980851 | X59: 2.21475234 | Y59: 2.226712003 | Z59: 2.235618851 | AA59: 2.244114202 | AB59: 2.249275665 | AC59: 2.255348709 | AD59: 2.258055128 | AE59: 2.260990599 | AF59: 2.259407906 | AG59: 2.261893255 | AH59: 2.261440876 | AI59: 2.265059181 | AJ59: 2.274798936 | AK59: 2.284353091 | AL59: 2.29851608 | AM59: 2.309778809 | AN59: 2.31947988 | AO59: 2.329685592 | AP59: 2.335742774 | AQ59: 2.341815705 | AR59: 2.349075334 | AS59: 2.356592375 | AT59: 2.37049627 | AU59: 2.376422511 | AV59: 2.383551778 | AW59: 2.393801051 | AX59: 2.417020921 | AY59: 2.433698366 | AZ59: 2.446110227 | BA59: 2.458585389 | BB59: 2.474320336 | BC59: 2.498073811 | BD59: 2.520806283 | BE59: 2.535426959 | BF59: 2.540751356 | BG59: 2.544562483 | BH59: 2.557285295 | BI59: 2.567002979 | BJ59: 2.574447288 | BK59: 2.590923751 | BL59: 2.598955614 | BM59: 2.604153526 | BN59: 2.61847637 | BO59: 2.634187228 | BP59: 2.645250815 | BQ59: 2.651334891 | BR59: 2.653455959 | BS59: 2.657701489 | BT59: 2.664079972 | BU59: 2.673937068 | BV59: 2.680354517 | BW59: 2.703941637 | BX59: 2.722869229 | BY59: 2.7422016 | BZ59: 2.762219672 | CA59: 2.774097216 | CB59: 2.771045709 | CC59: 2.769105977 | CD59: 2.767167603 | CE59: 2.782110308 | CF59: 2.807705723 | CG59: 2.836625092 | CH59: 2.853644843 | CI59: 2.880469104 | CJ59: 2.896023637 | CK59: 2.915137393 | CL59: 2.936126383 | CM59: 2.952862303 | CN59: 2.9593586 | CO59: 2.9593586 | CP59: 2.971787906 | CQ59: 2.985160952 | CR59: 2.994713467 | CS59: 3.011783333 | CT59: 3.027143428 | CU59: 3.04258186 | CV59: 3.054447929 | CW59: 3.059945936 | CX59: 3.079529589 | CY59: 3.096467002 | CZ59: 3.104517816 | DA59: 3.117867243 | DB59: 3.131897646 | DC59: 3.151628601 | DD59: 3.174005164 | DE59: 3.191144792 | DF59: 3.214759263 | DG59: 3.244335048 | DH59: 3.261205591 | DI59: 3.280772824 | DJ59: 3.300129384 | DK59: 3.311679837 | DL59: 3.32095254 | DM59: 3.316635302 | DN59: 3.321941918 | DO59: 3.330911162 | DP59: 3.35122972 | DQ59: 3.36932636 | DR59: 3.39358551 | DS59: 3.414965099 | DT59: 3.436820875 | DU59: 3.465002807 | DV59: 3.492029828 | DW59: 3.512982007 | DX59: 3.522115761 | DY59: 3.526694511 | DZ59: 3.533042561 | EA59: 3.55035447 | EB59: 3.563845817 | EC59: 3.5827342 | ED59: 3.604947152 | EE59: 3.658300369 | EF59: 3.700736654 | EG59: 3.756617777 | EH59: 3.783289763 | EI59: 3.820744332 | EJ59: 3.850164063 | EK59: 3.872495015 | EL59: 3.882176253 | EM59: 3.901975351 | EN59: 3.932020562 | EO59: 3.97566599 | EP59: 4.011446984 | EQ59: 4.072019833 | ER59: 4.110704022 | ES59: 4.128791119 | ET59: 4.155215383 | EU59: 4.195936493 | EV59: 4.215657395 | EW59: 4.242637602 | EX59: 4.255789779 | EY59: 4.259194411 | EZ59: 4.266435041 | FA59: 4.269421546 | FB59: 4.275398736 | FC59: 4.29335541 | FD59: 4.303659463 | FE59: 4.317431174 | FF59: 4.320885119 | FG59: 4.336440305 | FH59: 4.33078125 | FI59: 4.338143579 | FJ59: 4.336842135 | FK59: 4.336842135 | FL59: 4.336842135 | FM59: 4.336842135 | FN59: 4.336842135 | FO59: 4.336842135 | FP59: 4.336842135 | FQ59: 4.336842135 | FR59: 4.336842135 | FS59: 4.336842135 | FT59: 4.336842135 | FU59: 4.336842135 | FV59: 4.336842135 | FW59: 4.336842135 | FX59: 4.336842135 | FY59: 4.336842135 | FZ59: 4.336842135 | GA59: 4.336842135 | GB59: 4.336842135 | GC59: 4.336842135 | GD59: 4.336842135 | GE59: 4.336842135 | GF59: 4.336842135 | GG59: 4.336842135 | GH59: 4.336842135 | GI59: 4.336842135 | GJ59: 4.336842135 | GK59: 4.336842135 | GL59: 4.336842135 | GM59: 4.336842135 | GN59: 4.336842135 | GO59: 4.336842135 | GP59: 4.336842135 | GQ59: 4.336842135 | GR59: 4.336842135 | GS59: 4.336842135 | GT59: 4.336842135 | GU59: 4.336842135 | GV59: 4.336842135 | GW59: 4.336842135 | GX59: 4.336842135 | GY59: 4.336842135 | GZ59: 4.336842135 | HA59: 4.336842135 | HB59: 4.336842135 | HC59: 4.336842135 | HD59: 4.336842135 | HE59: 4.336842135 | HF59: 4.336842135 | HG59: 4.336842135 | HH59: 4.336842135 | HI59: 4.336842135 | HJ59: 4.336842135 | HK59: 4.336842135 | HL59: 4.336842135 | HM59: 4.336842135 | HN59: 4.336842135 | HO59: 4.336842135 | HP59: 4.336842135 | HQ59: 4.336842135 | HR59: 4.336842135 | HS59: 4.336842135 | HT59: 4.336842135 | HU59: 4.336842135 | HV59: 4.336842135 | HW59: 4.336842135 | HX59: 4.336842135 | HY59: 4.336842135 | HZ59: 4.336842135 | IA59: 4.336842135 | IB59: 4.336842135 | IC59: 4.336842135 | ID59: 4.336842135 | IE59: 4.336842135 | IF59: 4.336842135 | IG59: 4.336842135 | IH59: 4.336842135 | II59: 4.336842135 | IJ59: 4.336842135 | IK59: 4.336842135 | IL59: 4.336842135 | IM59: 4.336842135 | IN59: 4.336842135 | IO59: 4.336842135 | IP59: 4.336842135 | IQ59: 4.336842135 | IR59: 4.336842135 | IS59: 4.336842135 | IT59: 4.336842135 | IU59: 4.336842135 | IV59: 4.336842135 | IW59: 4.336842135 | IX59: 4.336842135 | IY59: 4.336842135
B60: 1999-01-01 | C60: 2.002238 | D60: 2.010046728 | E60: 2.021503995 | F60: 2.029792161 | G60: 2.03791133 | H60: 2.048100886 | I60: 2.063052023 | J60: 2.073367283 | K60: 2.076892007 | L60: 2.080422724 | M60: 2.089576584 | N60: 2.107546942 | O60: 2.11955996 | P60: 2.128886024 | Q60: 2.144426892 | R60: 2.163941176 | S60: 2.179088765 | T60: 2.176691767 | U60: 2.177344774 | V60: 2.177344774 | W60: 2.180610792 | X60: 2.193258334 | Y60: 2.205101929 | Z60: 2.213922337 | AA60: 2.222335242 | AB60: 2.227446613 | AC60: 2.233460719 | AD60: 2.236140872 | AE60: 2.239047855 | AF60: 2.237480521 | AG60: 2.23994175 | AH60: 2.239493761 | AI60: 2.243076951 | AJ60: 2.252722182 | AK60: 2.262183615 | AL60: 2.276209154 | AM60: 2.287362579 | AN60: 2.296969502 | AO60: 2.307076167 | AP60: 2.313074565 | AQ60: 2.319088559 | AR60: 2.326277734 | AS60: 2.333721823 | AT60: 2.347490781 | AU60: 2.353359508 | AV60: 2.360419587 | AW60: 2.370569391 | AX60: 2.393563914 | AY60: 2.410079505 | AZ60: 2.422370911 | BA60: 2.434725002 | BB60: 2.450307242 | BC60: 2.473830192 | BD60: 2.496342047 | BE60: 2.51082083 | BF60: 2.516093554 | BG60: 2.519867694 | BH60: 2.532467033 | BI60: 2.542090408 | BJ60: 2.54946247 | BK60: 2.56577903 | BL60: 2.573732945 | BM60: 2.578880411 | BN60: 2.593064253 | BO60: 2.608622638 | BP60: 2.619578853 | BQ60: 2.625603885 | BR60: 2.627704368 | BS60: 2.631908695 | BT60: 2.638225276 | BU60: 2.647986709 | BV60: 2.654341877 | BW60: 2.677700086 | BX60: 2.696443986 | BY60: 2.715588739 | BZ60: 2.735412537 | CA60: 2.74717481 | CB60: 2.744152918 | CC60: 2.742232011 | CD60: 2.740312449 | CE60: 2.755110136 | CF60: 2.780457149 | CG60: 2.809095858 | CH60: 2.825950433 | CI60: 2.852514367 | CJ60: 2.867917945 | CK60: 2.886846203 | CL60: 2.907631496 | CM60: 2.924204995 | CN60: 2.930638246 | CO60: 2.930638246 | CP60: 2.942946927 | CQ60: 2.956190188 | CR60: 2.965649997 | CS60: 2.982554202 | CT60: 2.997765228 | CU60: 3.013053831 | CV60: 3.024804741 | CW60: 3.030249389 | CX60: 3.049642985 | CY60: 3.066416022 | CZ60: 3.074388703 | DA60: 3.087608575 | DB60: 3.101502813 | DC60: 3.121042281 | DD60: 3.143201681 | DE60: 3.16017497 | DF60: 3.183560265 | DG60: 3.21284902 | DH60: 3.229555834 | DI60: 3.248933169 | DJ60: 3.268101875 | DK60: 3.279540232 | DL60: 3.288722944 | DM60: 3.284447605 | DN60: 3.289702721 | DO60: 3.298584918 | DP60: 3.318706286 | DQ60: 3.3366273 | DR60: 3.360651017 | DS60: 3.381823118 | DT60: 3.403466786 | DU60: 3.431375214 | DV60: 3.45813994 | DW60: 3.47888878 | DX60: 3.487933891 | DY60: 3.492468205 | DZ60: 3.498754648 | EA60: 3.515898545 | EB60: 3.52925896 | EC60: 3.547964032 | ED60: 3.569961409 | EE60: 3.622796838 | EF60: 3.664821281 | EG60: 3.720160083 | EH60: 3.746573219 | EI60: 3.783664294 | EJ60: 3.812798509 | EK60: 3.834912741 | EL60: 3.844500023 | EM60: 3.864106973 | EN60: 3.893860596 | EO60: 3.937082449 | EP60: 3.972516191 | EQ60: 4.032501186 | ER60: 4.070809947 | ES60: 4.088721511 | ET60: 4.114889328 | EU60: 4.155215244 | EV60: 4.174744755 | EW60: 4.201463122 | EX60: 4.214487657 | EY60: 4.217859248 | EZ60: 4.225029608 | FA60: 4.227987129 | FB60: 4.233906311 | FC60: 4.251688717 | FD60: 4.26189277 | FE60: 4.275530827 | FF60: 4.278951252 | FG60: 4.294355476 | FH60: 4.288751342 | FI60: 4.29604222 | FJ60: 4.294753407 | FK60: 4.294753407 | FL60: 4.294753407 | FM60: 4.294753407 | FN60: 4.294753407 | FO60: 4.294753407 | FP60: 4.294753407 | FQ60: 4.294753407 | FR60: 4.294753407 | FS60: 4.294753407 | FT60: 4.294753407 | FU60: 4.294753407 | FV60: 4.294753407 | FW60: 4.294753407 | FX60: 4.294753407 | FY60: 4.294753407 | FZ60: 4.294753407 | GA60: 4.294753407 | GB60: 4.294753407 | GC60: 4.294753407 | GD60: 4.294753407 | GE60: 4.294753407 | GF60: 4.294753407 | GG60: 4.294753407 | GH60: 4.294753407 | GI60: 4.294753407 | GJ60: 4.294753407 | GK60: 4.294753407 | GL60: 4.294753407 | GM60: 4.294753407 | GN60: 4.294753407 | GO60: 4.294753407 | GP60: 4.294753407 | GQ60: 4.294753407 | GR60: 4.294753407 | GS60: 4.294753407 | GT60: 4.294753407 | GU60: 4.294753407 | GV60: 4.294753407 | GW60: 4.294753407 | GX60: 4.294753407 | GY60: 4.294753407 | GZ60: 4.294753407 | HA60: 4.294753407 | HB60: 4.294753407 | HC60: 4.294753407 | HD60: 4.294753407 | HE60: 4.294753407 | HF60: 4.294753407 | HG60: 4.294753407 | HH60: 4.294753407 | HI60: 4.294753407 | HJ60: 4.294753407 | HK60: 4.294753407 | HL60: 4.294753407 | HM60: 4.294753407 | HN60: 4.294753407 | HO60: 4.294753407 | HP60: 4.294753407 | HQ60: 4.294753407 | HR60: 4.294753407 | HS60: 4.294753407 | HT60: 4.294753407 | HU60: 4.294753407 | HV60: 4.294753407 | HW60: 4.294753407 | HX60: 4.294753407 | HY60: 4.294753407 | HZ60: 4.294753407 | IA60: 4.294753407 | IB60: 4.294753407 | IC60: 4.294753407 | ID60: 4.294753407 | IE60: 4.294753407 | IF60: 4.294753407 | IG60: 4.294753407 | IH60: 4.294753407 | II60: 4.294753407 | IJ60: 4.294753407 | IK60: 4.294753407 | IL60: 4.294753407 | IM60: 4.294753407 | IN60: 4.294753407 | IO60: 4.294753407 | IP60: 4.294753407 | IQ60: 4.294753407 | IR60: 4.294753407 | IS60: 4.294753407 | IT60: 4.294753407 | IU60: 4.294753407 | IV60: 4.294753407 | IW60: 4.294753407 | IX60: 4.294753407 | IY60: 4.294753407
B61: 1999-02-01 | C61: 1.979474 | D61: 1.987193949 | E61: 1.998520954 | F61: 2.00671489 | G61: 2.01474175 | H61: 2.024815458 | I61: 2.039596611 | J61: 2.049794594 | K61: 2.053279245 | L61: 2.05676982 | M61: 2.065819607 | N61: 2.083585656 | O61: 2.095462094 | P61: 2.104682127 | Q61: 2.120046307 | R61: 2.139338728 | S61: 2.154314099 | T61: 2.151944354 | U61: 2.152589937 | V61: 2.152589937 | W61: 2.155818822 | X61: 2.168322571 | Y61: 2.180031513 | Z61: 2.188751639 | AA61: 2.197068895 | AB61: 2.202122154 | AC61: 2.208067883 | AD61: 2.210717565 | AE61: 2.213591498 | AF61: 2.212041984 | AG61: 2.21447523 | AH61: 2.214032335 | AI61: 2.217574786 | AJ61: 2.227110358 | AK61: 2.236464222 | AL61: 2.2503303 | AM61: 2.261356918 | AN61: 2.270854617 | AO61: 2.280846378 | AP61: 2.286776578 | AQ61: 2.292722197 | AR61: 2.299829636 | AS61: 2.307189091 | AT61: 2.320801507 | AU61: 2.32660351 | AV61: 2.333583321 | AW61: 2.343617729 | AX61: 2.366350821 | AY61: 2.382678642 | AZ61: 2.394830303 | BA61: 2.407043937 | BB61: 2.422449019 | BC61: 2.445704529 | BD61: 2.46796044 | BE61: 2.482274611 | BF61: 2.487487388 | BG61: 2.491218619 | BH61: 2.503674712 | BI61: 2.513188676 | BJ61: 2.520476923 | BK61: 2.536607975 | BL61: 2.54447146 | BM61: 2.549560403 | BN61: 2.563582985 | BO61: 2.578964483 | BP61: 2.589796134 | BQ61: 2.595752665 | BR61: 2.597829267 | BS61: 2.601985794 | BT61: 2.60823056 | BU61: 2.617881013 | BV61: 2.624163927 | BW61: 2.64725657 | BX61: 2.665787366 | BY61: 2.684714456 | BZ61: 2.704312872 | CA61: 2.715941417 | CB61: 2.712953881 | CC61: 2.711054814 | CD61: 2.709157075 | CE61: 2.723786523 | CF61: 2.74884536 | CG61: 2.777158467 | CH61: 2.793821418 | CI61: 2.820083339 | CJ61: 2.835311789 | CK61: 2.854024847 | CL61: 2.874573826 | CM61: 2.890958896 | CN61: 2.897319006 | CO61: 2.897319006 | CP61: 2.909487746 | CQ61: 2.922580441 | CR61: 2.931932698 | CS61: 2.948644714 | CT61: 2.963682802 | CU61: 2.978797585 | CV61: 2.990414895 | CW61: 2.995797642 | CX61: 3.014970747 | CY61: 3.031553086 | CZ61: 3.039435124 | DA61: 3.052504695 | DB61: 3.066240966 | DC61: 3.085558284 | DD61: 3.107465748 | DE61: 3.124246063 | DF61: 3.147365484 | DG61: 3.176321247 | DH61: 3.192838117 | DI61: 3.211995146 | DJ61: 3.230945917 | DK61: 3.242254228 | DL61: 3.25133254 | DM61: 3.247105807 | DN61: 3.252301177 | DO61: 3.26108239 | DP61: 3.280974992 | DQ61: 3.298692257 | DR61: 3.322442842 | DS61: 3.343374232 | DT61: 3.364771827 | DU61: 3.392362956 | DV61: 3.418823387 | DW61: 3.439336327 | DX61: 3.448278601 | DY61: 3.452761364 | DZ61: 3.458976334 | EA61: 3.475925318 | EB61: 3.489133834 | EC61: 3.507626244 | ED61: 3.529373526 | EE61: 3.581608255 | EF61: 3.62315491 | EG61: 3.677864549 | EH61: 3.703977388 | EI61: 3.740646764 | EJ61: 3.769449744 | EK61: 3.791312553 | EL61: 3.800790834 | EM61: 3.820174867 | EN61: 3.849590214 | EO61: 3.892320665 | EP61: 3.927351551 | EQ61: 3.986654559 | ER61: 4.024527778 | ES61: 4.0422357 | ET61: 4.068106008 | EU61: 4.107973447 | EV61: 4.127280922 | EW61: 4.15369552 | EX61: 4.166571977 | EY61: 4.169905234 | EZ61: 4.176994073 | FA61: 4.179917969 | FB61: 4.185769854 | FC61: 4.203350087 | FD61: 4.213438128 | FE61: 4.22692113 | FF61: 4.230302667 | FG61: 4.245531756 | FH61: 4.239991337 | FI61: 4.247199322 | FJ61: 4.245925163 | FK61: 4.245925163 | FL61: 4.245925163 | FM61: 4.245925163 | FN61: 4.245925163 | FO61: 4.245925163 | FP61: 4.245925163 | FQ61: 4.245925163 | FR61: 4.245925163 | FS61: 4.245925163 | FT61: 4.245925163 | FU61: 4.245925163 | FV61: 4.245925163 | FW61: 4.245925163 | FX61: 4.245925163 | FY61: 4.245925163 | FZ61: 4.245925163 | GA61: 4.245925163 | GB61: 4.245925163 | GC61: 4.245925163 | GD61: 4.245925163 | GE61: 4.245925163 | GF61: 4.245925163 | GG61: 4.245925163 | GH61: 4.245925163 | GI61: 4.245925163 | GJ61: 4.245925163 | GK61: 4.245925163 | GL61: 4.245925163 | GM61: 4.245925163 | GN61: 4.245925163 | GO61: 4.245925163 | GP61: 4.245925163 | GQ61: 4.245925163 | GR61: 4.245925163 | GS61: 4.245925163 | GT61: 4.245925163 | GU61: 4.245925163 | GV61: 4.245925163 | GW61: 4.245925163 | GX61: 4.245925163 | GY61: 4.245925163 | GZ61: 4.245925163 | HA61: 4.245925163 | HB61: 4.245925163 | HC61: 4.245925163 | HD61: 4.245925163 | HE61: 4.245925163 | HF61: 4.245925163 | HG61: 4.245925163 | HH61: 4.245925163 | HI61: 4.245925163 | HJ61: 4.245925163 | HK61: 4.245925163 | HL61: 4.245925163 | HM61: 4.245925163 | HN61: 4.245925163 | HO61: 4.245925163 | HP61: 4.245925163 | HQ61: 4.245925163 | HR61: 4.245925163 | HS61: 4.245925163 | HT61: 4.245925163 | HU61: 4.245925163 | HV61: 4.245925163 | HW61: 4.245925163 | HX61: 4.245925163 | HY61: 4.245925163 | HZ61: 4.245925163 | IA61: 4.245925163 | IB61: 4.245925163 | IC61: 4.245925163 | ID61: 4.245925163 | IE61: 4.245925163 | IF61: 4.245925163 | IG61: 4.245925163 | IH61: 4.245925163 | II61: 4.245925163 | IJ61: 4.245925163 | IK61: 4.245925163 | IL61: 4.245925163 | IM61: 4.245925163 | IN61: 4.245925163 | IO61: 4.245925163 | IP61: 4.245925163 | IQ61: 4.245925163 | IR61: 4.245925163 | IS61: 4.245925163 | IT61: 4.245925163 | IU61: 4.245925163 | IV61: 4.245925163 | IW61: 4.245925163 | IX61: 4.245925163 | IY61: 4.245925163
